Workbook

Sheet Start
A1: START | F1: Excel Toolkit for Mitigation Analysis for Low-Carbon Development Planning | R1: XLMT-Solid Waste v17.1
D10: Disclaimer
D11: Data used has been obtained from reliable sources. The Ministry of Social Security, National Solidarity, and Environment and Sustainable Development (Environment and Sustainable Development Division) assumes no responsibility for errors and omissions in the data provided. Users are, however, kindly asked to report any errors or deficiencies in this product to the Ministry. The choices of calculation made in this tool are derived from TNC Report (2016).
D13: ©2017 Government of Mauritius and United Nations Environment Programme
D14: All rights reserved. No part of this Guideline and/or Toolkit may be produced, stored in a retrieval system or transmitted, in any form or by any means, electronic, mechanical, photocopying, recording or otherwise without prior permission from the Ministry of Social Security, National Solidarity, and Environment and Sustainable Development (Environment and Sustainable Development Division) and the United Nations Environment Programme. Results based on the use of the Toolkit must be duly acknowledged and referenced; the copyright holder’s endorsement of Users' views, products or services shall not be implied in any way.

Sheet 1. Sector
A1: Sector | C1: Excel Toolkit for Mitigation Analysis for Low-Carbon Development Planning | H1: XLMT-Solid Waste v17.1
C3: STAKEHOLDERS | E3: Contact Details of Registered Users:
E4: Name | F4: Email | G4: Phone Number | H4: Address
B5: Chair: | C5: Solid Waste Management Division, MSSNSESD | E5: Mr D Dookee | F5: gdookee@gmail.com | G5: 201 2743 | H5: 10th floor, Emmanuel Anquetil Bldg, Port Louis
B6: Members: | C6: Solid Waste Management Division, MSSNSESD | E6: Mr N. Moorlah | F6: navingm@hotmail.com | G6: 201 3016 | H6: 11th floor, Emmanuel Anquetil Bldg, Port Louis
C7: Solid Waste Management Division, MSSNSESD | E7: Mr Z. Bundhoo | F7: zumar.bundhoo@gmail.com | G7: 201 2742 | H7: 12th floor, Emmanuel Anquetil Bldg, Port Louis

Sheet 2. Description
A1: Description | D1: Excel Toolkit for Mitigation Analysis for Low-Carbon Development Planning | R1: XLMT-Solid Waste v17.1
C3: Mitigation actions to reduce GHG emissions for the Solid Waste sector (source: TNC, 2016)
B4: Scenarios | F4: TNC Assumptions | M4: Expected GHG emissions (GgCO2e) | Q4: TNC Remarks
B5: BAU | C5: Business-As-Usual | F5: BAU Projections in emissions have been calculated by assuming a 2% year-on-year increase in the quantity of Municipal Solid Waste (MSW)# | M5: 1290 Gg CO2e in 2020; 1691 Gg CO2e in 2030; 2168 Gg CO2e in 2040; 2745 Gg CO2e in 2050; | Q5: The waste composition (by type of waste) has been kept the same as the breakdown used in the solid waste national inventory.
B6: SC1 | C6: Enhancing the capture of LFG for either flaring or electricity generation | F6: Methane capture is increased to 40% in 2030; to 45% in 2040; and to 50% in 2050 – i.e. an absolute increase from 18.3 Gg CH4 in 2016 to 34.4 Gg CH4 in 2030, and to 64.1 Gg CH4 in 2050. | M6: 1175 Gg CO2e in 2020; 1289 Gg CO2e in 2030; 1444 Gg CO2e in 2040; 1602 Gg CO2e in 2050
B7: SC2 | C7: Composting of food, garden and paper degradables | F7: The quantity of the waste that is diverted from landfill is 20% (2020), 30% (2030), 40% (2040), and 50% (2030) relative to their baseline values. Hence, the composting is additional to any that is being carried out already in the baseline situation. This incremental composting starts in 2017 at a rate of 2% and increases linearly to the above-mentioned targets. | M7: 1256 Gg CO2e in 2020; 1298 Gg CO2e in 2030; 1297 Gg CO2e in 2040; 1342 Gg CO2e in 2050. | Q7: It is assumed that the composting process does not emit any methane, and the compost produced is used in agriculture to support bio-farming.
B8: SC3 | C8: Recycling of paper and textile waste | F8: A scenario (yielding the least GHG emission reductions) modelled based on the approach used in the SNC to investigate the impact of recycling of paper and textile waste. The targets are to achieve recycling rates of 8% in 2020; 28% in 2030; 38% in 2040; and 48% in 2050. | M8: 1289 GgCO2e in 2020; 1680 GgCO2e in 2030; 2139 GgCO2e in 2040; 2694 GgCO2e in 2050. | Q8: Based on the approach used in the SNC to investigate the impact of recycling of paper and textile waste.
B9: SC4 | C9: A waste-to-energy (WTE) | F9: This scenario modelled for 2019 where 600 t of MSW is diverted from the landfill for energy production on a daily basis. | M9: 1135 Gg CO2e in 2020; 907 Gg CO2e in 2030; 1270 Gg CO2e in 2040; 1824 Gg CO2e in 2050. | Q9: The emission profile of the WTE scenario is non-linear.
B10: # The model calculates total waste generated as a product of population and per capita waste. In view of a declining population after 2023 using demographic projections (Statistics Mauritius, 2015, a constant 2% growth in total quantity of waste represents a gradual increase in the per capita MSW generated). Since population projections are given for every 5 years, linear interpolation has been used to derive intermediate levels of population. The waste composition (by type of waste) has been kept the same as the breakdown used in the solid waste national GHG inventory. The projected year-on-year increase in per capita MSW generation is 2.23% in 2030 and 3.15% in 2050, taking into account declining population. BAU scenario also assumes that additional wells and piping system will be added to increase the capture of LFG (and methane) for electricity generation. It has been assumed that the methane capture increases to 85% of its total volume that is 18.3 Gg CH4 in 2016 as compared to 15.9 Gg CH4 in 2014.

Sheet 3. Query
A1: QUERY | E1: Excel Toolkit for Mitigation Analysis for Low-Carbon Development Planning | P1: XLMT-Solid Waste v17.1
C5: Users can analyze their results after inputting their parameters (if required) and new assumptions. The number of cases of User-defined scenarios that can be made, in addition to the TNC scenarios (labelled TNC), has been limited to two (labelled UD1 and UD2) for practical reasons. Users can visualize the impact of their assumptions and/or parameter changes made on a number of variables relevant to individual sectors including the Total CO2e emission. Full list of the variables relevant to individual sectors appear in the individual user manuals. Results can be compared graphically or through tabular representations. Radar dashboards are provided to assess the extent of departure from the targeted annual values estimated by the original TNC studies. The Toolkit has a pdf reporting system, which provides details of the project and the results of the investigations.

Sheet 4. Data
A1: Data | E1: Excel Toolkit for Mitigation Analysis for Low-Carbon Development Planning | Q1: XLMT-Solid Waste v17.1
A2: A | B2: POPULATION AND SOLID WASTE GENERATION | J2: DEFAULT FROM TNC ARE ALREADY ENTERED
B3: Year | C3: Population (million) | D3: Waste per capita, WPC (kg/cap/yr) | E3: Total Waste (Gg/yr) | F3: % to SWDS | G3: Waste to SWDS (Gg/yr) | H3: Waste to SWDS under WTE Scenario (Gg/yr) | I3: % Waste Composted | J3: % Waste to SWDS under Composting project | K3: Waste to SWDS under Composting project (Gg/yr) | L3: % Waste Recycled | M3: % Waste to SWDS under recycling project | N3: Waste to SWDS under Recycling project(Gg/yr) | O3: Population (million) | P3: Waste per capita, WPC (kg/cap/yr)
B4: 2000 | C4: 1.151094 | D4: 230.93 | E4: =C4*D4 -> 265.8221374 | F4: 0.75 | G4: =E4*F4 -> 199.3666031 | H4: 199.3666031 | O4: 1.151094 | P4: 230.93
B5: 2001 | C5: 1.160083 | D5: 264.37 | E5: =C5*D5 -> 306.6911427 | F5: 0.88 | G5: 269.8882056 | H5: 269.8882056 | O5: 1.160083 | P5: 264.37
B6: 2002 | C6: 1.167995 | D6: 311.57 | E6: 363.9122021 | F6: 1 | G6: 363.9122021 | H6: 363.9122021 | O6: 1.167995 | P6: 311.57
B7: 2003 | C7: 1.176323 | D7: 316.62 | E7: 372.4473883 | F7: 1 | G7: 372.4473883 | H7: 372.4473883 | O7: 1.176323 | P7: 316.62
B8: 2004 | C8: 1.183533 | D8: 322.09 | E8: 381.204144 | F8: 1 | G8: 381.204144 | H8: 381.204144 | O8: 1.183533 | P8: 322.09
B9: 2005 | C9: 1.190361 | D9: 327.78 | E9: 390.1765286 | F9: 1 | G9: 390.1765286 | H9: 390.1765286 | O9: 1.190361 | P9: 327.78
B10: 2006 | C10: 1.195676 | D10: 340.43 | E10: 407.0439807 | F10: 1 | G10: 407.0439807 | H10: 407.0439807 | O10: 1.195676 | P10: 340.43
B11: 2007 | C11: 1.200887 | D11: 328.44 | E11: 394.4193263 | F11: 1 | G11: 394.4193263 | H11: 394.4193263 | O11: 1.200887 | P11: 328.44
B12: 2008 | C12: 1.204955 | D12: 331.54 | E12: 399.4907807 | F12: 1 | G12: 399.4907807 | H12: 399.4907807 | O12: 1.204955 | P12: 331.54
B13: 2009 | C13: 1.207842 | D13: 344.37 | E13: 415.9445495 | F13: 1 | G13: 415.9445495 | H13: 415.9445495 | O13: 1.207842 | P13: 344.37
B14: 2010 | C14: 1.210391 | D14: 353.35 | E14: 427.6916599 | F14: 1 | G14: 427.6916599 | H14: 427.6916599 | O14: 1.210391 | P14: 353.35
B15: 2011 | C15: 1.21197 | D15: 342 | E15: 414.49374 | F15: 1 | G15: 414.49374 | H15: 414.49374 | O15: 1.21197 | P15: 342
B16: 2012 | C16: 1.214987 | D16: 319.24 | E16: 387.8724499 | F16: 1 | G16: 387.8724499 | H16: 387.8724499 | O16: 1.214987 | P16: 319.24
B17: 2013 | C17: 1.217341 | D17: 352.99 | E17: 429.7091996 | F17: 1 | G17: 429.7091996 | H17: 429.7091996 | O17: 1.217341 | P17: 352.99
B18: 2014 | C18: 1.219265 | D18: 341.85 | E18: 416.8057403 | F18: 1 | G18: 416.8057403 | H18: 416.8057403 | O18: 1.219265 | P18: 341.85
B19: 2015 | C19: 1.2199292 | D19: 348.4971546 | E19: 425.1418551 | F19: 1 | G19: 425.1418551 | H19: 425.1418551 | O19: 1.2199292 | P19: 348.4971546
B20: 2016 | C20: 1.2205934 | D20: 355.2736662 | E20: 433.6446922 | F20: 1 | G20: 433.6446922 | H20: 433.6446922 | O20: 1.2205934 | P20: 355.2736662
B21: 2017 | C21: 1.2212576 | D21: 362.182054 | E21: 442.317586 | F21: 1 | G21: 442.317586 | H21: 442.317586 | I21: 0.02 | J21: 0.98 | K21: 433.4712343 | L21: 0.02 | M21: 0.98 | N21: 433.4712343 | O21: 1.2212576 | P21: 362.182054
B22: 2018 | C22: 1.2219218 | D22: 369.2248863 | E22: 451.1639377 | F22: 1 | G22: 451.1639377 | H22: 451.1639377 | I22: 0.04 | J22: 0.96 | K22: 433.1173802 | L22: 0.04 | M22: 0.96 | N22: 433.1173802 | O22: 1.2219218 | P22: 369.2248863
B23: 2019 | C23: 1.222586 | D23: 376.4047817 | E23: 460.1872165 | F23: 1 | G23: 460.1872165 | H23: 241.1872165 | I23: 0.06 | J23: 0.94 | K23: 432.5759835 | L23: 0.06 | M23: 0.94 | N23: 432.5759835 | O23: 1.222586 | P23: 376.4047817
B24: 2020 | C24: 1.2218556 | D24: 384.1623845 | E24: 469.3909608 | F24: 1 | G24: 469.3909608 | H24: 250.3909608 | I24: 0.08 | J24: 0.92 | K24: 431.8396839 | L24: 0.08 | M24: 0.92 | N24: 431.8396839 | O24: 1.2218556 | P24: 384.1623845
B25: 2021 | C25: 1.2211252 | D25: 392.0800095 | E25: 478.77878 | F25: 1 | G25: 478.77878 | H25: 259.77878 | I25: 0.1 | J25: 0.9 | K25: 430.900902 | L25: 0.1 | M25: 0.9 | N25: 430.900902 | O25: 1.2211252 | P25: 392.0800095
B26: 2022 | C26: 1.2203948 | D26: 400.1609607 | E26: 488.3543556 | F26: 1 | G26: 488.3543556 | H26: 269.3543556 | I26: 0.12 | J26: 0.88 | K26: 429.7518329 | L26: 0.12 | M26: 0.88 | N26: 429.7518329 | O26: 1.2203948 | P26: 400.1609607
B27: 2023 | C27: 1.2196644 | D27: 408.4086104 | E27: 498.1214427 | F27: 1 | G27: 498.1214427 | H27: 279.1214427 | I27: 0.14 | J27: 0.86 | K27: 428.3844407 | L27: 0.14 | M27: 0.86 | N27: 428.3844407 | O27: 1.2196644 | P27: 408.4086104
B28: 2024 | C28: 1.218934 | D28: 416.8264004 | E28: 508.0838716 | F28: 1 | G28: 508.0838716 | H28: 289.0838716 | I28: 0.16 | J28: 0.84 | K28: 426.7904521 | L28: 0.16 | M28: 0.84 | N28: 426.7904521 | O28: 1.218934 | P28: 416.8264004
B29: 2025 | C29: 1.2161912 | D29: 426.1217718 | E29: 518.245549 | F29: 1 | G29: 518.245549 | H29: 299.245549 | I29: 0.18 | J29: 0.82 | K29: 424.9613502 | L29: 0.18 | M29: 0.82 | N29: 424.9613502 | O29: 1.2161912 | P29: 426.1217718
B30: 2026 | C30: 1.2134484 | D30: 435.6266488 | E30: 528.61046 | F30: 1 | G30: 528.61046 | H30: 309.61046 | I30: 0.2 | J30: 0.8 | K30: 422.888368 | L30: 0.2 | M30: 0.8 | N30: 422.888368 | O30: 1.2134484 | P30: 435.6266488
B31: 2027 | C31: 1.2107056 | D31: 445.3458126 | E31: 539.1826692 | F31: 1 | G31: 539.1826692 | H31: 320.1826692 | I31: 0.24 | J31: 0.76 | K31: 409.7788286 | L31: 0.22 | M31: 0.78 | N31: 420.562482 | O31: 1.2107056 | P31: 445.3458126
B32: 2028 | C32: 1.2079628 | D32: 455.2841549 | E32: 549.9663226 | F32: 1 | G32: 549.9663226 | H32: 330.9663226 | I32: 0.26 | J32: 0.74 | K32: 406.9750787 | L32: 0.24 | M32: 0.76 | N32: 417.9744052 | O32: 1.2079628 | P32: 455.2841549
B33: 2029 | C33: 1.20522 | D33: 465.4466811 | E33: 560.965649 | F33: 1 | G33: 560.965649 | H33: 341.965649 | I33: 0.28 | J33: 0.72 | K33: 403.8952673 | L33: 0.26 | M33: 0.74 | N33: 415.1145803 | O33: 1.20522 | P33: 465.4466811
B34: 2030 | C34: 1.2024772 | D34: 475.8385124 | E34: 572.184962 | F34: 1 | G34: 572.184962 | H34: 353.184962 | I34: 0.3 | J34: 0.7 | K34: 400.5294734 | L34: 0.28 | M34: 0.72 | N34: 411.9731727 | O34: 1.2024772 | P34: 475.8385124
B35: 2031 | C35: 1.1997344 | D35: 486.4648886 | E35: 583.6286613 | F35: 1 | G35: 583.6286613 | H35: 364.6286613 | I35: 0.31 | J35: 0.69 | K35: 402.7037763 | L35: 0.29 | M35: 0.71 | N35: 414.3763495 | O35: 1.1997344 | P35: 486.4648886
B36: 2032 | C36: 1.1969916 | D36: 497.3311713 | E36: 595.3012345 | F36: 1 | G36: 595.3012345 | H36: 376.3012345 | I36: 0.32 | J36: 0.68 | K36: 404.8048394 | L36: 0.3 | M36: 0.7 | N36: 416.7108641 | O36: 1.1969916 | P36: 497.3311713
B37: 2033 | C37: 1.1942488 | D37: 508.4428464 | E37: 607.2072592 | F37: 1 | G37: 607.2072592 | H37: 388.2072592 | I37: 0.33 | J37: 0.67 | K37: 406.8288636 | L37: 0.31 | M37: 0.69 | N37: 418.9730088 | O37: 1.1942488 | P37: 508.4428464
B38: 2034 | C38: 1.17927 | D38: 525.1989827 | E38: 619.3514044 | F38: 1 | G38: 619.3514044 | H38: 400.3514044 | I38: 0.34 | J38: 0.66 | K38: 408.7719269 | L38: 0.32 | M38: 0.68 | N38: 421.158955 | O38: 1.17927 | P38: 525.1989827
B39: 2035 | C39: 1.17408 | D39: 538.0710279 | E39: 631.7384324 | F39: 1 | G39: 631.7384324 | H39: 412.7384324 | I39: 0.35 | J39: 0.65 | K39: 410.6299811 | L39: 0.33 | M39: 0.67 | N39: 423.2647497 | O39: 1.17408 | P39: 538.0710279
B40: 2036 | C40: 1.16889 | D40: 551.2693248 | E40: 644.3732011 | F40: 1 | G40: 644.3732011 | H40: 425.3732011 | I40: 0.36 | J40: 0.64 | K40: 412.3988487 | L40: 0.34 | M40: 0.66 | N40: 425.2863127 | O40: 1.16889 | P40: 551.2693248
B41: 2037 | C41: 1.1637 | D41: 564.8024964 | E41: 657.2606651 | F41: 1 | G41: 657.2606651 | H41: 438.2606651 | I41: 0.37 | J41: 0.63 | K41: 414.074219 | L41: 0.35 | M41: 0.65 | N41: 427.2194323 | O41: 1.1637 | P41: 564.8024964
B42: 2038 | C42: 1.15851 | D42: 578.6794058 | E42: 670.4058784 | F42: 1 | G42: 670.4058784 | H42: 451.4058784 | I42: 0.38 | J42: 0.62 | K42: 415.6516446 | L42: 0.36 | M42: 0.64 | N42: 429.0597622 | O42: 1.15851 | P42: 578.6794058
B43: 2039 | C43: 1.140226 | D43: 599.7179471 | E43: 683.813996 | F43: 1 | G43: 683.813996 | H43: 464.813996 | I43: 0.39 | J43: 0.61 | K43: 417.1265375 | L43: 0.37 | M43: 0.63 | N43: 430.8028175 | O43: 1.140226 | P43: 599.7179471
B44: 2040 | C44: 1.1304188 | D44: 617.0193524 | E44: 697.4902759 | F44: 1 | G44: 697.4902759 | H44: 478.4902759 | I44: 0.4 | J44: 0.6 | K44: 418.4941655 | L44: 0.38 | M44: 0.62 | N44: 432.4439711 | O44: 1.1304188 | P44: 617.0193524
B45: 2041 | C45: 1.1206116 | D45: 634.8676753 | E45: 711.4400814 | F45: 1 | G45: 711.4400814 | H45: 492.4400814 | I45: 0.41 | J45: 0.59 | K45: 419.749648 | L45: 0.39 | M45: 0.61 | N45: 433.9784497 | O45: 1.1206116 | P45: 634.8676753
B46: 2042 | C46: 1.1108044 | D46: 653.2823268 | E46: 725.668883 | F46: 1 | G46: 725.668883 | H46: 506.668883 | I46: 0.42 | J46: 0.58 | K46: 420.8879522 | L46: 0.4 | M46: 0.6 | N46: 435.4013298 | O46: 1.1108044 | P46: 653.2823268
B47: 2043 | C47: 1.1009972 | D47: 672.2835087 | E47: 740.1822607 | F47: 1 | G47: 740.1822607 | H47: 521.1822607 | I47: 0.43 | J47: 0.57 | K47: 421.9038886 | L47: 0.41 | M47: 0.59 | N47: 436.7075338 | O47: 1.1009972 | P47: 672.2835087
B48: 2044 | C48: 1.09119 | D48: 691.8922515 | E48: 754.9859059 | F48: 1 | G48: 754.9859059 | H48: 535.9859059 | I48: 0.44 | J48: 0.56 | K48: 422.7921073 | L48: 0.42 | M48: 0.58 | N48: 437.8918254 | O48: 1.09119 | P48: 691.8922515
B49: 2045 | C49: 1.0801642 | D49: 712.9338521 | E49: 770.085624 | F49: 1 | G49: 770.085624 | H49: 551.085624 | I49: 0.45 | J49: 0.55 | K49: 423.5470932 | L49: 0.43 | M49: 0.57 | N49: 438.9488057 | O49: 1.0801642 | P49: 712.9338521
B50: 2046 | C50: 1.0691384 | D50: 734.6919132 | E50: 785.4873365 | F50: 1 | G50: 785.4873365 | H50: 566.4873365 | I50: 0.46 | J50: 0.54 | K50: 424.1631617 | L50: 0.44 | M50: 0.56 | N50: 439.8729085 | O50: 1.0691384 | P50: 734.6919132
B51: 2047 | C51: 1.0581126 | D51: 757.1945398 | E51: 801.1970833 | F51: 1 | G51: 801.1970833 | H51: 582.1970833 | I51: 0.47 | J51: 0.53 | K51: 424.6344541 | L51: 0.45 | M51: 0.55 | N51: 440.6583958 | O51: 1.0581126 | P51: 757.1945398
B52: 2048 | C52: 1.0470868 | D52: 780.4711366 | E52: 817.2210249 | F52: 1 | G52: 817.2210249 | H52: 598.2210249 | I52: 0.48 | J52: 0.52 | K52: 424.954933 | L52: 0.46 | M52: 0.54 | N52: 441.2993535 | O52: 1.0470868 | P52: 780.4711366
B53: 2049 | C53: 1.036061 | D53: 804.5524785 | E53: 833.5654454 | F53: 1 | G53: 833.5654454 | H53: 614.5654454 | I53: 0.49 | J53: 0.51 | K53: 425.1183772 | L53: 0.47 | M53: 0.53 | N53: 441.7896861 | O53: 1.036061 | P53: 804.5524785
B54: 2050 | C54: 1.0245562 | D54: 829.858581 | E54: 850.2367543 | F54: 1 | G54: 850.2367543 | H54: 631.2367543 | I54: 0.5 | J54: 0.5 | K54: 425.1183772 | L54: 0.48 | M54: 0.52 | N54: 442.1231122 | O54: 1.0245562 | P54: 829.858581
A57: B | B57: SOLID WASTE % COMPOSITION FOR BAU AND DIFFERENT SCENARIOS
B59: 1. BAU | M59: 2. Scenario 1: LFG
C61: Food (Gg/yr) | D61: Garden (Gg/yr) | E61: Paper (Gg/yr) | F61: Wood (Gg/yr) | G61: Textiles (Gg/yr) | H61: Nappies (Gg/yr) | I61: Inert (Gg/yr) | J61: Sludge (Gg/yr) | K61: Industrial (Gg/yr) | N61: Food (Gg/yr) | O61: Garden (Gg/yr) | P61: Paper (Gg/yr) | Q61: Wood (Gg/yr) | R61: Textiles (Gg/yr) | S61: Nappies (Gg/yr) | T61: Inert (Gg/yr) | U61: Sludge (Gg/yr) | V61: Industrial (Gg/yr)
B62: =B4 -> 2000 | C62: 0.15 | D62: 0.5 | E62: 0.12 | F62: 0.02 | G62: 0.05 | H62: 0.003 | I62: 0.157 | J62: 0 | K62: 0 | L62: =SUM(C62:K62)-J62 -> 1 | N62: 0.15 | O62: 0.5 | P62: 0.12 | Q62: 0.02 | R62: 0.05 | S62: 0.003 | T62: 0.157 | U62: 0 | V62: 0 | W62: =SUM(N62:V62) -> 1
B63: 2001 | C63: 0.15 | D63: 0.5 | E63: 0.12 | F63: 0.02 | G63: 0.05 | H63: 0.003 | I63: 0.157 | J63: 0 | K63: 0 | L63: =SUM(C63:K63)-J63 -> 1 | N63: 0.15 | O63: 0.5 | P63: 0.12 | Q63: 0.02 | R63: 0.05 | S63: 0.003 | T63: 0.157 | U63: 0 | V63: 0 | W63: =SUM(N63:V63) -> 1
B64: 2002 | C64: 0.15 | D64: 0.5 | E64: 0.12 | F64: 0.02 | G64: 0.05 | H64: 0.003 | I64: 0.157 | J64: 0 | K64: 0 | L64: 1 | N64: 0.15 | O64: 0.5 | P64: 0.12 | Q64: 0.02 | R64: 0.05 | S64: 0.003 | T64: 0.157 | U64: 0 | V64: 0 | W64: 1
B65: 2003 | C65: 0.15 | D65: 0.5 | E65: 0.12 | F65: 0.02 | G65: 0.05 | H65: 0.003 | I65: 0.157 | J65: 0 | K65: 0 | L65: 1 | N65: 0.15 | O65: 0.5 | P65: 0.12 | Q65: 0.02 | R65: 0.05 | S65: 0.003 | T65: 0.157 | U65: 0 | V65: 0 | W65: 1
B66: 2004 | C66: 0.15 | D66: 0.5 | E66: 0.12 | F66: 0.02 | G66: 0.05 | H66: 0.003 | I66: 0.157 | J66: 0 | K66: 0 | L66: 1 | N66: 0.15 | O66: 0.5 | P66: 0.12 | Q66: 0.02 | R66: 0.05 | S66: 0.003 | T66: 0.157 | U66: 0 | V66: 0 | W66: 1
B67: 2005 | C67: 0.15 | D67: 0.5 | E67: 0.12 | F67: 0.02 | G67: 0.05 | H67: 0.003 | I67: 0.157 | J67: 0.01515467889 | K67: 0.001375925922 | L67: 1.001375926 | N67: 0.15 | O67: 0.5 | P67: 0.12 | Q67: 0.02 | R67: 0.05 | S67: 0.003 | T67: 0.1404693952 | U67: 0.01515467889 | V67: 0.001375925922 | W67: 1
B68: 2006 | C68: 0.15 | D68: 0.5 | E68: 0.12 | F68: 0.02 | G68: 0.05 | H68: 0.003 | I68: 0.157 | J68: 0.01979147311 | K68: 0.001225484281 | L68: 1.001225484 | N68: 0.15 | O68: 0.5 | P68: 0.12 | Q68: 0.02 | R68: 0.05 | S68: 0.003 | T68: 0.1359830426 | U68: 0.01979147311 | V68: 0.001225484281 | W68: 1
B69: 2007 | C69: 0.15 | D69: 0.5 | E69: 0.12 | F69: 0.02 | G69: 0.05 | H69: 0.003 | I69: 0.157 | J69: 0.03315506906 | K69: 0.002248094708 | L69: 1.002248095 | N69: 0.15 | O69: 0.5 | P69: 0.12 | Q69: 0.02 | R69: 0.05 | S69: 0.003 | T69: 0.1215968362 | U69: 0.03315506906 | V69: 0.002248094708 | W69: 1
B70: 2008 | C70: 0.15 | D70: 0.5 | E70: 0.12 | F70: 0.02 | G70: 0.05 | H70: 0.003 | I70: 0.157 | J70: 0.03040871176 | K70: 0.001985287367 | L70: 1.001985287 | N70: 0.15 | O70: 0.5 | P70: 0.12 | Q70: 0.02 | R70: 0.05 | S70: 0.003 | T70: 0.1246060009 | U70: 0.03040871176 | V70: 0.001985287367 | W70: 1
B71: 2009 | C71: 0.15 | D71: 0.5 | E71: 0.12 | F71: 0.02 | G71: 0.05 | H71: 0.003 | I71: 0.157 | J71: 0.02194042454 | K71: 0.002805373941 | L71: 1.002805374 | N71: 0.15 | O71: 0.5 | P71: 0.12 | Q71: 0.02 | R71: 0.05 | S71: 0.003 | T71: 0.1322542015 | U71: 0.02194042454 | V71: 0.002805373941 | W71: 1
B72: 2010 | C72: 0.15 | D72: 0.5 | E72: 0.12 | F72: 0.02 | G72: 0.05 | H72: 0.003 | I72: 0.157 | J72: 0.02560021863 | K72: 0.002645887461 | L72: 1.002645887 | N72: 0.15 | O72: 0.5 | P72: 0.12 | Q72: 0.02 | R72: 0.05 | S72: 0.003 | T72: 0.1287538939 | U72: 0.02560021863 | V72: 0.002645887461 | W72: 1
B73: 2011 | C73: 0.15 | D73: 0.5 | E73: 0.12 | F73: 0.02 | G73: 0.05 | H73: 0.003 | I73: 0.157 | J73: 0.02509567455 | K73: 0.003770997844 | L73: 1.003770998 | N73: 0.15 | O73: 0.5 | P73: 0.12 | Q73: 0.02 | R73: 0.05 | S73: 0.003 | T73: 0.1281333276 | U73: 0.02509567455 | V73: 0.003770997844 | W73: 1
B74: 2012 | C74: 0.15 | D74: 0.5 | E74: 0.12 | F74: 0.02 | G74: 0.05 | H74: 0.003 | I74: 0.157 | J74: 0.01900109173 | K74: 0.001747917389 | L74: 1.001747917 | N74: 0.15 | O74: 0.5 | P74: 0.12 | Q74: 0.02 | R74: 0.05 | S74: 0.003 | T74: 0.1362509909 | U74: 0.01900109173 | V74: 0.001747917389 | W74: 1
B75: 2013 | C75: 0.15 | D75: 0.5 | E75: 0.12 | F75: 0.02 | G75: 0.05 | H75: 0.003 | I75: 0.157 | J75: 0.01620398168 | K75: 0.0007562277008 | L75: 1.000756228 | N75: 0.15 | O75: 0.5 | P75: 0.12 | Q75: 0.02 | R75: 0.05 | S75: 0.003 | T75: 0.1400397906 | U75: 0.01620398168 | V75: 0.0007562277008 | W75: 1
B76: 2014 | C76: 0.15 | D76: 0.5 | E76: 0.12 | F76: 0.02 | G76: 0.05 | H76: 0.003 | I76: 0.157 | J76: 0.01245424307 | K76: 0.0004543843371 | L76: 1.000454384 | N76: 0.15 | O76: 0.5 | P76: 0.12 | Q76: 0.02 | R76: 0.05 | S76: 0.003 | T76: 0.1440913726 | U76: 0.01245424307 | V76: 0.0004543843371 | W76: 1
B77: 2015 | C77: 0.15 | D77: 0.5 | E77: 0.12 | F77: 0.02 | G77: 0.05 | H77: 0.003 | I77: 0.157 | J77: 0.0137362975 | K77: 0.0004454748403 | L77: 1.000445475 | N77: 0.15 | O77: 0.5 | P77: 0.12 | Q77: 0.02 | R77: 0.05 | S77: 0.003 | T77: 0.1428182277 | U77: 0.0137362975 | V77: 0.0004454748403 | W77: 1
B78: 2016 | C78: 0.15 | D78: 0.5 | E78: 0.12 | F78: 0.02 | G78: 0.05 | H78: 0.003 | I78: 0.157 | J78: 0.01496328704 | K78: 0.0004367400395 | L78: 1.00043674 | N78: 0.15 | O78: 0.5 | P78: 0.12 | Q78: 0.02 | R78: 0.05 | S78: 0.003 | T78: 0.1415999729 | U78: 0.01496328704 | V78: 0.0004367400395 | W78: 1
B79: 2017 | C79: 0.15 | D79: 0.5 | E79: 0.12 | F79: 0.02 | G79: 0.05 | H79: 0.003 | I79: 0.157 | J79: 0.01613687818 | K79: 0.0004281765094 | L79: 1.000428177 | N79: 0.15 | O79: 0.5 | P79: 0.12 | Q79: 0.02 | R79: 0.05 | S79: 0.003 | T79: 0.1404349453 | U79: 0.01613687818 | V79: 0.0004281765094 | W79: 1
B80: 2018 | C80: 0.15 | D80: 0.5 | E80: 0.12 | F80: 0.02 | G80: 0.05 | H80: 0.003 | I80: 0.157 | J80: 0.01725869324 | K80: 0.0004197808915 | L80: 1.000419781 | N80: 0.15 | O80: 0.5 | P80: 0.12 | Q80: 0.02 | R80: 0.05 | S80: 0.003 | T80: 0.1393215259 | U80: 0.01725869324 | V80: 0.0004197808915 | W80: 1
B81: 2019 | C81: 0.15 | D81: 0.5 | E81: 0.12 | F81: 0.02 | G81: 0.05 | H81: 0.003 | I81: 0.157 | J81: 0.01833031144 | K81: 0.0004115498937 | L81: 1.00041155 | N81: 0.15 | O81: 0.5 | P81: 0.12 | Q81: 0.02 | R81: 0.05 | S81: 0.003 | T81: 0.1382581387 | U81: 0.01833031144 | V81: 0.0004115498937 | W81: 1
B82: 2020 | C82: 0.15 | D82: 0.5 | E82: 0.12 | F82: 0.02 | G82: 0.05 | H82: 0.003 | I82: 0.157 | J82: 0.01935327 | K82: 0.0004034802879 | L82: 1.00040348 | N82: 0.15 | O82: 0.5 | P82: 0.12 | Q82: 0.02 | R82: 0.05 | S82: 0.003 | T82: 0.1372432497 | U82: 0.01935327 | V82: 0.0004034802879 | W82: 1
B83: 2021 | C83: 0.15 | D83: 0.5 | E83: 0.12 | F83: 0.02 | G83: 0.05 | H83: 0.003 | I83: 0.157 | J83: 0.02032906513 | K83: 0.0003955689097 | L83: 1.000395569 | N83: 0.15 | O83: 0.5 | P83: 0.12 | Q83: 0.02 | R83: 0.05 | S83: 0.003 | T83: 0.136275366 | U83: 0.02032906513 | V83: 0.0003955689097 | W83: 1
B84: 2022 | C84: 0.15 | D84: 0.5 | E84: 0.12 | F84: 0.02 | G84: 0.05 | H84: 0.003 | I84: 0.157 | J84: 0.02125915307 | K84: 0.0003878126566 | L84: 1.000387813 | N84: 0.15 | O84: 0.5 | P84: 0.12 | Q84: 0.02 | R84: 0.05 | S84: 0.003 | T84: 0.1353530343 | U84: 0.02125915307 | V84: 0.0003878126566 | W84: 1
B85: 2023 | C85: 0.15 | D85: 0.5 | E85: 0.12 | F85: 0.02 | G85: 0.05 | H85: 0.003 | I85: 0.157 | J85: 0.02214495112 | K85: 0.0003802084868 | L85: 1.000380208 | N85: 0.15 | O85: 0.5 | P85: 0.12 | Q85: 0.02 | R85: 0.05 | S85: 0.003 | T85: 0.1344748404 | U85: 0.02214495112 | V85: 0.0003802084868 | W85: 1
B86: 2024 | C86: 0.15 | D86: 0.5 | E86: 0.12 | F86: 0.02 | G86: 0.05 | H86: 0.003 | I86: 0.157 | J86: 0.02298783853 | K86: 0.0003727534185 | L86: 1.000372753 | N86: 0.15 | O86: 0.5 | P86: 0.12 | Q86: 0.02 | R86: 0.05 | S86: 0.003 | T86: 0.1336394081 | U86: 0.02298783853 | V86: 0.0003727534185 | W86: 1
B87: 2025 | C87: 0.15 | D87: 0.5 | E87: 0.12 | F87: 0.02 | G87: 0.05 | H87: 0.003 | I87: 0.157 | J87: 0.02378915752 | K87: 0.0003654445279 | L87: 1.000365445 | N87: 0.15 | O87: 0.5 | P87: 0.12 | Q87: 0.02 | R87: 0.05 | S87: 0.003 | T87: 0.132845398 | U87: 0.02378915752 | V87: 0.0003654445279 | W87: 1
B88: 2026 | C88: 0.15 | D88: 0.5 | E88: 0.12 | F88: 0.02 | G88: 0.05 | H88: 0.003 | I88: 0.157 | J88: 0.02455021416 | K88: 0.0003582789489 | L88: 1.000358279 | N88: 0.15 | O88: 0.5 | P88: 0.12 | Q88: 0.02 | R88: 0.05 | S88: 0.003 | T88: 0.1320915069 | U88: 0.02455021416 | V88: 0.0003582789489 | W88: 1
B89: 2027 | C89: 0.15 | D89: 0.5 | E89: 0.12 | F89: 0.02 | G89: 0.05 | H89: 0.003 | I89: 0.157 | J89: 0.02527227928 | K89: 0.0003512538715 | L89: 1.000351254 | N89: 0.15 | O89: 0.5 | P89: 0.12 | Q89: 0.02 | R89: 0.05 | S89: 0.003 | T89: 0.1313764668 | U89: 0.02527227928 | V89: 0.0003512538715 | W89: 1
B90: 2028 | C90: 0.15 | D90: 0.5 | E90: 0.12 | F90: 0.02 | G90: 0.05 | H90: 0.003 | I90: 0.157 | J90: 0.02595658937 | K90: 0.0003443665407 | L90: 1.000344367 | N90: 0.15 | O90: 0.5 | P90: 0.12 | Q90: 0.02 | R90: 0.05 | S90: 0.003 | T90: 0.1306990441 | U90: 0.02595658937 | V90: 0.0003443665407 | W90: 1
B91: 2029 | C91: 0.15 | D91: 0.5 | E91: 0.12 | F91: 0.02 | G91: 0.05 | H91: 0.003 | I91: 0.157 | J91: 0.02660434739 | K91: 0.0003376142556 | L91: 1.000337614 | N91: 0.15 | O91: 0.5 | P91: 0.12 | Q91: 0.02 | R91: 0.05 | S91: 0.003 | T91: 0.1300580384 | U91: 0.02660434739 | V91: 0.0003376142556 | W91: 1
B92: 2030 | C92: 0.15 | D92: 0.5 | E92: 0.12 | F92: 0.02 | G92: 0.05 | H92: 0.003 | I92: 0.157 | J92: 0.02721672367 | K92: 0.0003309943682 | L92: 1.000330994 | N92: 0.15 | O92: 0.5 | P92: 0.12 | Q92: 0.02 | R92: 0.05 | S92: 0.003 | T92: 0.129452282 | U92: 0.02721672367 | V92: 0.0003309943682 | W92: 1
B93: 2031 | C93: 0.15 | D93: 0.5 | E93: 0.12 | F93: 0.02 | G93: 0.05 | H93: 0.003 | I93: 0.157 | J93: 0.02668306242 | K93: 0.0003245042826 | L93: 1.000324504 | N93: 0.15 | O93: 0.5 | P93: 0.12 | Q93: 0.02 | R93: 0.05 | S93: 0.003 | T93: 0.1299924333 | U93: 0.02668306242 | V93: 0.0003245042826 | W93: 1
B94: =B36 -> 2032 | C94: 0.15 | D94: 0.5 | E94: 0.12 | F94: 0.02 | G94: 0.05 | H94: 0.003 | I94: 0.157 | J94: 0.02615986512 | K94: 0.0003181414535 | L94: 1.000318141 | N94: 0.15 | O94: 0.5 | P94: 0.12 | Q94: 0.02 | R94: 0.05 | S94: 0.003 | T94: 0.1305219934 | U94: 0.02615986512 | V94: 0.0003181414535 | W94: 1
B95: 2033 | C95: 0.15 | D95: 0.5 | E95: 0.12 | F95: 0.02 | G95: 0.05 | H95: 0.003 | I95: 0.157 | J95: 0.02564692659 | K95: 0.0003119033858 | L95: 1.000311903 | N95: 0.15 | O95: 0.5 | P95: 0.12 | Q95: 0.02 | R95: 0.05 | S95: 0.003 | T95: 0.13104117 | U95: 0.02564692659 | V95: 0.0003119033858 | W95: 1
B96: 2034 | C96: 0.15 | D96: 0.5 | E96: 0.12 | F96: 0.02 | G96: 0.05 | H96: 0.003 | I96: 0.157 | J96: 0.02514404568 | K96: 0.0003057876331 | L96: 1.000305788 | N96: 0.15 | O96: 0.5 | P96: 0.12 | Q96: 0.02 | R96: 0.05 | S96: 0.003 | T96: 0.1315501667 | U96: 0.02514404568 | V96: 0.0003057876331 | W96: 1
B97: 2035 | C97: 0.15 | D97: 0.5 | E97: 0.12 | F97: 0.02 | G97: 0.05 | H97: 0.003 | I97: 0.157 | J97: 0.02465102517 | K97: 0.0002997917972 | L97: 1.000299792 | N97: 0.15 | O97: 0.5 | P97: 0.12 | Q97: 0.02 | R97: 0.05 | S97: 0.003 | T97: 0.132049183 | U97: 0.02465102517 | V97: 0.0002997917972 | W97: 1
B98: 2036 | C98: 0.15 | D98: 0.5 | E98: 0.12 | F98: 0.02 | G98: 0.05 | H98: 0.003 | I98: 0.157 | J98: 0.02416767174 | K98: 0.0002939135266 | L98: 1.000293914 | N98: 0.15 | O98: 0.5 | P98: 0.12 | Q98: 0.02 | R98: 0.05 | S98: 0.003 | T98: 0.1325384147 | U98: 0.02416767174 | V98: 0.0002939135266 | W98: 1
B99: 2037 | C99: 0.15 | D99: 0.5 | E99: 0.12 | F99: 0.02 | G99: 0.05 | H99: 0.003 | I99: 0.157 | J99: 0.02369379582 | K99: 0.0002881505163 | L99: 1.000288151 | N99: 0.15 | O99: 0.5 | P99: 0.12 | Q99: 0.02 | R99: 0.05 | S99: 0.003 | T99: 0.1330180537 | U99: 0.02369379582 | V99: 0.0002881505163 | W99: 1
B100: 2038 | C100: 0.15 | D100: 0.5 | E100: 0.12 | F100: 0.02 | G100: 0.05 | H100: 0.003 | I100: 0.157 | J100: 0.02322921159 | K100: 0.0002825005062 | L100: 1.000282501 | N100: 0.15 | O100: 0.5 | P100: 0.12 | Q100: 0.02 | R100: 0.05 | S100: 0.003 | T100: 0.1334882879 | U100: 0.02322921159 | V100: 0.0002825005062 | W100: 1
B101: 2039 | C101: 0.15 | D101: 0.5 | E101: 0.12 | F101: 0.02 | G101: 0.05 | H101: 0.003 | I101: 0.157 | J101: 0.02277373685 | K101: 0.0002769612806 | L101: 1.000276961 | N101: 0.15 | O101: 0.5 | P101: 0.12 | Q101: 0.02 | R101: 0.05 | S101: 0.003 | T101: 0.1339493019 | U101: 0.02277373685 | V101: 0.0002769612806 | W101: 1
B102: 2040 | C102: 0.15 | D102: 0.5 | E102: 0.12 | F102: 0.02 | G102: 0.05 | H102: 0.003 | I102: 0.157 | J102: 0.02232719299 | K102: 0.0002715306672 | L102: 1.000271531 | N102: 0.15 | O102: 0.5 | P102: 0.12 | Q102: 0.02 | R102: 0.05 | S102: 0.003 | T102: 0.1344012763 | U102: 0.02232719299 | V102: 0.0002715306672 | W102: 1
B103: 2041 | C103: 0.15 | D103: 0.5 | E103: 0.12 | F103: 0.02 | G103: 0.05 | H103: 0.003 | I103: 0.157 | J103: 0.02188940489 | K103: 0.0002662065365 | L103: 1.000266207 | N103: 0.15 | O103: 0.5 | P103: 0.12 | Q103: 0.02 | R103: 0.05 | S103: 0.003 | T103: 0.1348443886 | U103: 0.02188940489 | V103: 0.0002662065365 | W103: 1
B104: 2042 | C104: 0.15 | D104: 0.5 | E104: 0.12 | F104: 0.02 | G104: 0.05 | H104: 0.003 | I104: 0.157 | J104: 0.02146020088 | K104: 0.0002609868005 | L104: 1.000260987 | N104: 0.15 | O104: 0.5 | P104: 0.12 | Q104: 0.02 | R104: 0.05 | S104: 0.003 | T104: 0.1352788123 | U104: 0.02146020088 | V104: 0.0002609868005 | W104: 1
B105: 2043 | C105: 0.15 | D105: 0.5 | E105: 0.12 | F105: 0.02 | G105: 0.05 | H105: 0.003 | I105: 0.157 | J105: 0.02103941262 | K105: 0.0002558694122 | L105: 1.000255869 | N105: 0.15 | O105: 0.5 | P105: 0.12 | Q105: 0.02 | R105: 0.05 | S105: 0.003 | T105: 0.135704718 | U105: 0.02103941262 | V105: 0.0002558694122 | W105: 1
B106: 2044 | C106: 0.15 | D106: 0.5 | E106: 0.12 | F106: 0.02 | G106: 0.05 | H106: 0.003 | I106: 0.157 | J106: 0.02062687512 | K106: 0.0002508523649 | L106: 1.000250852 | N106: 0.15 | O106: 0.5 | P106: 0.12 | Q106: 0.02 | R106: 0.05 | S106: 0.003 | T106: 0.1361222725 | U106: 0.02062687512 | V106: 0.0002508523649 | W106: 1
B107: 2045 | C107: 0.15 | D107: 0.5 | E107: 0.12 | F107: 0.02 | G107: 0.05 | H107: 0.003 | I107: 0.157 | J107: 0.02022242659 | K107: 0.0002459336911 | L107: 1.000245934 | N107: 0.15 | O107: 0.5 | P107: 0.12 | Q107: 0.02 | R107: 0.05 | S107: 0.003 | T107: 0.1365316397 | U107: 0.02022242659 | V107: 0.0002459336911 | W107: 1
B108: 2046 | C108: 0.15 | D108: 0.5 | E108: 0.12 | F108: 0.02 | G108: 0.05 | H108: 0.003 | I108: 0.157 | J108: 0.01982590842 | K108: 0.0002411114619 | L108: 1.000241111 | N108: 0.15 | O108: 0.5 | P108: 0.12 | Q108: 0.02 | R108: 0.05 | S108: 0.003 | T108: 0.1369329801 | U108: 0.01982590842 | V108: 0.0002411114619 | W108: 1
B109: 2047 | C109: 0.15 | D109: 0.5 | E109: 0.12 | F109: 0.02 | G109: 0.05 | H109: 0.003 | I109: 0.157 | J109: 0.01943716512 | K109: 0.0002363837862 | L109: 1.000236384 | N109: 0.15 | O109: 0.5 | P109: 0.12 | Q109: 0.02 | R109: 0.05 | S109: 0.003 | T109: 0.1373264511 | U109: 0.01943716512 | V109: 0.0002363837862 | W109: 1
B110: 2048 | C110: 0.15 | D110: 0.5 | E110: 0.12 | F110: 0.02 | G110: 0.05 | H110: 0.003 | I110: 0.157 | J110: 0.01905604423 | K110: 0.00023174881 | L110: 1.000231749 | N110: 0.15 | O110: 0.5 | P110: 0.12 | Q110: 0.02 | R110: 0.05 | S110: 0.003 | T110: 0.137712207 | U110: 0.01905604423 | V110: 0.00023174881 | W110: 1
B111: 2049 | C111: 0.15 | D111: 0.5 | E111: 0.12 | F111: 0.02 | G111: 0.05 | H111: 0.003 | I111: 0.157 | J111: 0.01868239631 | K111: 0.0002272047156 | L111: 1.000227205 | N111: 0.15 | O111: 0.5 | P111: 0.12 | Q111: 0.02 | R111: 0.05 | S111: 0.003 | T111: 0.138090399 | U111: 0.01868239631 | V111: 0.0002272047156 | W111: 1
B112: 2050 | C112: 0.15 | D112: 0.5 | E112: 0.12 | F112: 0.02 | G112: 0.05 | H112: 0.003 | I112: 0.157 | J112: 0.01831607481 | K112: 0.0002227497212 | L112: 1.00022275 | N112: 0.15 | O112: 0.5 | P112: 0.12 | Q112: 0.02 | R112: 0.05 | S112: 0.003 | T112: 0.1384611755 | U112: 0.01831607481 | V112: 0.0002227497212 | W112: 1
B115: 3. Scenario 2: Composting | M115: 4. Scenario 3: Recycling
C117: Food (Gg/yr) | D117: Garden (Gg/yr) | E117: Paper (Gg/yr) | F117: Wood (Gg/yr) | G117: Textiles (Gg/yr) | H117: Nappies (Gg/yr) | I117: Inert (Gg/yr) | J117: Sludge (Gg/yr) | K117: Industrial (Gg/yr) | N117: Food (Gg/yr) | O117: Garden (Gg/yr) | P117: Paper (Gg/yr) | Q117: Wood (Gg/yr) | R117: Textiles (Gg/yr) | S117: Nappies (Gg/yr) | T117: Inert (Gg/yr) | U117: Sludge (Gg/yr) | V117: Industrial (Gg/yr)
B118: =B4 -> 2000 | C118: 0.15 | D118: 0.5 | E118: 0.12 | F118: 0.02 | G118: 0.05 | H118: 0.003 | I118: 0.157 | J118: 0 | K118: 0 | L118: =SUM(C118:K118) -> 1 | N118: 0.15 | O118: 0.5 | P118: 0.12 | Q118: 0.02 | R118: 0.05 | S118: 0.003 | T118: 0.157 | U118: 0 | V118: 0 | W118: =SUM(N118:V118) -> 1
B119: 2001 | C119: 0.15 | D119: 0.5 | E119: 0.12 | F119: 0.02 | G119: 0.05 | H119: 0.003 | I119: 0.157 | J119: 0 | K119: 0 | L119: =SUM(C119:K119) -> 1 | N119: 0.15 | O119: 0.5 | P119: 0.12 | Q119: 0.02 | R119: 0.05 | S119: 0.003 | T119: 0.157 | U119: 0 | V119: 0 | W119: =SUM(N119:V119) -> 1
B120: 2002 | C120: 0.15 | D120: 0.5 | E120: 0.12 | F120: 0.02 | G120: 0.05 | H120: 0.003 | I120: 0.157 | J120: 0 | K120: 0 | L120: 1 | N120: 0.15 | O120: 0.5 | P120: 0.12 | Q120: 0.02 | R120: 0.05 | S120: 0.003 | T120: 0.157 | U120: 0 | V120: 0 | W120: 1
B121: 2003 | C121: 0.15 | D121: 0.5 | E121: 0.12 | F121: 0.02 | G121: 0.05 | H121: 0.003 | I121: 0.157 | J121: 0 | K121: 0 | L121: 1 | N121: 0.15 | O121: 0.5 | P121: 0.12 | Q121: 0.02 | R121: 0.05 | S121: 0.003 | T121: 0.157 | U121: 0 | V121: 0 | W121: 1
B122: 2004 | C122: 0.15 | D122: 0.5 | E122: 0.12 | F122: 0.02 | G122: 0.05 | H122: 0.003 | I122: 0.157 | J122: 0 | K122: 0 | L122: 1 | N122: 0.15 | O122: 0.5 | P122: 0.12 | Q122: 0.02 | R122: 0.05 | S122: 0.003 | T122: 0.157 | U122: 0 | V122: 0 | W122: 1
B123: 2005 | C123: 0.15 | D123: 0.5 | E123: 0.12 | F123: 0.02 | G123: 0.05 | H123: 0.003 | I123: 0.1404693952 | J123: 0.01515467889 | K123: 0.001375925922 | L123: 1 | N123: 0.15 | O123: 0.5 | P123: 0.12 | Q123: 0.02 | R123: 0.05 | S123: 0.003 | T123: 0.1404693952 | U123: 0.01515467889 | V123: 0.001375925922 | W123: 1
B124: 2006 | C124: 0.15 | D124: 0.5 | E124: 0.12 | F124: 0.02 | G124: 0.05 | H124: 0.003 | I124: 0.1359830426 | J124: 0.01979147311 | K124: 0.001225484281 | L124: 1 | N124: 0.15 | O124: 0.5 | P124: 0.12 | Q124: 0.02 | R124: 0.05 | S124: 0.003 | T124: 0.1359830426 | U124: 0.01979147311 | V124: 0.001225484281 | W124: 1
B125: 2007 | C125: 0.15 | D125: 0.5 | E125: 0.12 | F125: 0.02 | G125: 0.05 | H125: 0.003 | I125: 0.1215968362 | J125: 0.03315506906 | K125: 0.002248094708 | L125: 1 | N125: 0.15 | O125: 0.5 | P125: 0.12 | Q125: 0.02 | R125: 0.05 | S125: 0.003 | T125: 0.1215968362 | U125: 0.03315506906 | V125: 0.002248094708 | W125: 1
B126: 2008 | C126: 0.15 | D126: 0.5 | E126: 0.12 | F126: 0.02 | G126: 0.05 | H126: 0.003 | I126: 0.1246060009 | J126: 0.03040871176 | K126: 0.001985287367 | L126: 1 | N126: 0.15 | O126: 0.5 | P126: 0.12 | Q126: 0.02 | R126: 0.05 | S126: 0.003 | T126: 0.1246060009 | U126: 0.03040871176 | V126: 0.001985287367 | W126: 1
B127: 2009 | C127: 0.15 | D127: 0.5 | E127: 0.12 | F127: 0.02 | G127: 0.05 | H127: 0.003 | I127: 0.1322542015 | J127: 0.02194042454 | K127: 0.002805373941 | L127: 1 | N127: 0.15 | O127: 0.5 | P127: 0.12 | Q127: 0.02 | R127: 0.05 | S127: 0.003 | T127: 0.1322542015 | U127: 0.02194042454 | V127: 0.002805373941 | W127: 1
B128: 2010 | C128: 0.15 | D128: 0.5 | E128: 0.12 | F128: 0.02 | G128: 0.05 | H128: 0.003 | I128: 0.1287538939 | J128: 0.02560021863 | K128: 0.002645887461 | L128: 1 | N128: 0.15 | O128: 0.5 | P128: 0.12 | Q128: 0.02 | R128: 0.05 | S128: 0.003 | T128: 0.1287538939 | U128: 0.02560021863 | V128: 0.002645887461 | W128: 1
B129: 2011 | C129: 0.15 | D129: 0.5 | E129: 0.12 | F129: 0.02 | G129: 0.05 | H129: 0.003 | I129: 0.1281333276 | J129: 0.02509567455 | K129: 0.003770997844 | L129: 1 | N129: 0.15 | O129: 0.5 | P129: 0.12 | Q129: 0.02 | R129: 0.05 | S129: 0.003 | T129: 0.1281333276 | U129: 0.02509567455 | V129: 0.003770997844 | W129: 1
B130: 2012 | C130: 0.15 | D130: 0.5 | E130: 0.12 | F130: 0.02 | G130: 0.05 | H130: 0.003 | I130: 0.1362509909 | J130: 0.01900109173 | K130: 0.001747917389 | L130: 1 | N130: 0.15 | O130: 0.5 | P130: 0.12 | Q130: 0.02 | R130: 0.05 | S130: 0.003 | T130: 0.1362509909 | U130: 0.01900109173 | V130: 0.001747917389 | W130: 1
B131: 2013 | C131: 0.15 | D131: 0.5 | E131: 0.12 | F131: 0.02 | G131: 0.05 | H131: 0.003 | I131: 0.1400397906 | J131: 0.01620398168 | K131: 0.0007562277008 | L131: 1 | N131: 0.15 | O131: 0.5 | P131: 0.12 | Q131: 0.02 | R131: 0.05 | S131: 0.003 | T131: 0.1400397906 | U131: 0.01620398168 | V131: 0.0007562277008 | W131: 1
B132: 2014 | C132: 0.15 | D132: 0.5 | E132: 0.12 | F132: 0.02 | G132: 0.05 | H132: 0.003 | I132: 0.1440913726 | J132: 0.01245424307 | K132: 0.0004543843371 | L132: 1 | N132: 0.15 | O132: 0.5 | P132: 0.12 | Q132: 0.02 | R132: 0.05 | S132: 0.003 | T132: 0.1440913726 | U132: 0.01245424307 | V132: 0.0004543843371 | W132: 1
B133: 2015 | C133: 0.15 | D133: 0.5 | E133: 0.12 | F133: 0.02 | G133: 0.05 | H133: 0.003 | I133: 0.1428182277 | J133: 0.0137362975 | K133: 0.0004454748403 | L133: 1 | N133: 0.15 | O133: 0.5 | P133: 0.12 | Q133: 0.02 | R133: 0.05 | S133: 0.003 | T133: 0.1428182277 | U133: 0.0137362975 | V133: 0.0004454748403 | W133: 1
B134: 2016 | C134: 0.15 | D134: 0.5 | E134: 0.12 | F134: 0.02 | G134: 0.05 | H134: 0.003 | I134: 0.1415999729 | J134: 0.01496328704 | K134: 0.0004367400395 | L134: 1 | N134: 0.15 | O134: 0.5 | P134: 0.12 | Q134: 0.02 | R134: 0.05 | S134: 0.003 | T134: 0.1415999729 | U134: 0.01496328704 | V134: 0.0004367400395 | W134: 1
B135: 2017 | C135: 0.147 | D135: 0.49 | E135: 0.1176 | F135: 0.02 | G135: 0.05 | H135: 0.003 | I135: 0.1558349453 | J135: 0.01613687818 | K135: 0.0004281765094 | L135: 1 | N135: 0.15 | O135: 0.5 | P135: 0.1176 | Q135: 0.02 | R135: 0.049 | S135: 0.003 | T135: 0.1438349453 | U135: 0.01613687818 | V135: 0.0004281765094 | W135: 1
B136: 2018 | C136: 0.144 | D136: 0.48 | E136: 0.1152 | F136: 0.02 | G136: 0.05 | H136: 0.003 | I136: 0.1701215259 | J136: 0.01725869324 | K136: 0.0004197808915 | L136: 1 | N136: 0.15 | O136: 0.5 | P136: 0.1152 | Q136: 0.02 | R136: 0.048 | S136: 0.003 | T136: 0.1461215259 | U136: 0.01725869324 | V136: 0.0004197808915 | W136: 1
B137: 2019 | C137: 0.141 | D137: 0.47 | E137: 0.1128 | F137: 0.02 | G137: 0.05 | H137: 0.003 | I137: 0.1844581387 | J137: 0.01833031144 | K137: 0.0004115498937 | L137: 1 | N137: 0.15 | O137: 0.5 | P137: 0.1128 | Q137: 0.02 | R137: 0.047 | S137: 0.003 | T137: 0.1484581387 | U137: 0.01833031144 | V137: 0.0004115498937 | W137: 1
B138: 2020 | C138: 0.138 | D138: 0.46 | E138: 0.1104 | F138: 0.02 | G138: 0.05 | H138: 0.003 | I138: 0.1988432497 | J138: 0.01935327 | K138: 0.0004034802879 | L138: 1 | N138: 0.15 | O138: 0.5 | P138: 0.1104 | Q138: 0.02 | R138: 0.046 | S138: 0.003 | T138: 0.1508432497 | U138: 0.01935327 | V138: 0.0004034802879 | W138: 1
B139: 2021 | C139: 0.135 | D139: 0.45 | E139: 0.108 | F139: 0.02 | G139: 0.05 | H139: 0.003 | I139: 0.213275366 | J139: 0.02032906513 | K139: 0.0003955689097 | L139: 1 | N139: 0.15 | O139: 0.5 | P139: 0.108 | Q139: 0.02 | R139: 0.045 | S139: 0.003 | T139: 0.153275366 | U139: 0.02032906513 | V139: 0.0003955689097 | W139: 1
B140: 2022 | C140: 0.132 | D140: 0.44 | E140: 0.1056 | F140: 0.02 | G140: 0.05 | H140: 0.003 | I140: 0.2277530343 | J140: 0.02125915307 | K140: 0.0003878126566 | L140: 1 | N140: 0.15 | O140: 0.5 | P140: 0.1056 | Q140: 0.02 | R140: 0.044 | S140: 0.003 | T140: 0.1557530343 | U140: 0.02125915307 | V140: 0.0003878126566 | W140: 1
B141: 2023 | C141: 0.129 | D141: 0.43 | E141: 0.1032 | F141: 0.02 | G141: 0.05 | H141: 0.003 | I141: 0.2422748404 | J141: 0.02214495112 | K141: 0.0003802084868 | L141: 1 | N141: 0.15 | O141: 0.5 | P141: 0.1032 | Q141: 0.02 | R141: 0.043 | S141: 0.003 | T141: 0.1582748404 | U141: 0.02214495112 | V141: 0.0003802084868 | W141: 1
B142: 2024 | C142: 0.126 | D142: 0.42 | E142: 0.1008 | F142: 0.02 | G142: 0.05 | H142: 0.003 | I142: 0.2568394081 | J142: 0.02298783853 | K142: 0.0003727534185 | L142: 1 | N142: 0.15 | O142: 0.5 | P142: 0.1008 | Q142: 0.02 | R142: 0.042 | S142: 0.003 | T142: 0.1608394081 | U142: 0.02298783853 | V142: 0.0003727534185 | W142: 1
B143: 2025 | C143: 0.123 | D143: 0.41 | E143: 0.0984 | F143: 0.02 | G143: 0.05 | H143: 0.003 | I143: 0.271445398 | J143: 0.02378915752 | K143: 0.0003654445279 | L143: 1 | N143: 0.15 | O143: 0.5 | P143: 0.0984 | Q143: 0.02 | R143: 0.041 | S143: 0.003 | T143: 0.163445398 | U143: 0.02378915752 | V143: 0.0003654445279 | W143: 1
B144: 2026 | C144: 0.12 | D144: 0.4 | E144: 0.096 | F144: 0.02 | G144: 0.05 | H144: 0.003 | I144: 0.2860915069 | J144: 0.02455021416 | K144: 0.0003582789489 | L144: 1 | N144: 0.15 | O144: 0.5 | P144: 0.096 | Q144: 0.02 | R144: 0.04 | S144: 0.003 | T144: 0.1660915069 | U144: 0.02455021416 | V144: 0.0003582789489 | W144: 1
B145: 2027 | C145: 0.114 | D145: 0.38 | E145: 0.0912 | F145: 0.02 | G145: 0.05 | H145: 0.003 | I145: 0.3161764668 | J145: 0.02527227928 | K145: 0.0003512538715 | L145: 1 | N145: 0.15 | O145: 0.5 | P145: 0.0936 | Q145: 0.02 | R145: 0.039 | S145: 0.003 | T145: 0.1687764668 | U145: 0.02527227928 | V145: 0.0003512538715 | W145: 1
B146: 2028 | C146: 0.111 | D146: 0.37 | E146: 0.0888 | F146: 0.02 | G146: 0.05 | H146: 0.003 | I146: 0.3308990441 | J146: 0.02595658937 | K146: 0.0003443665407 | L146: 1 | N146: 0.15 | O146: 0.5 | P146: 0.0912 | Q146: 0.02 | R146: 0.038 | S146: 0.003 | T146: 0.1714990441 | U146: 0.02595658937 | V146: 0.0003443665407 | W146: 1
B147: 2029 | C147: 0.108 | D147: 0.36 | E147: 0.0864 | F147: 0.02 | G147: 0.05 | H147: 0.003 | I147: 0.3456580384 | J147: 0.02660434739 | K147: 0.0003376142556 | L147: 1 | N147: 0.15 | O147: 0.5 | P147: 0.0888 | Q147: 0.02 | R147: 0.037 | S147: 0.003 | T147: 0.1742580384 | U147: 0.02660434739 | V147: 0.0003376142556 | W147: 1
B148: 2030 | C148: 0.105 | D148: 0.35 | E148: 0.084 | F148: 0.02 | G148: 0.05 | H148: 0.003 | I148: 0.360452282 | J148: 0.02721672367 | K148: 0.0003309943682 | L148: 1 | N148: 0.15 | O148: 0.5 | P148: 0.0864 | Q148: 0.02 | R148: 0.036 | S148: 0.003 | T148: 0.177052282 | U148: 0.02721672367 | V148: 0.0003309943682 | W148: 1
B149: 2031 | C149: 0.1035 | D149: 0.345 | E149: 0.0828 | F149: 0.02 | G149: 0.05 | H149: 0.003 | I149: 0.3686924333 | J149: 0.02668306242 | K149: 0.0003245042826 | L149: 1 | N149: 0.15 | O149: 0.5 | P149: 0.0852 | Q149: 0.02 | R149: 0.0355 | S149: 0.003 | T149: 0.1792924333 | U149: 0.02668306242 | V149: 0.0003245042826 | W149: 1
B150: =B36 -> 2032 | C150: 0.102 | D150: 0.34 | E150: 0.0816 | F150: 0.02 | G150: 0.05 | H150: 0.003 | I150: 0.3769219934 | J150: 0.02615986512 | K150: 0.0003181414535 | L150: 1 | N150: 0.15 | O150: 0.5 | P150: 0.084 | Q150: 0.02 | R150: 0.035 | S150: 0.003 | T150: 0.1815219934 | U150: 0.02615986512 | V150: 0.0003181414535 | W150: 1
B151: 2033 | C151: 0.1005 | D151: 0.335 | E151: 0.0804 | F151: 0.02 | G151: 0.05 | H151: 0.003 | I151: 0.38514117 | J151: 0.02564692659 | K151: 0.0003119033858 | L151: 1 | N151: 0.15 | O151: 0.5 | P151: 0.0828 | Q151: 0.02 | R151: 0.0345 | S151: 0.003 | T151: 0.18374117 | U151: 0.02564692659 | V151: 0.0003119033858 | W151: 1
B152: 2034 | C152: 0.099 | D152: 0.33 | E152: 0.0792 | F152: 0.02 | G152: 0.05 | H152: 0.003 | I152: 0.3933501667 | J152: 0.02514404568 | K152: 0.0003057876331 | L152: 1 | N152: 0.15 | O152: 0.5 | P152: 0.0816 | Q152: 0.02 | R152: 0.034 | S152: 0.003 | T152: 0.1859501667 | U152: 0.02514404568 | V152: 0.0003057876331 | W152: 1
B153: 2035 | C153: 0.0975 | D153: 0.325 | E153: 0.078 | F153: 0.02 | G153: 0.05 | H153: 0.003 | I153: 0.401549183 | J153: 0.02465102517 | K153: 0.0002997917972 | L153: 1 | N153: 0.15 | O153: 0.5 | P153: 0.0804 | Q153: 0.02 | R153: 0.0335 | S153: 0.003 | T153: 0.188149183 | U153: 0.02465102517 | V153: 0.0002997917972 | W153: 1
B154: 2036 | C154: 0.096 | D154: 0.32 | E154: 0.0768 | F154: 0.02 | G154: 0.05 | H154: 0.003 | I154: 0.4097384147 | J154: 0.02416767174 | K154: 0.0002939135266 | L154: 1 | N154: 0.15 | O154: 0.5 | P154: 0.0792 | Q154: 0.02 | R154: 0.033 | S154: 0.003 | T154: 0.1903384147 | U154: 0.02416767174 | V154: 0.0002939135266 | W154: 1
B155: 2037 | C155: 0.0945 | D155: 0.315 | E155: 0.0756 | F155: 0.02 | G155: 0.05 | H155: 0.003 | I155: 0.4179180537 | J155: 0.02369379582 | K155: 0.0002881505163 | L155: 1 | N155: 0.15 | O155: 0.5 | P155: 0.078 | Q155: 0.02 | R155: 0.0325 | S155: 0.003 | T155: 0.1925180537 | U155: 0.02369379582 | V155: 0.0002881505163 | W155: 1
B156: 2038 | C156: 0.093 | D156: 0.31 | E156: 0.0744 | F156: 0.02 | G156: 0.05 | H156: 0.003 | I156: 0.4260882879 | J156: 0.02322921159 | K156: 0.0002825005062 | L156: 1 | N156: 0.15 | O156: 0.5 | P156: 0.0768 | Q156: 0.02 | R156: 0.032 | S156: 0.003 | T156: 0.1946882879 | U156: 0.02322921159 | V156: 0.0002825005062 | W156: 1
B157: 2039 | C157: 0.0915 | D157: 0.305 | E157: 0.0732 | F157: 0.02 | G157: 0.05 | H157: 0.003 | I157: 0.4342493019 | J157: 0.02277373685 | K157: 0.0002769612806 | L157: 1 | N157: 0.15 | O157: 0.5 | P157: 0.0756 | Q157: 0.02 | R157: 0.0315 | S157: 0.003 | T157: 0.1968493019 | U157: 0.02277373685 | V157: 0.0002769612806 | W157: 1
B158: 2040 | C158: 0.09 | D158: 0.3 | E158: 0.072 | F158: 0.02 | G158: 0.05 | H158: 0.003 | I158: 0.4424012763 | J158: 0.02232719299 | K158: 0.0002715306672 | L158: 1 | N158: 0.15 | O158: 0.5 | P158: 0.0744 | Q158: 0.02 | R158: 0.031 | S158: 0.003 | T158: 0.1990012763 | U158: 0.02232719299 | V158: 0.0002715306672 | W158: 1
B159: 2041 | C159: 0.0885 | D159: 0.295 | E159: 0.0708 | F159: 0.02 | G159: 0.05 | H159: 0.003 | I159: 0.4505443886 | J159: 0.02188940489 | K159: 0.0002662065365 | L159: 1 | N159: 0.15 | O159: 0.5 | P159: 0.0732 | Q159: 0.02 | R159: 0.0305 | S159: 0.003 | T159: 0.2011443886 | U159: 0.02188940489 | V159: 0.0002662065365 | W159: 1
B160: 2042 | C160: 0.087 | D160: 0.29 | E160: 0.0696 | F160: 0.02 | G160: 0.05 | H160: 0.003 | I160: 0.4586788123 | J160: 0.02146020088 | K160: 0.0002609868005 | L160: 1 | N160: 0.15 | O160: 0.5 | P160: 0.072 | Q160: 0.02 | R160: 0.03 | S160: 0.003 | T160: 0.2032788123 | U160: 0.02146020088 | V160: 0.0002609868005 | W160: 1
B161: 2043 | C161: 0.0855 | D161: 0.285 | E161: 0.0684 | F161: 0.02 | G161: 0.05 | H161: 0.003 | I161: 0.466804718 | J161: 0.02103941262 | K161: 0.0002558694122 | L161: 1 | N161: 0.15 | O161: 0.5 | P161: 0.0708 | Q161: 0.02 | R161: 0.0295 | S161: 0.003 | T161: 0.205404718 | U161: 0.02103941262 | V161: 0.0002558694122 | W161: 1
B162: 2044 | C162: 0.084 | D162: 0.28 | E162: 0.0672 | F162: 0.02 | G162: 0.05 | H162: 0.003 | I162: 0.4749222725 | J162: 0.02062687512 | K162: 0.0002508523649 | L162: 1 | N162: 0.15 | O162: 0.5 | P162: 0.0696 | Q162: 0.02 | R162: 0.029 | S162: 0.003 | T162: 0.2075222725 | U162: 0.02062687512 | V162: 0.0002508523649 | W162: 1
B163: 2045 | C163: 0.0825 | D163: 0.275 | E163: 0.066 | F163: 0.02 | G163: 0.05 | H163: 0.003 | I163: 0.4830316397 | J163: 0.02022242659 | K163: 0.0002459336911 | L163: 1 | N163: 0.15 | O163: 0.5 | P163: 0.0684 | Q163: 0.02 | R163: 0.0285 | S163: 0.003 | T163: 0.2096316397 | U163: 0.02022242659 | V163: 0.0002459336911 | W163: 1
B164: 2046 | C164: 0.081 | D164: 0.27 | E164: 0.0648 | F164: 0.02 | G164: 0.05 | H164: 0.003 | I164: 0.4911329801 | J164: 0.01982590842 | K164: 0.0002411114619 | L164: 1 | N164: 0.15 | O164: 0.5 | P164: 0.0672 | Q164: 0.02 | R164: 0.028 | S164: 0.003 | T164: 0.2117329801 | U164: 0.01982590842 | V164: 0.0002411114619 | W164: 1
B165: 2047 | C165: 0.0795 | D165: 0.265 | E165: 0.0636 | F165: 0.02 | G165: 0.05 | H165: 0.003 | I165: 0.4992264511 | J165: 0.01943716512 | K165: 0.0002363837862 | L165: 1 | N165: 0.15 | O165: 0.5 | P165: 0.066 | Q165: 0.02 | R165: 0.0275 | S165: 0.003 | T165: 0.2138264511 | U165: 0.01943716512 | V165: 0.0002363837862 | W165: 1
B166: 2048 | C166: 0.078 | D166: 0.26 | E166: 0.0624 | F166: 0.02 | G166: 0.05 | H166: 0.003 | I166: 0.507312207 | J166: 0.01905604423 | K166: 0.00023174881 | L166: 1 | N166: 0.15 | O166: 0.5 | P166: 0.0648 | Q166: 0.02 | R166: 0.027 | S166: 0.003 | T166: 0.215912207 | U166: 0.01905604423 | V166: 0.00023174881 | W166: 1
B167: 2049 | C167: 0.0765 | D167: 0.255 | E167: 0.0612 | F167: 0.02 | G167: 0.05 | H167: 0.003 | I167: 0.515390399 | J167: 0.01868239631 | K167: 0.0002272047156 | L167: 1 | N167: 0.15 | O167: 0.5 | P167: 0.0636 | Q167: 0.02 | R167: 0.0265 | S167: 0.003 | T167: 0.217990399 | U167: 0.01868239631 | V167: 0.0002272047156 | W167: 1
B168: 2050 | C168: 0.075 | D168: 0.25 | E168: 0.06 | F168: 0.02 | G168: 0.05 | H168: 0.003 | I168: 0.5234611755 | J168: 0.01831607481 | K168: 0.0002227497212 | L168: 1 | N168: 0.15 | O168: 0.5 | P168: 0.0624 | Q168: 0.02 | R168: 0.026 | S168: 0.003 | T168: 0.2200611755 | U168: 0.01831607481 | V168: 0.0002227497212 | W168: 1
B171: 5. Scenario 4: Waste to energy (WTE)
C173: Food (Gg/yr) | D173: Garden (Gg/yr) | E173: Paper (Gg/yr) | F173: Wood (Gg/yr) | G173: Textiles (Gg/yr) | H173: Nappies (Gg/yr) | I173: Inert (Gg/yr) | J173: Sludge (Gg/yr) | K173: Industrial (Gg/yr)
B174: =B4 -> 2000 | C174: 0.15 | D174: 0.5 | E174: 0.12 | F174: 0.02 | G174: 0.05 | H174: 0.003 | I174: 0.157 | J174: 0 | K174: 0 | L174: =SUM(C174:K174) -> 1
B175: 2001 | C175: 0.15 | D175: 0.5 | E175: 0.12 | F175: 0.02 | G175: 0.05 | H175: 0.003 | I175: 0.157 | J175: 0 | K175: 0 | L175: =SUM(C175:K175) -> 1
B176: 2002 | C176: 0.15 | D176: 0.5 | E176: 0.12 | F176: 0.02 | G176: 0.05 | H176: 0.003 | I176: 0.157 | J176: 0 | K176: 0 | L176: 1
B177: 2003 | C177: 0.15 | D177: 0.5 | E177: 0.12 | F177: 0.02 | G177: 0.05 | H177: 0.003 | I177: 0.157 | J177: 0 | K177: 0 | L177: 1
B178: 2004 | C178: 0.15 | D178: 0.5 | E178: 0.12 | F178: 0.02 | G178: 0.05 | H178: 0.003 | I178: 0.157 | J178: 0 | K178: 0 | L178: 1
B179: 2005 | C179: 0.15 | D179: 0.5 | E179: 0.12 | F179: 0.02 | G179: 0.05 | H179: 0.003 | I179: 0.1404693952 | J179: 0.01515467889 | K179: 0.001375925922 | L179: 1
B180: 2006 | C180: 0.15 | D180: 0.5 | E180: 0.12 | F180: 0.02 | G180: 0.05 | H180: 0.003 | I180: 0.1359830426 | J180: 0.01979147311 | K180: 0.001225484281 | L180: 1
B181: 2007 | C181: 0.15 | D181: 0.5 | E181: 0.12 | F181: 0.02 | G181: 0.05 | H181: 0.003 | I181: 0.1215968362 | J181: 0.03315506906 | K181: 0.002248094708 | L181: 1
B182: 2008 | C182: 0.15 | D182: 0.5 | E182: 0.12 | F182: 0.02 | G182: 0.05 | H182: 0.003 | I182: 0.1246060009 | J182: 0.03040871176 | K182: 0.001985287367 | L182: 1
B183: 2009 | C183: 0.15 | D183: 0.5 | E183: 0.12 | F183: 0.02 | G183: 0.05 | H183: 0.003 | I183: 0.1322542015 | J183: 0.02194042454 | K183: 0.002805373941 | L183: 1
B184: 2010 | C184: 0.15 | D184: 0.5 | E184: 0.12 | F184: 0.02 | G184: 0.05 | H184: 0.003 | I184: 0.1287538939 | J184: 0.02560021863 | K184: 0.002645887461 | L184: 1
B185: 2011 | C185: 0.15 | D185: 0.5 | E185: 0.12 | F185: 0.02 | G185: 0.05 | H185: 0.003 | I185: 0.1281333276 | J185: 0.02509567455 | K185: 0.003770997844 | L185: 1
B186: 2012 | C186: 0.15 | D186: 0.5 | E186: 0.12 | F186: 0.02 | G186: 0.05 | H186: 0.003 | I186: 0.1362509909 | J186: 0.01900109173 | K186: 0.001747917389 | L186: 1
B187: 2013 | C187: 0.15 | D187: 0.5 | E187: 0.12 | F187: 0.02 | G187: 0.05 | H187: 0.003 | I187: 0.1400397906 | J187: 0.01620398168 | K187: 0.0007562277008 | L187: 1
B188: 2014 | C188: 0.15 | D188: 0.5 | E188: 0.12 | F188: 0.02 | G188: 0.05 | H188: 0.003 | I188: 0.1440913726 | J188: 0.01245424307 | K188: 0.0004543843371 | L188: 1
B189: 2015 | C189: 0.15 | D189: 0.5 | E189: 0.12 | F189: 0.02 | G189: 0.05 | H189: 0.003 | I189: 0.1428182277 | J189: 0.0137362975 | K189: 0.0004454748403 | L189: 1
B190: 2016 | C190: 0.15 | D190: 0.5 | E190: 0.12 | F190: 0.02 | G190: 0.05 | H190: 0.003 | I190: 0.1415999729 | J190: 0.01496328704 | K190: 0.0004367400395 | L190: 1
B191: 2017 | C191: 0.15 | D191: 0.5 | E191: 0.12 | F191: 0.02 | G191: 0.05 | H191: 0.003 | I191: 0.1404349453 | J191: 0.01613687818 | K191: 0.0004281765094 | L191: 1
B192: 2018 | C192: 0.15 | D192: 0.5 | E192: 0.12 | F192: 0.02 | G192: 0.05 | H192: 0.003 | I192: 0.1393215259 | J192: 0.01725869324 | K192: 0.0004197808915 | L192: 1
B193: 2019 | C193: 0.07861600926 | D193: 0.2620533642 | E193: 0.06289280741 | F193: 0.01048213457 | G193: 0.02620533642 | H193: 0.001572320185 | I193: 0.5394361666 | J193: 0.01833031144 | K193: 0.0004115498937 | L193: 1
B194: 2020 | C194: 0.08001569535 | D194: 0.2667189845 | E194: 0.06401255628 | F194: 0.01066875938 | G194: 0.02667189845 | H194: 0.001600313907 | I194: 0.5305550418 | J194: 0.01935327 | K194: 0.0004034802879 | L194: 1
B195: 2021 | C195: 0.08138793662 | D195: 0.2712931221 | E195: 0.0651103493 | F195: 0.01085172488 | G195: 0.02712931221 | H195: 0.001627758732 | I195: 0.5218751622 | J195: 0.02032906513 | K195: 0.0003955689097 | L195: 1
B196: 2022 | C196: 0.0827332712 | D196: 0.2757775707 | E196: 0.06618661696 | F196: 0.01103110283 | G196: 0.02757775707 | H196: 0.001654665424 | I196: 0.5133920502 | J196: 0.02125915307 | K196: 0.0003878126566 | L196: 1
B197: 2023 | C197: 0.08405222666 | D197: 0.2801740889 | E197: 0.06724178133 | F197: 0.01120696355 | G197: 0.02801740889 | H197: 0.001681044533 | I197: 0.5051013266 | J197: 0.02214495112 | K197: 0.0003802084868 | L197: 1
B198: 2024 | C198: 0.08534532026 | D198: 0.2844844009 | E198: 0.06827625621 | F198: 0.01137937603 | G198: 0.02844844009 | H198: 0.001706906405 | I198: 0.4969987082 | J198: 0.02298783853 | K198: 0.0003727534185 | L198: 1
B199: 2025 | C199: 0.08661305908 | D199: 0.2887101969 | E199: 0.06929044726 | F199: 0.01154840788 | G199: 0.02887101969 | H199: 0.001732261182 | I199: 0.4890800059 | J199: 0.02378915752 | K199: 0.0003654445279 | L199: 1
B200: 2026 | C200: 0.08785594027 | D200: 0.2928531342 | E200: 0.07028475222 | F200: 0.01171412537 | G200: 0.02928531342 | H200: 0.001757118805 | I200: 0.4813411226 | J200: 0.02455021416 | K200: 0.0003582789489 | L200: 1
B201: 2027 | C201: 0.08907445125 | D201: 0.2969148375 | E201: 0.071259561 | F201: 0.0118765935 | G201: 0.02969148375 | H201: 0.001781489025 | I201: 0.4737780508 | J201: 0.02527227928 | K201: 0.0003512538715 | L201: 1
B202: 2028 | C202: 0.09026906985 | D202: 0.3008968995 | E202: 0.07221525588 | F202: 0.01203587598 | G202: 0.03008968995 | H202: 0.001805381397 | I202: 0.4663868715 | J202: 0.02595658937 | K202: 0.0003443665407 | L202: 1
B203: 2029 | C203: 0.09144026456 | D203: 0.3048008819 | E203: 0.07315221165 | F203: 0.01219203527 | G203: 0.03048008819 | H203: 0.001828805291 | I203: 0.4591637515 | J203: 0.02660434739 | K203: 0.0003376142556 | L203: 1
B204: 2030 | C204: 0.09258849466 | D204: 0.3086283155 | E204: 0.07407079573 | F204: 0.01234513262 | G204: 0.03086283155 | H204: 0.001851769893 | I204: 0.4521049419 | J204: 0.02721672367 | K204: 0.0003309943682 | L204: 1
B205: 2031 | C205: 0.09371421045 | D205: 0.3123807015 | E205: 0.07497136836 | F205: 0.01249522806 | G205: 0.03123807015 | H205: 0.001874284209 | I205: 0.4463185705 | J205: 0.02668306242 | K205: 0.0003245042826 | L205: 1
B206: =B36 -> 2032 | C206: 0.09481785339 | D206: 0.3160595113 | E206: 0.07585428271 | F206: 0.01264238045 | G206: 0.03160595113 | H206: 0.001896357068 | I206: 0.4406456574 | J206: 0.02615986512 | K206: 0.0003181414535 | L206: 1
B207: 2033 | C207: 0.09589985626 | D207: 0.3196661875 | E207: 0.07671988501 | F207: 0.0127866475 | G207: 0.03196661875 | H207: 0.001917997125 | I207: 0.4350839778 | J207: 0.02564692659 | K207: 0.0003119033858 | L207: 1
B208: 2034 | C208: 0.09696064339 | D208: 0.3232021446 | E208: 0.07756851472 | F208: 0.01292808579 | G208: 0.03232021446 | H208: 0.001939212868 | I208: 0.4296313508 | J208: 0.02514404568 | K208: 0.0003057876331 | L208: 1
B209: 2035 | C209: 0.09800063078 | D209: 0.3266687693 | E209: 0.07840050462 | F209: 0.01306675077 | G209: 0.03266687693 | H209: 0.001960012616 | I209: 0.4242856381 | J209: 0.02465102517 | K209: 0.0002997917972 | L209: 1
B210: 2036 | C210: 0.09902022625 | D210: 0.3300674208 | E210: 0.079216181 | F210: 0.01320269683 | G210: 0.03300674208 | H210: 0.001980404525 | I210: 0.4190447432 | J210: 0.02416767174 | K210: 0.0002939135266 | L210: 1
... 174 more rows

Sheet 5. TNC Parameters
A1: TNC Parameters | B1: Excel Toolkit for Mitigation Analysis for Low-Carbon Development Planning | N1: XLMT-Solid Waste v17.1
A2: This page contain values used for the Toolkit for certain key parameters.
A3: The TNC values have been used as default in this Toolkit. However, the Chair of the Solid Waste sector can change these parameters against a password - provided it is justified and accepted by all parties concerned.
A6: B. Parameters for waste composition
A7: Solid Wastes | B7: Degradable Organic Carbon (DOC) | D7: Methane generation rate constant - k (1/yr) | F7: exp(-k) | H7: Half Life of waste - ln(2)/k
B8: TNC | C8: USER | D8: TNC | E8: USER | F8: TNC | G8: USER | H8: TNC | I8: USER
A9: Food | B9: =C9 -> 0.19 | C9: 0.19 | D9: =E9 -> 0.4 | E9: 0.4 | F9: 0.670320046 | G9: =EXP(-E9) -> 0.670320046 | H9: 1.732867951 | I9: =LN(2)/E9 -> 1.732867951
A10: Garden | B10: =C10 -> 0.588 | C10: 0.588 | D10: =E10 -> 0.17 | E10: 0.17 | F10: 0.8436648166 | G10: 0.8436648166 | H10: 4.077336356 | I10: 4.077336356
A11: Paper | B11: 0.13 | C11: 0.13 | D11: 0.07 | E11: 0.07 | F11: 0.9323938199 | G11: 0.9323938199 | H11: 9.902102579 | I11: 9.902102579
A12: Wood | B12: 0.005 | C12: 0.005 | D12: 0.035 | E12: 0.035 | F12: 0.9656054163 | G12: 0.9656054163 | H12: 19.80420516 | I12: 19.80420516
A13: Textiles | B13: 0.04 | C13: 0.04 | D13: 0.07 | E13: 0.07 | F13: 0.9323938199 | G13: 0.9323938199 | H13: 9.902102579 | I13: 9.902102579
A14: Nappies | B14: 0.002 | C14: 0.002 | D14: 0.05 | E14: 0.05 | F14: 0.9512294245 | G14: 0.9512294245 | H14: 13.86294361 | I14: 13.86294361
A15: Sludge | B15: 0.03 | C15: 0.03 | D15: 0.03 | E15: 0.03 | F15: 0.9704455335 | G15: 0.9704455335 | H15: 23.10490602 | I15: 23.10490602
A16: Industrial (not used in Total GHG Emissions (TNC)) | B16: 0.015 | C16: 0.015 | D16: 0.17 | E16: 0.17 | F16: 0.8436648166 | G16: 0.8436648166 | H16: 4.077336356 | I16: 4.077336356
A17: Note: a few equations are provided below abd more details can be found in the IPCC (2006) Guidelines.
A19: Weighted Methane Correction Factor (MCF)
A20: Year/period | B20: Value (dimensionless)
B21: TNC | C21: USER
A22: 2000 | B22: =C22 -> 0.91 | C22: 0.91
A23: 2001 | B23: =C23 -> 0.96 | C23: 0.96
A24: >2001 | B24: 1 | C24: 1
A26: Other Parameters
A27: DOCf | B27: =C27 -> 0.75 | C27: 0.75
A28: CH4 in LFG | B28: =C28 -> 0.5 | C28: 0.5 | D28: Note: Oxidation factor is zero.
A29: C to CH4 | B29: 1.333333333 | C29: =16/12 -> 1.333333333
A30: GWP CH4 | B30: 25 | C30: 25

Sheet 5. UD1 Parameters
A1: UD1 Parameters | B1: Excel Toolkit for Mitigation Analysis for Low-Carbon Development Planning | N1: XLMT-Solid Waste v17.1
A3: This page contain values used for the Toolkit for certain key parameters.
A4: The TNC values have been used as default in this Toolkit. However, the Sector Chair can change these parameters against a password - provided it is justified and accepted by all parties concerned.
A7: Parameters for waste composition
A8: Solid Wastes | B8: Degradable Organic Carbon (DOC) | D8: Methane generation rate constant: k (1/yr) | F8: exp(-k) | H8: Half Life of waste - ln(2)/k
B9: TNC | C9: USER | D9: TNC | E9: USER | F9: TNC | G9: USER | H9: TNC | I9: USER
A10: Food | B10: ='5. TNC Parameters'!B9 -> 0.19 | C10: 0.19 | D10: ='5. TNC Parameters'!D9 -> 0.4 | E10: 0.4 | F10: 0.670320046 | G10: =EXP(-E10) -> 0.670320046 | H10: 1.732867951 | I10: =LN(2)/E10 -> 1.732867951
A11: Garden | B11: ='5. TNC Parameters'!B10 -> 0.588 | C11: 0.588 | D11: ='5. TNC Parameters'!D10 -> 0.17 | E11: 0.17 | F11: 0.8436648166 | G11: 0.8436648166 | H11: 4.077336356 | I11: 4.077336356
A12: Paper | B12: ='5. TNC Parameters'!B11 -> 0.13 | C12: 0.13 | D12: ='5. TNC Parameters'!D11 -> 0.07 | E12: 0.07 | F12: 0.9323938199 | G12: 0.9323938199 | H12: 9.902102579 | I12: 9.902102579
A13: Wood | B13: ='5. TNC Parameters'!B12 -> 0.005 | C13: 0.005 | D13: ='5. TNC Parameters'!D12 -> 0.035 | E13: 0.035 | F13: 0.9656054163 | G13: 0.9656054163 | H13: 19.80420516 | I13: 19.80420516
A14: Textiles | B14: ='5. TNC Parameters'!B13 -> 0.04 | C14: 0.04 | D14: ='5. TNC Parameters'!D13 -> 0.07 | E14: 0.07 | F14: 0.9323938199 | G14: 0.9323938199 | H14: 9.902102579 | I14: 9.902102579
A15: Nappies | B15: ='5. TNC Parameters'!B14 -> 0.002 | C15: 0.002 | D15: ='5. TNC Parameters'!D14 -> 0.05 | E15: 0.05 | F15: 0.9512294245 | G15: 0.9512294245 | H15: 13.86294361 | I15: 13.86294361
A16: Sludge | B16: ='5. TNC Parameters'!B15 -> 0.03 | C16: 0.03 | D16: ='5. TNC Parameters'!D15 -> 0.03 | E16: 0.03 | F16: 0.9704455335 | G16: 0.9704455335 | H16: 23.10490602 | I16: 23.10490602
A17: Industrial (not used in Total GHG Emissions (TNC)) | B17: ='5. TNC Parameters'!B16 -> 0.015 | C17: 0.015 | D17: ='5. TNC Parameters'!D16 -> 0.17 | E17: 0.17 | F17: 0.8436648166 | G17: 0.8436648166 | H17: 4.077336356 | I17: 4.077336356
A18: Note: a few equations are provided below abd more details can be found in the IPCC (2006) Guidelines.
A20: Weighted Methane Correction Factor (MCF)
A21: Year/period | B21: Value (dimensionless)
B22: TNC | C22: USER
A23: 2000 | B23: ='5. TNC Parameters'!B22 -> 0.91 | C23: 0.91
A24: 2001 | B24: ='5. TNC Parameters'!B23 -> 0.96 | C24: 0.96
A25: >2001 | B25: ='5. TNC Parameters'!B24 -> 1 | C25: 1
A27: Other Parameters
A28: Degradable Organic Carbon Fraction (DOCf) | B28: ='5. TNC Parameters'!B27 -> 0.75 | C28: 0.75
A29: CH4 in LFG | B29: ='5. TNC Parameters'!B28 -> 0.5 | C29: 0.5 | D29: Note: Oxidation factor is zero.
A30: C to CH4 | B30: ='5. TNC Parameters'!B29 -> 1.333333333 | C30: =16/12 -> 1.333333333
A31: GWP CH4 | B31: ='5. TNC Parameters'!B30 -> 25 | C31: 25

Sheet 5. UD2 Parameters
A1: UD2 Parameters | B1: Excel Toolkit for Mitigation Analysis for Low-Carbon Development Planning | M1: XLMT-Solid Waste v17.1
A3: This page contain values used for the Toolkit for certain key parameters.
A4: The TNC values have been used as default in this Toolkit. However, the Chair of the Waste: Solid wastes Group can change these parameters against a password - provided it is justified and accepted by all parties concerned.
A7: Parameters for waste composition
A8: Solid Wastes | B8: Degradable Organic Carbon (DOC) | D8: Methane generation rate constant - k (1/yr) | F8: exp(-k) | H8: Half Life of waste - ln(2)/k
B9: TNC | C9: USER | D9: TNC | E9: USER | F9: TNC | G9: USER | H9: TNC | I9: USER
A10: Food | B10: ='5. TNC Parameters'!B9 -> 0.19 | C10: 0.19 | D10: ='5. TNC Parameters'!D9 -> 0.4 | E10: 0.4 | F10: 0.670320046 | G10: =EXP(-E10) -> 0.670320046 | H10: 1.732867951 | I10: =LN(2)/E10 -> 1.732867951
A11: Garden | B11: ='5. TNC Parameters'!B10 -> 0.588 | C11: 0.588 | D11: ='5. TNC Parameters'!D10 -> 0.17 | E11: 0.17 | F11: 0.8436648166 | G11: 0.8436648166 | H11: 4.077336356 | I11: 4.077336356
A12: Paper | B12: ='5. TNC Parameters'!B11 -> 0.13 | C12: 0.13 | D12: ='5. TNC Parameters'!D11 -> 0.07 | E12: 0.07 | F12: 0.9323938199 | G12: 0.9323938199 | H12: 9.902102579 | I12: 9.902102579
A13: Wood | B13: ='5. TNC Parameters'!B12 -> 0.005 | C13: 0.005 | D13: ='5. TNC Parameters'!D12 -> 0.035 | E13: 0.035 | F13: 0.9656054163 | G13: 0.9656054163 | H13: 19.80420516 | I13: 19.80420516
A14: Textiles | B14: ='5. TNC Parameters'!B13 -> 0.04 | C14: 0.04 | D14: ='5. TNC Parameters'!D13 -> 0.07 | E14: 0.07 | F14: 0.9323938199 | G14: 0.9323938199 | H14: 9.902102579 | I14: 9.902102579
A15: Nappies | B15: ='5. TNC Parameters'!B14 -> 0.002 | C15: 0.002 | D15: ='5. TNC Parameters'!D14 -> 0.05 | E15: 0.05 | F15: 0.9512294245 | G15: 0.9512294245 | H15: 13.86294361 | I15: 13.86294361
A16: Sludge | B16: ='5. TNC Parameters'!B15 -> 0.03 | C16: 0.03 | D16: ='5. TNC Parameters'!D15 -> 0.03 | E16: 0.03 | F16: 0.9704455335 | G16: 0.9704455335 | H16: 23.10490602 | I16: 23.10490602
A17: Industrial (not used in Total GHG Emissions (TNC)) | B17: ='5. TNC Parameters'!B16 -> 0.015 | C17: 0.015 | D17: ='5. TNC Parameters'!D16 -> 0.17 | E17: 0.17 | F17: 0.8436648166 | G17: 0.8436648166 | H17: 4.077336356 | I17: 4.077336356
A18: Note: a few equations are provided below abd more details can be found in the IPCC (2006) Guidelines.
A20: Weighted Methane Correction Factor (MCF)
A21: Year/period | B21: Value (dimensionless)
B22: TNC | C22: USER
A23: 2000 | B23: ='5. TNC Parameters'!B22 -> 0.91 | C23: 0.91
A24: 2001 | B24: ='5. TNC Parameters'!B23 -> 0.96 | C24: 0.96
A25: >2001 | B25: ='5. TNC Parameters'!B24 -> 1 | C25: 1
A27: Other Parameters
A28: DOCf | B28: ='5. TNC Parameters'!B27 -> 0.75 | C28: 0.75
A29: CH4 in LFG | B29: ='5. TNC Parameters'!B28 -> 0.5 | C29: 0.5 | D29: Note: Oxidation factor is zero.
A30: C to CH4 | B30: ='5. TNC Parameters'!B29 -> 1.333333333 | C30: =16/12 -> 1.333333333
A31: GWP CH4 | B31: ='5. TNC Parameters'!B30 -> 25 | C31: 25

Sheet 6. TNC Assumptions
A1: TNC Assumptions | F1: Excel Toolkit for Mitigation Analysis for Low-Carbon Development Planning | R1: XLMT-Solid Wastes v17.1
A2: A | B2: POPULATION AND SOLID WASTE GENERATION | R2: DEFAULT FROM TNC ARE ALREADY ENTERED
M3: NOT USED IN CALCULATIONS
B4: Year | C4: Population (million) | E4: Waste per capita, WPC (kg/cap/yr) | G4: Total Waste (Gg/yr) | I4: % to SWDS | K4: Waste to SWDS (Gg/yr) | M4: Waste to SWDS under WTE Scenario (Gg/yr) | O4: % Waste Composted | Q4: % Waste to SWDS under Composting project | S4: Waste to SWDS under Composting project (Gg/yr) | U4: % Waste Recycled | W4: % Waste to SWDS under recycling project | Y4: Waste to SWDS under Recycling project(Gg/yr)
C5: TNC | D5: USER | E5: TNC | F5: USER | G5: TNC | H5: USER | I5: TNC | J5: USER | K5: TNC | L5: USER | M5: TNC | N5: USER | O5: TNC | P5: USER | Q5: TNC | R5: USER | S5: TNC | T5: USER | U5: TNC | V5: USER | W5: TNC | X5: USER | Y5: TNC | Z5: USER
B6: 2000 | C6: ='4. Data'!C4 -> 1.151094 | D6: =C6 -> 1.151094 | E6: ='4. Data'!D4 -> 230.93 | F6: =E6 -> 230.93 | G6: =C6*E6 -> 265.8221374 | H6: =D6*F6 -> 265.8221374 | I6: ='4. Data'!F4 -> 0.75 | J6: =I6 -> 0.75 | K6: =G6*I6 -> 199.3666031 | L6: =H6*J6 -> 199.3666031 | M6: 199.3666031 | N6: 0
B7: 2001 | C7: ='4. Data'!C5 -> 1.160083 | D7: =C7 -> 1.160083 | E7: ='4. Data'!D5 -> 264.37 | F7: =E7 -> 264.37 | G7: =C7*E7 -> 306.6911427 | H7: =D7*F7 -> 306.6911427 | I7: ='4. Data'!F5 -> 0.88 | J7: =I7 -> 0.88 | K7: =G7*I7 -> 269.8882056 | L7: 269.8882056 | M7: 269.8882056 | N7: 269.8882056
B8: 2002 | C8: ='4. Data'!C6 -> 1.167995 | D8: 1.167995 | E8: ='4. Data'!D6 -> 311.57 | F8: 311.57 | G8: 363.9122021 | H8: 363.9122021 | I8: ='4. Data'!F6 -> 1 | J8: 1 | K8: 363.9122021 | L8: 363.9122021 | M8: 363.9122021 | N8: 363.9122021
B9: 2003 | C9: ='4. Data'!C7 -> 1.176323 | D9: 1.176323 | E9: ='4. Data'!D7 -> 316.62 | F9: 316.62 | G9: 372.4473883 | H9: 372.4473883 | I9: ='4. Data'!F7 -> 1 | J9: 1 | K9: 372.4473883 | L9: 372.4473883 | M9: 372.4473883 | N9: 372.4473883
B10: 2004 | C10: ='4. Data'!C8 -> 1.183533 | D10: 1.183533 | E10: ='4. Data'!D8 -> 322.09 | F10: 322.09 | G10: 381.204144 | H10: 381.204144 | I10: ='4. Data'!F8 -> 1 | J10: 1 | K10: 381.204144 | L10: 381.204144 | M10: 381.204144 | N10: 381.204144
B11: 2005 | C11: ='4. Data'!C9 -> 1.190361 | D11: 1.190361 | E11: ='4. Data'!D9 -> 327.78 | F11: 327.78 | G11: 390.1765286 | H11: 390.1765286 | I11: ='4. Data'!F9 -> 1 | J11: 1 | K11: 390.1765286 | L11: 390.1765286 | M11: 390.1765286 | N11: 390.1765286
B12: 2006 | C12: ='4. Data'!C10 -> 1.195676 | D12: 1.195676 | E12: ='4. Data'!D10 -> 340.43 | F12: 340.43 | G12: 407.0439807 | H12: 407.0439807 | I12: ='4. Data'!F10 -> 1 | J12: 1 | K12: 407.0439807 | L12: 407.0439807 | M12: 407.0439807 | N12: 407.0439807
B13: 2007 | C13: ='4. Data'!C11 -> 1.200887 | D13: 1.200887 | E13: ='4. Data'!D11 -> 328.44 | F13: 328.44 | G13: 394.4193263 | H13: 394.4193263 | I13: ='4. Data'!F11 -> 1 | J13: 1 | K13: 394.4193263 | L13: 394.4193263 | M13: 394.4193263 | N13: 394.4193263
B14: 2008 | C14: ='4. Data'!C12 -> 1.204955 | D14: 1.204955 | E14: ='4. Data'!D12 -> 331.54 | F14: 331.54 | G14: 399.4907807 | H14: 399.4907807 | I14: ='4. Data'!F12 -> 1 | J14: 1 | K14: 399.4907807 | L14: 399.4907807 | M14: 399.4907807 | N14: 399.4907807
B15: 2009 | C15: ='4. Data'!C13 -> 1.207842 | D15: 1.207842 | E15: ='4. Data'!D13 -> 344.37 | F15: 344.37 | G15: 415.9445495 | H15: 415.9445495 | I15: ='4. Data'!F13 -> 1 | J15: 1 | K15: 415.9445495 | L15: 415.9445495 | M15: 415.9445495 | N15: 415.9445495
B16: 2010 | C16: ='4. Data'!C14 -> 1.210391 | D16: 1.210391 | E16: ='4. Data'!D14 -> 353.35 | F16: 353.35 | G16: 427.6916599 | H16: 427.6916599 | I16: ='4. Data'!F14 -> 1 | J16: 1 | K16: 427.6916599 | L16: 427.6916599 | M16: 427.6916599 | N16: 427.6916599
B17: 2011 | C17: ='4. Data'!C15 -> 1.21197 | D17: 1.21197 | E17: ='4. Data'!D15 -> 342 | F17: 342 | G17: 414.49374 | H17: 414.49374 | I17: ='4. Data'!F15 -> 1 | J17: 1 | K17: 414.49374 | L17: 414.49374 | M17: 414.49374 | N17: 414.49374
B18: 2012 | C18: ='4. Data'!C16 -> 1.214987 | D18: 1.214987 | E18: ='4. Data'!D16 -> 319.24 | F18: 319.24 | G18: 387.8724499 | H18: 387.8724499 | I18: ='4. Data'!F16 -> 1 | J18: 1 | K18: 387.8724499 | L18: 387.8724499 | M18: 387.8724499 | N18: 387.8724499
B19: 2013 | C19: ='4. Data'!C17 -> 1.217341 | D19: 1.217341 | E19: ='4. Data'!D17 -> 352.99 | F19: 352.99 | G19: 429.7091996 | H19: 429.7091996 | I19: ='4. Data'!F17 -> 1 | J19: 1 | K19: 429.7091996 | L19: 429.7091996 | M19: 429.7091996 | N19: 429.7091996
B20: 2014 | C20: ='4. Data'!C18 -> 1.219265 | D20: 1.219265 | E20: ='4. Data'!D18 -> 341.85 | F20: 341.85 | G20: 416.8057403 | H20: 416.8057403 | I20: ='4. Data'!F18 -> 1 | J20: 1 | K20: 416.8057403 | L20: 416.8057403 | M20: 416.8057403 | N20: 416.8057403
B21: 2015 | C21: ='4. Data'!C19 -> 1.2199292 | D21: 1.2199292 | E21: ='4. Data'!D19 -> 348.4971546 | F21: 348.4971546 | G21: 425.1418551 | H21: 425.1418551 | I21: ='4. Data'!F19 -> 1 | J21: 1 | K21: 425.1418551 | L21: 425.1418551 | M21: 425.1418551 | N21: 425.1418551
B22: 2016 | C22: ='4. Data'!C20 -> 1.2205934 | D22: 1.2205934 | E22: ='4. Data'!D20 -> 355.2736662 | F22: 355.2736662 | G22: 433.6446922 | H22: 433.6446922 | I22: ='4. Data'!F20 -> 1 | J22: 1 | K22: 433.6446922 | L22: 433.6446922 | M22: 433.6446922 | N22: 433.6446922
B23: 2017 | C23: ='4. Data'!C21 -> 1.2212576 | D23: 1.2212576 | E23: ='4. Data'!D21 -> 362.182054 | F23: 362.182054 | G23: 442.317586 | H23: 442.317586 | I23: ='4. Data'!F21 -> 1 | J23: 1 | K23: 442.317586 | L23: 442.317586 | M23: 442.317586 | N23: 442.317586 | O23: 0.02 | P23: 0.02 | Q23: 0.98 | R23: 0.98 | S23: 433.4712343 | T23: 433.4712343 | U23: 0.02 | V23: 0.02 | W23: 0.98 | X23: 0.98 | Y23: 433.4712343 | Z23: 433.4712343
B24: 2018 | C24: ='4. Data'!C22 -> 1.2219218 | D24: 1.2219218 | E24: ='4. Data'!D22 -> 369.2248863 | F24: 369.2248863 | G24: 451.1639377 | H24: 451.1639377 | I24: ='4. Data'!F22 -> 1 | J24: 1 | K24: 451.1639377 | L24: 451.1639377 | M24: 451.1639377 | N24: 451.1639377 | O24: 0.04 | P24: 0.04 | Q24: 0.96 | R24: 0.96 | S24: 433.1173802 | T24: 433.1173802 | U24: 0.04 | V24: 0.04 | W24: 0.96 | X24: 0.96 | Y24: 433.1173802 | Z24: 433.1173802
B25: 2019 | C25: ='4. Data'!C23 -> 1.222586 | D25: 1.222586 | E25: ='4. Data'!D23 -> 376.4047817 | F25: 376.4047817 | G25: 460.1872165 | H25: 460.1872165 | I25: ='4. Data'!F23 -> 1 | J25: 1 | K25: 460.1872165 | L25: 460.1872165 | M25: 241.1872165 | N25: 241.1872165 | O25: 0.06 | P25: 0.06 | Q25: 0.94 | R25: 0.94 | S25: 432.5759835 | T25: 432.5759835 | U25: 0.06 | V25: 0.06 | W25: 0.94 | X25: 0.94 | Y25: 432.5759835 | Z25: 432.5759835
B26: 2020 | C26: ='4. Data'!C24 -> 1.2218556 | D26: 1.2218556 | E26: ='4. Data'!D24 -> 384.1623845 | F26: 384.1623845 | G26: 469.3909608 | H26: 469.3909608 | I26: ='4. Data'!F24 -> 1 | J26: 1 | K26: 469.3909608 | L26: 469.3909608 | M26: 250.3909608 | N26: 250.3909608 | O26: 0.08 | P26: 0.08 | Q26: 0.92 | R26: 0.92 | S26: 431.8396839 | T26: 431.8396839 | U26: 0.08 | V26: 0.08 | W26: 0.92 | X26: 0.92 | Y26: 431.8396839 | Z26: 431.8396839
B27: 2021 | C27: ='4. Data'!C25 -> 1.2211252 | D27: 1.2211252 | E27: ='4. Data'!D25 -> 392.0800095 | F27: 392.0800095 | G27: 478.77878 | H27: 478.77878 | I27: ='4. Data'!F25 -> 1 | J27: 1 | K27: 478.77878 | L27: 478.77878 | M27: 259.77878 | N27: 259.77878 | O27: 0.1 | P27: 0.1 | Q27: 0.9 | R27: 0.9 | S27: 430.900902 | T27: 430.900902 | U27: 0.1 | V27: 0.1 | W27: 0.9 | X27: 0.9 | Y27: 430.900902 | Z27: 430.900902
B28: 2022 | C28: ='4. Data'!C26 -> 1.2203948 | D28: 1.2203948 | E28: ='4. Data'!D26 -> 400.1609607 | F28: 400.1609607 | G28: 488.3543556 | H28: 488.3543556 | I28: ='4. Data'!F26 -> 1 | J28: 1 | K28: 488.3543556 | L28: 488.3543556 | M28: 269.3543556 | N28: 269.3543556 | O28: 0.12 | P28: 0.12 | Q28: 0.88 | R28: 0.88 | S28: 429.7518329 | T28: 429.7518329 | U28: 0.12 | V28: 0.12 | W28: 0.88 | X28: 0.88 | Y28: 429.7518329 | Z28: 429.7518329
B29: 2023 | C29: ='4. Data'!C27 -> 1.2196644 | D29: 1.2196644 | E29: ='4. Data'!D27 -> 408.4086104 | F29: 408.4086104 | G29: 498.1214427 | H29: 498.1214427 | I29: ='4. Data'!F27 -> 1 | J29: 1 | K29: 498.1214427 | L29: 498.1214427 | M29: 279.1214427 | N29: 279.1214427 | O29: 0.14 | P29: 0.14 | Q29: 0.86 | R29: 0.86 | S29: 428.3844407 | T29: 428.3844407 | U29: 0.14 | V29: 0.14 | W29: 0.86 | X29: 0.86 | Y29: 428.3844407 | Z29: 428.3844407
B30: 2024 | C30: ='4. Data'!C28 -> 1.218934 | D30: 1.218934 | E30: ='4. Data'!D28 -> 416.8264004 | F30: 416.8264004 | G30: 508.0838716 | H30: 508.0838716 | I30: ='4. Data'!F28 -> 1 | J30: 1 | K30: 508.0838716 | L30: 508.0838716 | M30: 289.0838716 | N30: 289.0838716 | O30: 0.16 | P30: 0.16 | Q30: 0.84 | R30: 0.84 | S30: 426.7904521 | T30: 426.7904521 | U30: 0.16 | V30: 0.16 | W30: 0.84 | X30: 0.84 | Y30: 426.7904521 | Z30: 426.7904521
B31: 2025 | C31: ='4. Data'!C29 -> 1.2161912 | D31: 1.2161912 | E31: ='4. Data'!D29 -> 426.1217718 | F31: 426.1217718 | G31: 518.245549 | H31: 518.245549 | I31: ='4. Data'!F29 -> 1 | J31: 1 | K31: 518.245549 | L31: 518.245549 | M31: 299.245549 | N31: 299.245549 | O31: 0.18 | P31: 0.18 | Q31: 0.82 | R31: 0.82 | S31: 424.9613502 | T31: 424.9613502 | U31: 0.18 | V31: 0.18 | W31: 0.82 | X31: 0.82 | Y31: 424.9613502 | Z31: 424.9613502
B32: 2026 | C32: ='4. Data'!C30 -> 1.2134484 | D32: 1.2134484 | E32: ='4. Data'!D30 -> 435.6266488 | F32: 435.6266488 | G32: 528.61046 | H32: 528.61046 | I32: ='4. Data'!F30 -> 1 | J32: 1 | K32: 528.61046 | L32: 528.61046 | M32: 309.61046 | N32: 309.61046 | O32: 0.2 | P32: 0.2 | Q32: 0.8 | R32: 0.8 | S32: 422.888368 | T32: 422.888368 | U32: 0.2 | V32: 0.2 | W32: 0.8 | X32: 0.8 | Y32: 422.888368 | Z32: 422.888368
B33: 2027 | C33: ='4. Data'!C31 -> 1.2107056 | D33: 1.2107056 | E33: ='4. Data'!D31 -> 445.3458126 | F33: 445.3458126 | G33: 539.1826692 | H33: 539.1826692 | I33: ='4. Data'!F31 -> 1 | J33: 1 | K33: 539.1826692 | L33: 539.1826692 | M33: 320.1826692 | N33: 320.1826692 | O33: 0.24 | P33: 0.24 | Q33: 0.76 | R33: 0.76 | S33: 409.7788286 | T33: 409.7788286 | U33: 0.22 | V33: 0.22 | W33: 0.78 | X33: 0.78 | Y33: 420.562482 | Z33: 420.562482
B34: 2028 | C34: ='4. Data'!C32 -> 1.2079628 | D34: 1.2079628 | E34: ='4. Data'!D32 -> 455.2841549 | F34: 455.2841549 | G34: 549.9663226 | H34: 549.9663226 | I34: ='4. Data'!F32 -> 1 | J34: 1 | K34: 549.9663226 | L34: 549.9663226 | M34: 330.9663226 | N34: 330.9663226 | O34: 0.26 | P34: 0.26 | Q34: 0.74 | R34: 0.74 | S34: 406.9750787 | T34: 406.9750787 | U34: 0.24 | V34: 0.24 | W34: 0.76 | X34: 0.76 | Y34: 417.9744052 | Z34: 417.9744052
B35: 2029 | C35: ='4. Data'!C33 -> 1.20522 | D35: 1.20522 | E35: ='4. Data'!D33 -> 465.4466811 | F35: 465.4466811 | G35: 560.965649 | H35: 560.965649 | I35: ='4. Data'!F33 -> 1 | J35: 1 | K35: 560.965649 | L35: 560.965649 | M35: 341.965649 | N35: 341.965649 | O35: 0.28 | P35: 0.28 | Q35: 0.72 | R35: 0.72 | S35: 403.8952673 | T35: 403.8952673 | U35: 0.26 | V35: 0.26 | W35: 0.74 | X35: 0.74 | Y35: 415.1145803 | Z35: 415.1145803
B36: 2030 | C36: ='4. Data'!C34 -> 1.2024772 | D36: 1.2024772 | E36: ='4. Data'!D34 -> 475.8385124 | F36: 475.8385124 | G36: 572.184962 | H36: 572.184962 | I36: ='4. Data'!F34 -> 1 | J36: 1 | K36: 572.184962 | L36: 572.184962 | M36: 353.184962 | N36: 353.184962 | O36: 0.3 | P36: 0.3 | Q36: 0.7 | R36: 0.7 | S36: 400.5294734 | T36: 400.5294734 | U36: 0.28 | V36: 0.28 | W36: 0.72 | X36: 0.72 | Y36: 411.9731727 | Z36: 411.9731727
B37: 2031 | C37: ='4. Data'!C35 -> 1.1997344 | D37: 1.1997344 | E37: ='4. Data'!D35 -> 486.4648886 | F37: 486.4648886 | G37: 583.6286613 | H37: 583.6286613 | I37: ='4. Data'!F35 -> 1 | J37: 1 | K37: 583.6286613 | L37: 583.6286613 | M37: 364.6286613 | N37: 364.6286613 | O37: 0.31 | P37: 0.31 | Q37: 0.69 | R37: 0.69 | S37: 402.7037763 | T37: 402.7037763 | U37: 0.29 | V37: 0.29 | W37: 0.71 | X37: 0.71 | Y37: 414.3763495 | Z37: 414.3763495
B38: 2032 | C38: ='4. Data'!C36 -> 1.1969916 | D38: 1.1969916 | E38: ='4. Data'!D36 -> 497.3311713 | F38: 497.3311713 | G38: 595.3012345 | H38: 595.3012345 | I38: ='4. Data'!F36 -> 1 | J38: 1 | K38: 595.3012345 | L38: 595.3012345 | M38: 376.3012345 | N38: 376.3012345 | O38: 0.32 | P38: 0.32 | Q38: 0.68 | R38: 0.68 | S38: 404.8048394 | T38: 404.8048394 | U38: 0.3 | V38: 0.3 | W38: 0.7 | X38: 0.7 | Y38: 416.7108641 | Z38: 416.7108641
B39: 2033 | C39: ='4. Data'!C37 -> 1.1942488 | D39: 1.1942488 | E39: ='4. Data'!D37 -> 508.4428464 | F39: 508.4428464 | G39: 607.2072592 | H39: 607.2072592 | I39: ='4. Data'!F37 -> 1 | J39: 1 | K39: 607.2072592 | L39: 607.2072592 | M39: 388.2072592 | N39: 388.2072592 | O39: 0.33 | P39: 0.33 | Q39: 0.67 | R39: 0.67 | S39: 406.8288636 | T39: 406.8288636 | U39: 0.31 | V39: 0.31 | W39: 0.69 | X39: 0.69 | Y39: 418.9730088 | Z39: 418.9730088
B40: 2034 | C40: ='4. Data'!C38 -> 1.17927 | D40: 1.17927 | E40: ='4. Data'!D38 -> 525.1989827 | F40: 525.1989827 | G40: 619.3514044 | H40: 619.3514044 | I40: ='4. Data'!F38 -> 1 | J40: 1 | K40: 619.3514044 | L40: 619.3514044 | M40: 400.3514044 | N40: 400.3514044 | O40: 0.34 | P40: 0.34 | Q40: 0.66 | R40: 0.66 | S40: 408.7719269 | T40: 408.7719269 | U40: 0.32 | V40: 0.32 | W40: 0.68 | X40: 0.68 | Y40: 421.158955 | Z40: 421.158955
B41: 2035 | C41: ='4. Data'!C39 -> 1.17408 | D41: 1.17408 | E41: ='4. Data'!D39 -> 538.0710279 | F41: 538.0710279 | G41: 631.7384324 | H41: 631.7384324 | I41: ='4. Data'!F39 -> 1 | J41: 1 | K41: 631.7384324 | L41: 631.7384324 | M41: 412.7384324 | N41: 412.7384324 | O41: 0.35 | P41: 0.35 | Q41: 0.65 | R41: 0.65 | S41: 410.6299811 | T41: 410.6299811 | U41: 0.33 | V41: 0.33 | W41: 0.67 | X41: 0.67 | Y41: 423.2647497 | Z41: 423.2647497
B42: 2036 | C42: ='4. Data'!C40 -> 1.16889 | D42: 1.16889 | E42: ='4. Data'!D40 -> 551.2693248 | F42: 551.2693248 | G42: 644.3732011 | H42: 644.3732011 | I42: ='4. Data'!F40 -> 1 | J42: 1 | K42: 644.3732011 | L42: 644.3732011 | M42: 425.3732011 | N42: 425.3732011 | O42: 0.36 | P42: 0.36 | Q42: 0.64 | R42: 0.64 | S42: 412.3988487 | T42: 412.3988487 | U42: 0.34 | V42: 0.34 | W42: 0.66 | X42: 0.66 | Y42: 425.2863127 | Z42: 425.2863127
B43: 2037 | C43: ='4. Data'!C41 -> 1.1637 | D43: 1.1637 | E43: ='4. Data'!D41 -> 564.8024964 | F43: 564.8024964 | G43: 657.2606651 | H43: 657.2606651 | I43: ='4. Data'!F41 -> 1 | J43: 1 | K43: 657.2606651 | L43: 657.2606651 | M43: 438.2606651 | N43: 438.2606651 | O43: 0.37 | P43: 0.37 | Q43: 0.63 | R43: 0.63 | S43: 414.074219 | T43: 414.074219 | U43: 0.35 | V43: 0.35 | W43: 0.65 | X43: 0.65 | Y43: 427.2194323 | Z43: 427.2194323
B44: 2038 | C44: ='4. Data'!C42 -> 1.15851 | D44: 1.15851 | E44: ='4. Data'!D42 -> 578.6794058 | F44: 578.6794058 | G44: 670.4058784 | H44: 670.4058784 | I44: ='4. Data'!F42 -> 1 | J44: 1 | K44: 670.4058784 | L44: 670.4058784 | M44: 451.4058784 | N44: 451.4058784 | O44: 0.38 | P44: 0.38 | Q44: 0.62 | R44: 0.62 | S44: 415.6516446 | T44: 415.6516446 | U44: 0.36 | V44: 0.36 | W44: 0.64 | X44: 0.64 | Y44: 429.0597622 | Z44: 429.0597622
B45: 2039 | C45: ='4. Data'!C43 -> 1.140226 | D45: 1.140226 | E45: ='4. Data'!D43 -> 599.7179471 | F45: 599.7179471 | G45: 683.813996 | H45: 683.813996 | I45: ='4. Data'!F43 -> 1 | J45: 1 | K45: 683.813996 | L45: 683.813996 | M45: 464.813996 | N45: 464.813996 | O45: 0.39 | P45: 0.39 | Q45: 0.61 | R45: 0.61 | S45: 417.1265375 | T45: 417.1265375 | U45: 0.37 | V45: 0.37 | W45: 0.63 | X45: 0.63 | Y45: 430.8028175 | Z45: 430.8028175
B46: 2040 | C46: ='4. Data'!C44 -> 1.1304188 | D46: 1.1304188 | E46: ='4. Data'!D44 -> 617.0193524 | F46: 617.0193524 | G46: 697.4902759 | H46: 697.4902759 | I46: ='4. Data'!F44 -> 1 | J46: 1 | K46: 697.4902759 | L46: 697.4902759 | M46: 478.4902759 | N46: 478.4902759 | O46: 0.4 | P46: 0.4 | Q46: 0.6 | R46: 0.6 | S46: 418.4941655 | T46: 418.4941655 | U46: 0.38 | V46: 0.38 | W46: 0.62 | X46: 0.62 | Y46: 432.4439711 | Z46: 432.4439711
B47: 2041 | C47: ='4. Data'!C45 -> 1.1206116 | D47: 1.1206116 | E47: ='4. Data'!D45 -> 634.8676753 | F47: 634.8676753 | G47: 711.4400814 | H47: 711.4400814 | I47: ='4. Data'!F45 -> 1 | J47: 1 | K47: 711.4400814 | L47: 711.4400814 | M47: 492.4400814 | N47: 492.4400814 | O47: 0.41 | P47: 0.41 | Q47: 0.59 | R47: 0.59 | S47: 419.749648 | T47: 419.749648 | U47: 0.39 | V47: 0.39 | W47: 0.61 | X47: 0.61 | Y47: 433.9784497 | Z47: 433.9784497
B48: 2042 | C48: ='4. Data'!C46 -> 1.1108044 | D48: 1.1108044 | E48: ='4. Data'!D46 -> 653.2823268 | F48: 653.2823268 | G48: 725.668883 | H48: 725.668883 | I48: ='4. Data'!F46 -> 1 | J48: 1 | K48: 725.668883 | L48: 725.668883 | M48: 506.668883 | N48: 506.668883 | O48: 0.42 | P48: 0.42 | Q48: 0.58 | R48: 0.58 | S48: 420.8879522 | T48: 420.8879522 | U48: 0.4 | V48: 0.4 | W48: 0.6 | X48: 0.6 | Y48: 435.4013298 | Z48: 435.4013298
B49: 2043 | C49: ='4. Data'!C47 -> 1.1009972 | D49: 1.1009972 | E49: ='4. Data'!D47 -> 672.2835087 | F49: 672.2835087 | G49: 740.1822607 | H49: 740.1822607 | I49: ='4. Data'!F47 -> 1 | J49: 1 | K49: 740.1822607 | L49: 740.1822607 | M49: 521.1822607 | N49: 521.1822607 | O49: 0.43 | P49: 0.43 | Q49: 0.57 | R49: 0.57 | S49: 421.9038886 | T49: 421.9038886 | U49: 0.41 | V49: 0.41 | W49: 0.59 | X49: 0.59 | Y49: 436.7075338 | Z49: 436.7075338
B50: 2044 | C50: ='4. Data'!C48 -> 1.09119 | D50: 1.09119 | E50: ='4. Data'!D48 -> 691.8922515 | F50: 691.8922515 | G50: 754.9859059 | H50: 754.9859059 | I50: ='4. Data'!F48 -> 1 | J50: 1 | K50: 754.9859059 | L50: 754.9859059 | M50: 535.9859059 | N50: 535.9859059 | O50: 0.44 | P50: 0.44 | Q50: 0.56 | R50: 0.56 | S50: 422.7921073 | T50: 422.7921073 | U50: 0.42 | V50: 0.42 | W50: 0.58 | X50: 0.58 | Y50: 437.8918254 | Z50: 437.8918254
B51: 2045 | C51: ='4. Data'!C49 -> 1.0801642 | D51: 1.0801642 | E51: ='4. Data'!D49 -> 712.9338521 | F51: 712.9338521 | G51: 770.085624 | H51: 770.085624 | I51: ='4. Data'!F49 -> 1 | J51: 1 | K51: 770.085624 | L51: 770.085624 | M51: 551.085624 | N51: 551.085624 | O51: 0.45 | P51: 0.45 | Q51: 0.55 | R51: 0.55 | S51: 423.5470932 | T51: 423.5470932 | U51: 0.43 | V51: 0.43 | W51: 0.57 | X51: 0.57 | Y51: 438.9488057 | Z51: 438.9488057
B52: 2046 | C52: ='4. Data'!C50 -> 1.0691384 | D52: 1.0691384 | E52: ='4. Data'!D50 -> 734.6919132 | F52: 734.6919132 | G52: 785.4873365 | H52: 785.4873365 | I52: ='4. Data'!F50 -> 1 | J52: 1 | K52: 785.4873365 | L52: 785.4873365 | M52: 566.4873365 | N52: 566.4873365 | O52: 0.46 | P52: 0.46 | Q52: 0.54 | R52: 0.54 | S52: 424.1631617 | T52: 424.1631617 | U52: 0.44 | V52: 0.44 | W52: 0.56 | X52: 0.56 | Y52: 439.8729085 | Z52: 439.8729085
B53: 2047 | C53: ='4. Data'!C51 -> 1.0581126 | D53: 1.0581126 | E53: ='4. Data'!D51 -> 757.1945398 | F53: 757.1945398 | G53: 801.1970833 | H53: 801.1970833 | I53: ='4. Data'!F51 -> 1 | J53: 1 | K53: 801.1970833 | L53: 801.1970833 | M53: 582.1970833 | N53: 582.1970833 | O53: 0.47 | P53: 0.47 | Q53: 0.53 | R53: 0.53 | S53: 424.6344541 | T53: 424.6344541 | U53: 0.45 | V53: 0.45 | W53: 0.55 | X53: 0.55 | Y53: 440.6583958 | Z53: 440.6583958
B54: 2048 | C54: ='4. Data'!C52 -> 1.0470868 | D54: 1.0470868 | E54: ='4. Data'!D52 -> 780.4711366 | F54: 780.4711366 | G54: 817.2210249 | H54: 817.2210249 | I54: ='4. Data'!F52 -> 1 | J54: 1 | K54: 817.2210249 | L54: 817.2210249 | M54: 598.2210249 | N54: 598.2210249 | O54: 0.48 | P54: 0.48 | Q54: 0.52 | R54: 0.52 | S54: 424.954933 | T54: 424.954933 | U54: 0.46 | V54: 0.46 | W54: 0.54 | X54: 0.54 | Y54: 441.2993535 | Z54: 441.2993535
B55: 2049 | C55: ='4. Data'!C53 -> 1.036061 | D55: 1.036061 | E55: ='4. Data'!D53 -> 804.5524785 | F55: 804.5524785 | G55: 833.5654454 | H55: 833.5654454 | I55: ='4. Data'!F53 -> 1 | J55: 1 | K55: 833.5654454 | L55: 833.5654454 | M55: 614.5654454 | N55: 614.5654454 | O55: 0.49 | P55: 0.49 | Q55: 0.51 | R55: 0.51 | S55: 425.1183772 | T55: 425.1183772 | U55: 0.47 | V55: 0.47 | W55: 0.53 | X55: 0.53 | Y55: 441.7896861 | Z55: 441.7896861
B56: 2050 | C56: ='4. Data'!C54 -> 1.0245562 | D56: 1.0245562 | E56: ='4. Data'!D54 -> 829.858581 | F56: 829.858581 | G56: 850.2367543 | H56: 850.2367543 | I56: ='4. Data'!F54 -> 1 | J56: 1 | K56: 850.2367543 | L56: 850.2367543 | M56: 631.2367543 | N56: 631.2367543 | O56: 0.5 | P56: 0.5 | Q56: 0.5 | R56: 0.5 | S56: 425.1183772 | T56: 425.1183772 | U56: 0.48 | V56: 0.48 | W56: 0.52 | X56: 0.52 | Y56: 442.1231122 | Z56: 442.1231122
A59: B | B59: SOLID WASTE % COMPOSITION FOR BAU AND DIFFERENT SCENARIOS
B61: 1. BAU | X61: 2. Scenario 1: LFG
B63: Year | C63: Food (Gg/yr) | E63: Garden (Gg/yr) | G63: Paper (Gg/yr) | I63: Wood (Gg/yr) | K63: Textiles (Gg/yr) | M63: Nappies (Gg/yr) | O63: Inert (Gg/yr) | Q63: Sludge (Gg/yr) | S63: Industrial (Gg/yr) | X63: Food (Gg/yr) | Z63: Garden (Gg/yr) | AB63: Paper (Gg/yr) | AD63: Wood (Gg/yr) | AF63: Textiles (Gg/yr) | AH63: Nappies (Gg/yr) | AJ63: Inert (Gg/yr) | AL63: Sludge (Gg/yr) | AN63: Industrial (Gg/yr)
C64: TNC | D64: USER | E64: TNC | F64: USER | G64: TNC | H64: USER | I64: TNC | J64: USER | K64: TNC | L64: USER | M64: TNC | N64: USER | O64: TNC | P64: USER | Q64: TNC | R64: USER | S64: TNC | T64: USER | U64: TNC | V64: USER | X64: TNC | Y64: USER | Z64: TNC | AA64: USER | AB64: TNC | AC64: USER | AD64: TNC | AE64: USER | AF64: TNC | AG64: USER | AH64: TNC | AI64: USER | AJ64: TNC | AK64: USER | AL64: TNC | AM64: USER | AN64: TNC | AO64: USER | AP64: TNC | AQ64: USER
B65: =B6 -> 2000 | C65: 0.15 | D65: 0.15 | E65: 0.5 | F65: 0.5 | G65: 0.12 | H65: 0.12 | I65: 0.02 | J65: 0.02 | K65: 0.05 | L65: 0.05 | M65: 0.003 | N65: 0.003 | O65: 0.157 | P65: 0.157 | Q65: 0 | R65: 0 | S65: 0 | T65: 0 | V65: =SUM(D65:T65)-R65 -> 1.85 | X65: 0.15 | Y65: 0.15 | Z65: 0.5 | AA65: 0.5 | AB65: 0.12 | AC65: 0.12 | AD65: 0.02 | AE65: 0.02 | AF65: 0.05 | AG65: 0.05 | AH65: 0.003 | AI65: 0.003 | AJ65: 0.157 | AK65: 0.157 | AL65: 0 | AM65: 0 | AN65: 0 | AO65: 0 | AQ65: =SUM(Y65:AO65) -> 1.85
B66: 2001 | C66: 0.15 | D66: 0.15 | E66: 0.5 | F66: 0.5 | G66: 0.12 | H66: 0.12 | I66: 0.02 | J66: 0.02 | K66: 0.05 | L66: 0.05 | M66: 0.003 | N66: 0.003 | O66: 0.157 | P66: 0.157 | Q66: 0 | R66: 0 | S66: 0 | T66: 0 | V66: =SUM(D66:T66)-R66 -> 1.85 | X66: 0.15 | Y66: 0.15 | Z66: 0.5 | AA66: 0.5 | AB66: 0.12 | AC66: 0.12 | AD66: 0.02 | AE66: 0.02 | AF66: 0.05 | AG66: 0.05 | AH66: 0.003 | AI66: 0.003 | AJ66: 0.157 | AK66: 0.157 | AL66: 0 | AM66: 0 | AN66: 0 | AO66: 0 | AQ66: =SUM(Y66:AO66) -> 1.85
B67: 2002 | C67: 0.15 | D67: 0.15 | E67: 0.5 | F67: 0.5 | G67: 0.12 | H67: 0.12 | I67: 0.02 | J67: 0.02 | K67: 0.05 | L67: 0.05 | M67: 0.003 | N67: 0.003 | O67: 0.157 | P67: 0.157 | Q67: 0 | R67: 0 | S67: 0 | T67: 0 | V67: 1.85 | X67: 0.15 | Y67: 0.15 | Z67: 0.5 | AA67: 0.5 | AB67: 0.12 | AC67: 0.12 | AD67: 0.02 | AE67: 0.02 | AF67: 0.05 | AG67: 0.05 | AH67: 0.003 | AI67: 0.003 | AJ67: 0.157 | AK67: 0.157 | AL67: 0 | AM67: 0 | AN67: 0 | AO67: 0 | AQ67: 1.85
B68: 2003 | C68: 0.15 | D68: 0.15 | E68: 0.5 | F68: 0.5 | G68: 0.12 | H68: 0.12 | I68: 0.02 | J68: 0.02 | K68: 0.05 | L68: 0.05 | M68: 0.003 | N68: 0.003 | O68: 0.157 | P68: 0.157 | Q68: 0 | R68: 0 | S68: 0 | T68: 0 | V68: 1.85 | X68: 0.15 | Y68: 0.15 | Z68: 0.5 | AA68: 0.5 | AB68: 0.12 | AC68: 0.12 | AD68: 0.02 | AE68: 0.02 | AF68: 0.05 | AG68: 0.05 | AH68: 0.003 | AI68: 0.003 | AJ68: 0.157 | AK68: 0.157 | AL68: 0 | AM68: 0 | AN68: 0 | AO68: 0 | AQ68: 1.85
B69: 2004 | C69: 0.15 | D69: 0.15 | E69: 0.5 | F69: 0.5 | G69: 0.12 | H69: 0.12 | I69: 0.02 | J69: 0.02 | K69: 0.05 | L69: 0.05 | M69: 0.003 | N69: 0.003 | O69: 0.157 | P69: 0.157 | Q69: 0 | R69: 0 | S69: 0 | T69: 0 | V69: 1.85 | X69: 0.15 | Y69: 0.15 | Z69: 0.5 | AA69: 0.5 | AB69: 0.12 | AC69: 0.12 | AD69: 0.02 | AE69: 0.02 | AF69: 0.05 | AG69: 0.05 | AH69: 0.003 | AI69: 0.003 | AJ69: 0.157 | AK69: 0.157 | AL69: 0 | AM69: 0 | AN69: 0 | AO69: 0 | AQ69: 1.85
B70: 2005 | C70: 0.15 | D70: 0.15 | E70: 0.5 | F70: 0.5 | G70: 0.12 | H70: 0.12 | I70: 0.02 | J70: 0.02 | K70: 0.05 | L70: 0.05 | M70: 0.003 | N70: 0.003 | O70: 0.157 | P70: 0.157 | Q70: 0.01515467889 | R70: 0.01515467889 | S70: 0.001375925922 | T70: 0.001375925922 | V70: 1.867906531 | X70: 0.15 | Y70: 0.15 | Z70: 0.5 | AA70: 0.5 | AB70: 0.12 | AC70: 0.12 | AD70: 0.02 | AE70: 0.02 | AF70: 0.05 | AG70: 0.05 | AH70: 0.003 | AI70: 0.003 | AJ70: 0.1404693952 | AK70: 0.1404693952 | AL70: 0.01515467889 | AM70: 0.01515467889 | AN70: 0.001375925922 | AO70: 0.001375925922 | AQ70: 1.85
B71: 2006 | C71: 0.15 | D71: 0.15 | E71: 0.5 | F71: 0.5 | G71: 0.12 | H71: 0.12 | I71: 0.02 | J71: 0.02 | K71: 0.05 | L71: 0.05 | M71: 0.003 | N71: 0.003 | O71: 0.157 | P71: 0.157 | Q71: 0.01979147311 | R71: 0.01979147311 | S71: 0.001225484281 | T71: 0.001225484281 | V71: 1.872242442 | X71: 0.15 | Y71: 0.15 | Z71: 0.5 | AA71: 0.5 | AB71: 0.12 | AC71: 0.12 | AD71: 0.02 | AE71: 0.02 | AF71: 0.05 | AG71: 0.05 | AH71: 0.003 | AI71: 0.003 | AJ71: 0.1359830426 | AK71: 0.1359830426 | AL71: 0.01979147311 | AM71: 0.01979147311 | AN71: 0.001225484281 | AO71: 0.001225484281 | AQ71: 1.85
B72: 2007 | C72: 0.15 | D72: 0.15 | E72: 0.5 | F72: 0.5 | G72: 0.12 | H72: 0.12 | I72: 0.02 | J72: 0.02 | K72: 0.05 | L72: 0.05 | M72: 0.003 | N72: 0.003 | O72: 0.157 | P72: 0.157 | Q72: 0.03315506906 | R72: 0.03315506906 | S72: 0.002248094708 | T72: 0.002248094708 | V72: 1.887651258 | X72: 0.15 | Y72: 0.15 | Z72: 0.5 | AA72: 0.5 | AB72: 0.12 | AC72: 0.12 | AD72: 0.02 | AE72: 0.02 | AF72: 0.05 | AG72: 0.05 | AH72: 0.003 | AI72: 0.003 | AJ72: 0.1215968362 | AK72: 0.1215968362 | AL72: 0.03315506906 | AM72: 0.03315506906 | AN72: 0.002248094708 | AO72: 0.002248094708 | AQ72: 1.85
B73: 2008 | C73: 0.15 | D73: 0.15 | E73: 0.5 | F73: 0.5 | G73: 0.12 | H73: 0.12 | I73: 0.02 | J73: 0.02 | K73: 0.05 | L73: 0.05 | M73: 0.003 | N73: 0.003 | O73: 0.157 | P73: 0.157 | Q73: 0.03040871176 | R73: 0.03040871176 | S73: 0.001985287367 | T73: 0.001985287367 | V73: 1.884379286 | X73: 0.15 | Y73: 0.15 | Z73: 0.5 | AA73: 0.5 | AB73: 0.12 | AC73: 0.12 | AD73: 0.02 | AE73: 0.02 | AF73: 0.05 | AG73: 0.05 | AH73: 0.003 | AI73: 0.003 | AJ73: 0.1246060009 | AK73: 0.1246060009 | AL73: 0.03040871176 | AM73: 0.03040871176 | AN73: 0.001985287367 | AO73: 0.001985287367 | AQ73: 1.85
B74: 2009 | C74: 0.15 | D74: 0.15 | E74: 0.5 | F74: 0.5 | G74: 0.12 | H74: 0.12 | I74: 0.02 | J74: 0.02 | K74: 0.05 | L74: 0.05 | M74: 0.003 | N74: 0.003 | O74: 0.157 | P74: 0.157 | Q74: 0.02194042454 | R74: 0.02194042454 | S74: 0.002805373941 | T74: 0.002805373941 | V74: 1.877551172 | X74: 0.15 | Y74: 0.15 | Z74: 0.5 | AA74: 0.5 | AB74: 0.12 | AC74: 0.12 | AD74: 0.02 | AE74: 0.02 | AF74: 0.05 | AG74: 0.05 | AH74: 0.003 | AI74: 0.003 | AJ74: 0.1322542015 | AK74: 0.1322542015 | AL74: 0.02194042454 | AM74: 0.02194042454 | AN74: 0.002805373941 | AO74: 0.002805373941 | AQ74: 1.85
B75: 2010 | C75: 0.15 | D75: 0.15 | E75: 0.5 | F75: 0.5 | G75: 0.12 | H75: 0.12 | I75: 0.02 | J75: 0.02 | K75: 0.05 | L75: 0.05 | M75: 0.003 | N75: 0.003 | O75: 0.157 | P75: 0.157 | Q75: 0.02560021863 | R75: 0.02560021863 | S75: 0.002645887461 | T75: 0.002645887461 | V75: 1.880891994 | X75: 0.15 | Y75: 0.15 | Z75: 0.5 | AA75: 0.5 | AB75: 0.12 | AC75: 0.12 | AD75: 0.02 | AE75: 0.02 | AF75: 0.05 | AG75: 0.05 | AH75: 0.003 | AI75: 0.003 | AJ75: 0.1287538939 | AK75: 0.1287538939 | AL75: 0.02560021863 | AM75: 0.02560021863 | AN75: 0.002645887461 | AO75: 0.002645887461 | AQ75: 1.85
B76: 2011 | C76: 0.15 | D76: 0.15 | E76: 0.5 | F76: 0.5 | G76: 0.12 | H76: 0.12 | I76: 0.02 | J76: 0.02 | K76: 0.05 | L76: 0.05 | M76: 0.003 | N76: 0.003 | O76: 0.157 | P76: 0.157 | Q76: 0.02509567455 | R76: 0.02509567455 | S76: 0.003770997844 | T76: 0.003770997844 | V76: 1.88263767 | X76: 0.15 | Y76: 0.15 | Z76: 0.5 | AA76: 0.5 | AB76: 0.12 | AC76: 0.12 | AD76: 0.02 | AE76: 0.02 | AF76: 0.05 | AG76: 0.05 | AH76: 0.003 | AI76: 0.003 | AJ76: 0.1281333276 | AK76: 0.1281333276 | AL76: 0.02509567455 | AM76: 0.02509567455 | AN76: 0.003770997844 | AO76: 0.003770997844 | AQ76: 1.85
B77: 2012 | C77: 0.15 | D77: 0.15 | E77: 0.5 | F77: 0.5 | G77: 0.12 | H77: 0.12 | I77: 0.02 | J77: 0.02 | K77: 0.05 | L77: 0.05 | M77: 0.003 | N77: 0.003 | O77: 0.157 | P77: 0.157 | Q77: 0.01900109173 | R77: 0.01900109173 | S77: 0.001747917389 | T77: 0.001747917389 | V77: 1.872496927 | X77: 0.15 | Y77: 0.15 | Z77: 0.5 | AA77: 0.5 | AB77: 0.12 | AC77: 0.12 | AD77: 0.02 | AE77: 0.02 | AF77: 0.05 | AG77: 0.05 | AH77: 0.003 | AI77: 0.003 | AJ77: 0.1362509909 | AK77: 0.1362509909 | AL77: 0.01900109173 | AM77: 0.01900109173 | AN77: 0.001747917389 | AO77: 0.001747917389 | AQ77: 1.85
B78: 2013 | C78: 0.15 | D78: 0.15 | E78: 0.5 | F78: 0.5 | G78: 0.12 | H78: 0.12 | I78: 0.02 | J78: 0.02 | K78: 0.05 | L78: 0.05 | M78: 0.003 | N78: 0.003 | O78: 0.157 | P78: 0.157 | Q78: 0.01620398168 | R78: 0.01620398168 | S78: 0.0007562277008 | T78: 0.0007562277008 | V78: 1.867716437 | X78: 0.15 | Y78: 0.15 | Z78: 0.5 | AA78: 0.5 | AB78: 0.12 | AC78: 0.12 | AD78: 0.02 | AE78: 0.02 | AF78: 0.05 | AG78: 0.05 | AH78: 0.003 | AI78: 0.003 | AJ78: 0.1400397906 | AK78: 0.1400397906 | AL78: 0.01620398168 | AM78: 0.01620398168 | AN78: 0.0007562277008 | AO78: 0.0007562277008 | AQ78: 1.85
B79: 2014 | C79: 0.15 | D79: 0.15 | E79: 0.5 | F79: 0.5 | G79: 0.12 | H79: 0.12 | I79: 0.02 | J79: 0.02 | K79: 0.05 | L79: 0.05 | M79: 0.003 | N79: 0.003 | O79: 0.157 | P79: 0.157 | Q79: 0.01245424307 | R79: 0.01245424307 | S79: 0.0004543843371 | T79: 0.0004543843371 | V79: 1.863363012 | X79: 0.15 | Y79: 0.15 | Z79: 0.5 | AA79: 0.5 | AB79: 0.12 | AC79: 0.12 | AD79: 0.02 | AE79: 0.02 | AF79: 0.05 | AG79: 0.05 | AH79: 0.003 | AI79: 0.003 | AJ79: 0.1440913726 | AK79: 0.1440913726 | AL79: 0.01245424307 | AM79: 0.01245424307 | AN79: 0.0004543843371 | AO79: 0.0004543843371 | AQ79: 1.85
B80: 2015 | C80: 0.15 | D80: 0.15 | E80: 0.5 | F80: 0.5 | G80: 0.12 | H80: 0.12 | I80: 0.02 | J80: 0.02 | K80: 0.05 | L80: 0.05 | M80: 0.003 | N80: 0.003 | O80: 0.157 | P80: 0.157 | Q80: 0.0137362975 | R80: 0.0137362975 | S80: 0.0004454748403 | T80: 0.0004454748403 | V80: 1.864627247 | X80: 0.15 | Y80: 0.15 | Z80: 0.5 | AA80: 0.5 | AB80: 0.12 | AC80: 0.12 | AD80: 0.02 | AE80: 0.02 | AF80: 0.05 | AG80: 0.05 | AH80: 0.003 | AI80: 0.003 | AJ80: 0.1428182277 | AK80: 0.1428182277 | AL80: 0.0137362975 | AM80: 0.0137362975 | AN80: 0.0004454748403 | AO80: 0.0004454748403 | AQ80: 1.85
B81: 2016 | C81: 0.15 | D81: 0.15 | E81: 0.5 | F81: 0.5 | G81: 0.12 | H81: 0.12 | I81: 0.02 | J81: 0.02 | K81: 0.05 | L81: 0.05 | M81: 0.003 | N81: 0.003 | O81: 0.157 | P81: 0.157 | Q81: 0.01496328704 | R81: 0.01496328704 | S81: 0.0004367400395 | T81: 0.0004367400395 | V81: 1.865836767 | X81: 0.15 | Y81: 0.15 | Z81: 0.5 | AA81: 0.5 | AB81: 0.12 | AC81: 0.12 | AD81: 0.02 | AE81: 0.02 | AF81: 0.05 | AG81: 0.05 | AH81: 0.003 | AI81: 0.003 | AJ81: 0.1415999729 | AK81: 0.1415999729 | AL81: 0.01496328704 | AM81: 0.01496328704 | AN81: 0.0004367400395 | AO81: 0.0004367400395 | AQ81: 1.85
B82: 2017 | C82: 0.15 | D82: 0.15 | E82: 0.5 | F82: 0.5 | G82: 0.12 | H82: 0.12 | I82: 0.02 | J82: 0.02 | K82: 0.05 | L82: 0.05 | M82: 0.003 | N82: 0.003 | O82: 0.157 | P82: 0.157 | Q82: 0.01613687818 | R82: 0.01613687818 | S82: 0.0004281765094 | T82: 0.0004281765094 | V82: 1.866993231 | X82: 0.15 | Y82: 0.15 | Z82: 0.5 | AA82: 0.5 | AB82: 0.12 | AC82: 0.12 | AD82: 0.02 | AE82: 0.02 | AF82: 0.05 | AG82: 0.05 | AH82: 0.003 | AI82: 0.003 | AJ82: 0.1404349453 | AK82: 0.1404349453 | AL82: 0.01613687818 | AM82: 0.01613687818 | AN82: 0.0004281765094 | AO82: 0.0004281765094 | AQ82: 1.85
B83: 2018 | C83: 0.15 | D83: 0.15 | E83: 0.5 | F83: 0.5 | G83: 0.12 | H83: 0.12 | I83: 0.02 | J83: 0.02 | K83: 0.05 | L83: 0.05 | M83: 0.003 | N83: 0.003 | O83: 0.157 | P83: 0.157 | Q83: 0.01725869324 | R83: 0.01725869324 | S83: 0.0004197808915 | T83: 0.0004197808915 | V83: 1.868098255 | X83: 0.15 | Y83: 0.15 | Z83: 0.5 | AA83: 0.5 | AB83: 0.12 | AC83: 0.12 | AD83: 0.02 | AE83: 0.02 | AF83: 0.05 | AG83: 0.05 | AH83: 0.003 | AI83: 0.003 | AJ83: 0.1393215259 | AK83: 0.1393215259 | AL83: 0.01725869324 | AM83: 0.01725869324 | AN83: 0.0004197808915 | AO83: 0.0004197808915 | AQ83: 1.85
B84: 2019 | C84: 0.15 | D84: 0.15 | E84: 0.5 | F84: 0.5 | G84: 0.12 | H84: 0.12 | I84: 0.02 | J84: 0.02 | K84: 0.05 | L84: 0.05 | M84: 0.003 | N84: 0.003 | O84: 0.157 | P84: 0.157 | Q84: 0.01833031144 | R84: 0.01833031144 | S84: 0.0004115498937 | T84: 0.0004115498937 | V84: 1.869153411 | X84: 0.15 | Y84: 0.15 | Z84: 0.5 | AA84: 0.5 | AB84: 0.12 | AC84: 0.12 | AD84: 0.02 | AE84: 0.02 | AF84: 0.05 | AG84: 0.05 | AH84: 0.003 | AI84: 0.003 | AJ84: 0.1382581387 | AK84: 0.1382581387 | AL84: 0.01833031144 | AM84: 0.01833031144 | AN84: 0.0004115498937 | AO84: 0.0004115498937 | AQ84: 1.85
B85: 2020 | C85: 0.15 | D85: 0.15 | E85: 0.5 | F85: 0.5 | G85: 0.12 | H85: 0.12 | I85: 0.02 | J85: 0.02 | K85: 0.05 | L85: 0.05 | M85: 0.003 | N85: 0.003 | O85: 0.157 | P85: 0.157 | Q85: 0.01935327 | R85: 0.01935327 | S85: 0.0004034802879 | T85: 0.0004034802879 | V85: 1.870160231 | X85: 0.15 | Y85: 0.15 | Z85: 0.5 | AA85: 0.5 | AB85: 0.12 | AC85: 0.12 | AD85: 0.02 | AE85: 0.02 | AF85: 0.05 | AG85: 0.05 | AH85: 0.003 | AI85: 0.003 | AJ85: 0.1372432497 | AK85: 0.1372432497 | AL85: 0.01935327 | AM85: 0.01935327 | AN85: 0.0004034802879 | AO85: 0.0004034802879 | AQ85: 1.85
B86: 2021 | C86: 0.15 | D86: 0.15 | E86: 0.5 | F86: 0.5 | G86: 0.12 | H86: 0.12 | I86: 0.02 | J86: 0.02 | K86: 0.05 | L86: 0.05 | M86: 0.003 | N86: 0.003 | O86: 0.157 | P86: 0.157 | Q86: 0.02032906513 | R86: 0.02032906513 | S86: 0.0003955689097 | T86: 0.0003955689097 | V86: 1.871120203 | X86: 0.15 | Y86: 0.15 | Z86: 0.5 | AA86: 0.5 | AB86: 0.12 | AC86: 0.12 | AD86: 0.02 | AE86: 0.02 | AF86: 0.05 | AG86: 0.05 | AH86: 0.003 | AI86: 0.003 | AJ86: 0.136275366 | AK86: 0.136275366 | AL86: 0.02032906513 | AM86: 0.02032906513 | AN86: 0.0003955689097 | AO86: 0.0003955689097 | AQ86: 1.85
B87: 2022 | C87: 0.15 | D87: 0.15 | E87: 0.5 | F87: 0.5 | G87: 0.12 | H87: 0.12 | I87: 0.02 | J87: 0.02 | K87: 0.05 | L87: 0.05 | M87: 0.003 | N87: 0.003 | O87: 0.157 | P87: 0.157 | Q87: 0.02125915307 | R87: 0.02125915307 | S87: 0.0003878126566 | T87: 0.0003878126566 | V87: 1.872034778 | X87: 0.15 | Y87: 0.15 | Z87: 0.5 | AA87: 0.5 | AB87: 0.12 | AC87: 0.12 | AD87: 0.02 | AE87: 0.02 | AF87: 0.05 | AG87: 0.05 | AH87: 0.003 | AI87: 0.003 | AJ87: 0.1353530343 | AK87: 0.1353530343 | AL87: 0.02125915307 | AM87: 0.02125915307 | AN87: 0.0003878126566 | AO87: 0.0003878126566 | AQ87: 1.85
B88: 2023 | C88: 0.15 | D88: 0.15 | E88: 0.5 | F88: 0.5 | G88: 0.12 | H88: 0.12 | I88: 0.02 | J88: 0.02 | K88: 0.05 | L88: 0.05 | M88: 0.003 | N88: 0.003 | O88: 0.157 | P88: 0.157 | Q88: 0.02214495112 | R88: 0.02214495112 | S88: 0.0003802084868 | T88: 0.0003802084868 | V88: 1.872905368 | X88: 0.15 | Y88: 0.15 | Z88: 0.5 | AA88: 0.5 | AB88: 0.12 | AC88: 0.12 | AD88: 0.02 | AE88: 0.02 | AF88: 0.05 | AG88: 0.05 | AH88: 0.003 | AI88: 0.003 | AJ88: 0.1344748404 | AK88: 0.1344748404 | AL88: 0.02214495112 | AM88: 0.02214495112 | AN88: 0.0003802084868 | AO88: 0.0003802084868 | AQ88: 1.85
B89: 2024 | C89: 0.15 | D89: 0.15 | E89: 0.5 | F89: 0.5 | G89: 0.12 | H89: 0.12 | I89: 0.02 | J89: 0.02 | K89: 0.05 | L89: 0.05 | M89: 0.003 | N89: 0.003 | O89: 0.157 | P89: 0.157 | Q89: 0.02298783853 | R89: 0.02298783853 | S89: 0.0003727534185 | T89: 0.0003727534185 | V89: 1.873733345 | X89: 0.15 | Y89: 0.15 | Z89: 0.5 | AA89: 0.5 | AB89: 0.12 | AC89: 0.12 | AD89: 0.02 | AE89: 0.02 | AF89: 0.05 | AG89: 0.05 | AH89: 0.003 | AI89: 0.003 | AJ89: 0.1336394081 | AK89: 0.1336394081 | AL89: 0.02298783853 | AM89: 0.02298783853 | AN89: 0.0003727534185 | AO89: 0.0003727534185 | AQ89: 1.85
B90: 2025 | C90: 0.15 | D90: 0.15 | E90: 0.5 | F90: 0.5 | G90: 0.12 | H90: 0.12 | I90: 0.02 | J90: 0.02 | K90: 0.05 | L90: 0.05 | M90: 0.003 | N90: 0.003 | O90: 0.157 | P90: 0.157 | Q90: 0.02378915752 | R90: 0.02378915752 | S90: 0.0003654445279 | T90: 0.0003654445279 | V90: 1.874520047 | X90: 0.15 | Y90: 0.15 | Z90: 0.5 | AA90: 0.5 | AB90: 0.12 | AC90: 0.12 | AD90: 0.02 | AE90: 0.02 | AF90: 0.05 | AG90: 0.05 | AH90: 0.003 | AI90: 0.003 | AJ90: 0.132845398 | AK90: 0.132845398 | AL90: 0.02378915752 | AM90: 0.02378915752 | AN90: 0.0003654445279 | AO90: 0.0003654445279 | AQ90: 1.85
B91: 2026 | C91: 0.15 | D91: 0.15 | E91: 0.5 | F91: 0.5 | G91: 0.12 | H91: 0.12 | I91: 0.02 | J91: 0.02 | K91: 0.05 | L91: 0.05 | M91: 0.003 | N91: 0.003 | O91: 0.157 | P91: 0.157 | Q91: 0.02455021416 | R91: 0.02455021416 | S91: 0.0003582789489 | T91: 0.0003582789489 | V91: 1.875266772 | X91: 0.15 | Y91: 0.15 | Z91: 0.5 | AA91: 0.5 | AB91: 0.12 | AC91: 0.12 | AD91: 0.02 | AE91: 0.02 | AF91: 0.05 | AG91: 0.05 | AH91: 0.003 | AI91: 0.003 | AJ91: 0.1320915069 | AK91: 0.1320915069 | AL91: 0.02455021416 | AM91: 0.02455021416 | AN91: 0.0003582789489 | AO91: 0.0003582789489 | AQ91: 1.85
B92: 2027 | C92: 0.15 | D92: 0.15 | E92: 0.5 | F92: 0.5 | G92: 0.12 | H92: 0.12 | I92: 0.02 | J92: 0.02 | K92: 0.05 | L92: 0.05 | M92: 0.003 | N92: 0.003 | O92: 0.157 | P92: 0.157 | Q92: 0.02527227928 | R92: 0.02527227928 | S92: 0.0003512538715 | T92: 0.0003512538715 | V92: 1.875974787 | X92: 0.15 | Y92: 0.15 | Z92: 0.5 | AA92: 0.5 | AB92: 0.12 | AC92: 0.12 | AD92: 0.02 | AE92: 0.02 | AF92: 0.05 | AG92: 0.05 | AH92: 0.003 | AI92: 0.003 | AJ92: 0.1313764668 | AK92: 0.1313764668 | AL92: 0.02527227928 | AM92: 0.02527227928 | AN92: 0.0003512538715 | AO92: 0.0003512538715 | AQ92: 1.85
B93: 2028 | C93: 0.15 | D93: 0.15 | E93: 0.5 | F93: 0.5 | G93: 0.12 | H93: 0.12 | I93: 0.02 | J93: 0.02 | K93: 0.05 | L93: 0.05 | M93: 0.003 | N93: 0.003 | O93: 0.157 | P93: 0.157 | Q93: 0.02595658937 | R93: 0.02595658937 | S93: 0.0003443665407 | T93: 0.0003443665407 | V93: 1.876645322 | X93: 0.15 | Y93: 0.15 | Z93: 0.5 | AA93: 0.5 | AB93: 0.12 | AC93: 0.12 | AD93: 0.02 | AE93: 0.02 | AF93: 0.05 | AG93: 0.05 | AH93: 0.003 | AI93: 0.003 | AJ93: 0.1306990441 | AK93: 0.1306990441 | AL93: 0.02595658937 | AM93: 0.02595658937 | AN93: 0.0003443665407 | AO93: 0.0003443665407 | AQ93: 1.85
B94: 2029 | C94: 0.15 | D94: 0.15 | E94: 0.5 | F94: 0.5 | G94: 0.12 | H94: 0.12 | I94: 0.02 | J94: 0.02 | K94: 0.05 | L94: 0.05 | M94: 0.003 | N94: 0.003 | O94: 0.157 | P94: 0.157 | Q94: 0.02660434739 | R94: 0.02660434739 | S94: 0.0003376142556 | T94: 0.0003376142556 | V94: 1.877279576 | X94: 0.15 | Y94: 0.15 | Z94: 0.5 | AA94: 0.5 | AB94: 0.12 | AC94: 0.12 | AD94: 0.02 | AE94: 0.02 | AF94: 0.05 | AG94: 0.05 | AH94: 0.003 | AI94: 0.003 | AJ94: 0.1300580384 | AK94: 0.1300580384 | AL94: 0.02660434739 | AM94: 0.02660434739 | AN94: 0.0003376142556 | AO94: 0.0003376142556 | AQ94: 1.85
B95: 2030 | C95: 0.15 | D95: 0.15 | E95: 0.5 | F95: 0.5 | G95: 0.12 | H95: 0.12 | I95: 0.02 | J95: 0.02 | K95: 0.05 | L95: 0.05 | M95: 0.003 | N95: 0.003 | O95: 0.157 | P95: 0.157 | Q95: 0.02721672367 | R95: 0.02721672367 | S95: 0.0003309943682 | T95: 0.0003309943682 | V95: 1.877878712 | X95: 0.15 | Y95: 0.15 | Z95: 0.5 | AA95: 0.5 | AB95: 0.12 | AC95: 0.12 | AD95: 0.02 | AE95: 0.02 | AF95: 0.05 | AG95: 0.05 | AH95: 0.003 | AI95: 0.003 | AJ95: 0.129452282 | AK95: 0.129452282 | AL95: 0.02721672367 | AM95: 0.02721672367 | AN95: 0.0003309943682 | AO95: 0.0003309943682 | AQ95: 1.85
B96: 2031 | C96: 0.15 | D96: 0.15 | E96: 0.5 | F96: 0.5 | G96: 0.12 | H96: 0.12 | I96: 0.02 | J96: 0.02 | K96: 0.05 | L96: 0.05 | M96: 0.003 | N96: 0.003 | O96: 0.157 | P96: 0.157 | Q96: 0.02668306242 | R96: 0.02668306242 | S96: 0.0003245042826 | T96: 0.0003245042826 | V96: 1.877332071 | X96: 0.15 | Y96: 0.15 | Z96: 0.5 | AA96: 0.5 | AB96: 0.12 | AC96: 0.12 | AD96: 0.02 | AE96: 0.02 | AF96: 0.05 | AG96: 0.05 | AH96: 0.003 | AI96: 0.003 | AJ96: 0.1299924333 | AK96: 0.1299924333 | AL96: 0.02668306242 | AM96: 0.02668306242 | AN96: 0.0003245042826 | AO96: 0.0003245042826 | AQ96: 1.85
B97: =B38 -> 2032 | C97: 0.15 | D97: 0.15 | E97: 0.5 | F97: 0.5 | G97: 0.12 | H97: 0.12 | I97: 0.02 | J97: 0.02 | K97: 0.05 | L97: 0.05 | M97: 0.003 | N97: 0.003 | O97: 0.157 | P97: 0.157 | Q97: 0.02615986512 | R97: 0.02615986512 | S97: 0.0003181414535 | T97: 0.0003181414535 | V97: 1.876796148 | X97: 0.15 | Y97: 0.15 | Z97: 0.5 | AA97: 0.5 | AB97: 0.12 | AC97: 0.12 | AD97: 0.02 | AE97: 0.02 | AF97: 0.05 | AG97: 0.05 | AH97: 0.003 | AI97: 0.003 | AJ97: 0.1305219934 | AK97: 0.1305219934 | AL97: 0.02615986512 | AM97: 0.02615986512 | AN97: 0.0003181414535 | AO97: 0.0003181414535 | AQ97: 1.85
B98: 2033 | C98: 0.15 | D98: 0.15 | E98: 0.5 | F98: 0.5 | G98: 0.12 | H98: 0.12 | I98: 0.02 | J98: 0.02 | K98: 0.05 | L98: 0.05 | M98: 0.003 | N98: 0.003 | O98: 0.157 | P98: 0.157 | Q98: 0.02564692659 | R98: 0.02564692659 | S98: 0.0003119033858 | T98: 0.0003119033858 | V98: 1.876270733 | X98: 0.15 | Y98: 0.15 | Z98: 0.5 | AA98: 0.5 | AB98: 0.12 | AC98: 0.12 | AD98: 0.02 | AE98: 0.02 | AF98: 0.05 | AG98: 0.05 | AH98: 0.003 | AI98: 0.003 | AJ98: 0.13104117 | AK98: 0.13104117 | AL98: 0.02564692659 | AM98: 0.02564692659 | AN98: 0.0003119033858 | AO98: 0.0003119033858 | AQ98: 1.85
B99: 2034 | C99: 0.15 | D99: 0.15 | E99: 0.5 | F99: 0.5 | G99: 0.12 | H99: 0.12 | I99: 0.02 | J99: 0.02 | K99: 0.05 | L99: 0.05 | M99: 0.003 | N99: 0.003 | O99: 0.157 | P99: 0.157 | Q99: 0.02514404568 | R99: 0.02514404568 | S99: 0.0003057876331 | T99: 0.0003057876331 | V99: 1.875755621 | X99: 0.15 | Y99: 0.15 | Z99: 0.5 | AA99: 0.5 | AB99: 0.12 | AC99: 0.12 | AD99: 0.02 | AE99: 0.02 | AF99: 0.05 | AG99: 0.05 | AH99: 0.003 | AI99: 0.003 | AJ99: 0.1315501667 | AK99: 0.1315501667 | AL99: 0.02514404568 | AM99: 0.02514404568 | AN99: 0.0003057876331 | AO99: 0.0003057876331 | AQ99: 1.85
B100: 2035 | C100: 0.15 | D100: 0.15 | E100: 0.5 | F100: 0.5 | G100: 0.12 | H100: 0.12 | I100: 0.02 | J100: 0.02 | K100: 0.05 | L100: 0.05 | M100: 0.003 | N100: 0.003 | O100: 0.157 | P100: 0.157 | Q100: 0.02465102517 | R100: 0.02465102517 | S100: 0.0002997917972 | T100: 0.0002997917972 | V100: 1.875250609 | X100: 0.15 | Y100: 0.15 | Z100: 0.5 | AA100: 0.5 | AB100: 0.12 | AC100: 0.12 | AD100: 0.02 | AE100: 0.02 | AF100: 0.05 | AG100: 0.05 | AH100: 0.003 | AI100: 0.003 | AJ100: 0.132049183 | AK100: 0.132049183 | AL100: 0.02465102517 | AM100: 0.02465102517 | AN100: 0.0002997917972 | AO100: 0.0002997917972 | AQ100: 1.85
B101: 2036 | C101: 0.15 | D101: 0.15 | E101: 0.5 | F101: 0.5 | G101: 0.12 | H101: 0.12 | I101: 0.02 | J101: 0.02 | K101: 0.05 | L101: 0.05 | M101: 0.003 | N101: 0.003 | O101: 0.157 | P101: 0.157 | Q101: 0.02416767174 | R101: 0.02416767174 | S101: 0.0002939135266 | T101: 0.0002939135266 | V101: 1.874755499 | X101: 0.15 | Y101: 0.15 | Z101: 0.5 | AA101: 0.5 | AB101: 0.12 | AC101: 0.12 | AD101: 0.02 | AE101: 0.02 | AF101: 0.05 | AG101: 0.05 | AH101: 0.003 | AI101: 0.003 | AJ101: 0.1325384147 | AK101: 0.1325384147 | AL101: 0.02416767174 | AM101: 0.02416767174 | AN101: 0.0002939135266 | AO101: 0.0002939135266 | AQ101: 1.85
B102: 2037 | C102: 0.15 | D102: 0.15 | E102: 0.5 | F102: 0.5 | G102: 0.12 | H102: 0.12 | I102: 0.02 | J102: 0.02 | K102: 0.05 | L102: 0.05 | M102: 0.003 | N102: 0.003 | O102: 0.157 | P102: 0.157 | Q102: 0.02369379582 | R102: 0.02369379582 | S102: 0.0002881505163 | T102: 0.0002881505163 | V102: 1.874270097 | X102: 0.15 | Y102: 0.15 | Z102: 0.5 | AA102: 0.5 | AB102: 0.12 | AC102: 0.12 | AD102: 0.02 | AE102: 0.02 | AF102: 0.05 | AG102: 0.05 | AH102: 0.003 | AI102: 0.003 | AJ102: 0.1330180537 | AK102: 0.1330180537 | AL102: 0.02369379582 | AM102: 0.02369379582 | AN102: 0.0002881505163 | AO102: 0.0002881505163 | AQ102: 1.85
B103: 2038 | C103: 0.15 | D103: 0.15 | E103: 0.5 | F103: 0.5 | G103: 0.12 | H103: 0.12 | I103: 0.02 | J103: 0.02 | K103: 0.05 | L103: 0.05 | M103: 0.003 | N103: 0.003 | O103: 0.157 | P103: 0.157 | Q103: 0.02322921159 | R103: 0.02322921159 | S103: 0.0002825005062 | T103: 0.0002825005062 | V103: 1.873794213 | X103: 0.15 | Y103: 0.15 | Z103: 0.5 | AA103: 0.5 | AB103: 0.12 | AC103: 0.12 | AD103: 0.02 | AE103: 0.02 | AF103: 0.05 | AG103: 0.05 | AH103: 0.003 | AI103: 0.003 | AJ103: 0.1334882879 | AK103: 0.1334882879 | AL103: 0.02322921159 | AM103: 0.02322921159 | AN103: 0.0002825005062 | AO103: 0.0002825005062 | AQ103: 1.85
B104: 2039 | C104: 0.15 | D104: 0.15 | E104: 0.5 | F104: 0.5 | G104: 0.12 | H104: 0.12 | I104: 0.02 | J104: 0.02 | K104: 0.05 | L104: 0.05 | M104: 0.003 | N104: 0.003 | O104: 0.157 | P104: 0.157 | Q104: 0.02277373685 | R104: 0.02277373685 | S104: 0.0002769612806 | T104: 0.0002769612806 | V104: 1.873327659 | X104: 0.15 | Y104: 0.15 | Z104: 0.5 | AA104: 0.5 | AB104: 0.12 | AC104: 0.12 | AD104: 0.02 | AE104: 0.02 | AF104: 0.05 | AG104: 0.05 | AH104: 0.003 | AI104: 0.003 | AJ104: 0.1339493019 | AK104: 0.1339493019 | AL104: 0.02277373685 | AM104: 0.02277373685 | AN104: 0.0002769612806 | AO104: 0.0002769612806 | AQ104: 1.85
B105: 2040 | C105: 0.15 | D105: 0.15 | E105: 0.5 | F105: 0.5 | G105: 0.12 | H105: 0.12 | I105: 0.02 | J105: 0.02 | K105: 0.05 | L105: 0.05 | M105: 0.003 | N105: 0.003 | O105: 0.157 | P105: 0.157 | Q105: 0.02232719299 | R105: 0.02232719299 | S105: 0.0002715306672 | T105: 0.0002715306672 | V105: 1.872870254 | X105: 0.15 | Y105: 0.15 | Z105: 0.5 | AA105: 0.5 | AB105: 0.12 | AC105: 0.12 | AD105: 0.02 | AE105: 0.02 | AF105: 0.05 | AG105: 0.05 | AH105: 0.003 | AI105: 0.003 | AJ105: 0.1344012763 | AK105: 0.1344012763 | AL105: 0.02232719299 | AM105: 0.02232719299 | AN105: 0.0002715306672 | AO105: 0.0002715306672 | AQ105: 1.85
B106: 2041 | C106: 0.15 | D106: 0.15 | E106: 0.5 | F106: 0.5 | G106: 0.12 | H106: 0.12 | I106: 0.02 | J106: 0.02 | K106: 0.05 | L106: 0.05 | M106: 0.003 | N106: 0.003 | O106: 0.157 | P106: 0.157 | Q106: 0.02188940489 | R106: 0.02188940489 | S106: 0.0002662065365 | T106: 0.0002662065365 | V106: 1.872421818 | X106: 0.15 | Y106: 0.15 | Z106: 0.5 | AA106: 0.5 | AB106: 0.12 | AC106: 0.12 | AD106: 0.02 | AE106: 0.02 | AF106: 0.05 | AG106: 0.05 | AH106: 0.003 | AI106: 0.003 | AJ106: 0.1348443886 | AK106: 0.1348443886 | AL106: 0.02188940489 | AM106: 0.02188940489 | AN106: 0.0002662065365 | AO106: 0.0002662065365 | AQ106: 1.85
B107: 2042 | C107: 0.15 | D107: 0.15 | E107: 0.5 | F107: 0.5 | G107: 0.12 | H107: 0.12 | I107: 0.02 | J107: 0.02 | K107: 0.05 | L107: 0.05 | M107: 0.003 | N107: 0.003 | O107: 0.157 | P107: 0.157 | Q107: 0.02146020088 | R107: 0.02146020088 | S107: 0.0002609868005 | T107: 0.0002609868005 | V107: 1.871982174 | X107: 0.15 | Y107: 0.15 | Z107: 0.5 | AA107: 0.5 | AB107: 0.12 | AC107: 0.12 | AD107: 0.02 | AE107: 0.02 | AF107: 0.05 | AG107: 0.05 | AH107: 0.003 | AI107: 0.003 | AJ107: 0.1352788123 | AK107: 0.1352788123 | AL107: 0.02146020088 | AM107: 0.02146020088 | AN107: 0.0002609868005 | AO107: 0.0002609868005 | AQ107: 1.85
B108: 2043 | C108: 0.15 | D108: 0.15 | E108: 0.5 | F108: 0.5 | G108: 0.12 | H108: 0.12 | I108: 0.02 | J108: 0.02 | K108: 0.05 | L108: 0.05 | M108: 0.003 | N108: 0.003 | O108: 0.157 | P108: 0.157 | Q108: 0.02103941262 | R108: 0.02103941262 | S108: 0.0002558694122 | T108: 0.0002558694122 | V108: 1.871551151 | X108: 0.15 | Y108: 0.15 | Z108: 0.5 | AA108: 0.5 | AB108: 0.12 | AC108: 0.12 | AD108: 0.02 | AE108: 0.02 | AF108: 0.05 | AG108: 0.05 | AH108: 0.003 | AI108: 0.003 | AJ108: 0.135704718 | AK108: 0.135704718 | AL108: 0.02103941262 | AM108: 0.02103941262 | AN108: 0.0002558694122 | AO108: 0.0002558694122 | AQ108: 1.85
B109: 2044 | C109: 0.15 | D109: 0.15 | E109: 0.5 | F109: 0.5 | G109: 0.12 | H109: 0.12 | I109: 0.02 | J109: 0.02 | K109: 0.05 | L109: 0.05 | M109: 0.003 | N109: 0.003 | O109: 0.157 | P109: 0.157 | Q109: 0.02062687512 | R109: 0.02062687512 | S109: 0.0002508523649 | T109: 0.0002508523649 | V109: 1.87112858 | X109: 0.15 | Y109: 0.15 | Z109: 0.5 | AA109: 0.5 | AB109: 0.12 | AC109: 0.12 | AD109: 0.02 | AE109: 0.02 | AF109: 0.05 | AG109: 0.05 | AH109: 0.003 | AI109: 0.003 | AJ109: 0.1361222725 | AK109: 0.1361222725 | AL109: 0.02062687512 | AM109: 0.02062687512 | AN109: 0.0002508523649 | AO109: 0.0002508523649 | AQ109: 1.85
B110: 2045 | C110: 0.15 | D110: 0.15 | E110: 0.5 | F110: 0.5 | G110: 0.12 | H110: 0.12 | I110: 0.02 | J110: 0.02 | K110: 0.05 | L110: 0.05 | M110: 0.003 | N110: 0.003 | O110: 0.157 | P110: 0.157 | Q110: 0.02022242659 | R110: 0.02022242659 | S110: 0.0002459336911 | T110: 0.0002459336911 | V110: 1.870714294 | X110: 0.15 | Y110: 0.15 | Z110: 0.5 | AA110: 0.5 | AB110: 0.12 | AC110: 0.12 | AD110: 0.02 | AE110: 0.02 | AF110: 0.05 | AG110: 0.05 | AH110: 0.003 | AI110: 0.003 | AJ110: 0.1365316397 | AK110: 0.1365316397 | AL110: 0.02022242659 | AM110: 0.02022242659 | AN110: 0.0002459336911 | AO110: 0.0002459336911 | AQ110: 1.85
B111: 2046 | C111: 0.15 | D111: 0.15 | E111: 0.5 | F111: 0.5 | G111: 0.12 | H111: 0.12 | I111: 0.02 | J111: 0.02 | K111: 0.05 | L111: 0.05 | M111: 0.003 | N111: 0.003 | O111: 0.157 | P111: 0.157 | Q111: 0.01982590842 | R111: 0.01982590842 | S111: 0.0002411114619 | T111: 0.0002411114619 | V111: 1.870308131 | X111: 0.15 | Y111: 0.15 | Z111: 0.5 | AA111: 0.5 | AB111: 0.12 | AC111: 0.12 | AD111: 0.02 | AE111: 0.02 | AF111: 0.05 | AG111: 0.05 | AH111: 0.003 | AI111: 0.003 | AJ111: 0.1369329801 | AK111: 0.1369329801 | AL111: 0.01982590842 | AM111: 0.01982590842 | AN111: 0.0002411114619 | AO111: 0.0002411114619 | AQ111: 1.85
B112: 2047 | C112: 0.15 | D112: 0.15 | E112: 0.5 | F112: 0.5 | G112: 0.12 | H112: 0.12 | I112: 0.02 | J112: 0.02 | K112: 0.05 | L112: 0.05 | M112: 0.003 | N112: 0.003 | O112: 0.157 | P112: 0.157 | Q112: 0.01943716512 | R112: 0.01943716512 | S112: 0.0002363837862 | T112: 0.0002363837862 | V112: 1.869909933 | X112: 0.15 | Y112: 0.15 | Z112: 0.5 | AA112: 0.5 | AB112: 0.12 | AC112: 0.12 | AD112: 0.02 | AE112: 0.02 | AF112: 0.05 | AG112: 0.05 | AH112: 0.003 | AI112: 0.003 | AJ112: 0.1373264511 | AK112: 0.1373264511 | AL112: 0.01943716512 | AM112: 0.01943716512 | AN112: 0.0002363837862 | AO112: 0.0002363837862 | AQ112: 1.85
B113: 2048 | C113: 0.15 | D113: 0.15 | E113: 0.5 | F113: 0.5 | G113: 0.12 | H113: 0.12 | I113: 0.02 | J113: 0.02 | K113: 0.05 | L113: 0.05 | M113: 0.003 | N113: 0.003 | O113: 0.157 | P113: 0.157 | Q113: 0.01905604423 | R113: 0.01905604423 | S113: 0.00023174881 | T113: 0.00023174881 | V113: 1.869519542 | X113: 0.15 | Y113: 0.15 | Z113: 0.5 | AA113: 0.5 | AB113: 0.12 | AC113: 0.12 | AD113: 0.02 | AE113: 0.02 | AF113: 0.05 | AG113: 0.05 | AH113: 0.003 | AI113: 0.003 | AJ113: 0.137712207 | AK113: 0.137712207 | AL113: 0.01905604423 | AM113: 0.01905604423 | AN113: 0.00023174881 | AO113: 0.00023174881 | AQ113: 1.85
B114: 2049 | C114: 0.15 | D114: 0.15 | E114: 0.5 | F114: 0.5 | G114: 0.12 | H114: 0.12 | I114: 0.02 | J114: 0.02 | K114: 0.05 | L114: 0.05 | M114: 0.003 | N114: 0.003 | O114: 0.157 | P114: 0.157 | Q114: 0.01868239631 | R114: 0.01868239631 | S114: 0.0002272047156 | T114: 0.0002272047156 | V114: 1.869136806 | X114: 0.15 | Y114: 0.15 | Z114: 0.5 | AA114: 0.5 | AB114: 0.12 | AC114: 0.12 | AD114: 0.02 | AE114: 0.02 | AF114: 0.05 | AG114: 0.05 | AH114: 0.003 | AI114: 0.003 | AJ114: 0.138090399 | AK114: 0.138090399 | AL114: 0.01868239631 | AM114: 0.01868239631 | AN114: 0.0002272047156 | AO114: 0.0002272047156 | AQ114: 1.85
B115: 2050 | C115: 0.15 | D115: 0.15 | E115: 0.5 | F115: 0.5 | G115: 0.12 | H115: 0.12 | I115: 0.02 | J115: 0.02 | K115: 0.05 | L115: 0.05 | M115: 0.003 | N115: 0.003 | O115: 0.157 | P115: 0.157 | Q115: 0.01831607481 | R115: 0.01831607481 | S115: 0.0002227497212 | T115: 0.0002227497212 | V115: 1.868761574 | X115: 0.15 | Y115: 0.15 | Z115: 0.5 | AA115: 0.5 | AB115: 0.12 | AC115: 0.12 | AD115: 0.02 | AE115: 0.02 | AF115: 0.05 | AG115: 0.05 | AH115: 0.003 | AI115: 0.003 | AJ115: 0.1384611755 | AK115: 0.1384611755 | AL115: 0.01831607481 | AM115: 0.01831607481 | AN115: 0.0002227497212 | AO115: 0.0002227497212 | AQ115: 1.85
B118: 3. Scenario 2: Composting | X118: 4. Scenario 3: Recycling
B120: Year | C120: Food (Gg/yr) | E120: Garden (Gg/yr) | G120: Paper (Gg/yr) | I120: Wood (Gg/yr) | K120: Textiles (Gg/yr) | M120: Nappies (Gg/yr) | O120: Inert (Gg/yr) | Q120: Sludge (Gg/yr) | S120: Industrial (Gg/yr) | X120: Food (Gg/yr) | Z120: Garden (Gg/yr) | AB120: Paper (Gg/yr) | AD120: Wood (Gg/yr) | AF120: Textiles (Gg/yr) | AH120: Nappies (Gg/yr) | AJ120: Inert (Gg/yr) | AL120: Sludge (Gg/yr) | AN120: Industrial (Gg/yr)
C121: TNC | D121: USER | E121: TNC | F121: USER | G121: TNC | H121: USER | I121: TNC | J121: USER | K121: TNC | L121: USER | M121: TNC | N121: USER | O121: TNC | P121: USER | Q121: TNC | R121: USER | S121: TNC | T121: USER | U121: TNC | V121: USER | X121: TNC | Y121: USER | Z121: TNC | AA121: USER | AB121: TNC | AC121: USER | AD121: TNC | AE121: USER | AF121: TNC | AG121: USER | AH121: TNC | AI121: USER | AJ121: TNC | AK121: USER | AL121: TNC | AM121: USER | AN121: TNC | AO121: USER | AP121: TNC | AQ121: USER
B122: =B6 -> 2000 | C122: 0.15 | D122: 0.15 | E122: 0.5 | F122: 0.5 | G122: 0.12 | H122: 0.12 | I122: 0.02 | J122: 0.02 | K122: 0.05 | L122: 0.05 | M122: 0.003 | N122: 0.003 | O122: 0.157 | P122: 0.157 | Q122: 0 | R122: 0 | S122: 0 | T122: 0 | V122: =SUM(D122:T122) -> 1.85 | X122: 0.15 | Y122: 0.15 | Z122: 0.5 | AA122: 0.5 | AB122: 0.12 | AC122: 0.12 | AD122: 0.02 | AE122: 0.02 | AF122: 0.05 | AG122: 0.05 | AH122: 0.003 | AI122: 0.003 | AJ122: 0.157 | AK122: 0.157 | AL122: 0 | AM122: 0 | AN122: 0 | AO122: 0 | AQ122: =SUM(Y122:AO122) -> 1.85
B123: 2001 | C123: 0.15 | D123: 0.15 | E123: 0.5 | F123: 0.5 | G123: 0.12 | H123: 0.12 | I123: 0.02 | J123: 0.02 | K123: 0.05 | L123: 0.05 | M123: 0.003 | N123: 0.003 | O123: 0.157 | P123: 0.157 | Q123: 0 | R123: 0 | S123: 0 | T123: 0 | V123: =SUM(D123:T123) -> 1.85 | X123: 0.15 | Y123: 0.15 | Z123: 0.5 | AA123: 0.5 | AB123: 0.12 | AC123: 0.12 | AD123: 0.02 | AE123: 0.02 | AF123: 0.05 | AG123: 0.05 | AH123: 0.003 | AI123: 0.003 | AJ123: 0.157 | AK123: 0.157 | AL123: 0 | AM123: 0 | AN123: 0 | AO123: 0 | AQ123: =SUM(Y123:AO123) -> 1.85
B124: 2002 | C124: 0.15 | D124: 0.15 | E124: 0.5 | F124: 0.5 | G124: 0.12 | H124: 0.12 | I124: 0.02 | J124: 0.02 | K124: 0.05 | L124: 0.05 | M124: 0.003 | N124: 0.003 | O124: 0.157 | P124: 0.157 | Q124: 0 | R124: 0 | S124: 0 | T124: 0 | V124: 1.85 | X124: 0.15 | Y124: 0.15 | Z124: 0.5 | AA124: 0.5 | AB124: 0.12 | AC124: 0.12 | AD124: 0.02 | AE124: 0.02 | AF124: 0.05 | AG124: 0.05 | AH124: 0.003 | AI124: 0.003 | AJ124: 0.157 | AK124: 0.157 | AL124: 0 | AM124: 0 | AN124: 0 | AO124: 0 | AQ124: 1.85
B125: 2003 | C125: 0.15 | D125: 0.15 | E125: 0.5 | F125: 0.5 | G125: 0.12 | H125: 0.12 | I125: 0.02 | J125: 0.02 | K125: 0.05 | L125: 0.05 | M125: 0.003 | N125: 0.003 | O125: 0.157 | P125: 0.157 | Q125: 0 | R125: 0 | S125: 0 | T125: 0 | V125: 1.85 | X125: 0.15 | Y125: 0.15 | Z125: 0.5 | AA125: 0.5 | AB125: 0.12 | AC125: 0.12 | AD125: 0.02 | AE125: 0.02 | AF125: 0.05 | AG125: 0.05 | AH125: 0.003 | AI125: 0.003 | AJ125: 0.157 | AK125: 0.157 | AL125: 0 | AM125: 0 | AN125: 0 | AO125: 0 | AQ125: 1.85
B126: 2004 | C126: 0.15 | D126: 0.15 | E126: 0.5 | F126: 0.5 | G126: 0.12 | H126: 0.12 | I126: 0.02 | J126: 0.02 | K126: 0.05 | L126: 0.05 | M126: 0.003 | N126: 0.003 | O126: 0.157 | P126: 0.157 | Q126: 0 | R126: 0 | S126: 0 | T126: 0 | V126: 1.85 | X126: 0.15 | Y126: 0.15 | Z126: 0.5 | AA126: 0.5 | AB126: 0.12 | AC126: 0.12 | AD126: 0.02 | AE126: 0.02 | AF126: 0.05 | AG126: 0.05 | AH126: 0.003 | AI126: 0.003 | AJ126: 0.157 | AK126: 0.157 | AL126: 0 | AM126: 0 | AN126: 0 | AO126: 0 | AQ126: 1.85
B127: 2005 | C127: 0.15 | D127: 0.15 | E127: 0.5 | F127: 0.5 | G127: 0.12 | H127: 0.12 | I127: 0.02 | J127: 0.02 | K127: 0.05 | L127: 0.05 | M127: 0.003 | N127: 0.003 | O127: 0.1404693952 | P127: 0.1404693952 | Q127: 0.01515467889 | R127: 0.01515467889 | S127: 0.001375925922 | T127: 0.001375925922 | V127: 1.85 | X127: 0.15 | Y127: 0.15 | Z127: 0.5 | AA127: 0.5 | AB127: 0.12 | AC127: 0.12 | AD127: 0.02 | AE127: 0.02 | AF127: 0.05 | AG127: 0.05 | AH127: 0.003 | AI127: 0.003 | AJ127: 0.1404693952 | AK127: 0.1404693952 | AL127: 0.01515467889 | AM127: 0.01515467889 | AN127: 0.001375925922 | AO127: 0.001375925922 | AQ127: 1.85
B128: 2006 | C128: 0.15 | D128: 0.15 | E128: 0.5 | F128: 0.5 | G128: 0.12 | H128: 0.12 | I128: 0.02 | J128: 0.02 | K128: 0.05 | L128: 0.05 | M128: 0.003 | N128: 0.003 | O128: 0.1359830426 | P128: 0.1359830426 | Q128: 0.01979147311 | R128: 0.01979147311 | S128: 0.001225484281 | T128: 0.001225484281 | V128: 1.85 | X128: 0.15 | Y128: 0.15 | Z128: 0.5 | AA128: 0.5 | AB128: 0.12 | AC128: 0.12 | AD128: 0.02 | AE128: 0.02 | AF128: 0.05 | AG128: 0.05 | AH128: 0.003 | AI128: 0.003 | AJ128: 0.1359830426 | AK128: 0.1359830426 | AL128: 0.01979147311 | AM128: 0.01979147311 | AN128: 0.001225484281 | AO128: 0.001225484281 | AQ128: 1.85
B129: 2007 | C129: 0.15 | D129: 0.15 | E129: 0.5 | F129: 0.5 | G129: 0.12 | H129: 0.12 | I129: 0.02 | J129: 0.02 | K129: 0.05 | L129: 0.05 | M129: 0.003 | N129: 0.003 | O129: 0.1215968362 | P129: 0.1215968362 | Q129: 0.03315506906 | R129: 0.03315506906 | S129: 0.002248094708 | T129: 0.002248094708 | V129: 1.85 | X129: 0.15 | Y129: 0.15 | Z129: 0.5 | AA129: 0.5 | AB129: 0.12 | AC129: 0.12 | AD129: 0.02 | AE129: 0.02 | AF129: 0.05 | AG129: 0.05 | AH129: 0.003 | AI129: 0.003 | AJ129: 0.1215968362 | AK129: 0.1215968362 | AL129: 0.03315506906 | AM129: 0.03315506906 | AN129: 0.002248094708 | AO129: 0.002248094708 | AQ129: 1.85
B130: 2008 | C130: 0.15 | D130: 0.15 | E130: 0.5 | F130: 0.5 | G130: 0.12 | H130: 0.12 | I130: 0.02 | J130: 0.02 | K130: 0.05 | L130: 0.05 | M130: 0.003 | N130: 0.003 | O130: 0.1246060009 | P130: 0.1246060009 | Q130: 0.03040871176 | R130: 0.03040871176 | S130: 0.001985287367 | T130: 0.001985287367 | V130: 1.85 | X130: 0.15 | Y130: 0.15 | Z130: 0.5 | AA130: 0.5 | AB130: 0.12 | AC130: 0.12 | AD130: 0.02 | AE130: 0.02 | AF130: 0.05 | AG130: 0.05 | AH130: 0.003 | AI130: 0.003 | AJ130: 0.1246060009 | AK130: 0.1246060009 | AL130: 0.03040871176 | AM130: 0.03040871176 | AN130: 0.001985287367 | AO130: 0.001985287367 | AQ130: 1.85
B131: 2009 | C131: 0.15 | D131: 0.15 | E131: 0.5 | F131: 0.5 | G131: 0.12 | H131: 0.12 | I131: 0.02 | J131: 0.02 | K131: 0.05 | L131: 0.05 | M131: 0.003 | N131: 0.003 | O131: 0.1322542015 | P131: 0.1322542015 | Q131: 0.02194042454 | R131: 0.02194042454 | S131: 0.002805373941 | T131: 0.002805373941 | V131: 1.85 | X131: 0.15 | Y131: 0.15 | Z131: 0.5 | AA131: 0.5 | AB131: 0.12 | AC131: 0.12 | AD131: 0.02 | AE131: 0.02 | AF131: 0.05 | AG131: 0.05 | AH131: 0.003 | AI131: 0.003 | AJ131: 0.1322542015 | AK131: 0.1322542015 | AL131: 0.02194042454 | AM131: 0.02194042454 | AN131: 0.002805373941 | AO131: 0.002805373941 | AQ131: 1.85
B132: 2010 | C132: 0.15 | D132: 0.15 | E132: 0.5 | F132: 0.5 | G132: 0.12 | H132: 0.12 | I132: 0.02 | J132: 0.02 | K132: 0.05 | L132: 0.05 | M132: 0.003 | N132: 0.003 | O132: 0.1287538939 | P132: 0.1287538939 | Q132: 0.02560021863 | R132: 0.02560021863 | S132: 0.002645887461 | T132: 0.002645887461 | V132: 1.85 | X132: 0.15 | Y132: 0.15 | Z132: 0.5 | AA132: 0.5 | AB132: 0.12 | AC132: 0.12 | AD132: 0.02 | AE132: 0.02 | AF132: 0.05 | AG132: 0.05 | AH132: 0.003 | AI132: 0.003 | AJ132: 0.1287538939 | AK132: 0.1287538939 | AL132: 0.02560021863 | AM132: 0.02560021863 | AN132: 0.002645887461 | AO132: 0.002645887461 | AQ132: 1.85
B133: 2011 | C133: 0.15 | D133: 0.15 | E133: 0.5 | F133: 0.5 | G133: 0.12 | H133: 0.12 | I133: 0.02 | J133: 0.02 | K133: 0.05 | L133: 0.05 | M133: 0.003 | N133: 0.003 | O133: 0.1281333276 | P133: 0.1281333276 | Q133: 0.02509567455 | R133: 0.02509567455 | S133: 0.003770997844 | T133: 0.003770997844 | V133: 1.85 | X133: 0.15 | Y133: 0.15 | Z133: 0.5 | AA133: 0.5 | AB133: 0.12 | AC133: 0.12 | AD133: 0.02 | AE133: 0.02 | AF133: 0.05 | AG133: 0.05 | AH133: 0.003 | AI133: 0.003 | AJ133: 0.1281333276 | AK133: 0.1281333276 | AL133: 0.02509567455 | AM133: 0.02509567455 | AN133: 0.003770997844 | AO133: 0.003770997844 | AQ133: 1.85
B134: 2012 | C134: 0.15 | D134: 0.15 | E134: 0.5 | F134: 0.5 | G134: 0.12 | H134: 0.12 | I134: 0.02 | J134: 0.02 | K134: 0.05 | L134: 0.05 | M134: 0.003 | N134: 0.003 | O134: 0.1362509909 | P134: 0.1362509909 | Q134: 0.01900109173 | R134: 0.01900109173 | S134: 0.001747917389 | T134: 0.001747917389 | V134: 1.85 | X134: 0.15 | Y134: 0.15 | Z134: 0.5 | AA134: 0.5 | AB134: 0.12 | AC134: 0.12 | AD134: 0.02 | AE134: 0.02 | AF134: 0.05 | AG134: 0.05 | AH134: 0.003 | AI134: 0.003 | AJ134: 0.1362509909 | AK134: 0.1362509909 | AL134: 0.01900109173 | AM134: 0.01900109173 | AN134: 0.001747917389 | AO134: 0.001747917389 | AQ134: 1.85
B135: 2013 | C135: 0.15 | D135: 0.15 | E135: 0.5 | F135: 0.5 | G135: 0.12 | H135: 0.12 | I135: 0.02 | J135: 0.02 | K135: 0.05 | L135: 0.05 | M135: 0.003 | N135: 0.003 | O135: 0.1400397906 | P135: 0.1400397906 | Q135: 0.01620398168 | R135: 0.01620398168 | S135: 0.0007562277008 | T135: 0.0007562277008 | V135: 1.85 | X135: 0.15 | Y135: 0.15 | Z135: 0.5 | AA135: 0.5 | AB135: 0.12 | AC135: 0.12 | AD135: 0.02 | AE135: 0.02 | AF135: 0.05 | AG135: 0.05 | AH135: 0.003 | AI135: 0.003 | AJ135: 0.1400397906 | AK135: 0.1400397906 | AL135: 0.01620398168 | AM135: 0.01620398168 | AN135: 0.0007562277008 | AO135: 0.0007562277008 | AQ135: 1.85
B136: 2014 | C136: 0.15 | D136: 0.15 | E136: 0.5 | F136: 0.5 | G136: 0.12 | H136: 0.12 | I136: 0.02 | J136: 0.02 | K136: 0.05 | L136: 0.05 | M136: 0.003 | N136: 0.003 | O136: 0.1440913726 | P136: 0.1440913726 | Q136: 0.01245424307 | R136: 0.01245424307 | S136: 0.0004543843371 | T136: 0.0004543843371 | V136: 1.85 | X136: 0.15 | Y136: 0.15 | Z136: 0.5 | AA136: 0.5 | AB136: 0.12 | AC136: 0.12 | AD136: 0.02 | AE136: 0.02 | AF136: 0.05 | AG136: 0.05 | AH136: 0.003 | AI136: 0.003 | AJ136: 0.1440913726 | AK136: 0.1440913726 | AL136: 0.01245424307 | AM136: 0.01245424307 | AN136: 0.0004543843371 | AO136: 0.0004543843371 | AQ136: 1.85
B137: 2015 | C137: 0.15 | D137: 0.15 | E137: 0.5 | F137: 0.5 | G137: 0.12 | H137: 0.12 | I137: 0.02 | J137: 0.02 | K137: 0.05 | L137: 0.05 | M137: 0.003 | N137: 0.003 | O137: 0.1428182277 | P137: 0.1428182277 | Q137: 0.0137362975 | R137: 0.0137362975 | S137: 0.0004454748403 | T137: 0.0004454748403 | V137: 1.85 | X137: 0.15 | Y137: 0.15 | Z137: 0.5 | AA137: 0.5 | AB137: 0.12 | AC137: 0.12 | AD137: 0.02 | AE137: 0.02 | AF137: 0.05 | AG137: 0.05 | AH137: 0.003 | AI137: 0.003 | AJ137: 0.1428182277 | AK137: 0.1428182277 | AL137: 0.0137362975 | AM137: 0.0137362975 | AN137: 0.0004454748403 | AO137: 0.0004454748403 | AQ137: 1.85
B138: 2016 | C138: 0.15 | D138: 0.15 | E138: 0.5 | F138: 0.5 | G138: 0.12 | H138: 0.12 | I138: 0.02 | J138: 0.02 | K138: 0.05 | L138: 0.05 | M138: 0.003 | N138: 0.003 | O138: 0.1415999729 | P138: 0.1415999729 | Q138: 0.01496328704 | R138: 0.01496328704 | S138: 0.0004367400395 | T138: 0.0004367400395 | V138: 1.85 | X138: 0.15 | Y138: 0.15 | Z138: 0.5 | AA138: 0.5 | AB138: 0.12 | AC138: 0.12 | AD138: 0.02 | AE138: 0.02 | AF138: 0.05 | AG138: 0.05 | AH138: 0.003 | AI138: 0.003 | AJ138: 0.1415999729 | AK138: 0.1415999729 | AL138: 0.01496328704 | AM138: 0.01496328704 | AN138: 0.0004367400395 | AO138: 0.0004367400395 | AQ138: 1.85
B139: 2017 | C139: 0.147 | D139: 0.147 | E139: 0.49 | F139: 0.49 | G139: 0.1176 | H139: 0.1176 | I139: 0.02 | J139: 0.02 | K139: 0.05 | L139: 0.05 | M139: 0.003 | N139: 0.003 | O139: 0.1558349453 | P139: 0.1558349453 | Q139: 0.01613687818 | R139: 0.01613687818 | S139: 0.0004281765094 | T139: 0.0004281765094 | V139: 1.853 | X139: 0.15 | Y139: 0.15 | Z139: 0.5 | AA139: 0.5 | AB139: 0.1176 | AC139: 0.1176 | AD139: 0.02 | AE139: 0.02 | AF139: 0.049 | AG139: 0.049 | AH139: 0.003 | AI139: 0.003 | AJ139: 0.1438349453 | AK139: 0.1438349453 | AL139: 0.01613687818 | AM139: 0.01613687818 | AN139: 0.0004281765094 | AO139: 0.0004281765094 | AQ139: 1.85
B140: 2018 | C140: 0.144 | D140: 0.144 | E140: 0.48 | F140: 0.48 | G140: 0.1152 | H140: 0.1152 | I140: 0.02 | J140: 0.02 | K140: 0.05 | L140: 0.05 | M140: 0.003 | N140: 0.003 | O140: 0.1701215259 | P140: 0.1701215259 | Q140: 0.01725869324 | R140: 0.01725869324 | S140: 0.0004197808915 | T140: 0.0004197808915 | V140: 1.856 | X140: 0.15 | Y140: 0.15 | Z140: 0.5 | AA140: 0.5 | AB140: 0.1152 | AC140: 0.1152 | AD140: 0.02 | AE140: 0.02 | AF140: 0.048 | AG140: 0.048 | AH140: 0.003 | AI140: 0.003 | AJ140: 0.1461215259 | AK140: 0.1461215259 | AL140: 0.01725869324 | AM140: 0.01725869324 | AN140: 0.0004197808915 | AO140: 0.0004197808915 | AQ140: 1.85
B141: 2019 | C141: 0.141 | D141: 0.141 | E141: 0.47 | F141: 0.47 | G141: 0.1128 | H141: 0.1128 | I141: 0.02 | J141: 0.02 | K141: 0.05 | L141: 0.05 | M141: 0.003 | N141: 0.003 | O141: 0.1844581387 | P141: 0.1844581387 | Q141: 0.01833031144 | R141: 0.01833031144 | S141: 0.0004115498937 | T141: 0.0004115498937 | V141: 1.859 | X141: 0.15 | Y141: 0.15 | Z141: 0.5 | AA141: 0.5 | AB141: 0.1128 | AC141: 0.1128 | AD141: 0.02 | AE141: 0.02 | AF141: 0.047 | AG141: 0.047 | AH141: 0.003 | AI141: 0.003 | AJ141: 0.1484581387 | AK141: 0.1484581387 | AL141: 0.01833031144 | AM141: 0.01833031144 | AN141: 0.0004115498937 | AO141: 0.0004115498937 | AQ141: 1.85
B142: 2020 | C142: 0.138 | D142: 0.138 | E142: 0.46 | F142: 0.46 | G142: 0.1104 | H142: 0.1104 | I142: 0.02 | J142: 0.02 | K142: 0.05 | L142: 0.05 | M142: 0.003 | N142: 0.003 | O142: 0.1988432497 | P142: 0.1988432497 | Q142: 0.01935327 | R142: 0.01935327 | S142: 0.0004034802879 | T142: 0.0004034802879 | V142: 1.862 | X142: 0.15 | Y142: 0.15 | Z142: 0.5 | AA142: 0.5 | AB142: 0.1104 | AC142: 0.1104 | AD142: 0.02 | AE142: 0.02 | AF142: 0.046 | AG142: 0.046 | AH142: 0.003 | AI142: 0.003 | AJ142: 0.1508432497 | AK142: 0.1508432497 | AL142: 0.01935327 | AM142: 0.01935327 | AN142: 0.0004034802879 | AO142: 0.0004034802879 | AQ142: 1.85
B143: 2021 | C143: 0.135 | D143: 0.135 | E143: 0.45 | F143: 0.45 | G143: 0.108 | H143: 0.108 | I143: 0.02 | J143: 0.02 | K143: 0.05 | L143: 0.05 | M143: 0.003 | N143: 0.003 | O143: 0.213275366 | P143: 0.213275366 | Q143: 0.02032906513 | R143: 0.02032906513 | S143: 0.0003955689097 | T143: 0.0003955689097 | V143: 1.865 | X143: 0.15 | Y143: 0.15 | Z143: 0.5 | AA143: 0.5 | AB143: 0.108 | AC143: 0.108 | AD143: 0.02 | AE143: 0.02 | AF143: 0.045 | AG143: 0.045 | AH143: 0.003 | AI143: 0.003 | AJ143: 0.153275366 | AK143: 0.153275366 | AL143: 0.02032906513 | AM143: 0.02032906513 | AN143: 0.0003955689097 | AO143: 0.0003955689097 | AQ143: 1.85
B144: 2022 | C144: 0.132 | D144: 0.132 | E144: 0.44 | F144: 0.44 | G144: 0.1056 | H144: 0.1056 | I144: 0.02 | J144: 0.02 | K144: 0.05 | L144: 0.05 | M144: 0.003 | N144: 0.003 | O144: 0.2277530343 | P144: 0.2277530343 | Q144: 0.02125915307 | R144: 0.02125915307 | S144: 0.0003878126566 | T144: 0.0003878126566 | V144: 1.868 | X144: 0.15 | Y144: 0.15 | Z144: 0.5 | AA144: 0.5 | AB144: 0.1056 | AC144: 0.1056 | AD144: 0.02 | AE144: 0.02 | AF144: 0.044 | AG144: 0.044 | AH144: 0.003 | AI144: 0.003 | AJ144: 0.1557530343 | AK144: 0.1557530343 | AL144: 0.02125915307 | AM144: 0.02125915307 | AN144: 0.0003878126566 | AO144: 0.0003878126566 | AQ144: 1.85
B145: 2023 | C145: 0.129 | D145: 0.129 | E145: 0.43 | F145: 0.43 | G145: 0.1032 | H145: 0.1032 | I145: 0.02 | J145: 0.02 | K145: 0.05 | L145: 0.05 | M145: 0.003 | N145: 0.003 | O145: 0.2422748404 | P145: 0.2422748404 | Q145: 0.02214495112 | R145: 0.02214495112 | S145: 0.0003802084868 | T145: 0.0003802084868 | V145: 1.871 | X145: 0.15 | Y145: 0.15 | Z145: 0.5 | AA145: 0.5 | AB145: 0.1032 | AC145: 0.1032 | AD145: 0.02 | AE145: 0.02 | AF145: 0.043 | AG145: 0.043 | AH145: 0.003 | AI145: 0.003 | AJ145: 0.1582748404 | AK145: 0.1582748404 | AL145: 0.02214495112 | AM145: 0.02214495112 | AN145: 0.0003802084868 | AO145: 0.0003802084868 | AQ145: 1.85
B146: 2024 | C146: 0.126 | D146: 0.126 | E146: 0.42 | F146: 0.42 | G146: 0.1008 | H146: 0.1008 | I146: 0.02 | J146: 0.02 | K146: 0.05 | L146: 0.05 | M146: 0.003 | N146: 0.003 | O146: 0.2568394081 | P146: 0.2568394081 | Q146: 0.02298783853 | R146: 0.02298783853 | S146: 0.0003727534185 | T146: 0.0003727534185 | V146: 1.874 | X146: 0.15 | Y146: 0.15 | Z146: 0.5 | AA146: 0.5 | AB146: 0.1008 | AC146: 0.1008 | AD146: 0.02 | AE146: 0.02 | AF146: 0.042 | AG146: 0.042 | AH146: 0.003 | AI146: 0.003 | AJ146: 0.1608394081 | AK146: 0.1608394081 | AL146: 0.02298783853 | AM146: 0.02298783853 | AN146: 0.0003727534185 | AO146: 0.0003727534185 | AQ146: 1.85
B147: 2025 | C147: 0.123 | D147: 0.123 | E147: 0.41 | F147: 0.41 | G147: 0.0984 | H147: 0.0984 | I147: 0.02 | J147: 0.02 | K147: 0.05 | L147: 0.05 | M147: 0.003 | N147: 0.003 | O147: 0.271445398 | P147: 0.271445398 | Q147: 0.02378915752 | R147: 0.02378915752 | S147: 0.0003654445279 | T147: 0.0003654445279 | V147: 1.877 | X147: 0.15 | Y147: 0.15 | Z147: 0.5 | AA147: 0.5 | AB147: 0.0984 | AC147: 0.0984 | AD147: 0.02 | AE147: 0.02 | AF147: 0.041 | AG147: 0.041 | AH147: 0.003 | AI147: 0.003 | AJ147: 0.163445398 | AK147: 0.163445398 | AL147: 0.02378915752 | AM147: 0.02378915752 | AN147: 0.0003654445279 | AO147: 0.0003654445279 | AQ147: 1.85
B148: 2026 | C148: 0.12 | D148: 0.12 | E148: 0.4 | F148: 0.4 | G148: 0.096 | H148: 0.096 | I148: 0.02 | J148: 0.02 | K148: 0.05 | L148: 0.05 | M148: 0.003 | N148: 0.003 | O148: 0.2860915069 | P148: 0.2860915069 | Q148: 0.02455021416 | R148: 0.02455021416 | S148: 0.0003582789489 | T148: 0.0003582789489 | V148: 1.88 | X148: 0.15 | Y148: 0.15 | Z148: 0.5 | AA148: 0.5 | AB148: 0.096 | AC148: 0.096 | AD148: 0.02 | AE148: 0.02 | AF148: 0.04 | AG148: 0.04 | AH148: 0.003 | AI148: 0.003 | AJ148: 0.1660915069 | AK148: 0.1660915069 | AL148: 0.02455021416 | AM148: 0.02455021416 | AN148: 0.0003582789489 | AO148: 0.0003582789489 | AQ148: 1.85
B149: 2027 | C149: 0.114 | D149: 0.114 | E149: 0.38 | F149: 0.38 | G149: 0.0912 | H149: 0.0912 | I149: 0.02 | J149: 0.02 | K149: 0.05 | L149: 0.05 | M149: 0.003 | N149: 0.003 | O149: 0.3161764668 | P149: 0.3161764668 | Q149: 0.02527227928 | R149: 0.02527227928 | S149: 0.0003512538715 | T149: 0.0003512538715 | V149: 1.886 | X149: 0.15 | Y149: 0.15 | Z149: 0.5 | AA149: 0.5 | AB149: 0.0936 | AC149: 0.0936 | AD149: 0.02 | AE149: 0.02 | AF149: 0.039 | AG149: 0.039 | AH149: 0.003 | AI149: 0.003 | AJ149: 0.1687764668 | AK149: 0.1687764668 | AL149: 0.02527227928 | AM149: 0.02527227928 | AN149: 0.0003512538715 | AO149: 0.0003512538715 | AQ149: 1.85
B150: 2028 | C150: 0.111 | D150: 0.111 | E150: 0.37 | F150: 0.37 | G150: 0.0888 | H150: 0.0888 | I150: 0.02 | J150: 0.02 | K150: 0.05 | L150: 0.05 | M150: 0.003 | N150: 0.003 | O150: 0.3308990441 | P150: 0.3308990441 | Q150: 0.02595658937 | R150: 0.02595658937 | S150: 0.0003443665407 | T150: 0.0003443665407 | V150: 1.889 | X150: 0.15 | Y150: 0.15 | Z150: 0.5 | AA150: 0.5 | AB150: 0.0912 | AC150: 0.0912 | AD150: 0.02 | AE150: 0.02 | AF150: 0.038 | AG150: 0.038 | AH150: 0.003 | AI150: 0.003 | AJ150: 0.1714990441 | AK150: 0.1714990441 | AL150: 0.02595658937 | AM150: 0.02595658937 | AN150: 0.0003443665407 | AO150: 0.0003443665407 | AQ150: 1.85
B151: 2029 | C151: 0.108 | D151: 0.108 | E151: 0.36 | F151: 0.36 | G151: 0.0864 | H151: 0.0864 | I151: 0.02 | J151: 0.02 | K151: 0.05 | L151: 0.05 | M151: 0.003 | N151: 0.003 | O151: 0.3456580384 | P151: 0.3456580384 | Q151: 0.02660434739 | R151: 0.02660434739 | S151: 0.0003376142556 | T151: 0.0003376142556 | V151: 1.892 | X151: 0.15 | Y151: 0.15 | Z151: 0.5 | AA151: 0.5 | AB151: 0.0888 | AC151: 0.0888 | AD151: 0.02 | AE151: 0.02 | AF151: 0.037 | AG151: 0.037 | AH151: 0.003 | AI151: 0.003 | AJ151: 0.1742580384 | AK151: 0.1742580384 | AL151: 0.02660434739 | AM151: 0.02660434739 | AN151: 0.0003376142556 | AO151: 0.0003376142556 | AQ151: 1.85
B152: 2030 | C152: 0.105 | D152: 0.105 | E152: 0.35 | F152: 0.35 | G152: 0.084 | H152: 0.084 | I152: 0.02 | J152: 0.02 | K152: 0.05 | L152: 0.05 | M152: 0.003 | N152: 0.003 | O152: 0.360452282 | P152: 0.360452282 | Q152: 0.02721672367 | R152: 0.02721672367 | S152: 0.0003309943682 | T152: 0.0003309943682 | V152: 1.895 | X152: 0.15 | Y152: 0.15 | Z152: 0.5 | AA152: 0.5 | AB152: 0.0864 | AC152: 0.0864 | AD152: 0.02 | AE152: 0.02 | AF152: 0.036 | AG152: 0.036 | AH152: 0.003 | AI152: 0.003 | AJ152: 0.177052282 | AK152: 0.177052282 | AL152: 0.02721672367 | AM152: 0.02721672367 | AN152: 0.0003309943682 | AO152: 0.0003309943682 | AQ152: 1.85
B153: 2031 | C153: 0.1035 | D153: 0.1035 | E153: 0.345 | F153: 0.345 | G153: 0.0828 | H153: 0.0828 | I153: 0.02 | J153: 0.02 | K153: 0.05 | L153: 0.05 | M153: 0.003 | N153: 0.003 | O153: 0.3686924333 | P153: 0.3686924333 | Q153: 0.02668306242 | R153: 0.02668306242 | S153: 0.0003245042826 | T153: 0.0003245042826 | V153: 1.8965 | X153: 0.15 | Y153: 0.15 | Z153: 0.5 | AA153: 0.5 | AB153: 0.0852 | AC153: 0.0852 | AD153: 0.02 | AE153: 0.02 | AF153: 0.0355 | AG153: 0.0355 | AH153: 0.003 | AI153: 0.003 | AJ153: 0.1792924333 | AK153: 0.1792924333 | AL153: 0.02668306242 | AM153: 0.02668306242 | AN153: 0.0003245042826 | AO153: 0.0003245042826 | AQ153: 1.85
B154: =B38 -> 2032 | C154: 0.102 | D154: 0.102 | E154: 0.34 | F154: 0.34 | G154: 0.0816 | H154: 0.0816 | I154: 0.02 | J154: 0.02 | K154: 0.05 | L154: 0.05 | M154: 0.003 | N154: 0.003 | O154: 0.3769219934 | P154: 0.3769219934 | Q154: 0.02615986512 | R154: 0.02615986512 | S154: 0.0003181414535 | T154: 0.0003181414535 | V154: 1.898 | X154: 0.15 | Y154: 0.15 | Z154: 0.5 | AA154: 0.5 | AB154: 0.084 | AC154: 0.084 | AD154: 0.02 | AE154: 0.02 | AF154: 0.035 | AG154: 0.035 | AH154: 0.003 | AI154: 0.003 | AJ154: 0.1815219934 | AK154: 0.1815219934 | AL154: 0.02615986512 | AM154: 0.02615986512 | AN154: 0.0003181414535 | AO154: 0.0003181414535 | AQ154: 1.85
B155: 2033 | C155: 0.1005 | D155: 0.1005 | E155: 0.335 | F155: 0.335 | G155: 0.0804 | H155: 0.0804 | I155: 0.02 | J155: 0.02 | K155: 0.05 | L155: 0.05 | M155: 0.003 | N155: 0.003 | O155: 0.38514117 | P155: 0.38514117 | Q155: 0.02564692659 | R155: 0.02564692659 | S155: 0.0003119033858 | T155: 0.0003119033858 | V155: 1.8995 | X155: 0.15 | Y155: 0.15 | Z155: 0.5 | AA155: 0.5 | AB155: 0.0828 | AC155: 0.0828 | AD155: 0.02 | AE155: 0.02 | AF155: 0.0345 | AG155: 0.0345 | AH155: 0.003 | AI155: 0.003 | AJ155: 0.18374117 | AK155: 0.18374117 | AL155: 0.02564692659 | AM155: 0.02564692659 | AN155: 0.0003119033858 | AO155: 0.0003119033858 | AQ155: 1.85
B156: 2034 | C156: 0.099 | D156: 0.099 | E156: 0.33 | F156: 0.33 | G156: 0.0792 | H156: 0.0792 | I156: 0.02 | J156: 0.02 | K156: 0.05 | L156: 0.05 | M156: 0.003 | N156: 0.003 | O156: 0.3933501667 | P156: 0.3933501667 | Q156: 0.02514404568 | R156: 0.02514404568 | S156: 0.0003057876331 | T156: 0.0003057876331 | V156: 1.901 | X156: 0.15 | Y156: 0.15 | Z156: 0.5 | AA156: 0.5 | AB156: 0.0816 | AC156: 0.0816 | AD156: 0.02 | AE156: 0.02 | AF156: 0.034 | AG156: 0.034 | AH156: 0.003 | AI156: 0.003 | AJ156: 0.1859501667 | AK156: 0.1859501667 | AL156: 0.02514404568 | AM156: 0.02514404568 | AN156: 0.0003057876331 | AO156: 0.0003057876331 | AQ156: 1.85
B157: 2035 | C157: 0.0975 | D157: 0.0975 | E157: 0.325 | F157: 0.325 | G157: 0.078 | H157: 0.078 | I157: 0.02 | J157: 0.02 | K157: 0.05 | L157: 0.05 | M157: 0.003 | N157: 0.003 | O157: 0.401549183 | P157: 0.401549183 | Q157: 0.02465102517 | R157: 0.02465102517 | S157: 0.0002997917972 | T157: 0.0002997917972 | V157: 1.9025 | X157: 0.15 | Y157: 0.15 | Z157: 0.5 | AA157: 0.5 | AB157: 0.0804 | AC157: 0.0804 | AD157: 0.02 | AE157: 0.02 | AF157: 0.0335 | AG157: 0.0335 | AH157: 0.003 | AI157: 0.003 | AJ157: 0.188149183 | AK157: 0.188149183 | AL157: 0.02465102517 | AM157: 0.02465102517 | AN157: 0.0002997917972 | AO157: 0.0002997917972 | AQ157: 1.85
B158: 2036 | C158: 0.096 | D158: 0.096 | E158: 0.32 | F158: 0.32 | G158: 0.0768 | H158: 0.0768 | I158: 0.02 | J158: 0.02 | K158: 0.05 | L158: 0.05 | M158: 0.003 | N158: 0.003 | O158: 0.4097384147 | P158: 0.4097384147 | Q158: 0.02416767174 | R158: 0.02416767174 | S158: 0.0002939135266 | T158: 0.0002939135266 | V158: 1.904 | X158: 0.15 | Y158: 0.15 | Z158: 0.5 | AA158: 0.5 | AB158: 0.0792 | AC158: 0.0792 | AD158: 0.02 | AE158: 0.02 | AF158: 0.033 | AG158: 0.033 | AH158: 0.003 | AI158: 0.003 | AJ158: 0.1903384147 | AK158: 0.1903384147 | AL158: 0.02416767174 | AM158: 0.02416767174 | AN158: 0.0002939135266 | AO158: 0.0002939135266 | AQ158: 1.85
B159: 2037 | C159: 0.0945 | D159: 0.0945 | E159: 0.315 | F159: 0.315 | G159: 0.0756 | H159: 0.0756 | I159: 0.02 | J159: 0.02 | K159: 0.05 | L159: 0.05 | M159: 0.003 | N159: 0.003 | O159: 0.4179180537 | P159: 0.4179180537 | Q159: 0.02369379582 | R159: 0.02369379582 | S159: 0.0002881505163 | T159: 0.0002881505163 | V159: 1.9055 | X159: 0.15 | Y159: 0.15 | Z159: 0.5 | AA159: 0.5 | AB159: 0.078 | AC159: 0.078 | AD159: 0.02 | AE159: 0.02 | AF159: 0.0325 | AG159: 0.0325 | AH159: 0.003 | AI159: 0.003 | AJ159: 0.1925180537 | AK159: 0.1925180537 | AL159: 0.02369379582 | AM159: 0.02369379582 | AN159: 0.0002881505163 | AO159: 0.0002881505163 | AQ159: 1.85
B160: 2038 | C160: 0.093 | D160: 0.093 | E160: 0.31 | F160: 0.31 | G160: 0.0744 | H160: 0.0744 | I160: 0.02 | J160: 0.02 | K160: 0.05 | L160: 0.05 | M160: 0.003 | N160: 0.003 | O160: 0.4260882879 | P160: 0.4260882879 | Q160: 0.02322921159 | R160: 0.02322921159 | S160: 0.0002825005062 | T160: 0.0002825005062 | V160: 1.907 | X160: 0.15 | Y160: 0.15 | Z160: 0.5 | AA160: 0.5 | AB160: 0.0768 | AC160: 0.0768 | AD160: 0.02 | AE160: 0.02 | AF160: 0.032 | AG160: 0.032 | AH160: 0.003 | AI160: 0.003 | AJ160: 0.1946882879 | AK160: 0.1946882879 | AL160: 0.02322921159 | AM160: 0.02322921159 | AN160: 0.0002825005062 | AO160: 0.0002825005062 | AQ160: 1.85
B161: 2039 | C161: 0.0915 | D161: 0.0915 | E161: 0.305 | F161: 0.305 | G161: 0.0732 | H161: 0.0732 | I161: 0.02 | J161: 0.02 | K161: 0.05 | L161: 0.05 | M161: 0.003 | N161: 0.003 | O161: 0.4342493019 | P161: 0.4342493019 | Q161: 0.02277373685 | R161: 0.02277373685 | S161: 0.0002769612806 | T161: 0.0002769612806 | V161: 1.9085 | X161: 0.15 | Y161: 0.15 | Z161: 0.5 | AA161: 0.5 | AB161: 0.0756 | AC161: 0.0756 | AD161: 0.02 | AE161: 0.02 | AF161: 0.0315 | AG161: 0.0315 | AH161: 0.003 | AI161: 0.003 | AJ161: 0.1968493019 | AK161: 0.1968493019 | AL161: 0.02277373685 | AM161: 0.02277373685 | AN161: 0.0002769612806 | AO161: 0.0002769612806 | AQ161: 1.85
B162: 2040 | C162: 0.09 | D162: 0.09 | E162: 0.3 | F162: 0.3 | G162: 0.072 | H162: 0.072 | I162: 0.02 | J162: 0.02 | K162: 0.05 | L162: 0.05 | M162: 0.003 | N162: 0.003 | O162: 0.4424012763 | P162: 0.4424012763 | Q162: 0.02232719299 | R162: 0.02232719299 | S162: 0.0002715306672 | T162: 0.0002715306672 | V162: 1.91 | X162: 0.15 | Y162: 0.15 | Z162: 0.5 | AA162: 0.5 | AB162: 0.0744 | AC162: 0.0744 | AD162: 0.02 | AE162: 0.02 | AF162: 0.031 | AG162: 0.031 | AH162: 0.003 | AI162: 0.003 | AJ162: 0.1990012763 | AK162: 0.1990012763 | AL162: 0.02232719299 | AM162: 0.02232719299 | AN162: 0.0002715306672 | AO162: 0.0002715306672 | AQ162: 1.85
B163: 2041 | C163: 0.0885 | D163: 0.0885 | E163: 0.295 | F163: 0.295 | G163: 0.0708 | H163: 0.0708 | I163: 0.02 | J163: 0.02 | K163: 0.05 | L163: 0.05 | M163: 0.003 | N163: 0.003 | O163: 0.4505443886 | P163: 0.4505443886 | Q163: 0.02188940489 | R163: 0.02188940489 | S163: 0.0002662065365 | T163: 0.0002662065365 | V163: 1.9115 | X163: 0.15 | Y163: 0.15 | Z163: 0.5 | AA163: 0.5 | AB163: 0.0732 | AC163: 0.0732 | AD163: 0.02 | AE163: 0.02 | AF163: 0.0305 | AG163: 0.0305 | AH163: 0.003 | AI163: 0.003 | AJ163: 0.2011443886 | AK163: 0.2011443886 | AL163: 0.02188940489 | AM163: 0.02188940489 | AN163: 0.0002662065365 | AO163: 0.0002662065365 | AQ163: 1.85
B164: 2042 | C164: 0.087 | D164: 0.087 | E164: 0.29 | F164: 0.29 | G164: 0.0696 | H164: 0.0696 | I164: 0.02 | J164: 0.02 | K164: 0.05 | L164: 0.05 | M164: 0.003 | N164: 0.003 | O164: 0.4586788123 | P164: 0.4586788123 | Q164: 0.02146020088 | R164: 0.02146020088 | S164: 0.0002609868005 | T164: 0.0002609868005 | V164: 1.913 | X164: 0.15 | Y164: 0.15 | Z164: 0.5 | AA164: 0.5 | AB164: 0.072 | AC164: 0.072 | AD164: 0.02 | AE164: 0.02 | AF164: 0.03 | AG164: 0.03 | AH164: 0.003 | AI164: 0.003 | AJ164: 0.2032788123 | AK164: 0.2032788123 | AL164: 0.02146020088 | AM164: 0.02146020088 | AN164: 0.0002609868005 | AO164: 0.0002609868005 | AQ164: 1.85
B165: 2043 | C165: 0.0855 | D165: 0.0855 | E165: 0.285 | F165: 0.285 | G165: 0.0684 | H165: 0.0684 | I165: 0.02 | J165: 0.02 | K165: 0.05 | L165: 0.05 | M165: 0.003 | N165: 0.003 | O165: 0.466804718 | P165: 0.466804718 | Q165: 0.02103941262 | R165: 0.02103941262 | S165: 0.0002558694122 | T165: 0.0002558694122 | V165: 1.9145 | X165: 0.15 | Y165: 0.15 | Z165: 0.5 | AA165: 0.5 | AB165: 0.0708 | AC165: 0.0708 | AD165: 0.02 | AE165: 0.02 | AF165: 0.0295 | AG165: 0.0295 | AH165: 0.003 | AI165: 0.003 | AJ165: 0.205404718 | AK165: 0.205404718 | AL165: 0.02103941262 | AM165: 0.02103941262 | AN165: 0.0002558694122 | AO165: 0.0002558694122 | AQ165: 1.85
B166: 2044 | C166: 0.084 | D166: 0.084 | E166: 0.28 | F166: 0.28 | G166: 0.0672 | H166: 0.0672 | I166: 0.02 | J166: 0.02 | K166: 0.05 | L166: 0.05 | M166: 0.003 | N166: 0.003 | O166: 0.4749222725 | P166: 0.4749222725 | Q166: 0.02062687512 | R166: 0.02062687512 | S166: 0.0002508523649 | T166: 0.0002508523649 | V166: 1.916 | X166: 0.15 | Y166: 0.15 | Z166: 0.5 | AA166: 0.5 | AB166: 0.0696 | AC166: 0.0696 | AD166: 0.02 | AE166: 0.02 | AF166: 0.029 | AG166: 0.029 | AH166: 0.003 | AI166: 0.003 | AJ166: 0.2075222725 | AK166: 0.2075222725 | AL166: 0.02062687512 | AM166: 0.02062687512 | AN166: 0.0002508523649 | AO166: 0.0002508523649 | AQ166: 1.85
B167: 2045 | C167: 0.0825 | D167: 0.0825 | E167: 0.275 | F167: 0.275 | G167: 0.066 | H167: 0.066 | I167: 0.02 | J167: 0.02 | K167: 0.05 | L167: 0.05 | M167: 0.003 | N167: 0.003 | O167: 0.4830316397 | P167: 0.4830316397 | Q167: 0.02022242659 | R167: 0.02022242659 | S167: 0.0002459336911 | T167: 0.0002459336911 | V167: 1.9175 | X167: 0.15 | Y167: 0.15 | Z167: 0.5 | AA167: 0.5 | AB167: 0.0684 | AC167: 0.0684 | AD167: 0.02 | AE167: 0.02 | AF167: 0.0285 | AG167: 0.0285 | AH167: 0.003 | AI167: 0.003 | AJ167: 0.2096316397 | AK167: 0.2096316397 | AL167: 0.02022242659 | AM167: 0.02022242659 | AN167: 0.0002459336911 | AO167: 0.0002459336911 | AQ167: 1.85
B168: 2046 | C168: 0.081 | D168: 0.081 | E168: 0.27 | F168: 0.27 | G168: 0.0648 | H168: 0.0648 | I168: 0.02 | J168: 0.02 | K168: 0.05 | L168: 0.05 | M168: 0.003 | N168: 0.003 | O168: 0.4911329801 | P168: 0.4911329801 | Q168: 0.01982590842 | R168: 0.01982590842 | S168: 0.0002411114619 | T168: 0.0002411114619 | V168: 1.919 | X168: 0.15 | Y168: 0.15 | Z168: 0.5 | AA168: 0.5 | AB168: 0.0672 | AC168: 0.0672 | AD168: 0.02 | AE168: 0.02 | AF168: 0.028 | AG168: 0.028 | AH168: 0.003 | AI168: 0.003 | AJ168: 0.2117329801 | AK168: 0.2117329801 | AL168: 0.01982590842 | AM168: 0.01982590842 | AN168: 0.0002411114619 | AO168: 0.0002411114619 | AQ168: 1.85
B169: 2047 | C169: 0.0795 | D169: 0.0795 | E169: 0.265 | F169: 0.265 | G169: 0.0636 | H169: 0.0636 | I169: 0.02 | J169: 0.02 | K169: 0.05 | L169: 0.05 | M169: 0.003 | N169: 0.003 | O169: 0.4992264511 | P169: 0.4992264511 | Q169: 0.01943716512 | R169: 0.01943716512 | S169: 0.0002363837862 | T169: 0.0002363837862 | V169: 1.9205 | X169: 0.15 | Y169: 0.15 | Z169: 0.5 | AA169: 0.5 | AB169: 0.066 | AC169: 0.066 | AD169: 0.02 | AE169: 0.02 | AF169: 0.0275 | AG169: 0.0275 | AH169: 0.003 | AI169: 0.003 | AJ169: 0.2138264511 | AK169: 0.2138264511 | AL169: 0.01943716512 | AM169: 0.01943716512 | AN169: 0.0002363837862 | AO169: 0.0002363837862 | AQ169: 1.85
B170: 2048 | C170: 0.078 | D170: 0.078 | E170: 0.26 | F170: 0.26 | G170: 0.0624 | H170: 0.0624 | I170: 0.02 | J170: 0.02 | K170: 0.05 | L170: 0.05 | M170: 0.003 | N170: 0.003 | O170: 0.507312207 | P170: 0.507312207 | Q170: 0.01905604423 | R170: 0.01905604423 | S170: 0.00023174881 | T170: 0.00023174881 | V170: 1.922 | X170: 0.15 | Y170: 0.15 | Z170: 0.5 | AA170: 0.5 | AB170: 0.0648 | AC170: 0.0648 | AD170: 0.02 | AE170: 0.02 | AF170: 0.027 | AG170: 0.027 | AH170: 0.003 | AI170: 0.003 | AJ170: 0.215912207 | AK170: 0.215912207 | AL170: 0.01905604423 | AM170: 0.01905604423 | AN170: 0.00023174881 | AO170: 0.00023174881 | AQ170: 1.85
B171: 2049 | C171: 0.0765 | D171: 0.0765 | E171: 0.255 | F171: 0.255 | G171: 0.0612 | H171: 0.0612 | I171: 0.02 | J171: 0.02 | K171: 0.05 | L171: 0.05 | M171: 0.003 | N171: 0.003 | O171: 0.515390399 | P171: 0.515390399 | Q171: 0.01868239631 | R171: 0.01868239631 | S171: 0.0002272047156 | T171: 0.0002272047156 | V171: 1.9235 | X171: 0.15 | Y171: 0.15 | Z171: 0.5 | AA171: 0.5 | AB171: 0.0636 | AC171: 0.0636 | AD171: 0.02 | AE171: 0.02 | AF171: 0.0265 | AG171: 0.0265 | AH171: 0.003 | AI171: 0.003 | AJ171: 0.217990399 | AK171: 0.217990399 | AL171: 0.01868239631 | AM171: 0.01868239631 | AN171: 0.0002272047156 | AO171: 0.0002272047156 | AQ171: 1.85
B172: 2050 | C172: 0.075 | D172: 0.075 | E172: 0.25 | F172: 0.25 | G172: 0.06 | H172: 0.06 | I172: 0.02 | J172: 0.02 | K172: 0.05 | L172: 0.05 | M172: 0.003 | N172: 0.003 | O172: 0.5234611755 | P172: 0.5234611755 | Q172: 0.01831607481 | R172: 0.01831607481 | S172: 0.0002227497212 | T172: 0.0002227497212 | V172: 1.925 | X172: 0.15 | Y172: 0.15 | Z172: 0.5 | AA172: 0.5 | AB172: 0.0624 | AC172: 0.0624 | AD172: 0.02 | AE172: 0.02 | AF172: 0.026 | AG172: 0.026 | AH172: 0.003 | AI172: 0.003 | AJ172: 0.2200611755 | AK172: 0.2200611755 | AL172: 0.01831607481 | AM172: 0.01831607481 | AN172: 0.0002227497212 | AO172: 0.0002227497212 | AQ172: 1.85
B175: 5. Scenario 4: Waste to energy (WTE)
B177: Year | C177: Food (Gg/yr) | E177: Garden (Gg/yr) | G177: Paper (Gg/yr) | I177: Wood (Gg/yr) | K177: Textiles (Gg/yr) | M177: Nappies (Gg/yr) | O177: Inert (Gg/yr) | Q177: Sludge (Gg/yr) | S177: Industrial (Gg/yr)
C178: TNC | D178: USER | E178: TNC | F178: USER | G178: TNC | H178: USER | I178: TNC | J178: USER | K178: TNC | L178: USER | M178: TNC | N178: USER | O178: TNC | P178: USER | Q178: TNC | R178: USER | S178: TNC | T178: USER | U178: TNC | V178: USER
B179: =B6 -> 2000 | C179: 0.15 | D179: 0.15 | E179: 0.5 | F179: 0.5 | G179: 0.12 | H179: 0.12 | I179: 0.02 | J179: 0.02 | K179: 0.05 | L179: 0.05 | M179: 0.003 | N179: 0.003 | O179: 0.157 | P179: 0.157 | Q179: 0 | R179: 0 | S179: 0 | T179: 0 | V179: =SUM(D179:T179) -> 1.85
B180: 2001 | C180: 0.15 | D180: 0.15 | E180: 0.5 | F180: 0.5 | G180: 0.12 | H180: 0.12 | I180: 0.02 | J180: 0.02 | K180: 0.05 | L180: 0.05 | M180: 0.003 | N180: 0.003 | O180: 0.157 | P180: 0.157 | Q180: 0 | R180: 0 | S180: 0 | T180: 0 | V180: =SUM(D180:T180) -> 1.85
B181: 2002 | C181: 0.15 | D181: 0.15 | E181: 0.5 | F181: 0.5 | G181: 0.12 | H181: 0.12 | I181: 0.02 | J181: 0.02 | K181: 0.05 | L181: 0.05 | M181: 0.003 | N181: 0.003 | O181: 0.157 | P181: 0.157 | Q181: 0 | R181: 0 | S181: 0 | T181: 0 | V181: 1.85
B182: 2003 | C182: 0.15 | D182: 0.15 | E182: 0.5 | F182: 0.5 | G182: 0.12 | H182: 0.12 | I182: 0.02 | J182: 0.02 | K182: 0.05 | L182: 0.05 | M182: 0.003 | N182: 0.003 | O182: 0.157 | P182: 0.157 | Q182: 0 | R182: 0 | S182: 0 | T182: 0 | V182: 1.85
B183: 2004 | C183: 0.15 | D183: 0.15 | E183: 0.5 | F183: 0.5 | G183: 0.12 | H183: 0.12 | I183: 0.02 | J183: 0.02 | K183: 0.05 | L183: 0.05 | M183: 0.003 | N183: 0.003 | O183: 0.157 | P183: 0.157 | Q183: 0 | R183: 0 | S183: 0 | T183: 0 | V183: 1.85
B184: 2005 | C184: 0.15 | D184: 0.15 | E184: 0.5 | F184: 0.5 | G184: 0.12 | H184: 0.12 | I184: 0.02 | J184: 0.02 | K184: 0.05 | L184: 0.05 | M184: 0.003 | N184: 0.003 | O184: 0.1404693952 | P184: 0.1404693952 | Q184: 0.01515467889 | R184: 0.01515467889 | S184: 0.001375925922 | T184: 0.001375925922 | V184: 1.85
B185: 2006 | C185: 0.15 | D185: 0.15 | E185: 0.5 | F185: 0.5 | G185: 0.12 | H185: 0.12 | I185: 0.02 | J185: 0.02 | K185: 0.05 | L185: 0.05 | M185: 0.003 | N185: 0.003 | O185: 0.1359830426 | P185: 0.1359830426 | Q185: 0.01979147311 | R185: 0.01979147311 | S185: 0.001225484281 | T185: 0.001225484281 | V185: 1.85
B186: 2007 | C186: 0.15 | D186: 0.15 | E186: 0.5 | F186: 0.5 | G186: 0.12 | H186: 0.12 | I186: 0.02 | J186: 0.02 | K186: 0.05 | L186: 0.05 | M186: 0.003 | N186: 0.003 | O186: 0.1215968362 | P186: 0.1215968362 | Q186: 0.03315506906 | R186: 0.03315506906 | S186: 0.002248094708 | T186: 0.002248094708 | V186: 1.85
B187: 2008 | C187: 0.15 | D187: 0.15 | E187: 0.5 | F187: 0.5 | G187: 0.12 | H187: 0.12 | I187: 0.02 | J187: 0.02 | K187: 0.05 | L187: 0.05 | M187: 0.003 | N187: 0.003 | O187: 0.1246060009 | P187: 0.1246060009 | Q187: 0.03040871176 | R187: 0.03040871176 | S187: 0.001985287367 | T187: 0.001985287367 | V187: 1.85
B188: 2009 | C188: 0.15 | D188: 0.15 | E188: 0.5 | F188: 0.5 | G188: 0.12 | H188: 0.12 | I188: 0.02 | J188: 0.02 | K188: 0.05 | L188: 0.05 | M188: 0.003 | N188: 0.003 | O188: 0.1322542015 | P188: 0.1322542015 | Q188: 0.02194042454 | R188: 0.02194042454 | S188: 0.002805373941 | T188: 0.002805373941 | V188: 1.85
B189: 2010 | C189: 0.15 | D189: 0.15 | E189: 0.5 | F189: 0.5 | G189: 0.12 | H189: 0.12 | I189: 0.02 | J189: 0.02 | K189: 0.05 | L189: 0.05 | M189: 0.003 | N189: 0.003 | O189: 0.1287538939 | P189: 0.1287538939 | Q189: 0.02560021863 | R189: 0.02560021863 | S189: 0.002645887461 | T189: 0.002645887461 | V189: 1.85
B190: 2011 | C190: 0.15 | D190: 0.15 | E190: 0.5 | F190: 0.5 | G190: 0.12 | H190: 0.12 | I190: 0.02 | J190: 0.02 | K190: 0.05 | L190: 0.05 | M190: 0.003 | N190: 0.003 | O190: 0.1281333276 | P190: 0.1281333276 | Q190: 0.02509567455 | R190: 0.02509567455 | S190: 0.003770997844 | T190: 0.003770997844 | V190: 1.85
B191: 2012 | C191: 0.15 | D191: 0.15 | E191: 0.5 | F191: 0.5 | G191: 0.12 | H191: 0.12 | I191: 0.02 | J191: 0.02 | K191: 0.05 | L191: 0.05 | M191: 0.003 | N191: 0.003 | O191: 0.1362509909 | P191: 0.1362509909 | Q191: 0.01900109173 | R191: 0.01900109173 | S191: 0.001747917389 | T191: 0.001747917389 | V191: 1.85
B192: 2013 | C192: 0.15 | D192: 0.15 | E192: 0.5 | F192: 0.5 | G192: 0.12 | H192: 0.12 | I192: 0.02 | J192: 0.02 | K192: 0.05 | L192: 0.05 | M192: 0.003 | N192: 0.003 | O192: 0.1400397906 | P192: 0.1400397906 | Q192: 0.01620398168 | R192: 0.01620398168 | S192: 0.0007562277008 | T192: 0.0007562277008 | V192: 1.85
B193: 2014 | C193: 0.15 | D193: 0.15 | E193: 0.5 | F193: 0.5 | G193: 0.12 | H193: 0.12 | I193: 0.02 | J193: 0.02 | K193: 0.05 | L193: 0.05 | M193: 0.003 | N193: 0.003 | O193: 0.1440913726 | P193: 0.1440913726 | Q193: 0.01245424307 | R193: 0.01245424307 | S193: 0.0004543843371 | T193: 0.0004543843371 | V193: 1.85
B194: 2015 | C194: 0.15 | D194: 0.15 | E194: 0.5 | F194: 0.5 | G194: 0.12 | H194: 0.12 | I194: 0.02 | J194: 0.02 | K194: 0.05 | L194: 0.05 | M194: 0.003 | N194: 0.003 | O194: 0.1428182277 | P194: 0.1428182277 | Q194: 0.0137362975 | R194: 0.0137362975 | S194: 0.0004454748403 | T194: 0.0004454748403 | V194: 1.85
B195: 2016 | C195: 0.15 | D195: 0.15 | E195: 0.5 | F195: 0.5 | G195: 0.12 | H195: 0.12 | I195: 0.02 | J195: 0.02 | K195: 0.05 | L195: 0.05 | M195: 0.003 | N195: 0.003 | O195: 0.1415999729 | P195: 0.1415999729 | Q195: 0.01496328704 | R195: 0.01496328704 | S195: 0.0004367400395 | T195: 0.0004367400395 | V195: 1.85
B196: 2017 | C196: 0.15 | D196: 0.15 | E196: 0.5 | F196: 0.5 | G196: 0.12 | H196: 0.12 | I196: 0.02 | J196: 0.02 | K196: 0.05 | L196: 0.05 | M196: 0.003 | N196: 0.003 | O196: 0.1404349453 | P196: 0.1404349453 | Q196: 0.01613687818 | R196: 0.01613687818 | S196: 0.0004281765094 | T196: 0.0004281765094 | V196: 1.85
B197: 2018 | C197: 0.15 | D197: 0.15 | E197: 0.5 | F197: 0.5 | G197: 0.12 | H197: 0.12 | I197: 0.02 | J197: 0.02 | K197: 0.05 | L197: 0.05 | M197: 0.003 | N197: 0.003 | O197: 0.1393215259 | P197: 0.1393215259 | Q197: 0.01725869324 | R197: 0.01725869324 | S197: 0.0004197808915 | T197: 0.0004197808915 | V197: 1.85
B198: 2019 | C198: 0.07861600926 | D198: 0.07861600926 | E198: 0.2620533642 | F198: 0.2620533642 | G198: 0.06289280741 | H198: 0.06289280741 | I198: 0.01048213457 | J198: 0.01048213457 | K198: 0.02620533642 | L198: 0.02620533642 | M198: 0.001572320185 | N198: 0.001572320185 | O198: 0.5394361666 | P198: 0.5394361666 | Q198: 0.01833031144 | R198: 0.01833031144 | S198: 0.0004115498937 | T198: 0.0004115498937 | V198: 1.921383991
B199: 2020 | C199: 0.08001569535 | D199: 0.08001569535 | E199: 0.2667189845 | F199: 0.2667189845 | G199: 0.06401255628 | H199: 0.06401255628 | I199: 0.01066875938 | J199: 0.01066875938 | K199: 0.02667189845 | L199: 0.02667189845 | M199: 0.001600313907 | N199: 0.001600313907 | O199: 0.5305550418 | P199: 0.5305550418 | Q199: 0.01935327 | R199: 0.01935327 | S199: 0.0004034802879 | T199: 0.0004034802879 | V199: 1.919984305
B200: 2021 | C200: 0.08138793662 | D200: 0.08138793662 | E200: 0.2712931221 | F200: 0.2712931221 | G200: 0.0651103493 | H200: 0.0651103493 | I200: 0.01085172488 | J200: 0.01085172488 | K200: 0.02712931221 | L200: 0.02712931221 | M200: 0.001627758732 | N200: 0.001627758732 | O200: 0.5218751622 | P200: 0.5218751622 | Q200: 0.02032906513 | R200: 0.02032906513 | S200: 0.0003955689097 | T200: 0.0003955689097 | V200: 1.918612063
B201: 2022 | C201: 0.0827332712 | D201: 0.0827332712 | E201: 0.2757775707 | F201: 0.2757775707 | G201: 0.06618661696 | H201: 0.06618661696 | I201: 0.01103110283 | J201: 0.01103110283 | K201: 0.02757775707 | L201: 0.02757775707 | M201: 0.001654665424 | N201: 0.001654665424 | O201: 0.5133920502 | P201: 0.5133920502 | Q201: 0.02125915307 | R201: 0.02125915307 | S201: 0.0003878126566 | T201: 0.0003878126566 | V201: 1.917266729
B202: 2023 | C202: 0.08405222666 | D202: 0.08405222666 | E202: 0.2801740889 | F202: 0.2801740889 | G202: 0.06724178133 | H202: 0.06724178133 | I202: 0.01120696355 | J202: 0.01120696355 | K202: 0.02801740889 | L202: 0.02801740889 | M202: 0.001681044533 | N202: 0.001681044533 | O202: 0.5051013266 | P202: 0.5051013266 | Q202: 0.02214495112 | R202: 0.02214495112 | S202: 0.0003802084868 | T202: 0.0003802084868 | V202: 1.915947773
B203: 2024 | C203: 0.08534532026 | D203: 0.08534532026 | E203: 0.2844844009 | F203: 0.2844844009 | G203: 0.06827625621 | H203: 0.06827625621 | I203: 0.01137937603 | J203: 0.01137937603 | K203: 0.02844844009 | L203: 0.02844844009 | M203: 0.001706906405 | N203: 0.001706906405 | O203: 0.4969987082 | P203: 0.4969987082 | Q203: 0.02298783853 | R203: 0.02298783853 | S203: 0.0003727534185 | T203: 0.0003727534185 | V203: 1.91465468
B204: 2025 | C204: 0.08661305908 | D204: 0.08661305908 | E204: 0.2887101969 | F204: 0.2887101969 | G204: 0.06929044726 | H204: 0.06929044726 | I204: 0.01154840788 | J204: 0.01154840788 | K204: 0.02887101969 | L204: 0.02887101969 | M204: 0.001732261182 | N204: 0.001732261182 | O204: 0.4890800059 | P204: 0.4890800059 | Q204: 0.02378915752 | R204: 0.02378915752 | S204: 0.0003654445279 | T204: 0.0003654445279 | V204: 1.913386941
B205: 2026 | C205: 0.08785594027 | D205: 0.08785594027 | E205: 0.2928531342 | F205: 0.2928531342 | G205: 0.07028475222 | H205: 0.07028475222 | I205: 0.01171412537 | J205: 0.01171412537 | K205: 0.02928531342 | L205: 0.02928531342 | M205: 0.001757118805 | N205: 0.001757118805 | O205: 0.4813411226 | P205: 0.4813411226 | Q205: 0.02455021416 | R205: 0.02455021416 | S205: 0.0003582789489 | T205: 0.0003582789489 | V205: 1.91214406
B206: 2027 | C206: 0.08907445125 | D206: 0.08907445125 | E206: 0.2969148375 | F206: 0.2969148375 | G206: 0.071259561 | H206: 0.071259561 | I206: 0.0118765935 | J206: 0.0118765935 | K206: 0.02969148375 | L206: 0.02969148375 | M206: 0.001781489025 | N206: 0.001781489025 | O206: 0.4737780508 | P206: 0.4737780508 | Q206: 0.02527227928 | R206: 0.02527227928 | S206: 0.0003512538715 | T206: 0.0003512538715 | V206: 1.910925549
B207: 2028 | C207: 0.09026906985 | D207: 0.09026906985 | E207: 0.3008968995 | F207: 0.3008968995 | G207: 0.07221525588 | H207: 0.07221525588 | I207: 0.01203587598 | J207: 0.01203587598 | K207: 0.03008968995 | L207: 0.03008968995 | M207: 0.001805381397 | N207: 0.001805381397 | O207: 0.4663868715 | P207: 0.4663868715 | Q207: 0.02595658937 | R207: 0.02595658937 | S207: 0.0003443665407 | T207: 0.0003443665407 | V207: 1.90973093
B208: 2029 | C208: 0.09144026456 | D208: 0.09144026456 | E208: 0.3048008819 | F208: 0.3048008819 | G208: 0.07315221165 | H208: 0.07315221165 | I208: 0.01219203527 | J208: 0.01219203527 | K208: 0.03048008819 | L208: 0.03048008819 | M208: 0.001828805291 | N208: 0.001828805291 | O208: 0.4591637515 | P208: 0.4591637515 | Q208: 0.02660434739 | R208: 0.02660434739 | S208: 0.0003376142556 | T208: 0.0003376142556 | V208: 1.908559735
B209: 2030 | C209: 0.09258849466 | D209: 0.09258849466 | E209: 0.3086283155 | F209: 0.3086283155 | G209: 0.07407079573 | H209: 0.07407079573 | I209: 0.01234513262 | J209: 0.01234513262 | K209: 0.03086283155 | L209: 0.03086283155 | M209: 0.001851769893 | N209: 0.001851769893 | O209: 0.4521049419 | P209: 0.4521049419 | Q209: 0.02721672367 | R209: 0.02721672367 | S209: 0.0003309943682 | T209: 0.0003309943682 | V209: 1.907411505
B210: 2031 | C210: 0.09371421045 | D210: 0.09371421045 | E210: 0.3123807015 | F210: 0.3123807015 | G210: 0.07497136836 | H210: 0.07497136836 | I210: 0.01249522806 | J210: 0.01249522806 | K210: 0.03123807015 | L210: 0.03123807015 | M210: 0.001874284209 | N210: 0.001874284209 | O210: 0.4463185705 | P210: 0.4463185705 | Q210: 0.02668306242 | R210: 0.02668306242 | S210: 0.0003245042826 | T210: 0.0003245042826 | V210: 1.90628579
... 182 more rows

Sheet 6. UD1 Assumptions
A1: UD1 Assumptions | F1: Excel Toolkit for Mitigation Analysis for Low-Carbon Development Planning | R1: XLMT-Solid Wastes v17.1
A3: A | B3: POPULATION AND SOLID WASTE GENERATION | M3: NOT USED IN CALCULATIONS
B4: Year | C4: Population (million) | E4: Waste per capita, WPC (kg/cap/yr) | G4: Total Waste (Gg/yr) | I4: % to SWDS | K4: Waste to SWDS (Gg/yr) | M4: Waste to SWDS under WTE Scenario (Gg/yr) | O4: % Waste Composted | Q4: % Waste to SWDS under Composting project | S4: Waste to SWDS under Composting project (Gg/yr) | U4: % Waste Recycled | W4: % Waste to SWDS under recycling project | Y4: Waste to SWDS under Recycling project(Gg/yr)
C5: TNC | D5: USER | E5: TNC | F5: USER | G5: TNC | H5: USER | I5: TNC | J5: USER | K5: TNC | L5: USER | M5: TNC | N5: USER | O5: TNC | P5: USER | Q5: TNC | R5: USER | S5: TNC | T5: USER | U5: TNC | V5: USER | W5: TNC | X5: USER | Y5: TNC | Z5: USER
B6: 2000 | C6: 1.151094 | D6: 1.151094 | E6: 230.93 | F6: 230.93 | G6: =C6*E6 -> 265.8221374 | H6: =D6*F6 -> 265.8221374 | I6: 0.75 | J6: 0.75 | K6: 199.3666031 | L6: 0 | M6: 199.3666031 | N6: 199.3666031
B7: 2001 | C7: 1.160083 | D7: 1.160083 | E7: 264.37 | F7: 264.37 | G7: =C7*E7 -> 306.6911427 | H7: 306.6911427 | I7: 0.88 | J7: 0.88 | K7: 269.8882056 | L7: =H7*J7 -> 269.8882056 | M7: 269.8882056 | N7: 269.8882056
B8: 2002 | C8: 1.167995 | D8: 1.167995 | E8: 311.57 | F8: 311.57 | G8: 363.9122021 | H8: 363.9122021 | I8: 1 | J8: 1 | K8: 363.9122021 | L8: 363.9122021 | M8: 363.9122021 | N8: 363.9122021
B9: 2003 | C9: 1.176323 | D9: 1.176323 | E9: 316.62 | F9: 316.62 | G9: 372.4473883 | H9: 372.4473883 | I9: 1 | J9: 1 | K9: 372.4473883 | L9: 372.4473883 | M9: 372.4473883 | N9: 372.4473883
B10: 2004 | C10: 1.183533 | D10: 1.183533 | E10: 322.09 | F10: 322.09 | G10: 381.204144 | H10: 381.204144 | I10: 1 | J10: 1 | K10: 381.204144 | L10: 381.204144 | M10: 381.204144 | N10: 381.204144
B11: 2005 | C11: 1.190361 | D11: 1.190361 | E11: 327.78 | F11: 327.78 | G11: 390.1765286 | H11: 390.1765286 | I11: 1 | J11: 1 | K11: 390.1765286 | L11: 390.1765286 | M11: 390.1765286 | N11: 390.1765286
B12: 2006 | C12: 1.195676 | D12: 1.195676 | E12: 340.43 | F12: 340.43 | G12: 407.0439807 | H12: 407.0439807 | I12: 1 | J12: 1 | K12: 407.0439807 | L12: 407.0439807 | M12: 407.0439807 | N12: 407.0439807
B13: 2007 | C13: 1.200887 | D13: 1.200887 | E13: 328.44 | F13: 328.44 | G13: 394.4193263 | H13: 394.4193263 | I13: 1 | J13: 1 | K13: 394.4193263 | L13: 394.4193263 | M13: 394.4193263 | N13: 394.4193263
B14: 2008 | C14: 1.204955 | D14: 1.204955 | E14: 331.54 | F14: 331.54 | G14: 399.4907807 | H14: 399.4907807 | I14: 1 | J14: 1 | K14: 399.4907807 | L14: 399.4907807 | M14: 399.4907807 | N14: 399.4907807
B15: 2009 | C15: 1.207842 | D15: 1.207842 | E15: 344.37 | F15: 344.37 | G15: 415.9445495 | H15: 415.9445495 | I15: 1 | J15: 1 | K15: 415.9445495 | L15: 415.9445495 | M15: 415.9445495 | N15: 415.9445495
B16: 2010 | C16: 1.210391 | D16: 1.210391 | E16: 353.35 | F16: 353.35 | G16: 427.6916599 | H16: 427.6916599 | I16: 1 | J16: 1 | K16: 427.6916599 | L16: 427.6916599 | M16: 427.6916599 | N16: 427.6916599
B17: 2011 | C17: 1.21197 | D17: 1.21197 | E17: 342 | F17: 342 | G17: 414.49374 | H17: 414.49374 | I17: 1 | J17: 1 | K17: 414.49374 | L17: 414.49374 | M17: 414.49374 | N17: 414.49374
B18: 2012 | C18: 1.214987 | D18: 1.214987 | E18: 319.24 | F18: 319.24 | G18: 387.8724499 | H18: 387.8724499 | I18: 1 | J18: 1 | K18: 387.8724499 | L18: 387.8724499 | M18: 387.8724499 | N18: 387.8724499
B19: 2013 | C19: 1.217341 | D19: 1.217341 | E19: 352.99 | F19: 352.99 | G19: 429.7091996 | H19: 429.7091996 | I19: 1 | J19: 1 | K19: 429.7091996 | L19: 429.7091996 | M19: 429.7091996 | N19: 429.7091996
B20: 2014 | C20: 1.219265 | D20: 1.219265 | E20: 341.85 | F20: 341.85 | G20: 416.8057403 | H20: 416.8057403 | I20: 1 | J20: 1 | K20: 416.8057403 | L20: 416.8057403 | M20: 416.8057403 | N20: 416.8057403
B21: 2015 | C21: 1.2199292 | D21: 1.2199292 | E21: 348.4971546 | F21: 348.4971546 | G21: 425.1418551 | H21: 425.1418551 | I21: 1 | J21: 1 | K21: 425.1418551 | L21: 425.1418551 | M21: 425.1418551 | N21: 425.1418551
B22: 2016 | C22: 1.2205934 | D22: 1.2205934 | E22: 355.2736662 | F22: 355.2736662 | G22: 433.6446922 | H22: 433.6446922 | I22: 1 | J22: 1 | K22: 433.6446922 | L22: 433.6446922 | M22: 433.6446922 | N22: 433.6446922
B23: 2017 | C23: 1.2212576 | D23: 1.2212576 | E23: 362.182054 | F23: 362.182054 | G23: 442.317586 | H23: 442.317586 | I23: 1 | J23: 1 | K23: 442.317586 | L23: 442.317586 | M23: 442.317586 | N23: 442.317586 | O23: 0.02 | P23: 0.02 | Q23: 0.98 | R23: 0.98 | S23: 433.4712343 | T23: 433.4712343 | U23: 0.02 | V23: 0.02 | W23: 0.98 | X23: 0.98 | Y23: 433.4712343 | Z23: 433.4712343
B24: 2018 | C24: 1.2219218 | D24: 1.2219218 | E24: 369.2248863 | F24: 369.2248863 | G24: 451.1639377 | H24: 451.1639377 | I24: 1 | J24: 1 | K24: 451.1639377 | L24: 451.1639377 | M24: 451.1639377 | N24: 451.1639377 | O24: 0.04 | P24: 0.04 | Q24: 0.96 | R24: 0.96 | S24: 433.1173802 | T24: 433.1173802 | U24: 0.04 | V24: 0.04 | W24: 0.96 | X24: 0.96 | Y24: 433.1173802 | Z24: 433.1173802
B25: 2019 | C25: 1.222586 | D25: 1.222586 | E25: 376.4047817 | F25: 376.4047817 | G25: 460.1872165 | H25: 460.1872165 | I25: 1 | J25: 1 | K25: 460.1872165 | L25: 460.1872165 | M25: 241.1872165 | N25: 241.1872165 | O25: 0.06 | P25: 0.06 | Q25: 0.94 | R25: 0.94 | S25: 432.5759835 | T25: 432.5759835 | U25: 0.06 | V25: 0.06 | W25: 0.94 | X25: 0.94 | Y25: 432.5759835 | Z25: 432.5759835
B26: 2020 | C26: 1.2218556 | D26: 1.2218556 | E26: 384.1623845 | F26: 384.1623845 | G26: 469.3909608 | H26: 469.3909608 | I26: 1 | J26: 1 | K26: 469.3909608 | L26: 469.3909608 | M26: 250.3909608 | N26: 250.3909608 | O26: 0.08 | P26: 0.08 | Q26: 0.92 | R26: 0.92 | S26: 431.8396839 | T26: 431.8396839 | U26: 0.08 | V26: 0.08 | W26: 0.92 | X26: 0.92 | Y26: 431.8396839 | Z26: 431.8396839
B27: 2021 | C27: 1.2211252 | D27: 1.2211252 | E27: 392.0800095 | F27: 392.0800095 | G27: 478.77878 | H27: 478.77878 | I27: 1 | J27: 1 | K27: 478.77878 | L27: 478.77878 | M27: 259.77878 | N27: 259.77878 | O27: 0.1 | P27: 0.1 | Q27: 0.9 | R27: 0.9 | S27: 430.900902 | T27: 430.900902 | U27: 0.1 | V27: 0.1 | W27: 0.9 | X27: 0.9 | Y27: 430.900902 | Z27: 430.900902
B28: 2022 | C28: 1.2203948 | D28: 1.2203948 | E28: 400.1609607 | F28: 400.1609607 | G28: 488.3543556 | H28: 488.3543556 | I28: 1 | J28: 1 | K28: 488.3543556 | L28: 488.3543556 | M28: 269.3543556 | N28: 269.3543556 | O28: 0.12 | P28: 0.12 | Q28: 0.88 | R28: 0.88 | S28: 429.7518329 | T28: 429.7518329 | U28: 0.12 | V28: 0.12 | W28: 0.88 | X28: 0.88 | Y28: 429.7518329 | Z28: 429.7518329
B29: 2023 | C29: 1.2196644 | D29: 1.2196644 | E29: 408.4086104 | F29: 408.4086104 | G29: 498.1214427 | H29: 498.1214427 | I29: 1 | J29: 1 | K29: 498.1214427 | L29: 498.1214427 | M29: 279.1214427 | N29: 279.1214427 | O29: 0.14 | P29: 0.14 | Q29: 0.86 | R29: 0.86 | S29: 428.3844407 | T29: 428.3844407 | U29: 0.14 | V29: 0.14 | W29: 0.86 | X29: 0.86 | Y29: 428.3844407 | Z29: 428.3844407
B30: 2024 | C30: 1.218934 | D30: 1.218934 | E30: 416.8264004 | F30: 416.8264004 | G30: 508.0838716 | H30: 508.0838716 | I30: 1 | J30: 1 | K30: 508.0838716 | L30: 508.0838716 | M30: 289.0838716 | N30: 289.0838716 | O30: 0.16 | P30: 0.16 | Q30: 0.84 | R30: 0.84 | S30: 426.7904521 | T30: 426.7904521 | U30: 0.16 | V30: 0.16 | W30: 0.84 | X30: 0.84 | Y30: 426.7904521 | Z30: 426.7904521
B31: 2025 | C31: 1.2161912 | D31: 1.2161912 | E31: 426.1217718 | F31: 426.1217718 | G31: 518.245549 | H31: 518.245549 | I31: 1 | J31: 1 | K31: 518.245549 | L31: 518.245549 | M31: 299.245549 | N31: 299.245549 | O31: 0.18 | P31: 0.18 | Q31: 0.82 | R31: 0.82 | S31: 424.9613502 | T31: 424.9613502 | U31: 0.18 | V31: 0.18 | W31: 0.82 | X31: 0.82 | Y31: 424.9613502 | Z31: 424.9613502
B32: 2026 | C32: 1.2134484 | D32: 1.2134484 | E32: 435.6266488 | F32: 435.6266488 | G32: 528.61046 | H32: 528.61046 | I32: 1 | J32: 1 | K32: 528.61046 | L32: 528.61046 | M32: 309.61046 | N32: 309.61046 | O32: 0.2 | P32: 0.2 | Q32: 0.8 | R32: 0.8 | S32: 422.888368 | T32: 422.888368 | U32: 0.2 | V32: 0.2 | W32: 0.8 | X32: 0.8 | Y32: 422.888368 | Z32: 422.888368
B33: 2027 | C33: 1.2107056 | D33: 1.2107056 | E33: 445.3458126 | F33: 445.3458126 | G33: 539.1826692 | H33: 539.1826692 | I33: 1 | J33: 1 | K33: 539.1826692 | L33: 539.1826692 | M33: 320.1826692 | N33: 320.1826692 | O33: 0.24 | P33: 0.24 | Q33: 0.76 | R33: 0.76 | S33: 409.7788286 | T33: 409.7788286 | U33: 0.22 | V33: 0.22 | W33: 0.78 | X33: 0.78 | Y33: 420.562482 | Z33: 420.562482
B34: 2028 | C34: 1.2079628 | D34: 1.2079628 | E34: 455.2841549 | F34: 455.2841549 | G34: 549.9663226 | H34: 549.9663226 | I34: 1 | J34: 1 | K34: 549.9663226 | L34: 549.9663226 | M34: 330.9663226 | N34: 330.9663226 | O34: 0.26 | P34: 0.26 | Q34: 0.74 | R34: 0.74 | S34: 406.9750787 | T34: 406.9750787 | U34: 0.24 | V34: 0.24 | W34: 0.76 | X34: 0.76 | Y34: 417.9744052 | Z34: 417.9744052
B35: 2029 | C35: 1.20522 | D35: 1.20522 | E35: 465.4466811 | F35: 465.4466811 | G35: 560.965649 | H35: 560.965649 | I35: 1 | J35: 1 | K35: 560.965649 | L35: 560.965649 | M35: 341.965649 | N35: 341.965649 | O35: 0.28 | P35: 0.28 | Q35: 0.72 | R35: 0.72 | S35: 403.8952673 | T35: 403.8952673 | U35: 0.26 | V35: 0.26 | W35: 0.74 | X35: 0.74 | Y35: 415.1145803 | Z35: 415.1145803
B36: 2030 | C36: 1.2024772 | D36: 1.2024772 | E36: 475.8385124 | F36: 475.8385124 | G36: 572.184962 | H36: 572.184962 | I36: 1 | J36: 1 | K36: 572.184962 | L36: 572.184962 | M36: 353.184962 | N36: 353.184962 | O36: 0.3 | P36: 0.3 | Q36: 0.7 | R36: 0.7 | S36: 400.5294734 | T36: 400.5294734 | U36: 0.28 | V36: 0.28 | W36: 0.72 | X36: 0.72 | Y36: 411.9731727 | Z36: 411.9731727
B37: 2031 | C37: 1.1997344 | D37: 1.1997344 | E37: 486.4648886 | F37: 486.4648886 | G37: 583.6286613 | H37: 583.6286613 | I37: 1 | J37: 1 | K37: 583.6286613 | L37: 583.6286613 | M37: 364.6286613 | N37: 364.6286613 | O37: 0.31 | P37: 0.31 | Q37: 0.69 | R37: 0.69 | S37: 402.7037763 | T37: 402.7037763 | U37: 0.29 | V37: 0.29 | W37: 0.71 | X37: 0.71 | Y37: 414.3763495 | Z37: 414.3763495
B38: 2032 | C38: 1.1969916 | D38: 1.1969916 | E38: 497.3311713 | F38: 497.3311713 | G38: 595.3012345 | H38: 595.3012345 | I38: 1 | J38: 1 | K38: 595.3012345 | L38: 595.3012345 | M38: 376.3012345 | N38: 376.3012345 | O38: 0.32 | P38: 0.32 | Q38: 0.68 | R38: 0.68 | S38: 404.8048394 | T38: 404.8048394 | U38: 0.3 | V38: 0.3 | W38: 0.7 | X38: 0.7 | Y38: 416.7108641 | Z38: 416.7108641
B39: 2033 | C39: 1.1942488 | D39: 1.1942488 | E39: 508.4428464 | F39: 508.4428464 | G39: 607.2072592 | H39: 607.2072592 | I39: 1 | J39: 1 | K39: 607.2072592 | L39: 607.2072592 | M39: 388.2072592 | N39: 388.2072592 | O39: 0.33 | P39: 0.33 | Q39: 0.67 | R39: 0.67 | S39: 406.8288636 | T39: 406.8288636 | U39: 0.31 | V39: 0.31 | W39: 0.69 | X39: 0.69 | Y39: 418.9730088 | Z39: 418.9730088
B40: 2034 | C40: 1.17927 | D40: 1.17927 | E40: 525.1989827 | F40: 525.1989827 | G40: 619.3514044 | H40: 619.3514044 | I40: 1 | J40: 1 | K40: 619.3514044 | L40: 619.3514044 | M40: 400.3514044 | N40: 400.3514044 | O40: 0.34 | P40: 0.34 | Q40: 0.66 | R40: 0.66 | S40: 408.7719269 | T40: 408.7719269 | U40: 0.32 | V40: 0.32 | W40: 0.68 | X40: 0.68 | Y40: 421.158955 | Z40: 421.158955
B41: 2035 | C41: 1.17408 | D41: 1.17408 | E41: 538.0710279 | F41: 538.0710279 | G41: 631.7384324 | H41: 631.7384324 | I41: 1 | J41: 1 | K41: 631.7384324 | L41: 631.7384324 | M41: 412.7384324 | N41: 412.7384324 | O41: 0.35 | P41: 0.35 | Q41: 0.65 | R41: 0.65 | S41: 410.6299811 | T41: 410.6299811 | U41: 0.33 | V41: 0.33 | W41: 0.67 | X41: 0.67 | Y41: 423.2647497 | Z41: 423.2647497
B42: 2036 | C42: 1.16889 | D42: 1.16889 | E42: 551.2693248 | F42: 551.2693248 | G42: 644.3732011 | H42: 644.3732011 | I42: 1 | J42: 1 | K42: 644.3732011 | L42: 644.3732011 | M42: 425.3732011 | N42: 425.3732011 | O42: 0.36 | P42: 0.36 | Q42: 0.64 | R42: 0.64 | S42: 412.3988487 | T42: 412.3988487 | U42: 0.34 | V42: 0.34 | W42: 0.66 | X42: 0.66 | Y42: 425.2863127 | Z42: 425.2863127
B43: 2037 | C43: 1.1637 | D43: 1.1637 | E43: 564.8024964 | F43: 564.8024964 | G43: 657.2606651 | H43: 657.2606651 | I43: 1 | J43: 1 | K43: 657.2606651 | L43: 657.2606651 | M43: 438.2606651 | N43: 438.2606651 | O43: 0.37 | P43: 0.37 | Q43: 0.63 | R43: 0.63 | S43: 414.074219 | T43: 414.074219 | U43: 0.35 | V43: 0.35 | W43: 0.65 | X43: 0.65 | Y43: 427.2194323 | Z43: 427.2194323
B44: 2038 | C44: 1.15851 | D44: 1.15851 | E44: 578.6794058 | F44: 578.6794058 | G44: 670.4058784 | H44: 670.4058784 | I44: 1 | J44: 1 | K44: 670.4058784 | L44: 670.4058784 | M44: 451.4058784 | N44: 451.4058784 | O44: 0.38 | P44: 0.38 | Q44: 0.62 | R44: 0.62 | S44: 415.6516446 | T44: 415.6516446 | U44: 0.36 | V44: 0.36 | W44: 0.64 | X44: 0.64 | Y44: 429.0597622 | Z44: 429.0597622
B45: 2039 | C45: 1.140226 | D45: 1.140226 | E45: 599.7179471 | F45: 599.7179471 | G45: 683.813996 | H45: 683.813996 | I45: 1 | J45: 1 | K45: 683.813996 | L45: 683.813996 | M45: 464.813996 | N45: 464.813996 | O45: 0.39 | P45: 0.39 | Q45: 0.61 | R45: 0.61 | S45: 417.1265375 | T45: 417.1265375 | U45: 0.37 | V45: 0.37 | W45: 0.63 | X45: 0.63 | Y45: 430.8028175 | Z45: 430.8028175
B46: 2040 | C46: 1.1304188 | D46: 1.1304188 | E46: 617.0193524 | F46: 617.0193524 | G46: 697.4902759 | H46: 697.4902759 | I46: 1 | J46: 1 | K46: 697.4902759 | L46: 697.4902759 | M46: 478.4902759 | N46: 478.4902759 | O46: 0.4 | P46: 0.4 | Q46: 0.6 | R46: 0.6 | S46: 418.4941655 | T46: 418.4941655 | U46: 0.38 | V46: 0.38 | W46: 0.62 | X46: 0.62 | Y46: 432.4439711 | Z46: 432.4439711
B47: 2041 | C47: 1.1206116 | D47: 1.1206116 | E47: 634.8676753 | F47: 634.8676753 | G47: 711.4400814 | H47: 711.4400814 | I47: 1 | J47: 1 | K47: 711.4400814 | L47: 711.4400814 | M47: 492.4400814 | N47: 492.4400814 | O47: 0.41 | P47: 0.41 | Q47: 0.59 | R47: 0.59 | S47: 419.749648 | T47: 419.749648 | U47: 0.39 | V47: 0.39 | W47: 0.61 | X47: 0.61 | Y47: 433.9784497 | Z47: 433.9784497
B48: 2042 | C48: 1.1108044 | D48: 1.1108044 | E48: 653.2823268 | F48: 653.2823268 | G48: 725.668883 | H48: 725.668883 | I48: 1 | J48: 1 | K48: 725.668883 | L48: 725.668883 | M48: 506.668883 | N48: 506.668883 | O48: 0.42 | P48: 0.42 | Q48: 0.58 | R48: 0.58 | S48: 420.8879522 | T48: 420.8879522 | U48: 0.4 | V48: 0.4 | W48: 0.6 | X48: 0.6 | Y48: 435.4013298 | Z48: 435.4013298
B49: 2043 | C49: 1.1009972 | D49: 1.1009972 | E49: 672.2835087 | F49: 672.2835087 | G49: 740.1822607 | H49: 740.1822607 | I49: 1 | J49: 1 | K49: 740.1822607 | L49: 740.1822607 | M49: 521.1822607 | N49: 521.1822607 | O49: 0.43 | P49: 0.43 | Q49: 0.57 | R49: 0.57 | S49: 421.9038886 | T49: 421.9038886 | U49: 0.41 | V49: 0.41 | W49: 0.59 | X49: 0.59 | Y49: 436.7075338 | Z49: 436.7075338
B50: 2044 | C50: 1.09119 | D50: 1.09119 | E50: 691.8922515 | F50: 691.8922515 | G50: 754.9859059 | H50: 754.9859059 | I50: 1 | J50: 1 | K50: 754.9859059 | L50: 754.9859059 | M50: 535.9859059 | N50: 535.9859059 | O50: 0.44 | P50: 0.44 | Q50: 0.56 | R50: 0.56 | S50: 422.7921073 | T50: 422.7921073 | U50: 0.42 | V50: 0.42 | W50: 0.58 | X50: 0.58 | Y50: 437.8918254 | Z50: 437.8918254
B51: 2045 | C51: 1.0801642 | D51: 1.0801642 | E51: 712.9338521 | F51: 712.9338521 | G51: 770.085624 | H51: 770.085624 | I51: 1 | J51: 1 | K51: 770.085624 | L51: 770.085624 | M51: 551.085624 | N51: 551.085624 | O51: 0.45 | P51: 0.45 | Q51: 0.55 | R51: 0.55 | S51: 423.5470932 | T51: 423.5470932 | U51: 0.43 | V51: 0.43 | W51: 0.57 | X51: 0.57 | Y51: 438.9488057 | Z51: 438.9488057
B52: 2046 | C52: 1.0691384 | D52: 1.0691384 | E52: 734.6919132 | F52: 734.6919132 | G52: 785.4873365 | H52: 785.4873365 | I52: 1 | J52: 1 | K52: 785.4873365 | L52: 785.4873365 | M52: 566.4873365 | N52: 566.4873365 | O52: 0.46 | P52: 0.46 | Q52: 0.54 | R52: 0.54 | S52: 424.1631617 | T52: 424.1631617 | U52: 0.44 | V52: 0.44 | W52: 0.56 | X52: 0.56 | Y52: 439.8729085 | Z52: 439.8729085
B53: 2047 | C53: 1.0581126 | D53: 1.0581126 | E53: 757.1945398 | F53: 757.1945398 | G53: 801.1970833 | H53: 801.1970833 | I53: 1 | J53: 1 | K53: 801.1970833 | L53: 801.1970833 | M53: 582.1970833 | N53: 582.1970833 | O53: 0.47 | P53: 0.47 | Q53: 0.53 | R53: 0.53 | S53: 424.6344541 | T53: 424.6344541 | U53: 0.45 | V53: 0.45 | W53: 0.55 | X53: 0.55 | Y53: 440.6583958 | Z53: 440.6583958
B54: 2048 | C54: 1.0470868 | D54: 1.0470868 | E54: 780.4711366 | F54: 780.4711366 | G54: 817.2210249 | H54: 817.2210249 | I54: 1 | J54: 1 | K54: 817.2210249 | L54: 817.2210249 | M54: 598.2210249 | N54: 598.2210249 | O54: 0.48 | P54: 0.48 | Q54: 0.52 | R54: 0.52 | S54: 424.954933 | T54: 424.954933 | U54: 0.46 | V54: 0.46 | W54: 0.54 | X54: 0.54 | Y54: 441.2993535 | Z54: 441.2993535
B55: 2049 | C55: 1.036061 | D55: 1.036061 | E55: 804.5524785 | F55: 804.5524785 | G55: 833.5654454 | H55: 833.5654454 | I55: 1 | J55: 1 | K55: 833.5654454 | L55: 833.5654454 | M55: 614.5654454 | N55: 614.5654454 | O55: 0.49 | P55: 0.49 | Q55: 0.51 | R55: 0.51 | S55: 425.1183772 | T55: 425.1183772 | U55: 0.47 | V55: 0.47 | W55: 0.53 | X55: 0.53 | Y55: 441.7896861 | Z55: 441.7896861
B56: 2050 | C56: 1.0245562 | D56: 1.0245562 | E56: 829.858581 | F56: 829.858581 | G56: 850.2367543 | H56: 850.2367543 | I56: 1 | J56: 1 | K56: 850.2367543 | L56: 850.2367543 | M56: 631.2367543 | N56: 631.2367543 | O56: 0.5 | P56: 0.5 | Q56: 0.5 | R56: 0.5 | S56: 425.1183772 | T56: 425.1183772 | U56: 0.48 | V56: 0.48 | W56: 0.52 | X56: 0.52 | Y56: 442.1231122 | Z56: 442.1231122
A59: B | B59: SOLID WASTE % COMPOSITION FOR BAU AND DIFFERENT SCENARIOS
B62: 1. BAU | X62: 2. Scenario 1: LFG
B63: Year | C63: Food (Gg/yr) | E63: Garden (Gg/yr) | G63: Paper (Gg/yr) | I63: Wood (Gg/yr) | K63: Textiles (Gg/yr) | M63: Nappies (Gg/yr) | O63: Inert (Gg/yr) | Q63: Sludge (Gg/yr) | S63: Industrial (Gg/yr) | X63: Food (Gg/yr) | Z63: Garden (Gg/yr) | AB63: Paper (Gg/yr) | AD63: Wood (Gg/yr) | AF63: Textiles (Gg/yr) | AH63: Nappies (Gg/yr) | AJ63: Inert (Gg/yr) | AL63: Sludge (Gg/yr) | AN63: Industrial (Gg/yr)
C64: TNC | D64: USER | E64: TNC | F64: USER | G64: TNC | H64: USER | I64: TNC | J64: USER | K64: TNC | L64: USER | M64: TNC | N64: USER | O64: TNC | P64: USER | Q64: TNC | R64: USER | S64: TNC | T64: USER | U64: TNC | V64: USER | X64: TNC | Y64: USER | Z64: TNC | AA64: USER | AB64: TNC | AC64: USER | AD64: TNC | AE64: USER | AF64: TNC | AG64: USER | AH64: TNC | AI64: USER | AJ64: TNC | AK64: USER | AL64: TNC | AM64: USER | AN64: TNC | AO64: USER | AP64: TNC | AQ64: USER
B65: =B6 -> 2000 | C65: 0.15 | D65: 0.15 | E65: 0.5 | F65: 0.5 | G65: 0.12 | H65: 0.12 | I65: 0.02 | J65: 0.02 | K65: 0.05 | L65: 0.05 | M65: 0.003 | N65: 0.003 | O65: 0.157 | P65: 0.157 | Q65: 0 | R65: 0 | S65: 0 | T65: 0 | V65: =SUM(D65:T65)-R65 -> 1.85 | X65: 0.15 | Y65: 0.15 | Z65: 0.5 | AA65: 0.5 | AB65: 0.12 | AC65: 0.12 | AD65: 0.02 | AE65: 0.02 | AF65: 0.05 | AG65: 0.05 | AH65: 0.003 | AI65: 0.003 | AJ65: 0.157 | AK65: 0.157 | AL65: 0 | AM65: 0 | AN65: 0 | AO65: 0 | AQ65: =SUM(Y65:AO65) -> 1.85
B66: 2001 | C66: 0.15 | D66: 0.15 | E66: 0.5 | F66: 0.5 | G66: 0.12 | H66: 0.12 | I66: 0.02 | J66: 0.02 | K66: 0.05 | L66: 0.05 | M66: 0.003 | N66: 0.003 | O66: 0.157 | P66: 0.157 | Q66: 0 | R66: 0 | S66: 0 | T66: 0 | V66: =SUM(D66:T66)-R66 -> 1.85 | X66: 0.15 | Y66: 0.15 | Z66: 0.5 | AA66: 0.5 | AB66: 0.12 | AC66: 0.12 | AD66: 0.02 | AE66: 0.02 | AF66: 0.05 | AG66: 0.05 | AH66: 0.003 | AI66: 0.003 | AJ66: 0.157 | AK66: 0.157 | AL66: 0 | AM66: 0 | AN66: 0 | AO66: 0 | AQ66: =SUM(Y66:AO66) -> 1.85
B67: 2002 | C67: 0.15 | D67: 0.15 | E67: 0.5 | F67: 0.5 | G67: 0.12 | H67: 0.12 | I67: 0.02 | J67: 0.02 | K67: 0.05 | L67: 0.05 | M67: 0.003 | N67: 0.003 | O67: 0.157 | P67: 0.157 | Q67: 0 | R67: 0 | S67: 0 | T67: 0 | V67: 1.85 | X67: 0.15 | Y67: 0.15 | Z67: 0.5 | AA67: 0.5 | AB67: 0.12 | AC67: 0.12 | AD67: 0.02 | AE67: 0.02 | AF67: 0.05 | AG67: 0.05 | AH67: 0.003 | AI67: 0.003 | AJ67: 0.157 | AK67: 0.157 | AL67: 0 | AM67: 0 | AN67: 0 | AO67: 0 | AQ67: 1.85
B68: 2003 | C68: 0.15 | D68: 0.15 | E68: 0.5 | F68: 0.5 | G68: 0.12 | H68: 0.12 | I68: 0.02 | J68: 0.02 | K68: 0.05 | L68: 0.05 | M68: 0.003 | N68: 0.003 | O68: 0.157 | P68: 0.157 | Q68: 0 | R68: 0 | S68: 0 | T68: 0 | V68: 1.85 | X68: 0.15 | Y68: 0.15 | Z68: 0.5 | AA68: 0.5 | AB68: 0.12 | AC68: 0.12 | AD68: 0.02 | AE68: 0.02 | AF68: 0.05 | AG68: 0.05 | AH68: 0.003 | AI68: 0.003 | AJ68: 0.157 | AK68: 0.157 | AL68: 0 | AM68: 0 | AN68: 0 | AO68: 0 | AQ68: 1.85
B69: 2004 | C69: 0.15 | D69: 0.15 | E69: 0.5 | F69: 0.5 | G69: 0.12 | H69: 0.12 | I69: 0.02 | J69: 0.02 | K69: 0.05 | L69: 0.05 | M69: 0.003 | N69: 0.003 | O69: 0.157 | P69: 0.157 | Q69: 0 | R69: 0 | S69: 0 | T69: 0 | V69: 1.85 | X69: 0.15 | Y69: 0.15 | Z69: 0.5 | AA69: 0.5 | AB69: 0.12 | AC69: 0.12 | AD69: 0.02 | AE69: 0.02 | AF69: 0.05 | AG69: 0.05 | AH69: 0.003 | AI69: 0.003 | AJ69: 0.157 | AK69: 0.157 | AL69: 0 | AM69: 0 | AN69: 0 | AO69: 0 | AQ69: 1.85
B70: 2005 | C70: 0.15 | D70: 0.15 | E70: 0.5 | F70: 0.5 | G70: 0.12 | H70: 0.12 | I70: 0.02 | J70: 0.02 | K70: 0.05 | L70: 0.05 | M70: 0.003 | N70: 0.003 | O70: 0.157 | P70: 0.157 | Q70: 0.01515467889 | R70: 0.01515467889 | S70: 0.001375925922 | T70: 0.001375925922 | V70: 1.867906531 | X70: 0.15 | Y70: 0.15 | Z70: 0.5 | AA70: 0.5 | AB70: 0.12 | AC70: 0.12 | AD70: 0.02 | AE70: 0.02 | AF70: 0.05 | AG70: 0.05 | AH70: 0.003 | AI70: 0.003 | AJ70: 0.1404693952 | AK70: 0.1404693952 | AL70: 0.01515467889 | AM70: 0.01515467889 | AN70: 0.001375925922 | AO70: 0.001375925922 | AQ70: 1.85
B71: 2006 | C71: 0.15 | D71: 0.15 | E71: 0.5 | F71: 0.5 | G71: 0.12 | H71: 0.12 | I71: 0.02 | J71: 0.02 | K71: 0.05 | L71: 0.05 | M71: 0.003 | N71: 0.003 | O71: 0.157 | P71: 0.157 | Q71: 0.01979147311 | R71: 0.01979147311 | S71: 0.001225484281 | T71: 0.001225484281 | V71: 1.872242442 | X71: 0.15 | Y71: 0.15 | Z71: 0.5 | AA71: 0.5 | AB71: 0.12 | AC71: 0.12 | AD71: 0.02 | AE71: 0.02 | AF71: 0.05 | AG71: 0.05 | AH71: 0.003 | AI71: 0.003 | AJ71: 0.1359830426 | AK71: 0.1359830426 | AL71: 0.01979147311 | AM71: 0.01979147311 | AN71: 0.001225484281 | AO71: 0.001225484281 | AQ71: 1.85
B72: 2007 | C72: 0.15 | D72: 0.15 | E72: 0.5 | F72: 0.5 | G72: 0.12 | H72: 0.12 | I72: 0.02 | J72: 0.02 | K72: 0.05 | L72: 0.05 | M72: 0.003 | N72: 0.003 | O72: 0.157 | P72: 0.157 | Q72: 0.03315506906 | R72: 0.03315506906 | S72: 0.002248094708 | T72: 0.002248094708 | V72: 1.887651258 | X72: 0.15 | Y72: 0.15 | Z72: 0.5 | AA72: 0.5 | AB72: 0.12 | AC72: 0.12 | AD72: 0.02 | AE72: 0.02 | AF72: 0.05 | AG72: 0.05 | AH72: 0.003 | AI72: 0.003 | AJ72: 0.1215968362 | AK72: 0.1215968362 | AL72: 0.03315506906 | AM72: 0.03315506906 | AN72: 0.002248094708 | AO72: 0.002248094708 | AQ72: 1.85
B73: 2008 | C73: 0.15 | D73: 0.15 | E73: 0.5 | F73: 0.5 | G73: 0.12 | H73: 0.12 | I73: 0.02 | J73: 0.02 | K73: 0.05 | L73: 0.05 | M73: 0.003 | N73: 0.003 | O73: 0.157 | P73: 0.157 | Q73: 0.03040871176 | R73: 0.03040871176 | S73: 0.001985287367 | T73: 0.001985287367 | V73: 1.884379286 | X73: 0.15 | Y73: 0.15 | Z73: 0.5 | AA73: 0.5 | AB73: 0.12 | AC73: 0.12 | AD73: 0.02 | AE73: 0.02 | AF73: 0.05 | AG73: 0.05 | AH73: 0.003 | AI73: 0.003 | AJ73: 0.1246060009 | AK73: 0.1246060009 | AL73: 0.03040871176 | AM73: 0.03040871176 | AN73: 0.001985287367 | AO73: 0.001985287367 | AQ73: 1.85
B74: 2009 | C74: 0.15 | D74: 0.15 | E74: 0.5 | F74: 0.5 | G74: 0.12 | H74: 0.12 | I74: 0.02 | J74: 0.02 | K74: 0.05 | L74: 0.05 | M74: 0.003 | N74: 0.003 | O74: 0.157 | P74: 0.157 | Q74: 0.02194042454 | R74: 0.02194042454 | S74: 0.002805373941 | T74: 0.002805373941 | V74: 1.877551172 | X74: 0.15 | Y74: 0.15 | Z74: 0.5 | AA74: 0.5 | AB74: 0.12 | AC74: 0.12 | AD74: 0.02 | AE74: 0.02 | AF74: 0.05 | AG74: 0.05 | AH74: 0.003 | AI74: 0.003 | AJ74: 0.1322542015 | AK74: 0.1322542015 | AL74: 0.02194042454 | AM74: 0.02194042454 | AN74: 0.002805373941 | AO74: 0.002805373941 | AQ74: 1.85
B75: 2010 | C75: 0.15 | D75: 0.15 | E75: 0.5 | F75: 0.5 | G75: 0.12 | H75: 0.12 | I75: 0.02 | J75: 0.02 | K75: 0.05 | L75: 0.05 | M75: 0.003 | N75: 0.003 | O75: 0.157 | P75: 0.157 | Q75: 0.02560021863 | R75: 0.02560021863 | S75: 0.002645887461 | T75: 0.002645887461 | V75: 1.880891994 | X75: 0.15 | Y75: 0.15 | Z75: 0.5 | AA75: 0.5 | AB75: 0.12 | AC75: 0.12 | AD75: 0.02 | AE75: 0.02 | AF75: 0.05 | AG75: 0.05 | AH75: 0.003 | AI75: 0.003 | AJ75: 0.1287538939 | AK75: 0.1287538939 | AL75: 0.02560021863 | AM75: 0.02560021863 | AN75: 0.002645887461 | AO75: 0.002645887461 | AQ75: 1.85
B76: 2011 | C76: 0.15 | D76: 0.15 | E76: 0.5 | F76: 0.5 | G76: 0.12 | H76: 0.12 | I76: 0.02 | J76: 0.02 | K76: 0.05 | L76: 0.05 | M76: 0.003 | N76: 0.003 | O76: 0.157 | P76: 0.157 | Q76: 0.02509567455 | R76: 0.02509567455 | S76: 0.003770997844 | T76: 0.003770997844 | V76: 1.88263767 | X76: 0.15 | Y76: 0.15 | Z76: 0.5 | AA76: 0.5 | AB76: 0.12 | AC76: 0.12 | AD76: 0.02 | AE76: 0.02 | AF76: 0.05 | AG76: 0.05 | AH76: 0.003 | AI76: 0.003 | AJ76: 0.1281333276 | AK76: 0.1281333276 | AL76: 0.02509567455 | AM76: 0.02509567455 | AN76: 0.003770997844 | AO76: 0.003770997844 | AQ76: 1.85
B77: 2012 | C77: 0.15 | D77: 0.15 | E77: 0.5 | F77: 0.5 | G77: 0.12 | H77: 0.12 | I77: 0.02 | J77: 0.02 | K77: 0.05 | L77: 0.05 | M77: 0.003 | N77: 0.003 | O77: 0.157 | P77: 0.157 | Q77: 0.01900109173 | R77: 0.01900109173 | S77: 0.001747917389 | T77: 0.001747917389 | V77: 1.872496927 | X77: 0.15 | Y77: 0.15 | Z77: 0.5 | AA77: 0.5 | AB77: 0.12 | AC77: 0.12 | AD77: 0.02 | AE77: 0.02 | AF77: 0.05 | AG77: 0.05 | AH77: 0.003 | AI77: 0.003 | AJ77: 0.1362509909 | AK77: 0.1362509909 | AL77: 0.01900109173 | AM77: 0.01900109173 | AN77: 0.001747917389 | AO77: 0.001747917389 | AQ77: 1.85
B78: 2013 | C78: 0.15 | D78: 0.15 | E78: 0.5 | F78: 0.5 | G78: 0.12 | H78: 0.12 | I78: 0.02 | J78: 0.02 | K78: 0.05 | L78: 0.05 | M78: 0.003 | N78: 0.003 | O78: 0.157 | P78: 0.157 | Q78: 0.01620398168 | R78: 0.01620398168 | S78: 0.0007562277008 | T78: 0.0007562277008 | V78: 1.867716437 | X78: 0.15 | Y78: 0.15 | Z78: 0.5 | AA78: 0.5 | AB78: 0.12 | AC78: 0.12 | AD78: 0.02 | AE78: 0.02 | AF78: 0.05 | AG78: 0.05 | AH78: 0.003 | AI78: 0.003 | AJ78: 0.1400397906 | AK78: 0.1400397906 | AL78: 0.01620398168 | AM78: 0.01620398168 | AN78: 0.0007562277008 | AO78: 0.0007562277008 | AQ78: 1.85
B79: 2014 | C79: 0.15 | D79: 0.15 | E79: 0.5 | F79: 0.5 | G79: 0.12 | H79: 0.12 | I79: 0.02 | J79: 0.02 | K79: 0.05 | L79: 0.05 | M79: 0.003 | N79: 0.003 | O79: 0.157 | P79: 0.157 | Q79: 0.01245424307 | R79: 0.01245424307 | S79: 0.0004543843371 | T79: 0.0004543843371 | V79: 1.863363012 | X79: 0.15 | Y79: 0.15 | Z79: 0.5 | AA79: 0.5 | AB79: 0.12 | AC79: 0.12 | AD79: 0.02 | AE79: 0.02 | AF79: 0.05 | AG79: 0.05 | AH79: 0.003 | AI79: 0.003 | AJ79: 0.1440913726 | AK79: 0.1440913726 | AL79: 0.01245424307 | AM79: 0.01245424307 | AN79: 0.0004543843371 | AO79: 0.0004543843371 | AQ79: 1.85
B80: 2015 | C80: 0.15 | D80: 0.15 | E80: 0.5 | F80: 0.5 | G80: 0.12 | H80: 0.12 | I80: 0.02 | J80: 0.02 | K80: 0.05 | L80: 0.05 | M80: 0.003 | N80: 0.003 | O80: 0.157 | P80: 0.157 | Q80: 0.0137362975 | R80: 0.0137362975 | S80: 0.0004454748403 | T80: 0.0004454748403 | V80: 1.864627247 | X80: 0.15 | Y80: 0.15 | Z80: 0.5 | AA80: 0.5 | AB80: 0.12 | AC80: 0.12 | AD80: 0.02 | AE80: 0.02 | AF80: 0.05 | AG80: 0.05 | AH80: 0.003 | AI80: 0.003 | AJ80: 0.1428182277 | AK80: 0.1428182277 | AL80: 0.0137362975 | AM80: 0.0137362975 | AN80: 0.0004454748403 | AO80: 0.0004454748403 | AQ80: 1.85
B81: 2016 | C81: 0.15 | D81: 0.15 | E81: 0.5 | F81: 0.5 | G81: 0.12 | H81: 0.12 | I81: 0.02 | J81: 0.02 | K81: 0.05 | L81: 0.05 | M81: 0.003 | N81: 0.003 | O81: 0.157 | P81: 0.157 | Q81: 0.01496328704 | R81: 0.01496328704 | S81: 0.0004367400395 | T81: 0.0004367400395 | V81: 1.865836767 | X81: 0.15 | Y81: 0.15 | Z81: 0.5 | AA81: 0.5 | AB81: 0.12 | AC81: 0.12 | AD81: 0.02 | AE81: 0.02 | AF81: 0.05 | AG81: 0.05 | AH81: 0.003 | AI81: 0.003 | AJ81: 0.1415999729 | AK81: 0.1415999729 | AL81: 0.01496328704 | AM81: 0.01496328704 | AN81: 0.0004367400395 | AO81: 0.0004367400395 | AQ81: 1.85
B82: 2017 | C82: 0.15 | D82: 0.15 | E82: 0.5 | F82: 0.5 | G82: 0.12 | H82: 0.12 | I82: 0.02 | J82: 0.02 | K82: 0.05 | L82: 0.05 | M82: 0.003 | N82: 0.003 | O82: 0.157 | P82: 0.157 | Q82: 0.01613687818 | R82: 0.01613687818 | S82: 0.0004281765094 | T82: 0.0004281765094 | V82: 1.866993231 | X82: 0.15 | Y82: 0.15 | Z82: 0.5 | AA82: 0.5 | AB82: 0.12 | AC82: 0.12 | AD82: 0.02 | AE82: 0.02 | AF82: 0.05 | AG82: 0.05 | AH82: 0.003 | AI82: 0.003 | AJ82: 0.1404349453 | AK82: 0.1404349453 | AL82: 0.01613687818 | AM82: 0.01613687818 | AN82: 0.0004281765094 | AO82: 0.0004281765094 | AQ82: 1.85
B83: 2018 | C83: 0.15 | D83: 0.15 | E83: 0.5 | F83: 0.5 | G83: 0.12 | H83: 0.12 | I83: 0.02 | J83: 0.02 | K83: 0.05 | L83: 0.05 | M83: 0.003 | N83: 0.003 | O83: 0.157 | P83: 0.157 | Q83: 0.01725869324 | R83: 0.01725869324 | S83: 0.0004197808915 | T83: 0.0004197808915 | V83: 1.868098255 | X83: 0.15 | Y83: 0.15 | Z83: 0.5 | AA83: 0.5 | AB83: 0.12 | AC83: 0.12 | AD83: 0.02 | AE83: 0.02 | AF83: 0.05 | AG83: 0.05 | AH83: 0.003 | AI83: 0.003 | AJ83: 0.1393215259 | AK83: 0.1393215259 | AL83: 0.01725869324 | AM83: 0.01725869324 | AN83: 0.0004197808915 | AO83: 0.0004197808915 | AQ83: 1.85
B84: 2019 | C84: 0.15 | D84: 0.15 | E84: 0.5 | F84: 0.5 | G84: 0.12 | H84: 0.12 | I84: 0.02 | J84: 0.02 | K84: 0.05 | L84: 0.05 | M84: 0.003 | N84: 0.003 | O84: 0.157 | P84: 0.157 | Q84: 0.01833031144 | R84: 0.01833031144 | S84: 0.0004115498937 | T84: 0.0004115498937 | V84: 1.869153411 | X84: 0.15 | Y84: 0.15 | Z84: 0.5 | AA84: 0.5 | AB84: 0.12 | AC84: 0.12 | AD84: 0.02 | AE84: 0.02 | AF84: 0.05 | AG84: 0.05 | AH84: 0.003 | AI84: 0.003 | AJ84: 0.1382581387 | AK84: 0.1382581387 | AL84: 0.01833031144 | AM84: 0.01833031144 | AN84: 0.0004115498937 | AO84: 0.0004115498937 | AQ84: 1.85
B85: 2020 | C85: 0.15 | D85: 0.15 | E85: 0.5 | F85: 0.5 | G85: 0.12 | H85: 0.12 | I85: 0.02 | J85: 0.02 | K85: 0.05 | L85: 0.05 | M85: 0.003 | N85: 0.003 | O85: 0.157 | P85: 0.157 | Q85: 0.01935327 | R85: 0.01935327 | S85: 0.0004034802879 | T85: 0.0004034802879 | V85: 1.870160231 | X85: 0.15 | Y85: 0.15 | Z85: 0.5 | AA85: 0.5 | AB85: 0.12 | AC85: 0.12 | AD85: 0.02 | AE85: 0.02 | AF85: 0.05 | AG85: 0.05 | AH85: 0.003 | AI85: 0.003 | AJ85: 0.1372432497 | AK85: 0.1372432497 | AL85: 0.01935327 | AM85: 0.01935327 | AN85: 0.0004034802879 | AO85: 0.0004034802879 | AQ85: 1.85
B86: 2021 | C86: 0.15 | D86: 0.15 | E86: 0.5 | F86: 0.5 | G86: 0.12 | H86: 0.12 | I86: 0.02 | J86: 0.02 | K86: 0.05 | L86: 0.05 | M86: 0.003 | N86: 0.003 | O86: 0.157 | P86: 0.157 | Q86: 0.02032906513 | R86: 0.02032906513 | S86: 0.0003955689097 | T86: 0.0003955689097 | V86: 1.871120203 | X86: 0.15 | Y86: 0.15 | Z86: 0.5 | AA86: 0.5 | AB86: 0.12 | AC86: 0.12 | AD86: 0.02 | AE86: 0.02 | AF86: 0.05 | AG86: 0.05 | AH86: 0.003 | AI86: 0.003 | AJ86: 0.136275366 | AK86: 0.136275366 | AL86: 0.02032906513 | AM86: 0.02032906513 | AN86: 0.0003955689097 | AO86: 0.0003955689097 | AQ86: 1.85
B87: 2022 | C87: 0.15 | D87: 0.15 | E87: 0.5 | F87: 0.5 | G87: 0.12 | H87: 0.12 | I87: 0.02 | J87: 0.02 | K87: 0.05 | L87: 0.05 | M87: 0.003 | N87: 0.003 | O87: 0.157 | P87: 0.157 | Q87: 0.02125915307 | R87: 0.02125915307 | S87: 0.0003878126566 | T87: 0.0003878126566 | V87: 1.872034778 | X87: 0.15 | Y87: 0.15 | Z87: 0.5 | AA87: 0.5 | AB87: 0.12 | AC87: 0.12 | AD87: 0.02 | AE87: 0.02 | AF87: 0.05 | AG87: 0.05 | AH87: 0.003 | AI87: 0.003 | AJ87: 0.1353530343 | AK87: 0.1353530343 | AL87: 0.02125915307 | AM87: 0.02125915307 | AN87: 0.0003878126566 | AO87: 0.0003878126566 | AQ87: 1.85
B88: 2023 | C88: 0.15 | D88: 0.15 | E88: 0.5 | F88: 0.5 | G88: 0.12 | H88: 0.12 | I88: 0.02 | J88: 0.02 | K88: 0.05 | L88: 0.05 | M88: 0.003 | N88: 0.003 | O88: 0.157 | P88: 0.157 | Q88: 0.02214495112 | R88: 0.02214495112 | S88: 0.0003802084868 | T88: 0.0003802084868 | V88: 1.872905368 | X88: 0.15 | Y88: 0.15 | Z88: 0.5 | AA88: 0.5 | AB88: 0.12 | AC88: 0.12 | AD88: 0.02 | AE88: 0.02 | AF88: 0.05 | AG88: 0.05 | AH88: 0.003 | AI88: 0.003 | AJ88: 0.1344748404 | AK88: 0.1344748404 | AL88: 0.02214495112 | AM88: 0.02214495112 | AN88: 0.0003802084868 | AO88: 0.0003802084868 | AQ88: 1.85
B89: 2024 | C89: 0.15 | D89: 0.15 | E89: 0.5 | F89: 0.5 | G89: 0.12 | H89: 0.12 | I89: 0.02 | J89: 0.02 | K89: 0.05 | L89: 0.05 | M89: 0.003 | N89: 0.003 | O89: 0.157 | P89: 0.157 | Q89: 0.02298783853 | R89: 0.02298783853 | S89: 0.0003727534185 | T89: 0.0003727534185 | V89: 1.873733345 | X89: 0.15 | Y89: 0.15 | Z89: 0.5 | AA89: 0.5 | AB89: 0.12 | AC89: 0.12 | AD89: 0.02 | AE89: 0.02 | AF89: 0.05 | AG89: 0.05 | AH89: 0.003 | AI89: 0.003 | AJ89: 0.1336394081 | AK89: 0.1336394081 | AL89: 0.02298783853 | AM89: 0.02298783853 | AN89: 0.0003727534185 | AO89: 0.0003727534185 | AQ89: 1.85
B90: 2025 | C90: 0.15 | D90: 0.15 | E90: 0.5 | F90: 0.5 | G90: 0.12 | H90: 0.12 | I90: 0.02 | J90: 0.02 | K90: 0.05 | L90: 0.05 | M90: 0.003 | N90: 0.003 | O90: 0.157 | P90: 0.157 | Q90: 0.02378915752 | R90: 0.02378915752 | S90: 0.0003654445279 | T90: 0.0003654445279 | V90: 1.874520047 | X90: 0.15 | Y90: 0.15 | Z90: 0.5 | AA90: 0.5 | AB90: 0.12 | AC90: 0.12 | AD90: 0.02 | AE90: 0.02 | AF90: 0.05 | AG90: 0.05 | AH90: 0.003 | AI90: 0.003 | AJ90: 0.132845398 | AK90: 0.132845398 | AL90: 0.02378915752 | AM90: 0.02378915752 | AN90: 0.0003654445279 | AO90: 0.0003654445279 | AQ90: 1.85
B91: 2026 | C91: 0.15 | D91: 0.15 | E91: 0.5 | F91: 0.5 | G91: 0.12 | H91: 0.12 | I91: 0.02 | J91: 0.02 | K91: 0.05 | L91: 0.05 | M91: 0.003 | N91: 0.003 | O91: 0.157 | P91: 0.157 | Q91: 0.02455021416 | R91: 0.02455021416 | S91: 0.0003582789489 | T91: 0.0003582789489 | V91: 1.875266772 | X91: 0.15 | Y91: 0.15 | Z91: 0.5 | AA91: 0.5 | AB91: 0.12 | AC91: 0.12 | AD91: 0.02 | AE91: 0.02 | AF91: 0.05 | AG91: 0.05 | AH91: 0.003 | AI91: 0.003 | AJ91: 0.1320915069 | AK91: 0.1320915069 | AL91: 0.02455021416 | AM91: 0.02455021416 | AN91: 0.0003582789489 | AO91: 0.0003582789489 | AQ91: 1.85
B92: 2027 | C92: 0.15 | D92: 0.15 | E92: 0.5 | F92: 0.5 | G92: 0.12 | H92: 0.12 | I92: 0.02 | J92: 0.02 | K92: 0.05 | L92: 0.05 | M92: 0.003 | N92: 0.003 | O92: 0.157 | P92: 0.157 | Q92: 0.02527227928 | R92: 0.02527227928 | S92: 0.0003512538715 | T92: 0.0003512538715 | V92: 1.875974787 | X92: 0.15 | Y92: 0.15 | Z92: 0.5 | AA92: 0.5 | AB92: 0.12 | AC92: 0.12 | AD92: 0.02 | AE92: 0.02 | AF92: 0.05 | AG92: 0.05 | AH92: 0.003 | AI92: 0.003 | AJ92: 0.1313764668 | AK92: 0.1313764668 | AL92: 0.02527227928 | AM92: 0.02527227928 | AN92: 0.0003512538715 | AO92: 0.0003512538715 | AQ92: 1.85
B93: 2028 | C93: 0.15 | D93: 0.15 | E93: 0.5 | F93: 0.5 | G93: 0.12 | H93: 0.12 | I93: 0.02 | J93: 0.02 | K93: 0.05 | L93: 0.05 | M93: 0.003 | N93: 0.003 | O93: 0.157 | P93: 0.157 | Q93: 0.02595658937 | R93: 0.02595658937 | S93: 0.0003443665407 | T93: 0.0003443665407 | V93: 1.876645322 | X93: 0.15 | Y93: 0.15 | Z93: 0.5 | AA93: 0.5 | AB93: 0.12 | AC93: 0.12 | AD93: 0.02 | AE93: 0.02 | AF93: 0.05 | AG93: 0.05 | AH93: 0.003 | AI93: 0.003 | AJ93: 0.1306990441 | AK93: 0.1306990441 | AL93: 0.02595658937 | AM93: 0.02595658937 | AN93: 0.0003443665407 | AO93: 0.0003443665407 | AQ93: 1.85
B94: 2029 | C94: 0.15 | D94: 0.15 | E94: 0.5 | F94: 0.5 | G94: 0.12 | H94: 0.12 | I94: 0.02 | J94: 0.02 | K94: 0.05 | L94: 0.05 | M94: 0.003 | N94: 0.003 | O94: 0.157 | P94: 0.157 | Q94: 0.02660434739 | R94: 0.02660434739 | S94: 0.0003376142556 | T94: 0.0003376142556 | V94: 1.877279576 | X94: 0.15 | Y94: 0.15 | Z94: 0.5 | AA94: 0.5 | AB94: 0.12 | AC94: 0.12 | AD94: 0.02 | AE94: 0.02 | AF94: 0.05 | AG94: 0.05 | AH94: 0.003 | AI94: 0.003 | AJ94: 0.1300580384 | AK94: 0.1300580384 | AL94: 0.02660434739 | AM94: 0.02660434739 | AN94: 0.0003376142556 | AO94: 0.0003376142556 | AQ94: 1.85
B95: 2030 | C95: 0.15 | D95: 0.15 | E95: 0.5 | F95: 0.5 | G95: 0.12 | H95: 0.12 | I95: 0.02 | J95: 0.02 | K95: 0.05 | L95: 0.05 | M95: 0.003 | N95: 0.003 | O95: 0.157 | P95: 0.157 | Q95: 0.02721672367 | R95: 0.02721672367 | S95: 0.0003309943682 | T95: 0.0003309943682 | V95: 1.877878712 | X95: 0.15 | Y95: 0.15 | Z95: 0.5 | AA95: 0.5 | AB95: 0.12 | AC95: 0.12 | AD95: 0.02 | AE95: 0.02 | AF95: 0.05 | AG95: 0.05 | AH95: 0.003 | AI95: 0.003 | AJ95: 0.129452282 | AK95: 0.129452282 | AL95: 0.02721672367 | AM95: 0.02721672367 | AN95: 0.0003309943682 | AO95: 0.0003309943682 | AQ95: 1.85
B96: 2031 | C96: 0.15 | D96: 0.15 | E96: 0.5 | F96: 0.5 | G96: 0.12 | H96: 0.12 | I96: 0.02 | J96: 0.02 | K96: 0.05 | L96: 0.05 | M96: 0.003 | N96: 0.003 | O96: 0.157 | P96: 0.157 | Q96: 0.02668306242 | R96: 0.02668306242 | S96: 0.0003245042826 | T96: 0.0003245042826 | V96: 1.877332071 | X96: 0.15 | Y96: 0.15 | Z96: 0.5 | AA96: 0.5 | AB96: 0.12 | AC96: 0.12 | AD96: 0.02 | AE96: 0.02 | AF96: 0.05 | AG96: 0.05 | AH96: 0.003 | AI96: 0.003 | AJ96: 0.1299924333 | AK96: 0.1299924333 | AL96: 0.02668306242 | AM96: 0.02668306242 | AN96: 0.0003245042826 | AO96: 0.0003245042826 | AQ96: 1.85
B97: =B38 -> 2032 | C97: 0.15 | D97: 0.15 | E97: 0.5 | F97: 0.5 | G97: 0.12 | H97: 0.12 | I97: 0.02 | J97: 0.02 | K97: 0.05 | L97: 0.05 | M97: 0.003 | N97: 0.003 | O97: 0.157 | P97: 0.157 | Q97: 0.02615986512 | R97: 0.02615986512 | S97: 0.0003181414535 | T97: 0.0003181414535 | V97: 1.876796148 | X97: 0.15 | Y97: 0.15 | Z97: 0.5 | AA97: 0.5 | AB97: 0.12 | AC97: 0.12 | AD97: 0.02 | AE97: 0.02 | AF97: 0.05 | AG97: 0.05 | AH97: 0.003 | AI97: 0.003 | AJ97: 0.1305219934 | AK97: 0.1305219934 | AL97: 0.02615986512 | AM97: 0.02615986512 | AN97: 0.0003181414535 | AO97: 0.0003181414535 | AQ97: 1.85
B98: 2033 | C98: 0.15 | D98: 0.15 | E98: 0.5 | F98: 0.5 | G98: 0.12 | H98: 0.12 | I98: 0.02 | J98: 0.02 | K98: 0.05 | L98: 0.05 | M98: 0.003 | N98: 0.003 | O98: 0.157 | P98: 0.157 | Q98: 0.02564692659 | R98: 0.02564692659 | S98: 0.0003119033858 | T98: 0.0003119033858 | V98: 1.876270733 | X98: 0.15 | Y98: 0.15 | Z98: 0.5 | AA98: 0.5 | AB98: 0.12 | AC98: 0.12 | AD98: 0.02 | AE98: 0.02 | AF98: 0.05 | AG98: 0.05 | AH98: 0.003 | AI98: 0.003 | AJ98: 0.13104117 | AK98: 0.13104117 | AL98: 0.02564692659 | AM98: 0.02564692659 | AN98: 0.0003119033858 | AO98: 0.0003119033858 | AQ98: 1.85
B99: 2034 | C99: 0.15 | D99: 0.15 | E99: 0.5 | F99: 0.5 | G99: 0.12 | H99: 0.12 | I99: 0.02 | J99: 0.02 | K99: 0.05 | L99: 0.05 | M99: 0.003 | N99: 0.003 | O99: 0.157 | P99: 0.157 | Q99: 0.02514404568 | R99: 0.02514404568 | S99: 0.0003057876331 | T99: 0.0003057876331 | V99: 1.875755621 | X99: 0.15 | Y99: 0.15 | Z99: 0.5 | AA99: 0.5 | AB99: 0.12 | AC99: 0.12 | AD99: 0.02 | AE99: 0.02 | AF99: 0.05 | AG99: 0.05 | AH99: 0.003 | AI99: 0.003 | AJ99: 0.1315501667 | AK99: 0.1315501667 | AL99: 0.02514404568 | AM99: 0.02514404568 | AN99: 0.0003057876331 | AO99: 0.0003057876331 | AQ99: 1.85
B100: 2035 | C100: 0.15 | D100: 0.15 | E100: 0.5 | F100: 0.5 | G100: 0.12 | H100: 0.12 | I100: 0.02 | J100: 0.02 | K100: 0.05 | L100: 0.05 | M100: 0.003 | N100: 0.003 | O100: 0.157 | P100: 0.157 | Q100: 0.02465102517 | R100: 0.02465102517 | S100: 0.0002997917972 | T100: 0.0002997917972 | V100: 1.875250609 | X100: 0.15 | Y100: 0.15 | Z100: 0.5 | AA100: 0.5 | AB100: 0.12 | AC100: 0.12 | AD100: 0.02 | AE100: 0.02 | AF100: 0.05 | AG100: 0.05 | AH100: 0.003 | AI100: 0.003 | AJ100: 0.132049183 | AK100: 0.132049183 | AL100: 0.02465102517 | AM100: 0.02465102517 | AN100: 0.0002997917972 | AO100: 0.0002997917972 | AQ100: 1.85
B101: 2036 | C101: 0.15 | D101: 0.15 | E101: 0.5 | F101: 0.5 | G101: 0.12 | H101: 0.12 | I101: 0.02 | J101: 0.02 | K101: 0.05 | L101: 0.05 | M101: 0.003 | N101: 0.003 | O101: 0.157 | P101: 0.157 | Q101: 0.02416767174 | R101: 0.02416767174 | S101: 0.0002939135266 | T101: 0.0002939135266 | V101: 1.874755499 | X101: 0.15 | Y101: 0.15 | Z101: 0.5 | AA101: 0.5 | AB101: 0.12 | AC101: 0.12 | AD101: 0.02 | AE101: 0.02 | AF101: 0.05 | AG101: 0.05 | AH101: 0.003 | AI101: 0.003 | AJ101: 0.1325384147 | AK101: 0.1325384147 | AL101: 0.02416767174 | AM101: 0.02416767174 | AN101: 0.0002939135266 | AO101: 0.0002939135266 | AQ101: 1.85
B102: 2037 | C102: 0.15 | D102: 0.15 | E102: 0.5 | F102: 0.5 | G102: 0.12 | H102: 0.12 | I102: 0.02 | J102: 0.02 | K102: 0.05 | L102: 0.05 | M102: 0.003 | N102: 0.003 | O102: 0.157 | P102: 0.157 | Q102: 0.02369379582 | R102: 0.02369379582 | S102: 0.0002881505163 | T102: 0.0002881505163 | V102: 1.874270097 | X102: 0.15 | Y102: 0.15 | Z102: 0.5 | AA102: 0.5 | AB102: 0.12 | AC102: 0.12 | AD102: 0.02 | AE102: 0.02 | AF102: 0.05 | AG102: 0.05 | AH102: 0.003 | AI102: 0.003 | AJ102: 0.1330180537 | AK102: 0.1330180537 | AL102: 0.02369379582 | AM102: 0.02369379582 | AN102: 0.0002881505163 | AO102: 0.0002881505163 | AQ102: 1.85
B103: 2038 | C103: 0.15 | D103: 0.15 | E103: 0.5 | F103: 0.5 | G103: 0.12 | H103: 0.12 | I103: 0.02 | J103: 0.02 | K103: 0.05 | L103: 0.05 | M103: 0.003 | N103: 0.003 | O103: 0.157 | P103: 0.157 | Q103: 0.02322921159 | R103: 0.02322921159 | S103: 0.0002825005062 | T103: 0.0002825005062 | V103: 1.873794213 | X103: 0.15 | Y103: 0.15 | Z103: 0.5 | AA103: 0.5 | AB103: 0.12 | AC103: 0.12 | AD103: 0.02 | AE103: 0.02 | AF103: 0.05 | AG103: 0.05 | AH103: 0.003 | AI103: 0.003 | AJ103: 0.1334882879 | AK103: 0.1334882879 | AL103: 0.02322921159 | AM103: 0.02322921159 | AN103: 0.0002825005062 | AO103: 0.0002825005062 | AQ103: 1.85
B104: 2039 | C104: 0.15 | D104: 0.15 | E104: 0.5 | F104: 0.5 | G104: 0.12 | H104: 0.12 | I104: 0.02 | J104: 0.02 | K104: 0.05 | L104: 0.05 | M104: 0.003 | N104: 0.003 | O104: 0.157 | P104: 0.157 | Q104: 0.02277373685 | R104: 0.02277373685 | S104: 0.0002769612806 | T104: 0.0002769612806 | V104: 1.873327659 | X104: 0.15 | Y104: 0.15 | Z104: 0.5 | AA104: 0.5 | AB104: 0.12 | AC104: 0.12 | AD104: 0.02 | AE104: 0.02 | AF104: 0.05 | AG104: 0.05 | AH104: 0.003 | AI104: 0.003 | AJ104: 0.1339493019 | AK104: 0.1339493019 | AL104: 0.02277373685 | AM104: 0.02277373685 | AN104: 0.0002769612806 | AO104: 0.0002769612806 | AQ104: 1.85
B105: 2040 | C105: 0.15 | D105: 0.15 | E105: 0.5 | F105: 0.5 | G105: 0.12 | H105: 0.12 | I105: 0.02 | J105: 0.02 | K105: 0.05 | L105: 0.05 | M105: 0.003 | N105: 0.003 | O105: 0.157 | P105: 0.157 | Q105: 0.02232719299 | R105: 0.02232719299 | S105: 0.0002715306672 | T105: 0.0002715306672 | V105: 1.872870254 | X105: 0.15 | Y105: 0.15 | Z105: 0.5 | AA105: 0.5 | AB105: 0.12 | AC105: 0.12 | AD105: 0.02 | AE105: 0.02 | AF105: 0.05 | AG105: 0.05 | AH105: 0.003 | AI105: 0.003 | AJ105: 0.1344012763 | AK105: 0.1344012763 | AL105: 0.02232719299 | AM105: 0.02232719299 | AN105: 0.0002715306672 | AO105: 0.0002715306672 | AQ105: 1.85
B106: 2041 | C106: 0.15 | D106: 0.15 | E106: 0.5 | F106: 0.5 | G106: 0.12 | H106: 0.12 | I106: 0.02 | J106: 0.02 | K106: 0.05 | L106: 0.05 | M106: 0.003 | N106: 0.003 | O106: 0.157 | P106: 0.157 | Q106: 0.02188940489 | R106: 0.02188940489 | S106: 0.0002662065365 | T106: 0.0002662065365 | V106: 1.872421818 | X106: 0.15 | Y106: 0.15 | Z106: 0.5 | AA106: 0.5 | AB106: 0.12 | AC106: 0.12 | AD106: 0.02 | AE106: 0.02 | AF106: 0.05 | AG106: 0.05 | AH106: 0.003 | AI106: 0.003 | AJ106: 0.1348443886 | AK106: 0.1348443886 | AL106: 0.02188940489 | AM106: 0.02188940489 | AN106: 0.0002662065365 | AO106: 0.0002662065365 | AQ106: 1.85
B107: 2042 | C107: 0.15 | D107: 0.15 | E107: 0.5 | F107: 0.5 | G107: 0.12 | H107: 0.12 | I107: 0.02 | J107: 0.02 | K107: 0.05 | L107: 0.05 | M107: 0.003 | N107: 0.003 | O107: 0.157 | P107: 0.157 | Q107: 0.02146020088 | R107: 0.02146020088 | S107: 0.0002609868005 | T107: 0.0002609868005 | V107: 1.871982174 | X107: 0.15 | Y107: 0.15 | Z107: 0.5 | AA107: 0.5 | AB107: 0.12 | AC107: 0.12 | AD107: 0.02 | AE107: 0.02 | AF107: 0.05 | AG107: 0.05 | AH107: 0.003 | AI107: 0.003 | AJ107: 0.1352788123 | AK107: 0.1352788123 | AL107: 0.02146020088 | AM107: 0.02146020088 | AN107: 0.0002609868005 | AO107: 0.0002609868005 | AQ107: 1.85
B108: 2043 | C108: 0.15 | D108: 0.15 | E108: 0.5 | F108: 0.5 | G108: 0.12 | H108: 0.12 | I108: 0.02 | J108: 0.02 | K108: 0.05 | L108: 0.05 | M108: 0.003 | N108: 0.003 | O108: 0.157 | P108: 0.157 | Q108: 0.02103941262 | R108: 0.02103941262 | S108: 0.0002558694122 | T108: 0.0002558694122 | V108: 1.871551151 | X108: 0.15 | Y108: 0.15 | Z108: 0.5 | AA108: 0.5 | AB108: 0.12 | AC108: 0.12 | AD108: 0.02 | AE108: 0.02 | AF108: 0.05 | AG108: 0.05 | AH108: 0.003 | AI108: 0.003 | AJ108: 0.135704718 | AK108: 0.135704718 | AL108: 0.02103941262 | AM108: 0.02103941262 | AN108: 0.0002558694122 | AO108: 0.0002558694122 | AQ108: 1.85
B109: 2044 | C109: 0.15 | D109: 0.15 | E109: 0.5 | F109: 0.5 | G109: 0.12 | H109: 0.12 | I109: 0.02 | J109: 0.02 | K109: 0.05 | L109: 0.05 | M109: 0.003 | N109: 0.003 | O109: 0.157 | P109: 0.157 | Q109: 0.02062687512 | R109: 0.02062687512 | S109: 0.0002508523649 | T109: 0.0002508523649 | V109: 1.87112858 | X109: 0.15 | Y109: 0.15 | Z109: 0.5 | AA109: 0.5 | AB109: 0.12 | AC109: 0.12 | AD109: 0.02 | AE109: 0.02 | AF109: 0.05 | AG109: 0.05 | AH109: 0.003 | AI109: 0.003 | AJ109: 0.1361222725 | AK109: 0.1361222725 | AL109: 0.02062687512 | AM109: 0.02062687512 | AN109: 0.0002508523649 | AO109: 0.0002508523649 | AQ109: 1.85
B110: 2045 | C110: 0.15 | D110: 0.15 | E110: 0.5 | F110: 0.5 | G110: 0.12 | H110: 0.12 | I110: 0.02 | J110: 0.02 | K110: 0.05 | L110: 0.05 | M110: 0.003 | N110: 0.003 | O110: 0.157 | P110: 0.157 | Q110: 0.02022242659 | R110: 0.02022242659 | S110: 0.0002459336911 | T110: 0.0002459336911 | V110: 1.870714294 | X110: 0.15 | Y110: 0.15 | Z110: 0.5 | AA110: 0.5 | AB110: 0.12 | AC110: 0.12 | AD110: 0.02 | AE110: 0.02 | AF110: 0.05 | AG110: 0.05 | AH110: 0.003 | AI110: 0.003 | AJ110: 0.1365316397 | AK110: 0.1365316397 | AL110: 0.02022242659 | AM110: 0.02022242659 | AN110: 0.0002459336911 | AO110: 0.0002459336911 | AQ110: 1.85
B111: 2046 | C111: 0.15 | D111: 0.15 | E111: 0.5 | F111: 0.5 | G111: 0.12 | H111: 0.12 | I111: 0.02 | J111: 0.02 | K111: 0.05 | L111: 0.05 | M111: 0.003 | N111: 0.003 | O111: 0.157 | P111: 0.157 | Q111: 0.01982590842 | R111: 0.01982590842 | S111: 0.0002411114619 | T111: 0.0002411114619 | V111: 1.870308131 | X111: 0.15 | Y111: 0.15 | Z111: 0.5 | AA111: 0.5 | AB111: 0.12 | AC111: 0.12 | AD111: 0.02 | AE111: 0.02 | AF111: 0.05 | AG111: 0.05 | AH111: 0.003 | AI111: 0.003 | AJ111: 0.1369329801 | AK111: 0.1369329801 | AL111: 0.01982590842 | AM111: 0.01982590842 | AN111: 0.0002411114619 | AO111: 0.0002411114619 | AQ111: 1.85
B112: 2047 | C112: 0.15 | D112: 0.15 | E112: 0.5 | F112: 0.5 | G112: 0.12 | H112: 0.12 | I112: 0.02 | J112: 0.02 | K112: 0.05 | L112: 0.05 | M112: 0.003 | N112: 0.003 | O112: 0.157 | P112: 0.157 | Q112: 0.01943716512 | R112: 0.01943716512 | S112: 0.0002363837862 | T112: 0.0002363837862 | V112: 1.869909933 | X112: 0.15 | Y112: 0.15 | Z112: 0.5 | AA112: 0.5 | AB112: 0.12 | AC112: 0.12 | AD112: 0.02 | AE112: 0.02 | AF112: 0.05 | AG112: 0.05 | AH112: 0.003 | AI112: 0.003 | AJ112: 0.1373264511 | AK112: 0.1373264511 | AL112: 0.01943716512 | AM112: 0.01943716512 | AN112: 0.0002363837862 | AO112: 0.0002363837862 | AQ112: 1.85
B113: 2048 | C113: 0.15 | D113: 0.15 | E113: 0.5 | F113: 0.5 | G113: 0.12 | H113: 0.12 | I113: 0.02 | J113: 0.02 | K113: 0.05 | L113: 0.05 | M113: 0.003 | N113: 0.003 | O113: 0.157 | P113: 0.157 | Q113: 0.01905604423 | R113: 0.01905604423 | S113: 0.00023174881 | T113: 0.00023174881 | V113: 1.869519542 | X113: 0.15 | Y113: 0.15 | Z113: 0.5 | AA113: 0.5 | AB113: 0.12 | AC113: 0.12 | AD113: 0.02 | AE113: 0.02 | AF113: 0.05 | AG113: 0.05 | AH113: 0.003 | AI113: 0.003 | AJ113: 0.137712207 | AK113: 0.137712207 | AL113: 0.01905604423 | AM113: 0.01905604423 | AN113: 0.00023174881 | AO113: 0.00023174881 | AQ113: 1.85
B114: 2049 | C114: 0.15 | D114: 0.15 | E114: 0.5 | F114: 0.5 | G114: 0.12 | H114: 0.12 | I114: 0.02 | J114: 0.02 | K114: 0.05 | L114: 0.05 | M114: 0.003 | N114: 0.003 | O114: 0.157 | P114: 0.157 | Q114: 0.01868239631 | R114: 0.01868239631 | S114: 0.0002272047156 | T114: 0.0002272047156 | V114: 1.869136806 | X114: 0.15 | Y114: 0.15 | Z114: 0.5 | AA114: 0.5 | AB114: 0.12 | AC114: 0.12 | AD114: 0.02 | AE114: 0.02 | AF114: 0.05 | AG114: 0.05 | AH114: 0.003 | AI114: 0.003 | AJ114: 0.138090399 | AK114: 0.138090399 | AL114: 0.01868239631 | AM114: 0.01868239631 | AN114: 0.0002272047156 | AO114: 0.0002272047156 | AQ114: 1.85
B115: 2050 | C115: 0.15 | D115: 0.15 | E115: 0.5 | F115: 0.5 | G115: 0.12 | H115: 0.12 | I115: 0.02 | J115: 0.02 | K115: 0.05 | L115: 0.05 | M115: 0.003 | N115: 0.003 | O115: 0.157 | P115: 0.157 | Q115: 0.01831607481 | R115: 0.01831607481 | S115: 0.0002227497212 | T115: 0.0002227497212 | V115: 1.868761574 | X115: 0.15 | Y115: 0.15 | Z115: 0.5 | AA115: 0.5 | AB115: 0.12 | AC115: 0.12 | AD115: 0.02 | AE115: 0.02 | AF115: 0.05 | AG115: 0.05 | AH115: 0.003 | AI115: 0.003 | AJ115: 0.1384611755 | AK115: 0.1384611755 | AL115: 0.01831607481 | AM115: 0.01831607481 | AN115: 0.0002227497212 | AO115: 0.0002227497212 | AQ115: 1.85
B119: 3. Scenario 2: Composting | X119: 4. Scenario 3: Recycling
B120: Year | C120: Food (Gg/yr) | E120: Garden (Gg/yr) | G120: Paper (Gg/yr) | I120: Wood (Gg/yr) | K120: Textiles (Gg/yr) | M120: Nappies (Gg/yr) | O120: Inert (Gg/yr) | Q120: Sludge (Gg/yr) | S120: Industrial (Gg/yr) | X120: Food (Gg/yr) | Z120: Garden (Gg/yr) | AB120: Paper (Gg/yr) | AD120: Wood (Gg/yr) | AF120: Textiles (Gg/yr) | AH120: Nappies (Gg/yr) | AJ120: Inert (Gg/yr) | AL120: Sludge (Gg/yr) | AN120: Industrial (Gg/yr)
C121: TNC | D121: USER | E121: TNC | F121: USER | G121: TNC | H121: USER | I121: TNC | J121: USER | K121: TNC | L121: USER | M121: TNC | N121: USER | O121: TNC | P121: USER | Q121: TNC | R121: USER | S121: TNC | T121: USER | U121: TNC | V121: USER | X121: TNC | Y121: USER | Z121: TNC | AA121: USER | AB121: TNC | AC121: USER | AD121: TNC | AE121: USER | AF121: TNC | AG121: USER | AH121: TNC | AI121: USER | AJ121: TNC | AK121: USER | AL121: TNC | AM121: USER | AN121: TNC | AO121: USER | AP121: TNC | AQ121: USER
B122: =B6 -> 2000 | C122: 0.15 | D122: 0.15 | E122: 0.5 | F122: 0.5 | G122: 0.12 | H122: 0.12 | I122: 0.02 | J122: 0.02 | K122: 0.05 | L122: 0.05 | M122: 0.003 | N122: 0.003 | O122: 0.157 | P122: 0.157 | Q122: 0 | R122: 0 | S122: 0 | T122: 0 | V122: =SUM(D122:T122) -> 1.85 | X122: 0.15 | Y122: 0.15 | Z122: 0.5 | AA122: 0.5 | AB122: 0.12 | AC122: 0.12 | AD122: 0.02 | AE122: 0.02 | AF122: 0.05 | AG122: 0.05 | AH122: 0.003 | AI122: 0.003 | AJ122: 0.157 | AK122: 0.157 | AL122: 0 | AM122: 0 | AN122: 0 | AO122: 0 | AQ122: =SUM(Y122:AO122) -> 1.85
B123: 2001 | C123: 0.15 | D123: 0.15 | E123: 0.5 | F123: 0.5 | G123: 0.12 | H123: 0.12 | I123: 0.02 | J123: 0.02 | K123: 0.05 | L123: 0.05 | M123: 0.003 | N123: 0.003 | O123: 0.157 | P123: 0.157 | Q123: 0 | R123: 0 | S123: 0 | T123: 0 | V123: =SUM(D123:T123) -> 1.85 | X123: 0.15 | Y123: 0.15 | Z123: 0.5 | AA123: 0.5 | AB123: 0.12 | AC123: 0.12 | AD123: 0.02 | AE123: 0.02 | AF123: 0.05 | AG123: 0.05 | AH123: 0.003 | AI123: 0.003 | AJ123: 0.157 | AK123: 0.157 | AL123: 0 | AM123: 0 | AN123: 0 | AO123: 0 | AQ123: =SUM(Y123:AO123) -> 1.85
B124: 2002 | C124: 0.15 | D124: 0.15 | E124: 0.5 | F124: 0.5 | G124: 0.12 | H124: 0.12 | I124: 0.02 | J124: 0.02 | K124: 0.05 | L124: 0.05 | M124: 0.003 | N124: 0.003 | O124: 0.157 | P124: 0.157 | Q124: 0 | R124: 0 | S124: 0 | T124: 0 | V124: 1.85 | X124: 0.15 | Y124: 0.15 | Z124: 0.5 | AA124: 0.5 | AB124: 0.12 | AC124: 0.12 | AD124: 0.02 | AE124: 0.02 | AF124: 0.05 | AG124: 0.05 | AH124: 0.003 | AI124: 0.003 | AJ124: 0.157 | AK124: 0.157 | AL124: 0 | AM124: 0 | AN124: 0 | AO124: 0 | AQ124: 1.85
B125: 2003 | C125: 0.15 | D125: 0.15 | E125: 0.5 | F125: 0.5 | G125: 0.12 | H125: 0.12 | I125: 0.02 | J125: 0.02 | K125: 0.05 | L125: 0.05 | M125: 0.003 | N125: 0.003 | O125: 0.157 | P125: 0.157 | Q125: 0 | R125: 0 | S125: 0 | T125: 0 | V125: 1.85 | X125: 0.15 | Y125: 0.15 | Z125: 0.5 | AA125: 0.5 | AB125: 0.12 | AC125: 0.12 | AD125: 0.02 | AE125: 0.02 | AF125: 0.05 | AG125: 0.05 | AH125: 0.003 | AI125: 0.003 | AJ125: 0.157 | AK125: 0.157 | AL125: 0 | AM125: 0 | AN125: 0 | AO125: 0 | AQ125: 1.85
B126: 2004 | C126: 0.15 | D126: 0.15 | E126: 0.5 | F126: 0.5 | G126: 0.12 | H126: 0.12 | I126: 0.02 | J126: 0.02 | K126: 0.05 | L126: 0.05 | M126: 0.003 | N126: 0.003 | O126: 0.157 | P126: 0.157 | Q126: 0 | R126: 0 | S126: 0 | T126: 0 | V126: 1.85 | X126: 0.15 | Y126: 0.15 | Z126: 0.5 | AA126: 0.5 | AB126: 0.12 | AC126: 0.12 | AD126: 0.02 | AE126: 0.02 | AF126: 0.05 | AG126: 0.05 | AH126: 0.003 | AI126: 0.003 | AJ126: 0.157 | AK126: 0.157 | AL126: 0 | AM126: 0 | AN126: 0 | AO126: 0 | AQ126: 1.85
B127: 2005 | C127: 0.15 | D127: 0.15 | E127: 0.5 | F127: 0.5 | G127: 0.12 | H127: 0.12 | I127: 0.02 | J127: 0.02 | K127: 0.05 | L127: 0.05 | M127: 0.003 | N127: 0.003 | O127: 0.1404693952 | P127: 0.1404693952 | Q127: 0.01515467889 | R127: 0.01515467889 | S127: 0.001375925922 | T127: 0.001375925922 | V127: 1.85 | X127: 0.15 | Y127: 0.15 | Z127: 0.5 | AA127: 0.5 | AB127: 0.12 | AC127: 0.12 | AD127: 0.02 | AE127: 0.02 | AF127: 0.05 | AG127: 0.05 | AH127: 0.003 | AI127: 0.003 | AJ127: 0.1404693952 | AK127: 0.1404693952 | AL127: 0.01515467889 | AM127: 0.01515467889 | AN127: 0.001375925922 | AO127: 0.001375925922 | AQ127: 1.85
B128: 2006 | C128: 0.15 | D128: 0.15 | E128: 0.5 | F128: 0.5 | G128: 0.12 | H128: 0.12 | I128: 0.02 | J128: 0.02 | K128: 0.05 | L128: 0.05 | M128: 0.003 | N128: 0.003 | O128: 0.1359830426 | P128: 0.1359830426 | Q128: 0.01979147311 | R128: 0.01979147311 | S128: 0.001225484281 | T128: 0.001225484281 | V128: 1.85 | X128: 0.15 | Y128: 0.15 | Z128: 0.5 | AA128: 0.5 | AB128: 0.12 | AC128: 0.12 | AD128: 0.02 | AE128: 0.02 | AF128: 0.05 | AG128: 0.05 | AH128: 0.003 | AI128: 0.003 | AJ128: 0.1359830426 | AK128: 0.1359830426 | AL128: 0.01979147311 | AM128: 0.01979147311 | AN128: 0.001225484281 | AO128: 0.001225484281 | AQ128: 1.85
B129: 2007 | C129: 0.15 | D129: 0.15 | E129: 0.5 | F129: 0.5 | G129: 0.12 | H129: 0.12 | I129: 0.02 | J129: 0.02 | K129: 0.05 | L129: 0.05 | M129: 0.003 | N129: 0.003 | O129: 0.1215968362 | P129: 0.1215968362 | Q129: 0.03315506906 | R129: 0.03315506906 | S129: 0.002248094708 | T129: 0.002248094708 | V129: 1.85 | X129: 0.15 | Y129: 0.15 | Z129: 0.5 | AA129: 0.5 | AB129: 0.12 | AC129: 0.12 | AD129: 0.02 | AE129: 0.02 | AF129: 0.05 | AG129: 0.05 | AH129: 0.003 | AI129: 0.003 | AJ129: 0.1215968362 | AK129: 0.1215968362 | AL129: 0.03315506906 | AM129: 0.03315506906 | AN129: 0.002248094708 | AO129: 0.002248094708 | AQ129: 1.85
B130: 2008 | C130: 0.15 | D130: 0.15 | E130: 0.5 | F130: 0.5 | G130: 0.12 | H130: 0.12 | I130: 0.02 | J130: 0.02 | K130: 0.05 | L130: 0.05 | M130: 0.003 | N130: 0.003 | O130: 0.1246060009 | P130: 0.1246060009 | Q130: 0.03040871176 | R130: 0.03040871176 | S130: 0.001985287367 | T130: 0.001985287367 | V130: 1.85 | X130: 0.15 | Y130: 0.15 | Z130: 0.5 | AA130: 0.5 | AB130: 0.12 | AC130: 0.12 | AD130: 0.02 | AE130: 0.02 | AF130: 0.05 | AG130: 0.05 | AH130: 0.003 | AI130: 0.003 | AJ130: 0.1246060009 | AK130: 0.1246060009 | AL130: 0.03040871176 | AM130: 0.03040871176 | AN130: 0.001985287367 | AO130: 0.001985287367 | AQ130: 1.85
B131: 2009 | C131: 0.15 | D131: 0.15 | E131: 0.5 | F131: 0.5 | G131: 0.12 | H131: 0.12 | I131: 0.02 | J131: 0.02 | K131: 0.05 | L131: 0.05 | M131: 0.003 | N131: 0.003 | O131: 0.1322542015 | P131: 0.1322542015 | Q131: 0.02194042454 | R131: 0.02194042454 | S131: 0.002805373941 | T131: 0.002805373941 | V131: 1.85 | X131: 0.15 | Y131: 0.15 | Z131: 0.5 | AA131: 0.5 | AB131: 0.12 | AC131: 0.12 | AD131: 0.02 | AE131: 0.02 | AF131: 0.05 | AG131: 0.05 | AH131: 0.003 | AI131: 0.003 | AJ131: 0.1322542015 | AK131: 0.1322542015 | AL131: 0.02194042454 | AM131: 0.02194042454 | AN131: 0.002805373941 | AO131: 0.002805373941 | AQ131: 1.85
B132: 2010 | C132: 0.15 | D132: 0.15 | E132: 0.5 | F132: 0.5 | G132: 0.12 | H132: 0.12 | I132: 0.02 | J132: 0.02 | K132: 0.05 | L132: 0.05 | M132: 0.003 | N132: 0.003 | O132: 0.1287538939 | P132: 0.1287538939 | Q132: 0.02560021863 | R132: 0.02560021863 | S132: 0.002645887461 | T132: 0.002645887461 | V132: 1.85 | X132: 0.15 | Y132: 0.15 | Z132: 0.5 | AA132: 0.5 | AB132: 0.12 | AC132: 0.12 | AD132: 0.02 | AE132: 0.02 | AF132: 0.05 | AG132: 0.05 | AH132: 0.003 | AI132: 0.003 | AJ132: 0.1287538939 | AK132: 0.1287538939 | AL132: 0.02560021863 | AM132: 0.02560021863 | AN132: 0.002645887461 | AO132: 0.002645887461 | AQ132: 1.85
B133: 2011 | C133: 0.15 | D133: 0.15 | E133: 0.5 | F133: 0.5 | G133: 0.12 | H133: 0.12 | I133: 0.02 | J133: 0.02 | K133: 0.05 | L133: 0.05 | M133: 0.003 | N133: 0.003 | O133: 0.1281333276 | P133: 0.1281333276 | Q133: 0.02509567455 | R133: 0.02509567455 | S133: 0.003770997844 | T133: 0.003770997844 | V133: 1.85 | X133: 0.15 | Y133: 0.15 | Z133: 0.5 | AA133: 0.5 | AB133: 0.12 | AC133: 0.12 | AD133: 0.02 | AE133: 0.02 | AF133: 0.05 | AG133: 0.05 | AH133: 0.003 | AI133: 0.003 | AJ133: 0.1281333276 | AK133: 0.1281333276 | AL133: 0.02509567455 | AM133: 0.02509567455 | AN133: 0.003770997844 | AO133: 0.003770997844 | AQ133: 1.85
B134: 2012 | C134: 0.15 | D134: 0.15 | E134: 0.5 | F134: 0.5 | G134: 0.12 | H134: 0.12 | I134: 0.02 | J134: 0.02 | K134: 0.05 | L134: 0.05 | M134: 0.003 | N134: 0.003 | O134: 0.1362509909 | P134: 0.1362509909 | Q134: 0.01900109173 | R134: 0.01900109173 | S134: 0.001747917389 | T134: 0.001747917389 | V134: 1.85 | X134: 0.15 | Y134: 0.15 | Z134: 0.5 | AA134: 0.5 | AB134: 0.12 | AC134: 0.12 | AD134: 0.02 | AE134: 0.02 | AF134: 0.05 | AG134: 0.05 | AH134: 0.003 | AI134: 0.003 | AJ134: 0.1362509909 | AK134: 0.1362509909 | AL134: 0.01900109173 | AM134: 0.01900109173 | AN134: 0.001747917389 | AO134: 0.001747917389 | AQ134: 1.85
B135: 2013 | C135: 0.15 | D135: 0.15 | E135: 0.5 | F135: 0.5 | G135: 0.12 | H135: 0.12 | I135: 0.02 | J135: 0.02 | K135: 0.05 | L135: 0.05 | M135: 0.003 | N135: 0.003 | O135: 0.1400397906 | P135: 0.1400397906 | Q135: 0.01620398168 | R135: 0.01620398168 | S135: 0.0007562277008 | T135: 0.0007562277008 | V135: 1.85 | X135: 0.15 | Y135: 0.15 | Z135: 0.5 | AA135: 0.5 | AB135: 0.12 | AC135: 0.12 | AD135: 0.02 | AE135: 0.02 | AF135: 0.05 | AG135: 0.05 | AH135: 0.003 | AI135: 0.003 | AJ135: 0.1400397906 | AK135: 0.1400397906 | AL135: 0.01620398168 | AM135: 0.01620398168 | AN135: 0.0007562277008 | AO135: 0.0007562277008 | AQ135: 1.85
B136: 2014 | C136: 0.15 | D136: 0.15 | E136: 0.5 | F136: 0.5 | G136: 0.12 | H136: 0.12 | I136: 0.02 | J136: 0.02 | K136: 0.05 | L136: 0.05 | M136: 0.003 | N136: 0.003 | O136: 0.1440913726 | P136: 0.1440913726 | Q136: 0.01245424307 | R136: 0.01245424307 | S136: 0.0004543843371 | T136: 0.0004543843371 | V136: 1.85 | X136: 0.15 | Y136: 0.15 | Z136: 0.5 | AA136: 0.5 | AB136: 0.12 | AC136: 0.12 | AD136: 0.02 | AE136: 0.02 | AF136: 0.05 | AG136: 0.05 | AH136: 0.003 | AI136: 0.003 | AJ136: 0.1440913726 | AK136: 0.1440913726 | AL136: 0.01245424307 | AM136: 0.01245424307 | AN136: 0.0004543843371 | AO136: 0.0004543843371 | AQ136: 1.85
B137: 2015 | C137: 0.15 | D137: 0.15 | E137: 0.5 | F137: 0.5 | G137: 0.12 | H137: 0.12 | I137: 0.02 | J137: 0.02 | K137: 0.05 | L137: 0.05 | M137: 0.003 | N137: 0.003 | O137: 0.1428182277 | P137: 0.1428182277 | Q137: 0.0137362975 | R137: 0.0137362975 | S137: 0.0004454748403 | T137: 0.0004454748403 | V137: 1.85 | X137: 0.15 | Y137: 0.15 | Z137: 0.5 | AA137: 0.5 | AB137: 0.12 | AC137: 0.12 | AD137: 0.02 | AE137: 0.02 | AF137: 0.05 | AG137: 0.05 | AH137: 0.003 | AI137: 0.003 | AJ137: 0.1428182277 | AK137: 0.1428182277 | AL137: 0.0137362975 | AM137: 0.0137362975 | AN137: 0.0004454748403 | AO137: 0.0004454748403 | AQ137: 1.85
B138: 2016 | C138: 0.15 | D138: 0.15 | E138: 0.5 | F138: 0.5 | G138: 0.12 | H138: 0.12 | I138: 0.02 | J138: 0.02 | K138: 0.05 | L138: 0.05 | M138: 0.003 | N138: 0.003 | O138: 0.1415999729 | P138: 0.1415999729 | Q138: 0.01496328704 | R138: 0.01496328704 | S138: 0.0004367400395 | T138: 0.0004367400395 | V138: 1.85 | X138: 0.15 | Y138: 0.15 | Z138: 0.5 | AA138: 0.5 | AB138: 0.12 | AC138: 0.12 | AD138: 0.02 | AE138: 0.02 | AF138: 0.05 | AG138: 0.05 | AH138: 0.003 | AI138: 0.003 | AJ138: 0.1415999729 | AK138: 0.1415999729 | AL138: 0.01496328704 | AM138: 0.01496328704 | AN138: 0.0004367400395 | AO138: 0.0004367400395 | AQ138: 1.85
B139: 2017 | C139: 0.147 | D139: 0.147 | E139: 0.49 | F139: 0.49 | G139: 0.1176 | H139: 0.1176 | I139: 0.02 | J139: 0.02 | K139: 0.05 | L139: 0.05 | M139: 0.003 | N139: 0.003 | O139: 0.1558349453 | P139: 0.1558349453 | Q139: 0.01613687818 | R139: 0.01613687818 | S139: 0.0004281765094 | T139: 0.0004281765094 | V139: 1.853 | X139: 0.15 | Y139: 0.15 | Z139: 0.5 | AA139: 0.5 | AB139: 0.1176 | AC139: 0.1176 | AD139: 0.02 | AE139: 0.02 | AF139: 0.049 | AG139: 0.049 | AH139: 0.003 | AI139: 0.003 | AJ139: 0.1438349453 | AK139: 0.1438349453 | AL139: 0.01613687818 | AM139: 0.01613687818 | AN139: 0.0004281765094 | AO139: 0.0004281765094 | AQ139: 1.85
B140: 2018 | C140: 0.144 | D140: 0.144 | E140: 0.48 | F140: 0.48 | G140: 0.1152 | H140: 0.1152 | I140: 0.02 | J140: 0.02 | K140: 0.05 | L140: 0.05 | M140: 0.003 | N140: 0.003 | O140: 0.1701215259 | P140: 0.1701215259 | Q140: 0.01725869324 | R140: 0.01725869324 | S140: 0.0004197808915 | T140: 0.0004197808915 | V140: 1.856 | X140: 0.15 | Y140: 0.15 | Z140: 0.5 | AA140: 0.5 | AB140: 0.1152 | AC140: 0.1152 | AD140: 0.02 | AE140: 0.02 | AF140: 0.048 | AG140: 0.048 | AH140: 0.003 | AI140: 0.003 | AJ140: 0.1461215259 | AK140: 0.1461215259 | AL140: 0.01725869324 | AM140: 0.01725869324 | AN140: 0.0004197808915 | AO140: 0.0004197808915 | AQ140: 1.85
B141: 2019 | C141: 0.141 | D141: 0.141 | E141: 0.47 | F141: 0.47 | G141: 0.1128 | H141: 0.1128 | I141: 0.02 | J141: 0.02 | K141: 0.05 | L141: 0.05 | M141: 0.003 | N141: 0.003 | O141: 0.1844581387 | P141: 0.1844581387 | Q141: 0.01833031144 | R141: 0.01833031144 | S141: 0.0004115498937 | T141: 0.0004115498937 | V141: 1.859 | X141: 0.15 | Y141: 0.15 | Z141: 0.5 | AA141: 0.5 | AB141: 0.1128 | AC141: 0.1128 | AD141: 0.02 | AE141: 0.02 | AF141: 0.047 | AG141: 0.047 | AH141: 0.003 | AI141: 0.003 | AJ141: 0.1484581387 | AK141: 0.1484581387 | AL141: 0.01833031144 | AM141: 0.01833031144 | AN141: 0.0004115498937 | AO141: 0.0004115498937 | AQ141: 1.85
B142: 2020 | C142: 0.138 | D142: 0.138 | E142: 0.46 | F142: 0.46 | G142: 0.1104 | H142: 0.1104 | I142: 0.02 | J142: 0.02 | K142: 0.05 | L142: 0.05 | M142: 0.003 | N142: 0.003 | O142: 0.1988432497 | P142: 0.1988432497 | Q142: 0.01935327 | R142: 0.01935327 | S142: 0.0004034802879 | T142: 0.0004034802879 | V142: 1.862 | X142: 0.15 | Y142: 0.15 | Z142: 0.5 | AA142: 0.5 | AB142: 0.1104 | AC142: 0.1104 | AD142: 0.02 | AE142: 0.02 | AF142: 0.046 | AG142: 0.046 | AH142: 0.003 | AI142: 0.003 | AJ142: 0.1508432497 | AK142: 0.1508432497 | AL142: 0.01935327 | AM142: 0.01935327 | AN142: 0.0004034802879 | AO142: 0.0004034802879 | AQ142: 1.85
B143: 2021 | C143: 0.135 | D143: 0.135 | E143: 0.45 | F143: 0.45 | G143: 0.108 | H143: 0.108 | I143: 0.02 | J143: 0.02 | K143: 0.05 | L143: 0.05 | M143: 0.003 | N143: 0.003 | O143: 0.213275366 | P143: 0.213275366 | Q143: 0.02032906513 | R143: 0.02032906513 | S143: 0.0003955689097 | T143: 0.0003955689097 | V143: 1.865 | X143: 0.15 | Y143: 0.15 | Z143: 0.5 | AA143: 0.5 | AB143: 0.108 | AC143: 0.108 | AD143: 0.02 | AE143: 0.02 | AF143: 0.045 | AG143: 0.045 | AH143: 0.003 | AI143: 0.003 | AJ143: 0.153275366 | AK143: 0.153275366 | AL143: 0.02032906513 | AM143: 0.02032906513 | AN143: 0.0003955689097 | AO143: 0.0003955689097 | AQ143: 1.85
B144: 2022 | C144: 0.132 | D144: 0.132 | E144: 0.44 | F144: 0.44 | G144: 0.1056 | H144: 0.1056 | I144: 0.02 | J144: 0.02 | K144: 0.05 | L144: 0.05 | M144: 0.003 | N144: 0.003 | O144: 0.2277530343 | P144: 0.2277530343 | Q144: 0.02125915307 | R144: 0.02125915307 | S144: 0.0003878126566 | T144: 0.0003878126566 | V144: 1.868 | X144: 0.15 | Y144: 0.15 | Z144: 0.5 | AA144: 0.5 | AB144: 0.1056 | AC144: 0.1056 | AD144: 0.02 | AE144: 0.02 | AF144: 0.044 | AG144: 0.044 | AH144: 0.003 | AI144: 0.003 | AJ144: 0.1557530343 | AK144: 0.1557530343 | AL144: 0.02125915307 | AM144: 0.02125915307 | AN144: 0.0003878126566 | AO144: 0.0003878126566 | AQ144: 1.85
B145: 2023 | C145: 0.129 | D145: 0.129 | E145: 0.43 | F145: 0.43 | G145: 0.1032 | H145: 0.1032 | I145: 0.02 | J145: 0.02 | K145: 0.05 | L145: 0.05 | M145: 0.003 | N145: 0.003 | O145: 0.2422748404 | P145: 0.2422748404 | Q145: 0.02214495112 | R145: 0.02214495112 | S145: 0.0003802084868 | T145: 0.0003802084868 | V145: 1.871 | X145: 0.15 | Y145: 0.15 | Z145: 0.5 | AA145: 0.5 | AB145: 0.1032 | AC145: 0.1032 | AD145: 0.02 | AE145: 0.02 | AF145: 0.043 | AG145: 0.043 | AH145: 0.003 | AI145: 0.003 | AJ145: 0.1582748404 | AK145: 0.1582748404 | AL145: 0.02214495112 | AM145: 0.02214495112 | AN145: 0.0003802084868 | AO145: 0.0003802084868 | AQ145: 1.85
B146: 2024 | C146: 0.126 | D146: 0.126 | E146: 0.42 | F146: 0.42 | G146: 0.1008 | H146: 0.1008 | I146: 0.02 | J146: 0.02 | K146: 0.05 | L146: 0.05 | M146: 0.003 | N146: 0.003 | O146: 0.2568394081 | P146: 0.2568394081 | Q146: 0.02298783853 | R146: 0.02298783853 | S146: 0.0003727534185 | T146: 0.0003727534185 | V146: 1.874 | X146: 0.15 | Y146: 0.15 | Z146: 0.5 | AA146: 0.5 | AB146: 0.1008 | AC146: 0.1008 | AD146: 0.02 | AE146: 0.02 | AF146: 0.042 | AG146: 0.042 | AH146: 0.003 | AI146: 0.003 | AJ146: 0.1608394081 | AK146: 0.1608394081 | AL146: 0.02298783853 | AM146: 0.02298783853 | AN146: 0.0003727534185 | AO146: 0.0003727534185 | AQ146: 1.85
B147: 2025 | C147: 0.123 | D147: 0.123 | E147: 0.41 | F147: 0.41 | G147: 0.0984 | H147: 0.0984 | I147: 0.02 | J147: 0.02 | K147: 0.05 | L147: 0.05 | M147: 0.003 | N147: 0.003 | O147: 0.271445398 | P147: 0.271445398 | Q147: 0.02378915752 | R147: 0.02378915752 | S147: 0.0003654445279 | T147: 0.0003654445279 | V147: 1.877 | X147: 0.15 | Y147: 0.15 | Z147: 0.5 | AA147: 0.5 | AB147: 0.0984 | AC147: 0.0984 | AD147: 0.02 | AE147: 0.02 | AF147: 0.041 | AG147: 0.041 | AH147: 0.003 | AI147: 0.003 | AJ147: 0.163445398 | AK147: 0.163445398 | AL147: 0.02378915752 | AM147: 0.02378915752 | AN147: 0.0003654445279 | AO147: 0.0003654445279 | AQ147: 1.85
B148: 2026 | C148: 0.12 | D148: 0.12 | E148: 0.4 | F148: 0.4 | G148: 0.096 | H148: 0.096 | I148: 0.02 | J148: 0.02 | K148: 0.05 | L148: 0.05 | M148: 0.003 | N148: 0.003 | O148: 0.2860915069 | P148: 0.2860915069 | Q148: 0.02455021416 | R148: 0.02455021416 | S148: 0.0003582789489 | T148: 0.0003582789489 | V148: 1.88 | X148: 0.15 | Y148: 0.15 | Z148: 0.5 | AA148: 0.5 | AB148: 0.096 | AC148: 0.096 | AD148: 0.02 | AE148: 0.02 | AF148: 0.04 | AG148: 0.04 | AH148: 0.003 | AI148: 0.003 | AJ148: 0.1660915069 | AK148: 0.1660915069 | AL148: 0.02455021416 | AM148: 0.02455021416 | AN148: 0.0003582789489 | AO148: 0.0003582789489 | AQ148: 1.85
B149: 2027 | C149: 0.114 | D149: 0.114 | E149: 0.38 | F149: 0.38 | G149: 0.0912 | H149: 0.0912 | I149: 0.02 | J149: 0.02 | K149: 0.05 | L149: 0.05 | M149: 0.003 | N149: 0.003 | O149: 0.3161764668 | P149: 0.3161764668 | Q149: 0.02527227928 | R149: 0.02527227928 | S149: 0.0003512538715 | T149: 0.0003512538715 | V149: 1.886 | X149: 0.15 | Y149: 0.15 | Z149: 0.5 | AA149: 0.5 | AB149: 0.0936 | AC149: 0.0936 | AD149: 0.02 | AE149: 0.02 | AF149: 0.039 | AG149: 0.039 | AH149: 0.003 | AI149: 0.003 | AJ149: 0.1687764668 | AK149: 0.1687764668 | AL149: 0.02527227928 | AM149: 0.02527227928 | AN149: 0.0003512538715 | AO149: 0.0003512538715 | AQ149: 1.85
B150: 2028 | C150: 0.111 | D150: 0.111 | E150: 0.37 | F150: 0.37 | G150: 0.0888 | H150: 0.0888 | I150: 0.02 | J150: 0.02 | K150: 0.05 | L150: 0.05 | M150: 0.003 | N150: 0.003 | O150: 0.3308990441 | P150: 0.3308990441 | Q150: 0.02595658937 | R150: 0.02595658937 | S150: 0.0003443665407 | T150: 0.0003443665407 | V150: 1.889 | X150: 0.15 | Y150: 0.15 | Z150: 0.5 | AA150: 0.5 | AB150: 0.0912 | AC150: 0.0912 | AD150: 0.02 | AE150: 0.02 | AF150: 0.038 | AG150: 0.038 | AH150: 0.003 | AI150: 0.003 | AJ150: 0.1714990441 | AK150: 0.1714990441 | AL150: 0.02595658937 | AM150: 0.02595658937 | AN150: 0.0003443665407 | AO150: 0.0003443665407 | AQ150: 1.85
B151: 2029 | C151: 0.108 | D151: 0.108 | E151: 0.36 | F151: 0.36 | G151: 0.0864 | H151: 0.0864 | I151: 0.02 | J151: 0.02 | K151: 0.05 | L151: 0.05 | M151: 0.003 | N151: 0.003 | O151: 0.3456580384 | P151: 0.3456580384 | Q151: 0.02660434739 | R151: 0.02660434739 | S151: 0.0003376142556 | T151: 0.0003376142556 | V151: 1.892 | X151: 0.15 | Y151: 0.15 | Z151: 0.5 | AA151: 0.5 | AB151: 0.0888 | AC151: 0.0888 | AD151: 0.02 | AE151: 0.02 | AF151: 0.037 | AG151: 0.037 | AH151: 0.003 | AI151: 0.003 | AJ151: 0.1742580384 | AK151: 0.1742580384 | AL151: 0.02660434739 | AM151: 0.02660434739 | AN151: 0.0003376142556 | AO151: 0.0003376142556 | AQ151: 1.85
B152: 2030 | C152: 0.105 | D152: 0.105 | E152: 0.35 | F152: 0.35 | G152: 0.084 | H152: 0.084 | I152: 0.02 | J152: 0.02 | K152: 0.05 | L152: 0.05 | M152: 0.003 | N152: 0.003 | O152: 0.360452282 | P152: 0.360452282 | Q152: 0.02721672367 | R152: 0.02721672367 | S152: 0.0003309943682 | T152: 0.0003309943682 | V152: 1.895 | X152: 0.15 | Y152: 0.15 | Z152: 0.5 | AA152: 0.5 | AB152: 0.0864 | AC152: 0.0864 | AD152: 0.02 | AE152: 0.02 | AF152: 0.036 | AG152: 0.036 | AH152: 0.003 | AI152: 0.003 | AJ152: 0.177052282 | AK152: 0.177052282 | AL152: 0.02721672367 | AM152: 0.02721672367 | AN152: 0.0003309943682 | AO152: 0.0003309943682 | AQ152: 1.85
B153: 2031 | C153: 0.1035 | D153: 0.1035 | E153: 0.345 | F153: 0.345 | G153: 0.0828 | H153: 0.0828 | I153: 0.02 | J153: 0.02 | K153: 0.05 | L153: 0.05 | M153: 0.003 | N153: 0.003 | O153: 0.3686924333 | P153: 0.3686924333 | Q153: 0.02668306242 | R153: 0.02668306242 | S153: 0.0003245042826 | T153: 0.0003245042826 | V153: 1.8965 | X153: 0.15 | Y153: 0.15 | Z153: 0.5 | AA153: 0.5 | AB153: 0.0852 | AC153: 0.0852 | AD153: 0.02 | AE153: 0.02 | AF153: 0.0355 | AG153: 0.0355 | AH153: 0.003 | AI153: 0.003 | AJ153: 0.1792924333 | AK153: 0.1792924333 | AL153: 0.02668306242 | AM153: 0.02668306242 | AN153: 0.0003245042826 | AO153: 0.0003245042826 | AQ153: 1.85
B154: =B38 -> 2032 | C154: 0.102 | D154: 0.102 | E154: 0.34 | F154: 0.34 | G154: 0.0816 | H154: 0.0816 | I154: 0.02 | J154: 0.02 | K154: 0.05 | L154: 0.05 | M154: 0.003 | N154: 0.003 | O154: 0.3769219934 | P154: 0.3769219934 | Q154: 0.02615986512 | R154: 0.02615986512 | S154: 0.0003181414535 | T154: 0.0003181414535 | V154: 1.898 | X154: 0.15 | Y154: 0.15 | Z154: 0.5 | AA154: 0.5 | AB154: 0.084 | AC154: 0.084 | AD154: 0.02 | AE154: 0.02 | AF154: 0.035 | AG154: 0.035 | AH154: 0.003 | AI154: 0.003 | AJ154: 0.1815219934 | AK154: 0.1815219934 | AL154: 0.02615986512 | AM154: 0.02615986512 | AN154: 0.0003181414535 | AO154: 0.0003181414535 | AQ154: 1.85
B155: 2033 | C155: 0.1005 | D155: 0.1005 | E155: 0.335 | F155: 0.335 | G155: 0.0804 | H155: 0.0804 | I155: 0.02 | J155: 0.02 | K155: 0.05 | L155: 0.05 | M155: 0.003 | N155: 0.003 | O155: 0.38514117 | P155: 0.38514117 | Q155: 0.02564692659 | R155: 0.02564692659 | S155: 0.0003119033858 | T155: 0.0003119033858 | V155: 1.8995 | X155: 0.15 | Y155: 0.15 | Z155: 0.5 | AA155: 0.5 | AB155: 0.0828 | AC155: 0.0828 | AD155: 0.02 | AE155: 0.02 | AF155: 0.0345 | AG155: 0.0345 | AH155: 0.003 | AI155: 0.003 | AJ155: 0.18374117 | AK155: 0.18374117 | AL155: 0.02564692659 | AM155: 0.02564692659 | AN155: 0.0003119033858 | AO155: 0.0003119033858 | AQ155: 1.85
B156: 2034 | C156: 0.099 | D156: 0.099 | E156: 0.33 | F156: 0.33 | G156: 0.0792 | H156: 0.0792 | I156: 0.02 | J156: 0.02 | K156: 0.05 | L156: 0.05 | M156: 0.003 | N156: 0.003 | O156: 0.3933501667 | P156: 0.3933501667 | Q156: 0.02514404568 | R156: 0.02514404568 | S156: 0.0003057876331 | T156: 0.0003057876331 | V156: 1.901 | X156: 0.15 | Y156: 0.15 | Z156: 0.5 | AA156: 0.5 | AB156: 0.0816 | AC156: 0.0816 | AD156: 0.02 | AE156: 0.02 | AF156: 0.034 | AG156: 0.034 | AH156: 0.003 | AI156: 0.003 | AJ156: 0.1859501667 | AK156: 0.1859501667 | AL156: 0.02514404568 | AM156: 0.02514404568 | AN156: 0.0003057876331 | AO156: 0.0003057876331 | AQ156: 1.85
B157: 2035 | C157: 0.0975 | D157: 0.0975 | E157: 0.325 | F157: 0.325 | G157: 0.078 | H157: 0.078 | I157: 0.02 | J157: 0.02 | K157: 0.05 | L157: 0.05 | M157: 0.003 | N157: 0.003 | O157: 0.401549183 | P157: 0.401549183 | Q157: 0.02465102517 | R157: 0.02465102517 | S157: 0.0002997917972 | T157: 0.0002997917972 | V157: 1.9025 | X157: 0.15 | Y157: 0.15 | Z157: 0.5 | AA157: 0.5 | AB157: 0.0804 | AC157: 0.0804 | AD157: 0.02 | AE157: 0.02 | AF157: 0.0335 | AG157: 0.0335 | AH157: 0.003 | AI157: 0.003 | AJ157: 0.188149183 | AK157: 0.188149183 | AL157: 0.02465102517 | AM157: 0.02465102517 | AN157: 0.0002997917972 | AO157: 0.0002997917972 | AQ157: 1.85
B158: 2036 | C158: 0.096 | D158: 0.096 | E158: 0.32 | F158: 0.32 | G158: 0.0768 | H158: 0.0768 | I158: 0.02 | J158: 0.02 | K158: 0.05 | L158: 0.05 | M158: 0.003 | N158: 0.003 | O158: 0.4097384147 | P158: 0.4097384147 | Q158: 0.02416767174 | R158: 0.02416767174 | S158: 0.0002939135266 | T158: 0.0002939135266 | V158: 1.904 | X158: 0.15 | Y158: 0.15 | Z158: 0.5 | AA158: 0.5 | AB158: 0.0792 | AC158: 0.0792 | AD158: 0.02 | AE158: 0.02 | AF158: 0.033 | AG158: 0.033 | AH158: 0.003 | AI158: 0.003 | AJ158: 0.1903384147 | AK158: 0.1903384147 | AL158: 0.02416767174 | AM158: 0.02416767174 | AN158: 0.0002939135266 | AO158: 0.0002939135266 | AQ158: 1.85
B159: 2037 | C159: 0.0945 | D159: 0.0945 | E159: 0.315 | F159: 0.315 | G159: 0.0756 | H159: 0.0756 | I159: 0.02 | J159: 0.02 | K159: 0.05 | L159: 0.05 | M159: 0.003 | N159: 0.003 | O159: 0.4179180537 | P159: 0.4179180537 | Q159: 0.02369379582 | R159: 0.02369379582 | S159: 0.0002881505163 | T159: 0.0002881505163 | V159: 1.9055 | X159: 0.15 | Y159: 0.15 | Z159: 0.5 | AA159: 0.5 | AB159: 0.078 | AC159: 0.078 | AD159: 0.02 | AE159: 0.02 | AF159: 0.0325 | AG159: 0.0325 | AH159: 0.003 | AI159: 0.003 | AJ159: 0.1925180537 | AK159: 0.1925180537 | AL159: 0.02369379582 | AM159: 0.02369379582 | AN159: 0.0002881505163 | AO159: 0.0002881505163 | AQ159: 1.85
B160: 2038 | C160: 0.093 | D160: 0.093 | E160: 0.31 | F160: 0.31 | G160: 0.0744 | H160: 0.0744 | I160: 0.02 | J160: 0.02 | K160: 0.05 | L160: 0.05 | M160: 0.003 | N160: 0.003 | O160: 0.4260882879 | P160: 0.4260882879 | Q160: 0.02322921159 | R160: 0.02322921159 | S160: 0.0002825005062 | T160: 0.0002825005062 | V160: 1.907 | X160: 0.15 | Y160: 0.15 | Z160: 0.5 | AA160: 0.5 | AB160: 0.0768 | AC160: 0.0768 | AD160: 0.02 | AE160: 0.02 | AF160: 0.032 | AG160: 0.032 | AH160: 0.003 | AI160: 0.003 | AJ160: 0.1946882879 | AK160: 0.1946882879 | AL160: 0.02322921159 | AM160: 0.02322921159 | AN160: 0.0002825005062 | AO160: 0.0002825005062 | AQ160: 1.85
B161: 2039 | C161: 0.0915 | D161: 0.0915 | E161: 0.305 | F161: 0.305 | G161: 0.0732 | H161: 0.0732 | I161: 0.02 | J161: 0.02 | K161: 0.05 | L161: 0.05 | M161: 0.003 | N161: 0.003 | O161: 0.4342493019 | P161: 0.4342493019 | Q161: 0.02277373685 | R161: 0.02277373685 | S161: 0.0002769612806 | T161: 0.0002769612806 | V161: 1.9085 | X161: 0.15 | Y161: 0.15 | Z161: 0.5 | AA161: 0.5 | AB161: 0.0756 | AC161: 0.0756 | AD161: 0.02 | AE161: 0.02 | AF161: 0.0315 | AG161: 0.0315 | AH161: 0.003 | AI161: 0.003 | AJ161: 0.1968493019 | AK161: 0.1968493019 | AL161: 0.02277373685 | AM161: 0.02277373685 | AN161: 0.0002769612806 | AO161: 0.0002769612806 | AQ161: 1.85
B162: 2040 | C162: 0.09 | D162: 0.09 | E162: 0.3 | F162: 0.3 | G162: 0.072 | H162: 0.072 | I162: 0.02 | J162: 0.02 | K162: 0.05 | L162: 0.05 | M162: 0.003 | N162: 0.003 | O162: 0.4424012763 | P162: 0.4424012763 | Q162: 0.02232719299 | R162: 0.02232719299 | S162: 0.0002715306672 | T162: 0.0002715306672 | V162: 1.91 | X162: 0.15 | Y162: 0.15 | Z162: 0.5 | AA162: 0.5 | AB162: 0.0744 | AC162: 0.0744 | AD162: 0.02 | AE162: 0.02 | AF162: 0.031 | AG162: 0.031 | AH162: 0.003 | AI162: 0.003 | AJ162: 0.1990012763 | AK162: 0.1990012763 | AL162: 0.02232719299 | AM162: 0.02232719299 | AN162: 0.0002715306672 | AO162: 0.0002715306672 | AQ162: 1.85
B163: 2041 | C163: 0.0885 | D163: 0.0885 | E163: 0.295 | F163: 0.295 | G163: 0.0708 | H163: 0.0708 | I163: 0.02 | J163: 0.02 | K163: 0.05 | L163: 0.05 | M163: 0.003 | N163: 0.003 | O163: 0.4505443886 | P163: 0.4505443886 | Q163: 0.02188940489 | R163: 0.02188940489 | S163: 0.0002662065365 | T163: 0.0002662065365 | V163: 1.9115 | X163: 0.15 | Y163: 0.15 | Z163: 0.5 | AA163: 0.5 | AB163: 0.0732 | AC163: 0.0732 | AD163: 0.02 | AE163: 0.02 | AF163: 0.0305 | AG163: 0.0305 | AH163: 0.003 | AI163: 0.003 | AJ163: 0.2011443886 | AK163: 0.2011443886 | AL163: 0.02188940489 | AM163: 0.02188940489 | AN163: 0.0002662065365 | AO163: 0.0002662065365 | AQ163: 1.85
B164: 2042 | C164: 0.087 | D164: 0.087 | E164: 0.29 | F164: 0.29 | G164: 0.0696 | H164: 0.0696 | I164: 0.02 | J164: 0.02 | K164: 0.05 | L164: 0.05 | M164: 0.003 | N164: 0.003 | O164: 0.4586788123 | P164: 0.4586788123 | Q164: 0.02146020088 | R164: 0.02146020088 | S164: 0.0002609868005 | T164: 0.0002609868005 | V164: 1.913 | X164: 0.15 | Y164: 0.15 | Z164: 0.5 | AA164: 0.5 | AB164: 0.072 | AC164: 0.072 | AD164: 0.02 | AE164: 0.02 | AF164: 0.03 | AG164: 0.03 | AH164: 0.003 | AI164: 0.003 | AJ164: 0.2032788123 | AK164: 0.2032788123 | AL164: 0.02146020088 | AM164: 0.02146020088 | AN164: 0.0002609868005 | AO164: 0.0002609868005 | AQ164: 1.85
B165: 2043 | C165: 0.0855 | D165: 0.0855 | E165: 0.285 | F165: 0.285 | G165: 0.0684 | H165: 0.0684 | I165: 0.02 | J165: 0.02 | K165: 0.05 | L165: 0.05 | M165: 0.003 | N165: 0.003 | O165: 0.466804718 | P165: 0.466804718 | Q165: 0.02103941262 | R165: 0.02103941262 | S165: 0.0002558694122 | T165: 0.0002558694122 | V165: 1.9145 | X165: 0.15 | Y165: 0.15 | Z165: 0.5 | AA165: 0.5 | AB165: 0.0708 | AC165: 0.0708 | AD165: 0.02 | AE165: 0.02 | AF165: 0.0295 | AG165: 0.0295 | AH165: 0.003 | AI165: 0.003 | AJ165: 0.205404718 | AK165: 0.205404718 | AL165: 0.02103941262 | AM165: 0.02103941262 | AN165: 0.0002558694122 | AO165: 0.0002558694122 | AQ165: 1.85
B166: 2044 | C166: 0.084 | D166: 0.084 | E166: 0.28 | F166: 0.28 | G166: 0.0672 | H166: 0.0672 | I166: 0.02 | J166: 0.02 | K166: 0.05 | L166: 0.05 | M166: 0.003 | N166: 0.003 | O166: 0.4749222725 | P166: 0.4749222725 | Q166: 0.02062687512 | R166: 0.02062687512 | S166: 0.0002508523649 | T166: 0.0002508523649 | V166: 1.916 | X166: 0.15 | Y166: 0.15 | Z166: 0.5 | AA166: 0.5 | AB166: 0.0696 | AC166: 0.0696 | AD166: 0.02 | AE166: 0.02 | AF166: 0.029 | AG166: 0.029 | AH166: 0.003 | AI166: 0.003 | AJ166: 0.2075222725 | AK166: 0.2075222725 | AL166: 0.02062687512 | AM166: 0.02062687512 | AN166: 0.0002508523649 | AO166: 0.0002508523649 | AQ166: 1.85
B167: 2045 | C167: 0.0825 | D167: 0.0825 | E167: 0.275 | F167: 0.275 | G167: 0.066 | H167: 0.066 | I167: 0.02 | J167: 0.02 | K167: 0.05 | L167: 0.05 | M167: 0.003 | N167: 0.003 | O167: 0.4830316397 | P167: 0.4830316397 | Q167: 0.02022242659 | R167: 0.02022242659 | S167: 0.0002459336911 | T167: 0.0002459336911 | V167: 1.9175 | X167: 0.15 | Y167: 0.15 | Z167: 0.5 | AA167: 0.5 | AB167: 0.0684 | AC167: 0.0684 | AD167: 0.02 | AE167: 0.02 | AF167: 0.0285 | AG167: 0.0285 | AH167: 0.003 | AI167: 0.003 | AJ167: 0.2096316397 | AK167: 0.2096316397 | AL167: 0.02022242659 | AM167: 0.02022242659 | AN167: 0.0002459336911 | AO167: 0.0002459336911 | AQ167: 1.85
B168: 2046 | C168: 0.081 | D168: 0.081 | E168: 0.27 | F168: 0.27 | G168: 0.0648 | H168: 0.0648 | I168: 0.02 | J168: 0.02 | K168: 0.05 | L168: 0.05 | M168: 0.003 | N168: 0.003 | O168: 0.4911329801 | P168: 0.4911329801 | Q168: 0.01982590842 | R168: 0.01982590842 | S168: 0.0002411114619 | T168: 0.0002411114619 | V168: 1.919 | X168: 0.15 | Y168: 0.15 | Z168: 0.5 | AA168: 0.5 | AB168: 0.0672 | AC168: 0.0672 | AD168: 0.02 | AE168: 0.02 | AF168: 0.028 | AG168: 0.028 | AH168: 0.003 | AI168: 0.003 | AJ168: 0.2117329801 | AK168: 0.2117329801 | AL168: 0.01982590842 | AM168: 0.01982590842 | AN168: 0.0002411114619 | AO168: 0.0002411114619 | AQ168: 1.85
B169: 2047 | C169: 0.0795 | D169: 0.0795 | E169: 0.265 | F169: 0.265 | G169: 0.0636 | H169: 0.0636 | I169: 0.02 | J169: 0.02 | K169: 0.05 | L169: 0.05 | M169: 0.003 | N169: 0.003 | O169: 0.4992264511 | P169: 0.4992264511 | Q169: 0.01943716512 | R169: 0.01943716512 | S169: 0.0002363837862 | T169: 0.0002363837862 | V169: 1.9205 | X169: 0.15 | Y169: 0.15 | Z169: 0.5 | AA169: 0.5 | AB169: 0.066 | AC169: 0.066 | AD169: 0.02 | AE169: 0.02 | AF169: 0.0275 | AG169: 0.0275 | AH169: 0.003 | AI169: 0.003 | AJ169: 0.2138264511 | AK169: 0.2138264511 | AL169: 0.01943716512 | AM169: 0.01943716512 | AN169: 0.0002363837862 | AO169: 0.0002363837862 | AQ169: 1.85
B170: 2048 | C170: 0.078 | D170: 0.078 | E170: 0.26 | F170: 0.26 | G170: 0.0624 | H170: 0.0624 | I170: 0.02 | J170: 0.02 | K170: 0.05 | L170: 0.05 | M170: 0.003 | N170: 0.003 | O170: 0.507312207 | P170: 0.507312207 | Q170: 0.01905604423 | R170: 0.01905604423 | S170: 0.00023174881 | T170: 0.00023174881 | V170: 1.922 | X170: 0.15 | Y170: 0.15 | Z170: 0.5 | AA170: 0.5 | AB170: 0.0648 | AC170: 0.0648 | AD170: 0.02 | AE170: 0.02 | AF170: 0.027 | AG170: 0.027 | AH170: 0.003 | AI170: 0.003 | AJ170: 0.215912207 | AK170: 0.215912207 | AL170: 0.01905604423 | AM170: 0.01905604423 | AN170: 0.00023174881 | AO170: 0.00023174881 | AQ170: 1.85
B171: 2049 | C171: 0.0765 | D171: 0.0765 | E171: 0.255 | F171: 0.255 | G171: 0.0612 | H171: 0.0612 | I171: 0.02 | J171: 0.02 | K171: 0.05 | L171: 0.05 | M171: 0.003 | N171: 0.003 | O171: 0.515390399 | P171: 0.515390399 | Q171: 0.01868239631 | R171: 0.01868239631 | S171: 0.0002272047156 | T171: 0.0002272047156 | V171: 1.9235 | X171: 0.15 | Y171: 0.15 | Z171: 0.5 | AA171: 0.5 | AB171: 0.0636 | AC171: 0.0636 | AD171: 0.02 | AE171: 0.02 | AF171: 0.0265 | AG171: 0.0265 | AH171: 0.003 | AI171: 0.003 | AJ171: 0.217990399 | AK171: 0.217990399 | AL171: 0.01868239631 | AM171: 0.01868239631 | AN171: 0.0002272047156 | AO171: 0.0002272047156 | AQ171: 1.85
B172: 2050 | C172: 0.075 | D172: 0.075 | E172: 0.25 | F172: 0.25 | G172: 0.06 | H172: 0.06 | I172: 0.02 | J172: 0.02 | K172: 0.05 | L172: 0.05 | M172: 0.003 | N172: 0.003 | O172: 0.5234611755 | P172: 0.5234611755 | Q172: 0.01831607481 | R172: 0.01831607481 | S172: 0.0002227497212 | T172: 0.0002227497212 | V172: 1.925 | X172: 0.15 | Y172: 0.15 | Z172: 0.5 | AA172: 0.5 | AB172: 0.0624 | AC172: 0.0624 | AD172: 0.02 | AE172: 0.02 | AF172: 0.026 | AG172: 0.026 | AH172: 0.003 | AI172: 0.003 | AJ172: 0.2200611755 | AK172: 0.2200611755 | AL172: 0.01831607481 | AM172: 0.01831607481 | AN172: 0.0002227497212 | AO172: 0.0002227497212 | AQ172: 1.85
B176: 5. Scenario 4: Waste to energy (WTE)
B177: Year | C177: Food (Gg/yr) | E177: Garden (Gg/yr) | G177: Paper (Gg/yr) | I177: Wood (Gg/yr) | K177: Textiles (Gg/yr) | M177: Nappies (Gg/yr) | O177: Inert (Gg/yr) | Q177: Sludge (Gg/yr) | S177: Industrial (Gg/yr)
C178: TNC | D178: USER | E178: TNC | F178: USER | G178: TNC | H178: USER | I178: TNC | J178: USER | K178: TNC | L178: USER | M178: TNC | N178: USER | O178: TNC | P178: USER | Q178: TNC | R178: USER | S178: TNC | T178: USER | U178: TNC | V178: USER
B179: =B6 -> 2000 | C179: 0.15 | D179: 0.15 | E179: 0.5 | F179: 0.5 | G179: 0.12 | H179: 0.12 | I179: 0.02 | J179: 0.02 | K179: 0.05 | L179: 0.05 | M179: 0.003 | N179: 0.003 | O179: 0.157 | P179: 0.157 | Q179: 0 | R179: 0 | S179: 0 | T179: 0 | V179: =SUM(D179:T179) -> 1.85
B180: 2001 | C180: 0.15 | D180: 0.15 | E180: 0.5 | F180: 0.5 | G180: 0.12 | H180: 0.12 | I180: 0.02 | J180: 0.02 | K180: 0.05 | L180: 0.05 | M180: 0.003 | N180: 0.003 | O180: 0.157 | P180: 0.157 | Q180: 0 | R180: 0 | S180: 0 | T180: 0 | V180: =SUM(D180:T180) -> 1.85
B181: 2002 | C181: 0.15 | D181: 0.15 | E181: 0.5 | F181: 0.5 | G181: 0.12 | H181: 0.12 | I181: 0.02 | J181: 0.02 | K181: 0.05 | L181: 0.05 | M181: 0.003 | N181: 0.003 | O181: 0.157 | P181: 0.157 | Q181: 0 | R181: 0 | S181: 0 | T181: 0 | V181: 1.85
B182: 2003 | C182: 0.15 | D182: 0.15 | E182: 0.5 | F182: 0.5 | G182: 0.12 | H182: 0.12 | I182: 0.02 | J182: 0.02 | K182: 0.05 | L182: 0.05 | M182: 0.003 | N182: 0.003 | O182: 0.157 | P182: 0.157 | Q182: 0 | R182: 0 | S182: 0 | T182: 0 | V182: 1.85
B183: 2004 | C183: 0.15 | D183: 0.15 | E183: 0.5 | F183: 0.5 | G183: 0.12 | H183: 0.12 | I183: 0.02 | J183: 0.02 | K183: 0.05 | L183: 0.05 | M183: 0.003 | N183: 0.003 | O183: 0.157 | P183: 0.157 | Q183: 0 | R183: 0 | S183: 0 | T183: 0 | V183: 1.85
B184: 2005 | C184: 0.15 | D184: 0.15 | E184: 0.5 | F184: 0.5 | G184: 0.12 | H184: 0.12 | I184: 0.02 | J184: 0.02 | K184: 0.05 | L184: 0.05 | M184: 0.003 | N184: 0.003 | O184: 0.1404693952 | P184: 0.1404693952 | Q184: 0.01515467889 | R184: 0.01515467889 | S184: 0.001375925922 | T184: 0.001375925922 | V184: 1.85
B185: 2006 | C185: 0.15 | D185: 0.15 | E185: 0.5 | F185: 0.5 | G185: 0.12 | H185: 0.12 | I185: 0.02 | J185: 0.02 | K185: 0.05 | L185: 0.05 | M185: 0.003 | N185: 0.003 | O185: 0.1359830426 | P185: 0.1359830426 | Q185: 0.01979147311 | R185: 0.01979147311 | S185: 0.001225484281 | T185: 0.001225484281 | V185: 1.85
B186: 2007 | C186: 0.15 | D186: 0.15 | E186: 0.5 | F186: 0.5 | G186: 0.12 | H186: 0.12 | I186: 0.02 | J186: 0.02 | K186: 0.05 | L186: 0.05 | M186: 0.003 | N186: 0.003 | O186: 0.1215968362 | P186: 0.1215968362 | Q186: 0.03315506906 | R186: 0.03315506906 | S186: 0.002248094708 | T186: 0.002248094708 | V186: 1.85
B187: 2008 | C187: 0.15 | D187: 0.15 | E187: 0.5 | F187: 0.5 | G187: 0.12 | H187: 0.12 | I187: 0.02 | J187: 0.02 | K187: 0.05 | L187: 0.05 | M187: 0.003 | N187: 0.003 | O187: 0.1246060009 | P187: 0.1246060009 | Q187: 0.03040871176 | R187: 0.03040871176 | S187: 0.001985287367 | T187: 0.001985287367 | V187: 1.85
B188: 2009 | C188: 0.15 | D188: 0.15 | E188: 0.5 | F188: 0.5 | G188: 0.12 | H188: 0.12 | I188: 0.02 | J188: 0.02 | K188: 0.05 | L188: 0.05 | M188: 0.003 | N188: 0.003 | O188: 0.1322542015 | P188: 0.1322542015 | Q188: 0.02194042454 | R188: 0.02194042454 | S188: 0.002805373941 | T188: 0.002805373941 | V188: 1.85
B189: 2010 | C189: 0.15 | D189: 0.15 | E189: 0.5 | F189: 0.5 | G189: 0.12 | H189: 0.12 | I189: 0.02 | J189: 0.02 | K189: 0.05 | L189: 0.05 | M189: 0.003 | N189: 0.003 | O189: 0.1287538939 | P189: 0.1287538939 | Q189: 0.02560021863 | R189: 0.02560021863 | S189: 0.002645887461 | T189: 0.002645887461 | V189: 1.85
B190: 2011 | C190: 0.15 | D190: 0.15 | E190: 0.5 | F190: 0.5 | G190: 0.12 | H190: 0.12 | I190: 0.02 | J190: 0.02 | K190: 0.05 | L190: 0.05 | M190: 0.003 | N190: 0.003 | O190: 0.1281333276 | P190: 0.1281333276 | Q190: 0.02509567455 | R190: 0.02509567455 | S190: 0.003770997844 | T190: 0.003770997844 | V190: 1.85
B191: 2012 | C191: 0.15 | D191: 0.15 | E191: 0.5 | F191: 0.5 | G191: 0.12 | H191: 0.12 | I191: 0.02 | J191: 0.02 | K191: 0.05 | L191: 0.05 | M191: 0.003 | N191: 0.003 | O191: 0.1362509909 | P191: 0.1362509909 | Q191: 0.01900109173 | R191: 0.01900109173 | S191: 0.001747917389 | T191: 0.001747917389 | V191: 1.85
B192: 2013 | C192: 0.15 | D192: 0.15 | E192: 0.5 | F192: 0.5 | G192: 0.12 | H192: 0.12 | I192: 0.02 | J192: 0.02 | K192: 0.05 | L192: 0.05 | M192: 0.003 | N192: 0.003 | O192: 0.1400397906 | P192: 0.1400397906 | Q192: 0.01620398168 | R192: 0.01620398168 | S192: 0.0007562277008 | T192: 0.0007562277008 | V192: 1.85
B193: 2014 | C193: 0.15 | D193: 0.15 | E193: 0.5 | F193: 0.5 | G193: 0.12 | H193: 0.12 | I193: 0.02 | J193: 0.02 | K193: 0.05 | L193: 0.05 | M193: 0.003 | N193: 0.003 | O193: 0.1440913726 | P193: 0.1440913726 | Q193: 0.01245424307 | R193: 0.01245424307 | S193: 0.0004543843371 | T193: 0.0004543843371 | V193: 1.85
B194: 2015 | C194: 0.15 | D194: 0.15 | E194: 0.5 | F194: 0.5 | G194: 0.12 | H194: 0.12 | I194: 0.02 | J194: 0.02 | K194: 0.05 | L194: 0.05 | M194: 0.003 | N194: 0.003 | O194: 0.1428182277 | P194: 0.1428182277 | Q194: 0.0137362975 | R194: 0.0137362975 | S194: 0.0004454748403 | T194: 0.0004454748403 | V194: 1.85
B195: 2016 | C195: 0.15 | D195: 0.15 | E195: 0.5 | F195: 0.5 | G195: 0.12 | H195: 0.12 | I195: 0.02 | J195: 0.02 | K195: 0.05 | L195: 0.05 | M195: 0.003 | N195: 0.003 | O195: 0.1415999729 | P195: 0.1415999729 | Q195: 0.01496328704 | R195: 0.01496328704 | S195: 0.0004367400395 | T195: 0.0004367400395 | V195: 1.85
B196: 2017 | C196: 0.15 | D196: 0.15 | E196: 0.5 | F196: 0.5 | G196: 0.12 | H196: 0.12 | I196: 0.02 | J196: 0.02 | K196: 0.05 | L196: 0.05 | M196: 0.003 | N196: 0.003 | O196: 0.1404349453 | P196: 0.1404349453 | Q196: 0.01613687818 | R196: 0.01613687818 | S196: 0.0004281765094 | T196: 0.0004281765094 | V196: 1.85
B197: 2018 | C197: 0.15 | D197: 0.15 | E197: 0.5 | F197: 0.5 | G197: 0.12 | H197: 0.12 | I197: 0.02 | J197: 0.02 | K197: 0.05 | L197: 0.05 | M197: 0.003 | N197: 0.003 | O197: 0.1393215259 | P197: 0.1393215259 | Q197: 0.01725869324 | R197: 0.01725869324 | S197: 0.0004197808915 | T197: 0.0004197808915 | V197: 1.85
B198: 2019 | C198: 0.07861600926 | D198: 0.07861600926 | E198: 0.2620533642 | F198: 0.2620533642 | G198: 0.06289280741 | H198: 0.06289280741 | I198: 0.01048213457 | J198: 0.01048213457 | K198: 0.02620533642 | L198: 0.02620533642 | M198: 0.001572320185 | N198: 0.001572320185 | O198: 0.5394361666 | P198: 0.5394361666 | Q198: 0.01833031144 | R198: 0.01833031144 | S198: 0.0004115498937 | T198: 0.0004115498937 | V198: 1.921383991
B199: 2020 | C199: 0.08001569535 | D199: 0.08001569535 | E199: 0.2667189845 | F199: 0.2667189845 | G199: 0.06401255628 | H199: 0.06401255628 | I199: 0.01066875938 | J199: 0.01066875938 | K199: 0.02667189845 | L199: 0.02667189845 | M199: 0.001600313907 | N199: 0.001600313907 | O199: 0.5305550418 | P199: 0.5305550418 | Q199: 0.01935327 | R199: 0.01935327 | S199: 0.0004034802879 | T199: 0.0004034802879 | V199: 1.919984305
B200: 2021 | C200: 0.08138793662 | D200: 0.08138793662 | E200: 0.2712931221 | F200: 0.2712931221 | G200: 0.0651103493 | H200: 0.0651103493 | I200: 0.01085172488 | J200: 0.01085172488 | K200: 0.02712931221 | L200: 0.02712931221 | M200: 0.001627758732 | N200: 0.001627758732 | O200: 0.5218751622 | P200: 0.5218751622 | Q200: 0.02032906513 | R200: 0.02032906513 | S200: 0.0003955689097 | T200: 0.0003955689097 | V200: 1.918612063
B201: 2022 | C201: 0.0827332712 | D201: 0.0827332712 | E201: 0.2757775707 | F201: 0.2757775707 | G201: 0.06618661696 | H201: 0.06618661696 | I201: 0.01103110283 | J201: 0.01103110283 | K201: 0.02757775707 | L201: 0.02757775707 | M201: 0.001654665424 | N201: 0.001654665424 | O201: 0.5133920502 | P201: 0.5133920502 | Q201: 0.02125915307 | R201: 0.02125915307 | S201: 0.0003878126566 | T201: 0.0003878126566 | V201: 1.917266729
B202: 2023 | C202: 0.08405222666 | D202: 0.08405222666 | E202: 0.2801740889 | F202: 0.2801740889 | G202: 0.06724178133 | H202: 0.06724178133 | I202: 0.01120696355 | J202: 0.01120696355 | K202: 0.02801740889 | L202: 0.02801740889 | M202: 0.001681044533 | N202: 0.001681044533 | O202: 0.5051013266 | P202: 0.5051013266 | Q202: 0.02214495112 | R202: 0.02214495112 | S202: 0.0003802084868 | T202: 0.0003802084868 | V202: 1.915947773
B203: 2024 | C203: 0.08534532026 | D203: 0.08534532026 | E203: 0.2844844009 | F203: 0.2844844009 | G203: 0.06827625621 | H203: 0.06827625621 | I203: 0.01137937603 | J203: 0.01137937603 | K203: 0.02844844009 | L203: 0.02844844009 | M203: 0.001706906405 | N203: 0.001706906405 | O203: 0.4969987082 | P203: 0.4969987082 | Q203: 0.02298783853 | R203: 0.02298783853 | S203: 0.0003727534185 | T203: 0.0003727534185 | V203: 1.91465468
B204: 2025 | C204: 0.08661305908 | D204: 0.08661305908 | E204: 0.2887101969 | F204: 0.2887101969 | G204: 0.06929044726 | H204: 0.06929044726 | I204: 0.01154840788 | J204: 0.01154840788 | K204: 0.02887101969 | L204: 0.02887101969 | M204: 0.001732261182 | N204: 0.001732261182 | O204: 0.4890800059 | P204: 0.4890800059 | Q204: 0.02378915752 | R204: 0.02378915752 | S204: 0.0003654445279 | T204: 0.0003654445279 | V204: 1.913386941
B205: 2026 | C205: 0.08785594027 | D205: 0.08785594027 | E205: 0.2928531342 | F205: 0.2928531342 | G205: 0.07028475222 | H205: 0.07028475222 | I205: 0.01171412537 | J205: 0.01171412537 | K205: 0.02928531342 | L205: 0.02928531342 | M205: 0.001757118805 | N205: 0.001757118805 | O205: 0.4813411226 | P205: 0.4813411226 | Q205: 0.02455021416 | R205: 0.02455021416 | S205: 0.0003582789489 | T205: 0.0003582789489 | V205: 1.91214406
B206: 2027 | C206: 0.08907445125 | D206: 0.08907445125 | E206: 0.2969148375 | F206: 0.2969148375 | G206: 0.071259561 | H206: 0.071259561 | I206: 0.0118765935 | J206: 0.0118765935 | K206: 0.02969148375 | L206: 0.02969148375 | M206: 0.001781489025 | N206: 0.001781489025 | O206: 0.4737780508 | P206: 0.4737780508 | Q206: 0.02527227928 | R206: 0.02527227928 | S206: 0.0003512538715 | T206: 0.0003512538715 | V206: 1.910925549
B207: 2028 | C207: 0.09026906985 | D207: 0.09026906985 | E207: 0.3008968995 | F207: 0.3008968995 | G207: 0.07221525588 | H207: 0.07221525588 | I207: 0.01203587598 | J207: 0.01203587598 | K207: 0.03008968995 | L207: 0.03008968995 | M207: 0.001805381397 | N207: 0.001805381397 | O207: 0.4663868715 | P207: 0.4663868715 | Q207: 0.02595658937 | R207: 0.02595658937 | S207: 0.0003443665407 | T207: 0.0003443665407 | V207: 1.90973093
B208: 2029 | C208: 0.09144026456 | D208: 0.09144026456 | E208: 0.3048008819 | F208: 0.3048008819 | G208: 0.07315221165 | H208: 0.07315221165 | I208: 0.01219203527 | J208: 0.01219203527 | K208: 0.03048008819 | L208: 0.03048008819 | M208: 0.001828805291 | N208: 0.001828805291 | O208: 0.4591637515 | P208: 0.4591637515 | Q208: 0.02660434739 | R208: 0.02660434739 | S208: 0.0003376142556 | T208: 0.0003376142556 | V208: 1.908559735
B209: 2030 | C209: 0.09258849466 | D209: 0.09258849466 | E209: 0.3086283155 | F209: 0.3086283155 | G209: 0.07407079573 | H209: 0.07407079573 | I209: 0.01234513262 | J209: 0.01234513262 | K209: 0.03086283155 | L209: 0.03086283155 | M209: 0.001851769893 | N209: 0.001851769893 | O209: 0.4521049419 | P209: 0.4521049419 | Q209: 0.02721672367 | R209: 0.02721672367 | S209: 0.0003309943682 | T209: 0.0003309943682 | V209: 1.907411505
B210: 2031 | C210: 0.09371421045 | D210: 0.09371421045 | E210: 0.3123807015 | F210: 0.3123807015 | G210: 0.07497136836 | H210: 0.07497136836 | I210: 0.01249522806 | J210: 0.01249522806 | K210: 0.03123807015 | L210: 0.03123807015 | M210: 0.001874284209 | N210: 0.001874284209 | O210: 0.4463185705 | P210: 0.4463185705 | Q210: 0.02668306242 | R210: 0.02668306242 | S210: 0.0003245042826 | T210: 0.0003245042826 | V210: 1.90628579
B211: =B38 -> 2032 | C211: 0.09481785339 | D211: 0.09481785339 | E211: 0.3160595113 | F211: 0.3160595113 | G211: 0.07585428271 | H211: 0.07585428271 | I211: 0.01264238045 | J211: 0.01264238045 | K211: 0.03160595113 | L211: 0.03160595113 | M211: 0.001896357068 | N211: 0.001896357068 | O211: 0.4406456574 | P211: 0.4406456574 | Q211: 0.02615986512 | R211: 0.02615986512 | S211: 0.0003181414535 | T211: 0.0003181414535 | V211: 1.905182147
... 181 more rows

Sheet 6. UD2 Assumptions
A1: UD2 Assumptions | F1: Excel Toolkit for Mitigation Analysis for Low-Carbon Development Planning | R1: XLMT-Solid Wastes v17.1
A2: A | B2: POPULATION AND SOLID WASTE GENERATION
M3: NOT USED IN CALCULATIONS
B4: Year | C4: Population (million) | E4: Waste per capita, WPC (kg/cap/yr) | G4: Total Waste (Gg/yr) | I4: % to SWDS | K4: Waste to SWDS (Gg/yr) | M4: Waste to SWDS under WTE Scenario (Gg/yr) | O4: % Waste Composted | Q4: % Waste to SWDS under Composting project | S4: Waste to SWDS under Composting project (Gg/yr) | U4: % Waste Recycled | W4: % Waste to SWDS under recycling project | Y4: Waste to SWDS under Recycling project(Gg/yr)
C5: TNC | D5: USER | E5: TNC | F5: USER | G5: TNC | H5: USER | I5: TNC | J5: USER | K5: TNC | L5: USER | M5: TNC | N5: USER | O5: TNC | P5: USER | Q5: TNC | R5: USER | S5: TNC | T5: USER | U5: TNC | V5: USER | W5: TNC | X5: USER | Y5: TNC | Z5: USER
B6: 2000 | C6: 1.151094 | D6: 1.151094 | E6: 230.93 | F6: 230.93 | G6: =C6*E6 -> 265.8221374 | H6: =D6*F6 -> 265.8221374 | I6: 0.75 | J6: 0.75 | K6: 199.3666031 | L6: =H6*J6 -> 199.3666031 | M6: 199.3666031 | N6: 199.3666031
B7: 2001 | C7: 1.160083 | D7: 1.160083 | E7: 264.37 | F7: 264.37 | G7: =C7*E7 -> 306.6911427 | H7: 306.6911427 | I7: 0.88 | J7: 0.88 | K7: 269.8882056 | L7: 269.8882056 | M7: 269.8882056 | N7: 269.8882056
B8: 2002 | C8: 1.167995 | D8: 1.167995 | E8: 311.57 | F8: 311.57 | G8: 363.9122021 | H8: 363.9122021 | I8: 1 | J8: 1 | K8: 363.9122021 | L8: 363.9122021 | M8: 363.9122021 | N8: 363.9122021
B9: 2003 | C9: 1.176323 | D9: 1.176323 | E9: 316.62 | F9: 316.62 | G9: 372.4473883 | H9: 372.4473883 | I9: 1 | J9: 1 | K9: 372.4473883 | L9: 372.4473883 | M9: 372.4473883 | N9: 372.4473883
B10: 2004 | C10: 1.183533 | D10: 1.183533 | E10: 322.09 | F10: 322.09 | G10: 381.204144 | H10: 381.204144 | I10: 1 | J10: 1 | K10: 381.204144 | L10: 381.204144 | M10: 381.204144 | N10: 381.204144
B11: 2005 | C11: 1.190361 | D11: 1.190361 | E11: 327.78 | F11: 327.78 | G11: 390.1765286 | H11: 390.1765286 | I11: 1 | J11: 1 | K11: 390.1765286 | L11: 390.1765286 | M11: 390.1765286 | N11: 390.1765286
B12: 2006 | C12: 1.195676 | D12: 1.195676 | E12: 340.43 | F12: 340.43 | G12: 407.0439807 | H12: 407.0439807 | I12: 1 | J12: 1 | K12: 407.0439807 | L12: 407.0439807 | M12: 407.0439807 | N12: 407.0439807
B13: 2007 | C13: 1.200887 | D13: 1.200887 | E13: 328.44 | F13: 328.44 | G13: 394.4193263 | H13: 394.4193263 | I13: 1 | J13: 1 | K13: 394.4193263 | L13: 394.4193263 | M13: 394.4193263 | N13: 394.4193263
B14: 2008 | C14: 1.204955 | D14: 1.204955 | E14: 331.54 | F14: 331.54 | G14: 399.4907807 | H14: 399.4907807 | I14: 1 | J14: 1 | K14: 399.4907807 | L14: 399.4907807 | M14: 399.4907807 | N14: 399.4907807
B15: 2009 | C15: 1.207842 | D15: 1.207842 | E15: 344.37 | F15: 344.37 | G15: 415.9445495 | H15: 415.9445495 | I15: 1 | J15: 1 | K15: 415.9445495 | L15: 415.9445495 | M15: 415.9445495 | N15: 415.9445495
B16: 2010 | C16: 1.210391 | D16: 1.210391 | E16: 353.35 | F16: 353.35 | G16: 427.6916599 | H16: 427.6916599 | I16: 1 | J16: 1 | K16: 427.6916599 | L16: 427.6916599 | M16: 427.6916599 | N16: 427.6916599
B17: 2011 | C17: 1.21197 | D17: 1.21197 | E17: 342 | F17: 342 | G17: 414.49374 | H17: 414.49374 | I17: 1 | J17: 1 | K17: 414.49374 | L17: 414.49374 | M17: 414.49374 | N17: 414.49374
B18: 2012 | C18: 1.214987 | D18: 1.214987 | E18: 319.24 | F18: 319.24 | G18: 387.8724499 | H18: 387.8724499 | I18: 1 | J18: 1 | K18: 387.8724499 | L18: 387.8724499 | M18: 387.8724499 | N18: 387.8724499
B19: 2013 | C19: 1.217341 | D19: 1.217341 | E19: 352.99 | F19: 352.99 | G19: 429.7091996 | H19: 429.7091996 | I19: 1 | J19: 1 | K19: 429.7091996 | L19: 429.7091996 | M19: 429.7091996 | N19: 429.7091996
B20: 2014 | C20: 1.219265 | D20: 1.219265 | E20: 341.85 | F20: 341.85 | G20: 416.8057403 | H20: 416.8057403 | I20: 1 | J20: 1 | K20: 416.8057403 | L20: 416.8057403 | M20: 416.8057403 | N20: 416.8057403
B21: 2015 | C21: 1.2199292 | D21: 1.2199292 | E21: 348.4971546 | F21: 348.4971546 | G21: 425.1418551 | H21: 425.1418551 | I21: 1 | J21: 1 | K21: 425.1418551 | L21: 425.1418551 | M21: 425.1418551 | N21: 425.1418551
B22: 2016 | C22: 1.2205934 | D22: 1.2205934 | E22: 355.2736662 | F22: 355.2736662 | G22: 433.6446922 | H22: 433.6446922 | I22: 1 | J22: 1 | K22: 433.6446922 | L22: 433.6446922 | M22: 433.6446922 | N22: 433.6446922
B23: 2017 | C23: 1.2212576 | D23: 1.2212576 | E23: 362.182054 | F23: 362.182054 | G23: 442.317586 | H23: 442.317586 | I23: 1 | J23: 1 | K23: 442.317586 | L23: 442.317586 | M23: 442.317586 | N23: 442.317586 | O23: 0.02 | P23: 0.02 | Q23: 0.98 | R23: 0.98 | S23: 433.4712343 | T23: 433.4712343 | U23: 0.02 | V23: 0.02 | W23: 0.98 | X23: 0.98 | Y23: 433.4712343 | Z23: 433.4712343
B24: 2018 | C24: 1.2219218 | D24: 1.2219218 | E24: 369.2248863 | F24: 369.2248863 | G24: 451.1639377 | H24: 451.1639377 | I24: 1 | J24: 1 | K24: 451.1639377 | L24: 451.1639377 | M24: 451.1639377 | N24: 451.1639377 | O24: 0.04 | P24: 0.04 | Q24: 0.96 | R24: 0.96 | S24: 433.1173802 | T24: 433.1173802 | U24: 0.04 | V24: 0.04 | W24: 0.96 | X24: 0.96 | Y24: 433.1173802 | Z24: 433.1173802
B25: 2019 | C25: 1.222586 | D25: 1.222586 | E25: 376.4047817 | F25: 376.4047817 | G25: 460.1872165 | H25: 460.1872165 | I25: 1 | J25: 1 | K25: 460.1872165 | L25: 460.1872165 | M25: 241.1872165 | N25: 241.1872165 | O25: 0.06 | P25: 0.06 | Q25: 0.94 | R25: 0.94 | S25: 432.5759835 | T25: 432.5759835 | U25: 0.06 | V25: 0.06 | W25: 0.94 | X25: 0.94 | Y25: 432.5759835 | Z25: 432.5759835
B26: 2020 | C26: 1.2218556 | D26: 1.2218556 | E26: 384.1623845 | F26: 384.1623845 | G26: 469.3909608 | H26: 469.3909608 | I26: 1 | J26: 1 | K26: 469.3909608 | L26: 469.3909608 | M26: 250.3909608 | N26: 250.3909608 | O26: 0.08 | P26: 0.08 | Q26: 0.92 | R26: 0.92 | S26: 431.8396839 | T26: 431.8396839 | U26: 0.08 | V26: 0.08 | W26: 0.92 | X26: 0.92 | Y26: 431.8396839 | Z26: 431.8396839
B27: 2021 | C27: 1.2211252 | D27: 1.2211252 | E27: 392.0800095 | F27: 392.0800095 | G27: 478.77878 | H27: 478.77878 | I27: 1 | J27: 1 | K27: 478.77878 | L27: 478.77878 | M27: 259.77878 | N27: 259.77878 | O27: 0.1 | P27: 0.1 | Q27: 0.9 | R27: 0.9 | S27: 430.900902 | T27: 430.900902 | U27: 0.1 | V27: 0.1 | W27: 0.9 | X27: 0.9 | Y27: 430.900902 | Z27: 430.900902
B28: 2022 | C28: 1.2203948 | D28: 1.2203948 | E28: 400.1609607 | F28: 400.1609607 | G28: 488.3543556 | H28: 488.3543556 | I28: 1 | J28: 1 | K28: 488.3543556 | L28: 488.3543556 | M28: 269.3543556 | N28: 269.3543556 | O28: 0.12 | P28: 0.12 | Q28: 0.88 | R28: 0.88 | S28: 429.7518329 | T28: 429.7518329 | U28: 0.12 | V28: 0.12 | W28: 0.88 | X28: 0.88 | Y28: 429.7518329 | Z28: 429.7518329
B29: 2023 | C29: 1.2196644 | D29: 1.2196644 | E29: 408.4086104 | F29: 408.4086104 | G29: 498.1214427 | H29: 498.1214427 | I29: 1 | J29: 1 | K29: 498.1214427 | L29: 498.1214427 | M29: 279.1214427 | N29: 279.1214427 | O29: 0.14 | P29: 0.14 | Q29: 0.86 | R29: 0.86 | S29: 428.3844407 | T29: 428.3844407 | U29: 0.14 | V29: 0.14 | W29: 0.86 | X29: 0.86 | Y29: 428.3844407 | Z29: 428.3844407
B30: 2024 | C30: 1.218934 | D30: 1.218934 | E30: 416.8264004 | F30: 416.8264004 | G30: 508.0838716 | H30: 508.0838716 | I30: 1 | J30: 1 | K30: 508.0838716 | L30: 508.0838716 | M30: 289.0838716 | N30: 289.0838716 | O30: 0.16 | P30: 0.16 | Q30: 0.84 | R30: 0.84 | S30: 426.7904521 | T30: 426.7904521 | U30: 0.16 | V30: 0.16 | W30: 0.84 | X30: 0.84 | Y30: 426.7904521 | Z30: 426.7904521
B31: 2025 | C31: 1.2161912 | D31: 1.2161912 | E31: 426.1217718 | F31: 426.1217718 | G31: 518.245549 | H31: 518.245549 | I31: 1 | J31: 1 | K31: 518.245549 | L31: 518.245549 | M31: 299.245549 | N31: 299.245549 | O31: 0.18 | P31: 0.18 | Q31: 0.82 | R31: 0.82 | S31: 424.9613502 | T31: 424.9613502 | U31: 0.18 | V31: 0.18 | W31: 0.82 | X31: 0.82 | Y31: 424.9613502 | Z31: 424.9613502
B32: 2026 | C32: 1.2134484 | D32: 1.2134484 | E32: 435.6266488 | F32: 435.6266488 | G32: 528.61046 | H32: 528.61046 | I32: 1 | J32: 1 | K32: 528.61046 | L32: 528.61046 | M32: 309.61046 | N32: 309.61046 | O32: 0.2 | P32: 0.2 | Q32: 0.8 | R32: 0.8 | S32: 422.888368 | T32: 422.888368 | U32: 0.2 | V32: 0.2 | W32: 0.8 | X32: 0.8 | Y32: 422.888368 | Z32: 422.888368
B33: 2027 | C33: 1.2107056 | D33: 1.2107056 | E33: 445.3458126 | F33: 445.3458126 | G33: 539.1826692 | H33: 539.1826692 | I33: 1 | J33: 1 | K33: 539.1826692 | L33: 539.1826692 | M33: 320.1826692 | N33: 320.1826692 | O33: 0.24 | P33: 0.24 | Q33: 0.76 | R33: 0.76 | S33: 409.7788286 | T33: 409.7788286 | U33: 0.22 | V33: 0.22 | W33: 0.78 | X33: 0.78 | Y33: 420.562482 | Z33: 420.562482
B34: 2028 | C34: 1.2079628 | D34: 1.2079628 | E34: 455.2841549 | F34: 455.2841549 | G34: 549.9663226 | H34: 549.9663226 | I34: 1 | J34: 1 | K34: 549.9663226 | L34: 549.9663226 | M34: 330.9663226 | N34: 330.9663226 | O34: 0.26 | P34: 0.26 | Q34: 0.74 | R34: 0.74 | S34: 406.9750787 | T34: 406.9750787 | U34: 0.24 | V34: 0.24 | W34: 0.76 | X34: 0.76 | Y34: 417.9744052 | Z34: 417.9744052
B35: 2029 | C35: 1.20522 | D35: 1.20522 | E35: 465.4466811 | F35: 465.4466811 | G35: 560.965649 | H35: 560.965649 | I35: 1 | J35: 1 | K35: 560.965649 | L35: 560.965649 | M35: 341.965649 | N35: 341.965649 | O35: 0.28 | P35: 0.28 | Q35: 0.72 | R35: 0.72 | S35: 403.8952673 | T35: 403.8952673 | U35: 0.26 | V35: 0.26 | W35: 0.74 | X35: 0.74 | Y35: 415.1145803 | Z35: 415.1145803
B36: 2030 | C36: 1.2024772 | D36: 1.2024772 | E36: 475.8385124 | F36: 475.8385124 | G36: 572.184962 | H36: 572.184962 | I36: 1 | J36: 1 | K36: 572.184962 | L36: 572.184962 | M36: 353.184962 | N36: 353.184962 | O36: 0.3 | P36: 0.3 | Q36: 0.7 | R36: 0.7 | S36: 400.5294734 | T36: 400.5294734 | U36: 0.28 | V36: 0.28 | W36: 0.72 | X36: 0.72 | Y36: 411.9731727 | Z36: 411.9731727
B37: 2031 | C37: 1.1997344 | D37: 1.1997344 | E37: 486.4648886 | F37: 486.4648886 | G37: 583.6286613 | H37: 583.6286613 | I37: 1 | J37: 1 | K37: 583.6286613 | L37: 583.6286613 | M37: 364.6286613 | N37: 364.6286613 | O37: 0.31 | P37: 0.31 | Q37: 0.69 | R37: 0.69 | S37: 402.7037763 | T37: 402.7037763 | U37: 0.29 | V37: 0.29 | W37: 0.71 | X37: 0.71 | Y37: 414.3763495 | Z37: 414.3763495
B38: 2032 | C38: 1.1969916 | D38: 1.1969916 | E38: 497.3311713 | F38: 497.3311713 | G38: 595.3012345 | H38: 595.3012345 | I38: 1 | J38: 1 | K38: 595.3012345 | L38: 595.3012345 | M38: 376.3012345 | N38: 376.3012345 | O38: 0.32 | P38: 0.32 | Q38: 0.68 | R38: 0.68 | S38: 404.8048394 | T38: 404.8048394 | U38: 0.3 | V38: 0.3 | W38: 0.7 | X38: 0.7 | Y38: 416.7108641 | Z38: 416.7108641
B39: 2033 | C39: 1.1942488 | D39: 1.1942488 | E39: 508.4428464 | F39: 508.4428464 | G39: 607.2072592 | H39: 607.2072592 | I39: 1 | J39: 1 | K39: 607.2072592 | L39: 607.2072592 | M39: 388.2072592 | N39: 388.2072592 | O39: 0.33 | P39: 0.33 | Q39: 0.67 | R39: 0.67 | S39: 406.8288636 | T39: 406.8288636 | U39: 0.31 | V39: 0.31 | W39: 0.69 | X39: 0.69 | Y39: 418.9730088 | Z39: 418.9730088
B40: 2034 | C40: 1.17927 | D40: 1.17927 | E40: 525.1989827 | F40: 525.1989827 | G40: 619.3514044 | H40: 619.3514044 | I40: 1 | J40: 1 | K40: 619.3514044 | L40: 619.3514044 | M40: 400.3514044 | N40: 400.3514044 | O40: 0.34 | P40: 0.34 | Q40: 0.66 | R40: 0.66 | S40: 408.7719269 | T40: 408.7719269 | U40: 0.32 | V40: 0.32 | W40: 0.68 | X40: 0.68 | Y40: 421.158955 | Z40: 421.158955
B41: 2035 | C41: 1.17408 | D41: 1.17408 | E41: 538.0710279 | F41: 538.0710279 | G41: 631.7384324 | H41: 631.7384324 | I41: 1 | J41: 1 | K41: 631.7384324 | L41: 631.7384324 | M41: 412.7384324 | N41: 412.7384324 | O41: 0.35 | P41: 0.35 | Q41: 0.65 | R41: 0.65 | S41: 410.6299811 | T41: 410.6299811 | U41: 0.33 | V41: 0.33 | W41: 0.67 | X41: 0.67 | Y41: 423.2647497 | Z41: 423.2647497
B42: 2036 | C42: 1.16889 | D42: 1.16889 | E42: 551.2693248 | F42: 551.2693248 | G42: 644.3732011 | H42: 644.3732011 | I42: 1 | J42: 1 | K42: 644.3732011 | L42: 644.3732011 | M42: 425.3732011 | N42: 425.3732011 | O42: 0.36 | P42: 0.36 | Q42: 0.64 | R42: 0.64 | S42: 412.3988487 | T42: 412.3988487 | U42: 0.34 | V42: 0.34 | W42: 0.66 | X42: 0.66 | Y42: 425.2863127 | Z42: 425.2863127
B43: 2037 | C43: 1.1637 | D43: 1.1637 | E43: 564.8024964 | F43: 564.8024964 | G43: 657.2606651 | H43: 657.2606651 | I43: 1 | J43: 1 | K43: 657.2606651 | L43: 657.2606651 | M43: 438.2606651 | N43: 438.2606651 | O43: 0.37 | P43: 0.37 | Q43: 0.63 | R43: 0.63 | S43: 414.074219 | T43: 414.074219 | U43: 0.35 | V43: 0.35 | W43: 0.65 | X43: 0.65 | Y43: 427.2194323 | Z43: 427.2194323
B44: 2038 | C44: 1.15851 | D44: 1.15851 | E44: 578.6794058 | F44: 578.6794058 | G44: 670.4058784 | H44: 670.4058784 | I44: 1 | J44: 1 | K44: 670.4058784 | L44: 670.4058784 | M44: 451.4058784 | N44: 451.4058784 | O44: 0.38 | P44: 0.38 | Q44: 0.62 | R44: 0.62 | S44: 415.6516446 | T44: 415.6516446 | U44: 0.36 | V44: 0.36 | W44: 0.64 | X44: 0.64 | Y44: 429.0597622 | Z44: 429.0597622
B45: 2039 | C45: 1.140226 | D45: 1.140226 | E45: 599.7179471 | F45: 599.7179471 | G45: 683.813996 | H45: 683.813996 | I45: 1 | J45: 1 | K45: 683.813996 | L45: 683.813996 | M45: 464.813996 | N45: 464.813996 | O45: 0.39 | P45: 0.39 | Q45: 0.61 | R45: 0.61 | S45: 417.1265375 | T45: 417.1265375 | U45: 0.37 | V45: 0.37 | W45: 0.63 | X45: 0.63 | Y45: 430.8028175 | Z45: 430.8028175
B46: 2040 | C46: 1.1304188 | D46: 1.1304188 | E46: 617.0193524 | F46: 617.0193524 | G46: 697.4902759 | H46: 697.4902759 | I46: 1 | J46: 1 | K46: 697.4902759 | L46: 697.4902759 | M46: 478.4902759 | N46: 478.4902759 | O46: 0.4 | P46: 0.4 | Q46: 0.6 | R46: 0.6 | S46: 418.4941655 | T46: 418.4941655 | U46: 0.38 | V46: 0.38 | W46: 0.62 | X46: 0.62 | Y46: 432.4439711 | Z46: 432.4439711
B47: 2041 | C47: 1.1206116 | D47: 1.1206116 | E47: 634.8676753 | F47: 634.8676753 | G47: 711.4400814 | H47: 711.4400814 | I47: 1 | J47: 1 | K47: 711.4400814 | L47: 711.4400814 | M47: 492.4400814 | N47: 492.4400814 | O47: 0.41 | P47: 0.41 | Q47: 0.59 | R47: 0.59 | S47: 419.749648 | T47: 419.749648 | U47: 0.39 | V47: 0.39 | W47: 0.61 | X47: 0.61 | Y47: 433.9784497 | Z47: 433.9784497
B48: 2042 | C48: 1.1108044 | D48: 1.1108044 | E48: 653.2823268 | F48: 653.2823268 | G48: 725.668883 | H48: 725.668883 | I48: 1 | J48: 1 | K48: 725.668883 | L48: 725.668883 | M48: 506.668883 | N48: 506.668883 | O48: 0.42 | P48: 0.42 | Q48: 0.58 | R48: 0.58 | S48: 420.8879522 | T48: 420.8879522 | U48: 0.4 | V48: 0.4 | W48: 0.6 | X48: 0.6 | Y48: 435.4013298 | Z48: 435.4013298
B49: 2043 | C49: 1.1009972 | D49: 1.1009972 | E49: 672.2835087 | F49: 672.2835087 | G49: 740.1822607 | H49: 740.1822607 | I49: 1 | J49: 1 | K49: 740.1822607 | L49: 740.1822607 | M49: 521.1822607 | N49: 521.1822607 | O49: 0.43 | P49: 0.43 | Q49: 0.57 | R49: 0.57 | S49: 421.9038886 | T49: 421.9038886 | U49: 0.41 | V49: 0.41 | W49: 0.59 | X49: 0.59 | Y49: 436.7075338 | Z49: 436.7075338
B50: 2044 | C50: 1.09119 | D50: 1.09119 | E50: 691.8922515 | F50: 691.8922515 | G50: 754.9859059 | H50: 754.9859059 | I50: 1 | J50: 1 | K50: 754.9859059 | L50: 754.9859059 | M50: 535.9859059 | N50: 535.9859059 | O50: 0.44 | P50: 0.44 | Q50: 0.56 | R50: 0.56 | S50: 422.7921073 | T50: 422.7921073 | U50: 0.42 | V50: 0.42 | W50: 0.58 | X50: 0.58 | Y50: 437.8918254 | Z50: 437.8918254
B51: 2045 | C51: 1.0801642 | D51: 1.0801642 | E51: 712.9338521 | F51: 712.9338521 | G51: 770.085624 | H51: 770.085624 | I51: 1 | J51: 1 | K51: 770.085624 | L51: 770.085624 | M51: 551.085624 | N51: 551.085624 | O51: 0.45 | P51: 0.45 | Q51: 0.55 | R51: 0.55 | S51: 423.5470932 | T51: 423.5470932 | U51: 0.43 | V51: 0.43 | W51: 0.57 | X51: 0.57 | Y51: 438.9488057 | Z51: 438.9488057
B52: 2046 | C52: 1.0691384 | D52: 1.0691384 | E52: 734.6919132 | F52: 734.6919132 | G52: 785.4873365 | H52: 785.4873365 | I52: 1 | J52: 1 | K52: 785.4873365 | L52: 785.4873365 | M52: 566.4873365 | N52: 566.4873365 | O52: 0.46 | P52: 0.46 | Q52: 0.54 | R52: 0.54 | S52: 424.1631617 | T52: 424.1631617 | U52: 0.44 | V52: 0.44 | W52: 0.56 | X52: 0.56 | Y52: 439.8729085 | Z52: 439.8729085
B53: 2047 | C53: 1.0581126 | D53: 1.0581126 | E53: 757.1945398 | F53: 757.1945398 | G53: 801.1970833 | H53: 801.1970833 | I53: 1 | J53: 1 | K53: 801.1970833 | L53: 801.1970833 | M53: 582.1970833 | N53: 582.1970833 | O53: 0.47 | P53: 0.47 | Q53: 0.53 | R53: 0.53 | S53: 424.6344541 | T53: 424.6344541 | U53: 0.45 | V53: 0.45 | W53: 0.55 | X53: 0.55 | Y53: 440.6583958 | Z53: 440.6583958
B54: 2048 | C54: 1.0470868 | D54: 1.0470868 | E54: 780.4711366 | F54: 780.4711366 | G54: 817.2210249 | H54: 817.2210249 | I54: 1 | J54: 1 | K54: 817.2210249 | L54: 817.2210249 | M54: 598.2210249 | N54: 598.2210249 | O54: 0.48 | P54: 0.48 | Q54: 0.52 | R54: 0.52 | S54: 424.954933 | T54: 424.954933 | U54: 0.46 | V54: 0.46 | W54: 0.54 | X54: 0.54 | Y54: 441.2993535 | Z54: 441.2993535
B55: 2049 | C55: 1.036061 | D55: 1.036061 | E55: 804.5524785 | F55: 804.5524785 | G55: 833.5654454 | H55: 833.5654454 | I55: 1 | J55: 1 | K55: 833.5654454 | L55: 833.5654454 | M55: 614.5654454 | N55: 614.5654454 | O55: 0.49 | P55: 0.49 | Q55: 0.51 | R55: 0.51 | S55: 425.1183772 | T55: 425.1183772 | U55: 0.47 | V55: 0.47 | W55: 0.53 | X55: 0.53 | Y55: 441.7896861 | Z55: 441.7896861
B56: 2050 | C56: 1.0245562 | D56: 1.0245562 | E56: 829.858581 | F56: 829.858581 | G56: 850.2367543 | H56: 850.2367543 | I56: 1 | J56: 1 | K56: 850.2367543 | L56: 850.2367543 | M56: 631.2367543 | N56: 631.2367543 | O56: 0.5 | P56: 0.5 | Q56: 0.5 | R56: 0.5 | S56: 425.1183772 | T56: 425.1183772 | U56: 0.48 | V56: 0.48 | W56: 0.52 | X56: 0.52 | Y56: 442.1231122 | Z56: 442.1231122
A59: B | B59: SOLID WASTE % COMPOSITION FOR BAU AND DIFFERENT SCENARIOS
B61: 1. BAU | X61: 2. Scenario 1: LFG
B63: Year | C63: Food (Gg/yr) | E63: Garden (Gg/yr) | G63: Paper (Gg/yr) | I63: Wood (Gg/yr) | K63: Textiles (Gg/yr) | M63: Nappies (Gg/yr) | O63: Inert (Gg/yr) | Q63: Sludge (Gg/yr) | S63: Industrial (Gg/yr) | X63: Food (Gg/yr) | Z63: Garden (Gg/yr) | AB63: Paper (Gg/yr) | AD63: Wood (Gg/yr) | AF63: Textiles (Gg/yr) | AH63: Nappies (Gg/yr) | AJ63: Inert (Gg/yr) | AL63: Sludge (Gg/yr) | AN63: Industrial (Gg/yr)
C64: TNC | D64: USER | E64: TNC | F64: USER | G64: TNC | H64: USER | I64: TNC | J64: USER | K64: TNC | L64: USER | M64: TNC | N64: USER | O64: TNC | P64: USER | Q64: TNC | R64: USER | S64: TNC | T64: USER | U64: TNC | V64: USER | X64: TNC | Y64: USER | Z64: TNC | AA64: USER | AB64: TNC | AC64: USER | AD64: TNC | AE64: USER | AF64: TNC | AG64: USER | AH64: TNC | AI64: USER | AJ64: TNC | AK64: USER | AL64: TNC | AM64: USER | AN64: TNC | AO64: USER | AP64: TNC | AQ64: USER
B65: =B6 -> 2000 | C65: 0.15 | D65: 0.15 | E65: 0.5 | F65: 0.5 | G65: 0.12 | H65: 0.12 | I65: 0.02 | J65: 0.02 | K65: 0.05 | L65: 0.05 | M65: 0.003 | N65: 0.003 | O65: 0.157 | P65: 0.157 | Q65: 0 | R65: 0 | S65: 0 | T65: 0 | V65: =SUM(D65:T65)-R65 -> 1.85 | X65: 0.15 | Y65: 0.15 | Z65: 0.5 | AA65: 0.5 | AB65: 0.12 | AC65: 0.12 | AD65: 0.02 | AE65: 0.02 | AF65: 0.05 | AG65: 0.05 | AH65: 0.003 | AI65: 0.003 | AJ65: 0.157 | AK65: 0.157 | AL65: 0 | AM65: 0 | AN65: 0 | AO65: 0 | AQ65: =SUM(Y65:AO65) -> 1.85
B66: 2001 | C66: 0.15 | D66: 0.15 | E66: 0.5 | F66: 0.5 | G66: 0.12 | H66: 0.12 | I66: 0.02 | J66: 0.02 | K66: 0.05 | L66: 0.05 | M66: 0.003 | N66: 0.003 | O66: 0.157 | P66: 0.157 | Q66: 0 | R66: 0 | S66: 0 | T66: 0 | V66: =SUM(D66:T66)-R66 -> 1.85 | X66: 0.15 | Y66: 0.15 | Z66: 0.5 | AA66: 0.5 | AB66: 0.12 | AC66: 0.12 | AD66: 0.02 | AE66: 0.02 | AF66: 0.05 | AG66: 0.05 | AH66: 0.003 | AI66: 0.003 | AJ66: 0.157 | AK66: 0.157 | AL66: 0 | AM66: 0 | AN66: 0 | AO66: 0 | AQ66: =SUM(Y66:AO66) -> 1.85
B67: 2002 | C67: 0.15 | D67: 0.15 | E67: 0.5 | F67: 0.5 | G67: 0.12 | H67: 0.12 | I67: 0.02 | J67: 0.02 | K67: 0.05 | L67: 0.05 | M67: 0.003 | N67: 0.003 | O67: 0.157 | P67: 0.157 | Q67: 0 | R67: 0 | S67: 0 | T67: 0 | V67: 1.85 | X67: 0.15 | Y67: 0.15 | Z67: 0.5 | AA67: 0.5 | AB67: 0.12 | AC67: 0.12 | AD67: 0.02 | AE67: 0.02 | AF67: 0.05 | AG67: 0.05 | AH67: 0.003 | AI67: 0.003 | AJ67: 0.157 | AK67: 0.157 | AL67: 0 | AM67: 0 | AN67: 0 | AO67: 0 | AQ67: 1.85
B68: 2003 | C68: 0.15 | D68: 0.15 | E68: 0.5 | F68: 0.5 | G68: 0.12 | H68: 0.12 | I68: 0.02 | J68: 0.02 | K68: 0.05 | L68: 0.05 | M68: 0.003 | N68: 0.003 | O68: 0.157 | P68: 0.157 | Q68: 0 | R68: 0 | S68: 0 | T68: 0 | V68: 1.85 | X68: 0.15 | Y68: 0.15 | Z68: 0.5 | AA68: 0.5 | AB68: 0.12 | AC68: 0.12 | AD68: 0.02 | AE68: 0.02 | AF68: 0.05 | AG68: 0.05 | AH68: 0.003 | AI68: 0.003 | AJ68: 0.157 | AK68: 0.157 | AL68: 0 | AM68: 0 | AN68: 0 | AO68: 0 | AQ68: 1.85
B69: 2004 | C69: 0.15 | D69: 0.15 | E69: 0.5 | F69: 0.5 | G69: 0.12 | H69: 0.12 | I69: 0.02 | J69: 0.02 | K69: 0.05 | L69: 0.05 | M69: 0.003 | N69: 0.003 | O69: 0.157 | P69: 0.157 | Q69: 0 | R69: 0 | S69: 0 | T69: 0 | V69: 1.85 | X69: 0.15 | Y69: 0.15 | Z69: 0.5 | AA69: 0.5 | AB69: 0.12 | AC69: 0.12 | AD69: 0.02 | AE69: 0.02 | AF69: 0.05 | AG69: 0.05 | AH69: 0.003 | AI69: 0.003 | AJ69: 0.157 | AK69: 0.157 | AL69: 0 | AM69: 0 | AN69: 0 | AO69: 0 | AQ69: 1.85
B70: 2005 | C70: 0.15 | D70: 0.15 | E70: 0.5 | F70: 0.5 | G70: 0.12 | H70: 0.12 | I70: 0.02 | J70: 0.02 | K70: 0.05 | L70: 0.05 | M70: 0.003 | N70: 0.003 | O70: 0.157 | P70: 0.157 | Q70: 0.01515467889 | R70: 0.01515467889 | S70: 0.001375925922 | T70: 0.001375925922 | V70: 1.867906531 | X70: 0.15 | Y70: 0.15 | Z70: 0.5 | AA70: 0.5 | AB70: 0.12 | AC70: 0.12 | AD70: 0.02 | AE70: 0.02 | AF70: 0.05 | AG70: 0.05 | AH70: 0.003 | AI70: 0.003 | AJ70: 0.1404693952 | AK70: 0.1404693952 | AL70: 0.01515467889 | AM70: 0.01515467889 | AN70: 0.001375925922 | AO70: 0.001375925922 | AQ70: 1.85
B71: 2006 | C71: 0.15 | D71: 0.15 | E71: 0.5 | F71: 0.5 | G71: 0.12 | H71: 0.12 | I71: 0.02 | J71: 0.02 | K71: 0.05 | L71: 0.05 | M71: 0.003 | N71: 0.003 | O71: 0.157 | P71: 0.157 | Q71: 0.01979147311 | R71: 0.01979147311 | S71: 0.001225484281 | T71: 0.001225484281 | V71: 1.872242442 | X71: 0.15 | Y71: 0.15 | Z71: 0.5 | AA71: 0.5 | AB71: 0.12 | AC71: 0.12 | AD71: 0.02 | AE71: 0.02 | AF71: 0.05 | AG71: 0.05 | AH71: 0.003 | AI71: 0.003 | AJ71: 0.1359830426 | AK71: 0.1359830426 | AL71: 0.01979147311 | AM71: 0.01979147311 | AN71: 0.001225484281 | AO71: 0.001225484281 | AQ71: 1.85
B72: 2007 | C72: 0.15 | D72: 0.15 | E72: 0.5 | F72: 0.5 | G72: 0.12 | H72: 0.12 | I72: 0.02 | J72: 0.02 | K72: 0.05 | L72: 0.05 | M72: 0.003 | N72: 0.003 | O72: 0.157 | P72: 0.157 | Q72: 0.03315506906 | R72: 0.03315506906 | S72: 0.002248094708 | T72: 0.002248094708 | V72: 1.887651258 | X72: 0.15 | Y72: 0.15 | Z72: 0.5 | AA72: 0.5 | AB72: 0.12 | AC72: 0.12 | AD72: 0.02 | AE72: 0.02 | AF72: 0.05 | AG72: 0.05 | AH72: 0.003 | AI72: 0.003 | AJ72: 0.1215968362 | AK72: 0.1215968362 | AL72: 0.03315506906 | AM72: 0.03315506906 | AN72: 0.002248094708 | AO72: 0.002248094708 | AQ72: 1.85
B73: 2008 | C73: 0.15 | D73: 0.15 | E73: 0.5 | F73: 0.5 | G73: 0.12 | H73: 0.12 | I73: 0.02 | J73: 0.02 | K73: 0.05 | L73: 0.05 | M73: 0.003 | N73: 0.003 | O73: 0.157 | P73: 0.157 | Q73: 0.03040871176 | R73: 0.03040871176 | S73: 0.001985287367 | T73: 0.001985287367 | V73: 1.884379286 | X73: 0.15 | Y73: 0.15 | Z73: 0.5 | AA73: 0.5 | AB73: 0.12 | AC73: 0.12 | AD73: 0.02 | AE73: 0.02 | AF73: 0.05 | AG73: 0.05 | AH73: 0.003 | AI73: 0.003 | AJ73: 0.1246060009 | AK73: 0.1246060009 | AL73: 0.03040871176 | AM73: 0.03040871176 | AN73: 0.001985287367 | AO73: 0.001985287367 | AQ73: 1.85
B74: 2009 | C74: 0.15 | D74: 0.15 | E74: 0.5 | F74: 0.5 | G74: 0.12 | H74: 0.12 | I74: 0.02 | J74: 0.02 | K74: 0.05 | L74: 0.05 | M74: 0.003 | N74: 0.003 | O74: 0.157 | P74: 0.157 | Q74: 0.02194042454 | R74: 0.02194042454 | S74: 0.002805373941 | T74: 0.002805373941 | V74: 1.877551172 | X74: 0.15 | Y74: 0.15 | Z74: 0.5 | AA74: 0.5 | AB74: 0.12 | AC74: 0.12 | AD74: 0.02 | AE74: 0.02 | AF74: 0.05 | AG74: 0.05 | AH74: 0.003 | AI74: 0.003 | AJ74: 0.1322542015 | AK74: 0.1322542015 | AL74: 0.02194042454 | AM74: 0.02194042454 | AN74: 0.002805373941 | AO74: 0.002805373941 | AQ74: 1.85
B75: 2010 | C75: 0.15 | D75: 0.15 | E75: 0.5 | F75: 0.5 | G75: 0.12 | H75: 0.12 | I75: 0.02 | J75: 0.02 | K75: 0.05 | L75: 0.05 | M75: 0.003 | N75: 0.003 | O75: 0.157 | P75: 0.157 | Q75: 0.02560021863 | R75: 0.02560021863 | S75: 0.002645887461 | T75: 0.002645887461 | V75: 1.880891994 | X75: 0.15 | Y75: 0.15 | Z75: 0.5 | AA75: 0.5 | AB75: 0.12 | AC75: 0.12 | AD75: 0.02 | AE75: 0.02 | AF75: 0.05 | AG75: 0.05 | AH75: 0.003 | AI75: 0.003 | AJ75: 0.1287538939 | AK75: 0.1287538939 | AL75: 0.02560021863 | AM75: 0.02560021863 | AN75: 0.002645887461 | AO75: 0.002645887461 | AQ75: 1.85
B76: 2011 | C76: 0.15 | D76: 0.15 | E76: 0.5 | F76: 0.5 | G76: 0.12 | H76: 0.12 | I76: 0.02 | J76: 0.02 | K76: 0.05 | L76: 0.05 | M76: 0.003 | N76: 0.003 | O76: 0.157 | P76: 0.157 | Q76: 0.02509567455 | R76: 0.02509567455 | S76: 0.003770997844 | T76: 0.003770997844 | V76: 1.88263767 | X76: 0.15 | Y76: 0.15 | Z76: 0.5 | AA76: 0.5 | AB76: 0.12 | AC76: 0.12 | AD76: 0.02 | AE76: 0.02 | AF76: 0.05 | AG76: 0.05 | AH76: 0.003 | AI76: 0.003 | AJ76: 0.1281333276 | AK76: 0.1281333276 | AL76: 0.02509567455 | AM76: 0.02509567455 | AN76: 0.003770997844 | AO76: 0.003770997844 | AQ76: 1.85
B77: 2012 | C77: 0.15 | D77: 0.15 | E77: 0.5 | F77: 0.5 | G77: 0.12 | H77: 0.12 | I77: 0.02 | J77: 0.02 | K77: 0.05 | L77: 0.05 | M77: 0.003 | N77: 0.003 | O77: 0.157 | P77: 0.157 | Q77: 0.01900109173 | R77: 0.01900109173 | S77: 0.001747917389 | T77: 0.001747917389 | V77: 1.872496927 | X77: 0.15 | Y77: 0.15 | Z77: 0.5 | AA77: 0.5 | AB77: 0.12 | AC77: 0.12 | AD77: 0.02 | AE77: 0.02 | AF77: 0.05 | AG77: 0.05 | AH77: 0.003 | AI77: 0.003 | AJ77: 0.1362509909 | AK77: 0.1362509909 | AL77: 0.01900109173 | AM77: 0.01900109173 | AN77: 0.001747917389 | AO77: 0.001747917389 | AQ77: 1.85
B78: 2013 | C78: 0.15 | D78: 0.15 | E78: 0.5 | F78: 0.5 | G78: 0.12 | H78: 0.12 | I78: 0.02 | J78: 0.02 | K78: 0.05 | L78: 0.05 | M78: 0.003 | N78: 0.003 | O78: 0.157 | P78: 0.157 | Q78: 0.01620398168 | R78: 0.01620398168 | S78: 0.0007562277008 | T78: 0.0007562277008 | V78: 1.867716437 | X78: 0.15 | Y78: 0.15 | Z78: 0.5 | AA78: 0.5 | AB78: 0.12 | AC78: 0.12 | AD78: 0.02 | AE78: 0.02 | AF78: 0.05 | AG78: 0.05 | AH78: 0.003 | AI78: 0.003 | AJ78: 0.1400397906 | AK78: 0.1400397906 | AL78: 0.01620398168 | AM78: 0.01620398168 | AN78: 0.0007562277008 | AO78: 0.0007562277008 | AQ78: 1.85
B79: 2014 | C79: 0.15 | D79: 0.15 | E79: 0.5 | F79: 0.5 | G79: 0.12 | H79: 0.12 | I79: 0.02 | J79: 0.02 | K79: 0.05 | L79: 0.05 | M79: 0.003 | N79: 0.003 | O79: 0.157 | P79: 0.157 | Q79: 0.01245424307 | R79: 0.01245424307 | S79: 0.0004543843371 | T79: 0.0004543843371 | V79: 1.863363012 | X79: 0.15 | Y79: 0.15 | Z79: 0.5 | AA79: 0.5 | AB79: 0.12 | AC79: 0.12 | AD79: 0.02 | AE79: 0.02 | AF79: 0.05 | AG79: 0.05 | AH79: 0.003 | AI79: 0.003 | AJ79: 0.1440913726 | AK79: 0.1440913726 | AL79: 0.01245424307 | AM79: 0.01245424307 | AN79: 0.0004543843371 | AO79: 0.0004543843371 | AQ79: 1.85
B80: 2015 | C80: 0.15 | D80: 0.15 | E80: 0.5 | F80: 0.5 | G80: 0.12 | H80: 0.12 | I80: 0.02 | J80: 0.02 | K80: 0.05 | L80: 0.05 | M80: 0.003 | N80: 0.003 | O80: 0.157 | P80: 0.157 | Q80: 0.0137362975 | R80: 0.0137362975 | S80: 0.0004454748403 | T80: 0.0004454748403 | V80: 1.864627247 | X80: 0.15 | Y80: 0.15 | Z80: 0.5 | AA80: 0.5 | AB80: 0.12 | AC80: 0.12 | AD80: 0.02 | AE80: 0.02 | AF80: 0.05 | AG80: 0.05 | AH80: 0.003 | AI80: 0.003 | AJ80: 0.1428182277 | AK80: 0.1428182277 | AL80: 0.0137362975 | AM80: 0.0137362975 | AN80: 0.0004454748403 | AO80: 0.0004454748403 | AQ80: 1.85
B81: 2016 | C81: 0.15 | D81: 0.15 | E81: 0.5 | F81: 0.5 | G81: 0.12 | H81: 0.12 | I81: 0.02 | J81: 0.02 | K81: 0.05 | L81: 0.05 | M81: 0.003 | N81: 0.003 | O81: 0.157 | P81: 0.157 | Q81: 0.01496328704 | R81: 0.01496328704 | S81: 0.0004367400395 | T81: 0.0004367400395 | V81: 1.865836767 | X81: 0.15 | Y81: 0.15 | Z81: 0.5 | AA81: 0.5 | AB81: 0.12 | AC81: 0.12 | AD81: 0.02 | AE81: 0.02 | AF81: 0.05 | AG81: 0.05 | AH81: 0.003 | AI81: 0.003 | AJ81: 0.1415999729 | AK81: 0.1415999729 | AL81: 0.01496328704 | AM81: 0.01496328704 | AN81: 0.0004367400395 | AO81: 0.0004367400395 | AQ81: 1.85
B82: 2017 | C82: 0.15 | D82: 0.15 | E82: 0.5 | F82: 0.5 | G82: 0.12 | H82: 0.12 | I82: 0.02 | J82: 0.02 | K82: 0.05 | L82: 0.05 | M82: 0.003 | N82: 0.003 | O82: 0.157 | P82: 0.157 | Q82: 0.01613687818 | R82: 0.01613687818 | S82: 0.0004281765094 | T82: 0.0004281765094 | V82: 1.866993231 | X82: 0.15 | Y82: 0.15 | Z82: 0.5 | AA82: 0.5 | AB82: 0.12 | AC82: 0.12 | AD82: 0.02 | AE82: 0.02 | AF82: 0.05 | AG82: 0.05 | AH82: 0.003 | AI82: 0.003 | AJ82: 0.1404349453 | AK82: 0.1404349453 | AL82: 0.01613687818 | AM82: 0.01613687818 | AN82: 0.0004281765094 | AO82: 0.0004281765094 | AQ82: 1.85
B83: 2018 | C83: 0.15 | D83: 0.15 | E83: 0.5 | F83: 0.5 | G83: 0.12 | H83: 0.12 | I83: 0.02 | J83: 0.02 | K83: 0.05 | L83: 0.05 | M83: 0.003 | N83: 0.003 | O83: 0.157 | P83: 0.157 | Q83: 0.01725869324 | R83: 0.01725869324 | S83: 0.0004197808915 | T83: 0.0004197808915 | V83: 1.868098255 | X83: 0.15 | Y83: 0.15 | Z83: 0.5 | AA83: 0.5 | AB83: 0.12 | AC83: 0.12 | AD83: 0.02 | AE83: 0.02 | AF83: 0.05 | AG83: 0.05 | AH83: 0.003 | AI83: 0.003 | AJ83: 0.1393215259 | AK83: 0.1393215259 | AL83: 0.01725869324 | AM83: 0.01725869324 | AN83: 0.0004197808915 | AO83: 0.0004197808915 | AQ83: 1.85
B84: 2019 | C84: 0.15 | D84: 0.15 | E84: 0.5 | F84: 0.5 | G84: 0.12 | H84: 0.12 | I84: 0.02 | J84: 0.02 | K84: 0.05 | L84: 0.05 | M84: 0.003 | N84: 0.003 | O84: 0.157 | P84: 0.157 | Q84: 0.01833031144 | R84: 0.01833031144 | S84: 0.0004115498937 | T84: 0.0004115498937 | V84: 1.869153411 | X84: 0.15 | Y84: 0.15 | Z84: 0.5 | AA84: 0.5 | AB84: 0.12 | AC84: 0.12 | AD84: 0.02 | AE84: 0.02 | AF84: 0.05 | AG84: 0.05 | AH84: 0.003 | AI84: 0.003 | AJ84: 0.1382581387 | AK84: 0.1382581387 | AL84: 0.01833031144 | AM84: 0.01833031144 | AN84: 0.0004115498937 | AO84: 0.0004115498937 | AQ84: 1.85
B85: 2020 | C85: 0.15 | D85: 0.15 | E85: 0.5 | F85: 0.5 | G85: 0.12 | H85: 0.12 | I85: 0.02 | J85: 0.02 | K85: 0.05 | L85: 0.05 | M85: 0.003 | N85: 0.003 | O85: 0.157 | P85: 0.157 | Q85: 0.01935327 | R85: 0.01935327 | S85: 0.0004034802879 | T85: 0.0004034802879 | V85: 1.870160231 | X85: 0.15 | Y85: 0.15 | Z85: 0.5 | AA85: 0.5 | AB85: 0.12 | AC85: 0.12 | AD85: 0.02 | AE85: 0.02 | AF85: 0.05 | AG85: 0.05 | AH85: 0.003 | AI85: 0.003 | AJ85: 0.1372432497 | AK85: 0.1372432497 | AL85: 0.01935327 | AM85: 0.01935327 | AN85: 0.0004034802879 | AO85: 0.0004034802879 | AQ85: 1.85
B86: 2021 | C86: 0.15 | D86: 0.15 | E86: 0.5 | F86: 0.5 | G86: 0.12 | H86: 0.12 | I86: 0.02 | J86: 0.02 | K86: 0.05 | L86: 0.05 | M86: 0.003 | N86: 0.003 | O86: 0.157 | P86: 0.157 | Q86: 0.02032906513 | R86: 0.02032906513 | S86: 0.0003955689097 | T86: 0.0003955689097 | V86: 1.871120203 | X86: 0.15 | Y86: 0.15 | Z86: 0.5 | AA86: 0.5 | AB86: 0.12 | AC86: 0.12 | AD86: 0.02 | AE86: 0.02 | AF86: 0.05 | AG86: 0.05 | AH86: 0.003 | AI86: 0.003 | AJ86: 0.136275366 | AK86: 0.136275366 | AL86: 0.02032906513 | AM86: 0.02032906513 | AN86: 0.0003955689097 | AO86: 0.0003955689097 | AQ86: 1.85
B87: 2022 | C87: 0.15 | D87: 0.15 | E87: 0.5 | F87: 0.5 | G87: 0.12 | H87: 0.12 | I87: 0.02 | J87: 0.02 | K87: 0.05 | L87: 0.05 | M87: 0.003 | N87: 0.003 | O87: 0.157 | P87: 0.157 | Q87: 0.02125915307 | R87: 0.02125915307 | S87: 0.0003878126566 | T87: 0.0003878126566 | V87: 1.872034778 | X87: 0.15 | Y87: 0.15 | Z87: 0.5 | AA87: 0.5 | AB87: 0.12 | AC87: 0.12 | AD87: 0.02 | AE87: 0.02 | AF87: 0.05 | AG87: 0.05 | AH87: 0.003 | AI87: 0.003 | AJ87: 0.1353530343 | AK87: 0.1353530343 | AL87: 0.02125915307 | AM87: 0.02125915307 | AN87: 0.0003878126566 | AO87: 0.0003878126566 | AQ87: 1.85
B88: 2023 | C88: 0.15 | D88: 0.15 | E88: 0.5 | F88: 0.5 | G88: 0.12 | H88: 0.12 | I88: 0.02 | J88: 0.02 | K88: 0.05 | L88: 0.05 | M88: 0.003 | N88: 0.003 | O88: 0.157 | P88: 0.157 | Q88: 0.02214495112 | R88: 0.02214495112 | S88: 0.0003802084868 | T88: 0.0003802084868 | V88: 1.872905368 | X88: 0.15 | Y88: 0.15 | Z88: 0.5 | AA88: 0.5 | AB88: 0.12 | AC88: 0.12 | AD88: 0.02 | AE88: 0.02 | AF88: 0.05 | AG88: 0.05 | AH88: 0.003 | AI88: 0.003 | AJ88: 0.1344748404 | AK88: 0.1344748404 | AL88: 0.02214495112 | AM88: 0.02214495112 | AN88: 0.0003802084868 | AO88: 0.0003802084868 | AQ88: 1.85
B89: 2024 | C89: 0.15 | D89: 0.15 | E89: 0.5 | F89: 0.5 | G89: 0.12 | H89: 0.12 | I89: 0.02 | J89: 0.02 | K89: 0.05 | L89: 0.05 | M89: 0.003 | N89: 0.003 | O89: 0.157 | P89: 0.157 | Q89: 0.02298783853 | R89: 0.02298783853 | S89: 0.0003727534185 | T89: 0.0003727534185 | V89: 1.873733345 | X89: 0.15 | Y89: 0.15 | Z89: 0.5 | AA89: 0.5 | AB89: 0.12 | AC89: 0.12 | AD89: 0.02 | AE89: 0.02 | AF89: 0.05 | AG89: 0.05 | AH89: 0.003 | AI89: 0.003 | AJ89: 0.1336394081 | AK89: 0.1336394081 | AL89: 0.02298783853 | AM89: 0.02298783853 | AN89: 0.0003727534185 | AO89: 0.0003727534185 | AQ89: 1.85
B90: 2025 | C90: 0.15 | D90: 0.15 | E90: 0.5 | F90: 0.5 | G90: 0.12 | H90: 0.12 | I90: 0.02 | J90: 0.02 | K90: 0.05 | L90: 0.05 | M90: 0.003 | N90: 0.003 | O90: 0.157 | P90: 0.157 | Q90: 0.02378915752 | R90: 0.02378915752 | S90: 0.0003654445279 | T90: 0.0003654445279 | V90: 1.874520047 | X90: 0.15 | Y90: 0.15 | Z90: 0.5 | AA90: 0.5 | AB90: 0.12 | AC90: 0.12 | AD90: 0.02 | AE90: 0.02 | AF90: 0.05 | AG90: 0.05 | AH90: 0.003 | AI90: 0.003 | AJ90: 0.132845398 | AK90: 0.132845398 | AL90: 0.02378915752 | AM90: 0.02378915752 | AN90: 0.0003654445279 | AO90: 0.0003654445279 | AQ90: 1.85
B91: 2026 | C91: 0.15 | D91: 0.15 | E91: 0.5 | F91: 0.5 | G91: 0.12 | H91: 0.12 | I91: 0.02 | J91: 0.02 | K91: 0.05 | L91: 0.05 | M91: 0.003 | N91: 0.003 | O91: 0.157 | P91: 0.157 | Q91: 0.02455021416 | R91: 0.02455021416 | S91: 0.0003582789489 | T91: 0.0003582789489 | V91: 1.875266772 | X91: 0.15 | Y91: 0.15 | Z91: 0.5 | AA91: 0.5 | AB91: 0.12 | AC91: 0.12 | AD91: 0.02 | AE91: 0.02 | AF91: 0.05 | AG91: 0.05 | AH91: 0.003 | AI91: 0.003 | AJ91: 0.1320915069 | AK91: 0.1320915069 | AL91: 0.02455021416 | AM91: 0.02455021416 | AN91: 0.0003582789489 | AO91: 0.0003582789489 | AQ91: 1.85
B92: 2027 | C92: 0.15 | D92: 0.15 | E92: 0.5 | F92: 0.5 | G92: 0.12 | H92: 0.12 | I92: 0.02 | J92: 0.02 | K92: 0.05 | L92: 0.05 | M92: 0.003 | N92: 0.003 | O92: 0.157 | P92: 0.157 | Q92: 0.02527227928 | R92: 0.02527227928 | S92: 0.0003512538715 | T92: 0.0003512538715 | V92: 1.875974787 | X92: 0.15 | Y92: 0.15 | Z92: 0.5 | AA92: 0.5 | AB92: 0.12 | AC92: 0.12 | AD92: 0.02 | AE92: 0.02 | AF92: 0.05 | AG92: 0.05 | AH92: 0.003 | AI92: 0.003 | AJ92: 0.1313764668 | AK92: 0.1313764668 | AL92: 0.02527227928 | AM92: 0.02527227928 | AN92: 0.0003512538715 | AO92: 0.0003512538715 | AQ92: 1.85
B93: 2028 | C93: 0.15 | D93: 0.15 | E93: 0.5 | F93: 0.5 | G93: 0.12 | H93: 0.12 | I93: 0.02 | J93: 0.02 | K93: 0.05 | L93: 0.05 | M93: 0.003 | N93: 0.003 | O93: 0.157 | P93: 0.157 | Q93: 0.02595658937 | R93: 0.02595658937 | S93: 0.0003443665407 | T93: 0.0003443665407 | V93: 1.876645322 | X93: 0.15 | Y93: 0.15 | Z93: 0.5 | AA93: 0.5 | AB93: 0.12 | AC93: 0.12 | AD93: 0.02 | AE93: 0.02 | AF93: 0.05 | AG93: 0.05 | AH93: 0.003 | AI93: 0.003 | AJ93: 0.1306990441 | AK93: 0.1306990441 | AL93: 0.02595658937 | AM93: 0.02595658937 | AN93: 0.0003443665407 | AO93: 0.0003443665407 | AQ93: 1.85
B94: 2029 | C94: 0.15 | D94: 0.15 | E94: 0.5 | F94: 0.5 | G94: 0.12 | H94: 0.12 | I94: 0.02 | J94: 0.02 | K94: 0.05 | L94: 0.05 | M94: 0.003 | N94: 0.003 | O94: 0.157 | P94: 0.157 | Q94: 0.02660434739 | R94: 0.02660434739 | S94: 0.0003376142556 | T94: 0.0003376142556 | V94: 1.877279576 | X94: 0.15 | Y94: 0.15 | Z94: 0.5 | AA94: 0.5 | AB94: 0.12 | AC94: 0.12 | AD94: 0.02 | AE94: 0.02 | AF94: 0.05 | AG94: 0.05 | AH94: 0.003 | AI94: 0.003 | AJ94: 0.1300580384 | AK94: 0.1300580384 | AL94: 0.02660434739 | AM94: 0.02660434739 | AN94: 0.0003376142556 | AO94: 0.0003376142556 | AQ94: 1.85
B95: 2030 | C95: 0.15 | D95: 0.15 | E95: 0.5 | F95: 0.5 | G95: 0.12 | H95: 0.12 | I95: 0.02 | J95: 0.02 | K95: 0.05 | L95: 0.05 | M95: 0.003 | N95: 0.003 | O95: 0.157 | P95: 0.157 | Q95: 0.02721672367 | R95: 0.02721672367 | S95: 0.0003309943682 | T95: 0.0003309943682 | V95: 1.877878712 | X95: 0.15 | Y95: 0.15 | Z95: 0.5 | AA95: 0.5 | AB95: 0.12 | AC95: 0.12 | AD95: 0.02 | AE95: 0.02 | AF95: 0.05 | AG95: 0.05 | AH95: 0.003 | AI95: 0.003 | AJ95: 0.129452282 | AK95: 0.129452282 | AL95: 0.02721672367 | AM95: 0.02721672367 | AN95: 0.0003309943682 | AO95: 0.0003309943682 | AQ95: 1.85
B96: 2031 | C96: 0.15 | D96: 0.15 | E96: 0.5 | F96: 0.5 | G96: 0.12 | H96: 0.12 | I96: 0.02 | J96: 0.02 | K96: 0.05 | L96: 0.05 | M96: 0.003 | N96: 0.003 | O96: 0.157 | P96: 0.157 | Q96: 0.02668306242 | R96: 0.02668306242 | S96: 0.0003245042826 | T96: 0.0003245042826 | V96: 1.877332071 | X96: 0.15 | Y96: 0.15 | Z96: 0.5 | AA96: 0.5 | AB96: 0.12 | AC96: 0.12 | AD96: 0.02 | AE96: 0.02 | AF96: 0.05 | AG96: 0.05 | AH96: 0.003 | AI96: 0.003 | AJ96: 0.1299924333 | AK96: 0.1299924333 | AL96: 0.02668306242 | AM96: 0.02668306242 | AN96: 0.0003245042826 | AO96: 0.0003245042826 | AQ96: 1.85
B97: 2032 | C97: 0.15 | D97: 0.15 | E97: 0.5 | F97: 0.5 | G97: 0.12 | H97: 0.12 | I97: 0.02 | J97: 0.02 | K97: 0.05 | L97: 0.05 | M97: 0.003 | N97: 0.003 | O97: 0.157 | P97: 0.157 | Q97: 0.02615986512 | R97: 0.02615986512 | S97: 0.0003181414535 | T97: 0.0003181414535 | V97: 1.876796148 | X97: 0.15 | Y97: 0.15 | Z97: 0.5 | AA97: 0.5 | AB97: 0.12 | AC97: 0.12 | AD97: 0.02 | AE97: 0.02 | AF97: 0.05 | AG97: 0.05 | AH97: 0.003 | AI97: 0.003 | AJ97: 0.1305219934 | AK97: 0.1305219934 | AL97: 0.02615986512 | AM97: 0.02615986512 | AN97: 0.0003181414535 | AO97: 0.0003181414535 | AQ97: 1.85
B98: 2033 | C98: 0.15 | D98: 0.15 | E98: 0.5 | F98: 0.5 | G98: 0.12 | H98: 0.12 | I98: 0.02 | J98: 0.02 | K98: 0.05 | L98: 0.05 | M98: 0.003 | N98: 0.003 | O98: 0.157 | P98: 0.157 | Q98: 0.02564692659 | R98: 0.02564692659 | S98: 0.0003119033858 | T98: 0.0003119033858 | V98: 1.876270733 | X98: 0.15 | Y98: 0.15 | Z98: 0.5 | AA98: 0.5 | AB98: 0.12 | AC98: 0.12 | AD98: 0.02 | AE98: 0.02 | AF98: 0.05 | AG98: 0.05 | AH98: 0.003 | AI98: 0.003 | AJ98: 0.13104117 | AK98: 0.13104117 | AL98: 0.02564692659 | AM98: 0.02564692659 | AN98: 0.0003119033858 | AO98: 0.0003119033858 | AQ98: 1.85
B99: 2034 | C99: 0.15 | D99: 0.15 | E99: 0.5 | F99: 0.5 | G99: 0.12 | H99: 0.12 | I99: 0.02 | J99: 0.02 | K99: 0.05 | L99: 0.05 | M99: 0.003 | N99: 0.003 | O99: 0.157 | P99: 0.157 | Q99: 0.02514404568 | R99: 0.02514404568 | S99: 0.0003057876331 | T99: 0.0003057876331 | V99: 1.875755621 | X99: 0.15 | Y99: 0.15 | Z99: 0.5 | AA99: 0.5 | AB99: 0.12 | AC99: 0.12 | AD99: 0.02 | AE99: 0.02 | AF99: 0.05 | AG99: 0.05 | AH99: 0.003 | AI99: 0.003 | AJ99: 0.1315501667 | AK99: 0.1315501667 | AL99: 0.02514404568 | AM99: 0.02514404568 | AN99: 0.0003057876331 | AO99: 0.0003057876331 | AQ99: 1.85
B100: 2035 | C100: 0.15 | D100: 0.15 | E100: 0.5 | F100: 0.5 | G100: 0.12 | H100: 0.12 | I100: 0.02 | J100: 0.02 | K100: 0.05 | L100: 0.05 | M100: 0.003 | N100: 0.003 | O100: 0.157 | P100: 0.157 | Q100: 0.02465102517 | R100: 0.02465102517 | S100: 0.0002997917972 | T100: 0.0002997917972 | V100: 1.875250609 | X100: 0.15 | Y100: 0.15 | Z100: 0.5 | AA100: 0.5 | AB100: 0.12 | AC100: 0.12 | AD100: 0.02 | AE100: 0.02 | AF100: 0.05 | AG100: 0.05 | AH100: 0.003 | AI100: 0.003 | AJ100: 0.132049183 | AK100: 0.132049183 | AL100: 0.02465102517 | AM100: 0.02465102517 | AN100: 0.0002997917972 | AO100: 0.0002997917972 | AQ100: 1.85
B101: 2036 | C101: 0.15 | D101: 0.15 | E101: 0.5 | F101: 0.5 | G101: 0.12 | H101: 0.12 | I101: 0.02 | J101: 0.02 | K101: 0.05 | L101: 0.05 | M101: 0.003 | N101: 0.003 | O101: 0.157 | P101: 0.157 | Q101: 0.02416767174 | R101: 0.02416767174 | S101: 0.0002939135266 | T101: 0.0002939135266 | V101: 1.874755499 | X101: 0.15 | Y101: 0.15 | Z101: 0.5 | AA101: 0.5 | AB101: 0.12 | AC101: 0.12 | AD101: 0.02 | AE101: 0.02 | AF101: 0.05 | AG101: 0.05 | AH101: 0.003 | AI101: 0.003 | AJ101: 0.1325384147 | AK101: 0.1325384147 | AL101: 0.02416767174 | AM101: 0.02416767174 | AN101: 0.0002939135266 | AO101: 0.0002939135266 | AQ101: 1.85
B102: 2037 | C102: 0.15 | D102: 0.15 | E102: 0.5 | F102: 0.5 | G102: 0.12 | H102: 0.12 | I102: 0.02 | J102: 0.02 | K102: 0.05 | L102: 0.05 | M102: 0.003 | N102: 0.003 | O102: 0.157 | P102: 0.157 | Q102: 0.02369379582 | R102: 0.02369379582 | S102: 0.0002881505163 | T102: 0.0002881505163 | V102: 1.874270097 | X102: 0.15 | Y102: 0.15 | Z102: 0.5 | AA102: 0.5 | AB102: 0.12 | AC102: 0.12 | AD102: 0.02 | AE102: 0.02 | AF102: 0.05 | AG102: 0.05 | AH102: 0.003 | AI102: 0.003 | AJ102: 0.1330180537 | AK102: 0.1330180537 | AL102: 0.02369379582 | AM102: 0.02369379582 | AN102: 0.0002881505163 | AO102: 0.0002881505163 | AQ102: 1.85
B103: 2038 | C103: 0.15 | D103: 0.15 | E103: 0.5 | F103: 0.5 | G103: 0.12 | H103: 0.12 | I103: 0.02 | J103: 0.02 | K103: 0.05 | L103: 0.05 | M103: 0.003 | N103: 0.003 | O103: 0.157 | P103: 0.157 | Q103: 0.02322921159 | R103: 0.02322921159 | S103: 0.0002825005062 | T103: 0.0002825005062 | V103: 1.873794213 | X103: 0.15 | Y103: 0.15 | Z103: 0.5 | AA103: 0.5 | AB103: 0.12 | AC103: 0.12 | AD103: 0.02 | AE103: 0.02 | AF103: 0.05 | AG103: 0.05 | AH103: 0.003 | AI103: 0.003 | AJ103: 0.1334882879 | AK103: 0.1334882879 | AL103: 0.02322921159 | AM103: 0.02322921159 | AN103: 0.0002825005062 | AO103: 0.0002825005062 | AQ103: 1.85
B104: 2039 | C104: 0.15 | D104: 0.15 | E104: 0.5 | F104: 0.5 | G104: 0.12 | H104: 0.12 | I104: 0.02 | J104: 0.02 | K104: 0.05 | L104: 0.05 | M104: 0.003 | N104: 0.003 | O104: 0.157 | P104: 0.157 | Q104: 0.02277373685 | R104: 0.02277373685 | S104: 0.0002769612806 | T104: 0.0002769612806 | V104: 1.873327659 | X104: 0.15 | Y104: 0.15 | Z104: 0.5 | AA104: 0.5 | AB104: 0.12 | AC104: 0.12 | AD104: 0.02 | AE104: 0.02 | AF104: 0.05 | AG104: 0.05 | AH104: 0.003 | AI104: 0.003 | AJ104: 0.1339493019 | AK104: 0.1339493019 | AL104: 0.02277373685 | AM104: 0.02277373685 | AN104: 0.0002769612806 | AO104: 0.0002769612806 | AQ104: 1.85
B105: 2040 | C105: 0.15 | D105: 0.15 | E105: 0.5 | F105: 0.5 | G105: 0.12 | H105: 0.12 | I105: 0.02 | J105: 0.02 | K105: 0.05 | L105: 0.05 | M105: 0.003 | N105: 0.003 | O105: 0.157 | P105: 0.157 | Q105: 0.02232719299 | R105: 0.02232719299 | S105: 0.0002715306672 | T105: 0.0002715306672 | V105: 1.872870254 | X105: 0.15 | Y105: 0.15 | Z105: 0.5 | AA105: 0.5 | AB105: 0.12 | AC105: 0.12 | AD105: 0.02 | AE105: 0.02 | AF105: 0.05 | AG105: 0.05 | AH105: 0.003 | AI105: 0.003 | AJ105: 0.1344012763 | AK105: 0.1344012763 | AL105: 0.02232719299 | AM105: 0.02232719299 | AN105: 0.0002715306672 | AO105: 0.0002715306672 | AQ105: 1.85
B106: 2041 | C106: 0.15 | D106: 0.15 | E106: 0.5 | F106: 0.5 | G106: 0.12 | H106: 0.12 | I106: 0.02 | J106: 0.02 | K106: 0.05 | L106: 0.05 | M106: 0.003 | N106: 0.003 | O106: 0.157 | P106: 0.157 | Q106: 0.02188940489 | R106: 0.02188940489 | S106: 0.0002662065365 | T106: 0.0002662065365 | V106: 1.872421818 | X106: 0.15 | Y106: 0.15 | Z106: 0.5 | AA106: 0.5 | AB106: 0.12 | AC106: 0.12 | AD106: 0.02 | AE106: 0.02 | AF106: 0.05 | AG106: 0.05 | AH106: 0.003 | AI106: 0.003 | AJ106: 0.1348443886 | AK106: 0.1348443886 | AL106: 0.02188940489 | AM106: 0.02188940489 | AN106: 0.0002662065365 | AO106: 0.0002662065365 | AQ106: 1.85
B107: 2042 | C107: 0.15 | D107: 0.15 | E107: 0.5 | F107: 0.5 | G107: 0.12 | H107: 0.12 | I107: 0.02 | J107: 0.02 | K107: 0.05 | L107: 0.05 | M107: 0.003 | N107: 0.003 | O107: 0.157 | P107: 0.157 | Q107: 0.02146020088 | R107: 0.02146020088 | S107: 0.0002609868005 | T107: 0.0002609868005 | V107: 1.871982174 | X107: 0.15 | Y107: 0.15 | Z107: 0.5 | AA107: 0.5 | AB107: 0.12 | AC107: 0.12 | AD107: 0.02 | AE107: 0.02 | AF107: 0.05 | AG107: 0.05 | AH107: 0.003 | AI107: 0.003 | AJ107: 0.1352788123 | AK107: 0.1352788123 | AL107: 0.02146020088 | AM107: 0.02146020088 | AN107: 0.0002609868005 | AO107: 0.0002609868005 | AQ107: 1.85
B108: 2043 | C108: 0.15 | D108: 0.15 | E108: 0.5 | F108: 0.5 | G108: 0.12 | H108: 0.12 | I108: 0.02 | J108: 0.02 | K108: 0.05 | L108: 0.05 | M108: 0.003 | N108: 0.003 | O108: 0.157 | P108: 0.157 | Q108: 0.02103941262 | R108: 0.02103941262 | S108: 0.0002558694122 | T108: 0.0002558694122 | V108: 1.871551151 | X108: 0.15 | Y108: 0.15 | Z108: 0.5 | AA108: 0.5 | AB108: 0.12 | AC108: 0.12 | AD108: 0.02 | AE108: 0.02 | AF108: 0.05 | AG108: 0.05 | AH108: 0.003 | AI108: 0.003 | AJ108: 0.135704718 | AK108: 0.135704718 | AL108: 0.02103941262 | AM108: 0.02103941262 | AN108: 0.0002558694122 | AO108: 0.0002558694122 | AQ108: 1.85
